Workbook

Sheet LDC Info
AA3: Algoma Power Inc.
AA4: Atikokan Hydro Inc.
AA5: Attawapiskat Power Corporation
AA6: Bluewater Power Distribution Corp.
AA7: Brant County Power
AA8: Brantford Power Inc.
AA9: Burlington Hydro Inc.
AA10: Cambridge and North Dumfries Hydro
AA11: Canadian Niagara Power Inc. – Eastern Ontario Power/Fort Erie/Port Colborne
AA12: Centre Wellington Hydro Ltd.
N13: Version 2.0 | AA13: Chapleau Public Utilities Corporation
D14: Utility Name | E14: St. Thomas Energy Inc. | AA14: COLLUS Power Corp.
AA15: Cooperative Hydro Embrun Inc.
D16: Assigned EB Number | E16: EB-2014-0113 | AA16: E.L.K. Energy Inc.
AA17: Enersource Hydro Mississauga Inc.
D18: Name of Contact and Title | E18: Robert Kent, Director Finance and Regulatory Affairs | AA18: Entegrus Powerlines Inc.
AA19: ENWIN Utilities Ltd.
D20: Phone Number | E20: 1-519-631-5550 x 5258 | AA20: Erie Thames Powerlines Corp.
AA21: Espanola Regional Hydro Distribution Corporation
D22: Email Address | E22: rkent@sttenergy.com | AA22: Essex Powerlines Corporation
AA23: Festival Hydro Inc.
D24: Test Year | E24: 2015 | AA24: Fort Albany Power Corporation
AA25: Fort Frances Power Corporation
D26: Bridge Year | E26: 2014 | AA26: Greater Sudbury Hydro Inc.
AA27: Grimsby Power Inc.
D28: Last Rebasing Year | E28: 2011 | AA28: Guelph Hydro Electric Systems Inc.
AA29: Haldimand County Hydro Inc.
A30: Identify the accounting standard used for the test year
E31: MIFRS
A33: Did you update your depreciation and capitalization policies?
E34: Yes
A36: When did you update your depreciation and capitalization policies?
E37: 2012
A39: Identify the year that the applicant has adopted or is expected to adopt IFRS for financial reporting purposes
E40: 2014 or Later
A42: Identify the year that the applicant has made the required changes to capitalization and depreciation expense policies under CGAAP or ASPE
E43: 2012
A45: Are you applying for cost recovery for the test and/or future year(s) for Green Energy initiatives?
E46: No
A48: ="Is " & E14 & " an embedded distributor?" -> Is St. Thomas Energy Inc. an embedded distributor? | E48: No
A52: Once all selections have been made above, press the following button to reveal the appropriate worksheets.
A56: To unhide all worksheets in this workbook, press the following button:
B59: Notes | AA59: Guelph Hydro Electric Systems Inc.
AA60: Halton Hills Hydro Inc.
C61: Pale green cells represent input cells. | AA61: Hearst Power Distribution Co. Ltd.
AA62: Horizon Utilities Corporation
C63: Pale blue cells represent drop-down lists. The applicant should select the appropriate item from the drop-down list. | AA63: Hydro 2000 Inc.
AA64: Hydro Hawkesbury Inc.
C65: White cells contain fixed values, automatically generated values or formulae. | AA65: Hydro One Brampton Networks Inc.
AA66: Hydro One Networks Inc.
AA67: Hydro One Remote Communities Inc.
AA68: Hydro Ottawa Limited
AA69: Innisfil Hydro Dist. Systems Limited
AA70: Kashechewan Power Corporation
AA71: Kenora Hydro Electric Corporation Ltd.
AA72: Kingston Hydro Corporation
AA73: Kitchener-Wilmot Hydro Inc.
AA74: Lakefront Utilities Inc.
AA75: Lakeland Power Distribution Ltd.
AA76: London Hydro Inc.
AA77: Midland Power Utility Corporation
AA78: Milton Hydro Distribution Inc.
AA79: Newmarket – Tay Power Distribution Ltd.
AA80: Niagara Peninsula Energy Inc.
AA81: Niagara-on-the-Lake Hydro Inc.
AA82: Norfolk Power Distribution Ltd.
AA83: North Bay Hydro Distribution Limited
AA84: Northern Ontario Wires Inc.
AA85: Oakville Hydro Distribution Inc.
AA86: Orangeville Hydro Limited
AA87: Orillia Power Distribution Corp.
AA88: Oshawa PUC Networks Inc.
AA89: Ottawa River Power Corporation
AA90: Parry Sound Power Corporation
AA91: Peterborough Distribution Inc.
AA92: PowerStream Inc.
AA93: PUC Distribution Inc.
AA94: Renfrew Hydro Inc.
AA95: Rideau St. Lawrence Distribution Inc.
AA96: St. Thomas Energy Inc.
AA97: Sioux Lookout Hydro Inc.
AA98: Thunder Bay Hydro Electricity Distribution
AA99: Tillsonburg Hydro Inc.
AA100: Toronto Hydro-Electric System Limited
AA101: Veridian Connections Inc.
AA102: Wasaga Distribution Inc.
AA103: Waterloo North Hydro Inc.
AA104: Welland Hydro Electric System Corp.
AA105: Wellington North Power Inc.
AA106: West Coast Huron Energy Inc.
AA107: Westario Power Inc.
AA108: Whitby Hydro Electric Corporation
AA109: Woodstock Hydro Services Inc.

Sheet Table of Contents
A15: 1 | B15: LDC Information Sheet | E15: 35 | F15: Appendix 2-DB: Overhead Expense (CGAAP or ASPE)
A16: 2 | B16: Index | E16: 36 | F16: Appendix 2-EA: PP&E Deferral Account (2012 IFRS Adopters)
A17: 3 | B17: Cost of Service Application Flowchart | E17: 37 | F17: Appendix 2-EB: PP&E Deferral Account (2013 IFRS Adopters)
A18: 4 | B18: List of Key References | E18: 38 | F18: Appendix 2-EC: PP&E Deferral Account (2014 IFRS Adopters)
A19: 5 | B19: Appendix 2-AA: Capital Projects Table | E19: 39 | F19: Appendix 2-ED: Account 1576 - Accounting Changes Under CGAAP (2012 Changes)
A20: 6 | B20: Appendix 2-AB: Capital Expenditures | E20: 40 | F20: Appendix 2-EE: Account 1576 - Accounting Changes Under CGAAP (2013 Changes)
A21: 7 | B21: Appendix 2-BA1: Fixed Asset Continuity Schedule (CGAAP/ASPE/USGAAP) | E21: 41 | F21: Appendix 2-FA: Renewable Generation Connection Investment Summary
A22: 8 | B22: Appendix 2-BA2: Fixed Asset Continuity Schedule (MIFRS) | E22: 42 | F22: Appendix 2-FB: Calculation of Renewable Generation Connection Direct Benefits/Provincial Amount: Renewable Enabling Improvement Investments
A23: 9 | B23: Appendix 2-BB: Service Life Comparison | E23: 43 | F23: Appendix 2-FC: Calculation of Renewable Generation Connection Direct Benefits/Provincial Amount: Renewable Expansion Investments
A24: 10 | B24: General Instructions to MIFRS Appendices | E24: 44 | F24: Appendix 2-G: Service Reliability Indicators
A25: 11 | B25: Appendix 2-CA: 2011 Depreciation and Amortization Expense (CGAAP) | E25: 45 | F25: Appendix 2-H: Other Operating Revenue
A26: 12 | B26: Appendix 2-CB: 2011 Depreciation and Amortization Expense (MIFRS) | E26: 46 | F26: Appendix 2-I: Load Forecast CDM Adjustment Work Form
A27: 13 | B27: Appendix 2-CC: 2012 Depreciation and Amortization Expense (MIFRS) | E27: 47 | F27: Appendix 2-JA: Summary of Recoverable OM&A Expenses
A28: 14 | B28: Appendix 2-CD: 2013 Depreciation and Amortization Expense (MIFRS) | E28: 48 | F28: Appendix 2-JB: Recoverable OM&A Cost Driver Table
A29: 15 | B29: Appendix 2-CE: 2014 Depreciation and Amortization Expense (MIFRS) | E29: 49 | F29: Appendix 2-JC: OMA Programs Table
A30: 16 | B30: Appendix 2-CF: 2012 Depreciation and Amortization Expense (CGAAP) | E30: 50 | F30: Appendix 2-K: Employee Costs
A31: 17 | B31: Appendix 2-CG: 2012 Depreciation and Amortization Expense (MIFRS) | E31: 51 | F31: Appendix 2-L: Recoverable OM&A Cost per Customer and per FTE
A32: 18 | B32: Appendix 2-CH: 2013 Depreciation and Amortization Expense (MIFRS) | E32: 52 | F32: Appendix 2-M: Regulatory Cost Schedule
A33: 19 | B33: Appendix 2-CI: 2014 Depreciation and Amortization Expense (MIFRS) | E33: 53 | F33: Appendix 2-N: Shared Services and Corporate Cost Allocation
A34: 20 | B34: Appendix 2-CJ: 2012 Depreciation and Amortization Expense (CGAAP) | E34: 54 | F34: Appendix 2-OA: Capital Structure and Cost of Capital
A35: 21 | B35: Appendix 2-CK: 2013 Depreciation and Amortization Expense (CGAAP) | E35: 55 | F35: Appendix 2-OB: Debt Instruments
A36: 22 | B36: Appendix 2-CL: 2013 Depreciation and Amortization Expense (MIFRS) | E36: 56 | F36: Appendix 2-P: Cost Allocation
A37: 23 | B37: Appendix 2-CM: 2014 Depreciation and Amortization Expense (MIFRS) | E37: 57 | F37: Appendix 2-Q: Cost of Serving Embedded Distributor(s)
A38: 24 | B38: General Instructions to CGAAP-ASPE Appendices | E38: 58 | F38: Appendix 2-R: Loss Factors
A39: 25 | B39: Appendix 2-CN: 2012 Depreciation and Amortization Expense (Old CGAAP) | E39: 59 | F39: Appendix 2-S: Stranded Meter Treatment
A40: 26 | B40: Appendix 2-CO: 2012 Depreciation and Amortization Expense (New CGAAP) | E40: 60 | F40: Appendix 2-TA: Account 1592, PILs and Tax Variances
A41: 27 | B41: Appendix 2-CP: 2013 Depreciation and Amortization Expense (New CGAAP) | E41: 61 | F41: Appendix 2-TB: Account 1592, HST-OVAT Input Tax Credits
A42: 28 | B42: Appendix 2-CQ: 2014 Depreciation and Amortization Expense (New CGAAP) | E42: 62 | F42: Appendix 2-U: One-Time Incremental IFRS Transition Costs
A43: 29 | B43: Appendix 2-CR: 2012 Depreciation and Amortization Expense (Old CGAAP) | E43: 63 | F43: Appendix 2-V: Revenue Reconciliation
A44: 30 | B44: Appendix 2-CS: 2013 Depreciation and Amortization Expense (Old CGAAP) | E44: 64 | F44: Appendix 2-W: Bill Impacts
A45: 31 | B45: Appendix 2-CT: 2013 Depreciation and Amortization Expense (New CGAAP) | E45: 65 | F45: Appendix 2-YA: Transition to MIFRS Summary Impacts
A46: 32 | B46: Appendix 2-CU: 2014 Depreciation and Amortization Expense (New CGAAP) | E46: 66 | F46: Appendix 2-YB: Accounting Changes under CGAAP/ASPE Summary Impacts
A47: 33 | B47: Appendix 2-CV: Depreciation and Amortization Expense (USGAAP) | E47: 67 | F47: App.2-Z: Tariff Schedule
A48: 34 | B48: Appendix 2-DA: Overhead Expense (MIFRS)
B51: Legend
B52: To be completed by MIFRS filers
B53: To be completed by CGAAP and ASPE filers
B54: To be completed by USGAAP filers
B55: To be completed by both CGAAP, ASPE and USGAAP filers

Sheet COS Flowchart
B4: Cost of Service Rate Application Schematic
B6: The Cost of Service Rate Application Schematic is a flowchart appended to Chapter 2 of the Filing Requirements as a guide for the components of an application and how demand and costs interrelate to derive the revenue requirement and then how the revenue requirement is allocated between classes and through fixed/variable splits to derive rates that will be compensatory for the annual revenue requirement, based on the the forecasted demand. There is no form to be filled out; therefore, this Schedule is not required to be filed.

Sheet List of Key References
B3: List of Key References
A5: A list of key references for understanding the Filing Requirements has been embedded in the document below. To access the list of references and associated hyperlinks doublt click the icon below.

Sheet App.2-AA_Capital Projects
G1: File Number: | H1: =EBNUMBER -> EB-2014-0113
G2: Exhibit: | H2: 2
G3: Tab: | H3: 2
G4: Schedule: | H4: 2
G5: Page:
G7: Date: | H7: 2015-04-25
A8: SEE ENGINEERING
A9: Appendix 2-AA
A10: Capital Projects Table
A13: Projects | B13: =C13-1 -> 2009 | C13: =D13-1 -> 2010 | D13: =E13-1 -> 2011 | E13: =F13-1 -> 2012 | F13: =BridgeYear - 1 -> 2013 | G13: =BridgeYear & " Bridge Year" -> 2014 Bridge Year | H13: 2015 Test Year
A14: Reporting Basis
A15: Project Name #1
K16: See separate spreadsheet
A21: Sub-Total | B21: =SUM(B16:B20) -> 0 | C21: =SUM(C16:C20) -> 0 | D21: 0 | E21: 0 | F21: 0 | G21: 0 | H21: 0
A22: Project Name #2
A28: Sub-Total | B28: =SUM(B23:B27) -> 0 | C28: 0 | D28: 0 | E28: 0 | F28: 0 | G28: 0 | H28: 0
A29: Project Name #3
A35: Sub-Total | B35: =SUM(B30:B34) -> 0 | C35: 0 | D35: 0 | E35: 0 | F35: 0 | G35: 0 | H35: 0
A36: Project Name #4
A42: Sub-Total | B42: =SUM(B37:B41) -> 0 | C42: 0 | D42: 0 | E42: 0 | F42: 0 | G42: 0 | H42: 0
A43: Miscellaneous
A44: Total | B44: =SUMPRODUCT(--($A15:$A43="Sub-Total"), B$15:B$43)+B43 -> 0 | C44: =SUMPRODUCT(--($A15:$A43="Sub-Total"), C$15:C$43)+C43 -> 0 | D44: 0 | E44: 0 | F44: 0 | G44: 0 | H44: 0
A45: Less Renewable Generation Facility Assets and Other Non Rate-Regulated Utility Assets (input as negative)
A46: Total | B46: =B44+B45 -> 0 | C46: =C44+C45 -> 0 | D46: 0 | E46: 0 | F46: 0 | G46: 0 | H46: 0
A50: Notes:
A52: 1 Please provide a breakdown of the major components of each capital project undertaken in each year. Please ensure that all projects below the materiality threshold are included in the miscellaneous line. Add more projects as required.
A53: 2 The applicant should group projects appropriately and avoid presentations that result in classification of significant components of the OM&A budget in the miscellaneous category.

Sheet App.2-AB_Capital Expenditures
T1: File Number: | V1: =EBNUMBER -> EB-2014-0113
T2: Exhibit: | V2: 2
T3: Tab: | V3: 2
T4: Schedule: | V4: 2
T5: Page:
T7: Date: | V7: 2015-04-25
B9: Appendix 2-AB
B10: Table 2 - Capital Expenditure Summary from Chapter 5 Consolidated Distribution System Plan Filing Requirements
B12: First year of Forecast Period: | C12: 2015
B13: CATEGORY | C13: Historical Period (previous plan1 & actual) | R13: Forecast Period (planned)
C14: =F14-1 -> 2010 | F14: =I14-1 -> 2011 | I14: =L14-1 -> 2012 | L14: =O14-1 -> 2013 | O14: =R14-1 -> 2014 | R14: =C12 -> 2015 | S14: =R14+1 -> 2016 | T14: =S14+1 -> 2017 | U14: 2018 | V14: 2019
C15: Plan | D15: Actual | E15: Var | F15: Plan | G15: Actual | H15: Var | I15: Plan | J15: Actual | K15: Var | L15: Plan | M15: Actual | N15: Var | O15: Plan | P15: Actual2 | Q15: Var
C16: $ '000 | E16: % | F16: $ '000 | H16: % | I16: $ '000 | K16: % | L16: $ '000 | N16: % | O16: $ '000 | Q16: % | R16: $ '000
B17: System Access | C17: 953818.55 | D17: 693866.63 | E17: =IF(ISERROR((D17-C17)/C17),"--",(D17-C17)/C17) -> -0.2725381258 | F17: 759731.1 | G17: 735218.76 | H17: =IF(ISERROR((G17-F17)/F17),"--",(G17-F17)/F17) -> -0.03226449464 | I17: 551199.8073 | J17: 3943789.67 | K17: =IF(ISERROR((J17-I17)/I17),"--",(J17-I17)/I17) -> 6.154918448 | L17: 719000 | M17: 580416.79 | N17: =IF(ISERROR((M17-L17)/L17),"--",(M17-L17)/L17) -> -0.1927443811 | O17: 200000 | Q17: =IF(ISERROR((P17-O17)/O17),"--",(P17-O17)/O17) -> -1 | R17: 200000 | S17: 200000 | T17: 200000 | U17: 200000 | V17: 200000
B18: System Renewal | C18: 872154.2 | D18: 778472.56 | E18: =IF(ISERROR((D18-C18)/C18),"--",(D18-C18)/C18) -> -0.1074140788 | F18: 1143466.75 | G18: 1146535 | H18: =IF(ISERROR((G18-F18)/F18),"--",(G18-F18)/F18) -> 0.002683287468 | I18: 978700 | J18: 1077180.75 | K18: =IF(ISERROR((J18-I18)/I18),"--",(J18-I18)/I18) -> 0.1006240421 | L18: 827423 | M18: 1008816.21 | N18: =IF(ISERROR((M18-L18)/L18),"--",(M18-L18)/L18) -> 0.2192266954 | O18: 1600000 | Q18: =IF(ISERROR((P18-O18)/O18),"--",(P18-O18)/O18) -> -1 | R18: 1341250 | S18: 1590000 | T18: 1530000 | U18: 1215000 | V18: 1560000
B19: System Service | C19: 0 | D19: 45076.34 | E19: -- | F19: 285510.25 | G19: 0 | H19: -1 | I19: 0 | J19: 0 | K19: -- | L19: 0 | M19: 0 | N19: -- | O19: 0 | Q19: -- | R19: 208750 | S19: 0 | T19: 0 | U19: 305000 | V19: 0
B20: General Plant | C20: 0 | D20: 0 | E20: -- | F20: 0 | G20: 0 | H20: -- | I20: 743500 | J20: 2381685 | K20: 2.2033423 | L20: 888000 | M20: 538637 | N20: -0.3934268018 | O20: 728050 | Q20: -1 | R20: 513000 | S20: 436000 | T20: 458000 | U20: 265000 | V20: 222000
B21: Contributed Capital | C21: -302000 | D21: -384629 | E21: 0.2736059603 | F21: -251000 | G21: -266363 | H21: 0.06120717131 | I21: -230500 | J21: -318521 | K21: 0.3818698482 | L21: -311000 | M21: -596144 | N21: 0.9168617363 | O21: -100000 | R21: -100000 | S21: =+R21 -> -100000 | T21: =+S21 -> -100000 | U21: =+T21 -> -100000 | V21: =+U21 -> -100000
B22: TOTAL EXPENDITURE | C22: =SUM(C17:C21) -> 1523972.75 | D22: =SUM(D17:D21) -> 1132786.53 | E22: -0.2566884611 | F22: =SUM(F17:F21) -> 1937708.1 | G22: =SUM(G17:G21) -> 1615390.76 | H22: -0.1663394708 | I22: =SUM(I17:I21) -> 2042899.807 | J22: =SUM(J17:J21) -> 7084134.42 | K22: 2.467685686 | L22: =SUM(L17:L21) -> 2123423 | M22: =SUM(M17:M21) -> 1531726 | N22: -0.27865244 | O22: =SUM(O17:O21) -> 2428050 | P22: =SUM(P17:P20) -> 0 | Q22: -1 | R22: =SUM(R17:R21) -> 2163000 | S22: =SUM(S17:S21) -> 2126000 | T22: =SUM(T17:T21) -> 2088000 | U22: =SUM(U17:U21) -> 1885000 | V22: =SUM(V17:V21) -> 1882000
B23: System O&M | C23: 988508 | D23: 1085310 | E23: 0.09792738147 | F23: 916682 | G23: 923291 | H23: 0.007209697583 | I23: 1371654 | J23: 1311270 | K23: -0.04402276376 | L23: 1305830 | M23: 1224643 | N23: -0.06217271774 | O23: 1259102 | Q23: -1 | R23: 1318543 | S23: 1346232.548 | T23: 1374503.431 | U23: 1403368.004 | V23: =+U23/T23*U23 -> 1432838.732
B25: Notes to the Table: | M25: =+M22-M20 -> 993089 | O25: =+O22-O21 -> 2528050
B26: 1. Historical “previous plan” data is not required unless a plan has previously been filed | M26: =+M22-M21 -> 2127870 | O26: =+O25-M25 -> 1534961
B27: 2. Indicate the number of months of 'actual' data included in the last year of the Historical Period (normally a 'bridge' year):
B29: Explanatory Notes on Variances (complete only if applicable)
B30: Notes on shifts in forecast vs. histrical budgets by category
B31: 2012 actual includes smart meter transfer of $3,267,776 and asset purchased per January 1, 2012 restructuring of $1,407,734
B33: Notes on year over year Plan vs. Actual variances for Total Expenditures
B36: Notes on Plan vs. Actual variance trends for individual expenditure categories

Sheet App.2-BA1_Fix Asset Cont.CGAAP (hidden)
L1: File Number: | M1: =EBNUMBER -> EB-2014-0113
L2: Exhibit:
L3: Tab:
L4: Schedule:
L5: Page:
L7: Date:
A9: Appendix 2-BA
A10: Fixed Asset Continuity Schedule - CGAAP/ASPE/USGAAP
E12: Year
D14: Cost | J14: Accumulated Depreciation
A15: CCA Class | B15: OEB | C15: Description | D15: Opening Balance | E15: Additions | F15: Disposals | G15: Closing Balance | I15: Opening Balance | J15: Additions | K15: Disposals | L15: Closing Balance | M15: Net Book Value
A16: 12 | B16: 1611 | C16: Computer Software (Formally known as Account 1925) | G16: =D16+E16+F16 -> 0 | L16: =I16+J16+K16 -> 0 | M16: =G16+L16 -> 0
A17: CEC | B17: 1612 | C17: Land Rights (Formally known as Account 1906) | G17: =D17+E17+F17 -> 0 | L17: =I17+J17+K17 -> 0 | M17: =G17+L17 -> 0
A18: N/A | B18: 1805 | C18: Land | G18: =D18+E18+F18 -> 0 | L18: =I18+J18+K18 -> 0 | M18: =G18+L18 -> 0
A19: 47 | B19: 1808 | C19: Buildings | G19: =D19+E19+F19 -> 0 | L19: =I19+J19+K19 -> 0 | M19: =G19+L19 -> 0
A20: 13 | B20: 1810 | C20: Leasehold Improvements | G20: 0 | L20: 0 | M20: 0
A21: 47 | B21: 1815 | C21: Transformer Station Equipment >50 kV | G21: 0 | L21: 0 | M21: 0
A22: 47 | B22: 1820 | C22: Distribution Station Equipment <50 kV | G22: 0 | L22: 0 | M22: 0
A23: 47 | B23: 1825 | C23: Storage Battery Equipment | G23: 0 | L23: 0 | M23: 0
A24: 47 | B24: 1830 | C24: Poles, Towers & Fixtures | G24: 0 | L24: 0 | M24: 0
A25: 47 | B25: 1835 | C25: Overhead Conductors & Devices | G25: 0 | L25: 0 | M25: 0
A26: 47 | B26: 1840 | C26: Underground Conduit | G26: 0 | L26: 0 | M26: 0
A27: 47 | B27: 1845 | C27: Underground Conductors & Devices | G27: 0 | L27: 0 | M27: 0
A28: 47 | B28: 1850 | C28: Line Transformers | G28: 0 | L28: 0 | M28: 0
A29: 47 | B29: 1855 | C29: Services (Overhead & Underground) | G29: 0 | L29: 0 | M29: 0
A30: 47 | B30: 1860 | C30: Meters | G30: 0 | L30: 0 | M30: 0
A31: 47 | B31: 1860 | C31: Meters (Smart Meters) | G31: 0 | L31: 0 | M31: 0
A32: N/A | B32: 1905 | C32: Land | G32: 0 | L32: 0 | M32: 0
A33: 47 | B33: 1908 | C33: Buildings & Fixtures | G33: 0 | L33: 0 | M33: 0
A34: 13 | B34: 1910 | C34: Leasehold Improvements | G34: 0 | L34: 0 | M34: 0
A35: 8 | B35: 1915 | C35: Office Furniture & Equipment (10 years) | G35: 0 | L35: 0 | M35: 0
A36: 8 | B36: 1915 | C36: Office Furniture & Equipment (5 years) | G36: 0 | L36: 0 | M36: 0
A37: 10 | B37: 1920 | C37: Computer Equipment - Hardware | G37: 0 | L37: 0 | M37: 0
A38: 45 | B38: 1920 | C38: Computer Equip.-Hardware(Post Mar. 22/04) | G38: 0 | L38: 0 | M38: 0
A39: 45.1 | B39: 1920 | C39: Computer Equip.-Hardware(Post Mar. 19/07) | G39: 0 | L39: 0 | M39: 0
A40: 10 | B40: 1930 | C40: Transportation Equipment | G40: 0 | L40: 0 | M40: 0
A41: 8 | B41: 1935 | C41: Stores Equipment | G41: 0 | L41: 0 | M41: 0
A42: 8 | B42: 1940 | C42: Tools, Shop & Garage Equipment | G42: 0 | L42: 0 | M42: 0
A43: 8 | B43: 1945 | C43: Measurement & Testing Equipment | G43: 0 | L43: 0 | M43: 0
A44: 8 | B44: 1950 | C44: Power Operated Equipment | G44: 0 | L44: 0 | M44: 0
A45: 8 | B45: 1955 | C45: Communications Equipment | G45: 0 | L45: 0 | M45: 0
A46: 8 | B46: 1955 | C46: Communication Equipment (Smart Meters) | G46: 0 | L46: 0 | M46: 0
A47: 8 | B47: 1960 | C47: Miscellaneous Equipment | G47: 0 | L47: 0 | M47: 0
A48: 47 | B48: 1970 | C48: Load Management Controls Customer Premises | G48: 0 | L48: 0 | M48: 0
A49: 47 | B49: 1975 | C49: Load Management Controls Utility Premises | G49: 0 | L49: 0 | M49: 0
A50: 47 | B50: 1980 | C50: System Supervisor Equipment | G50: 0 | L50: 0 | M50: 0
A51: 47 | B51: 1985 | C51: Miscellaneous Fixed Assets | G51: 0 | L51: 0 | M51: 0
A52: 47 | B52: 1990 | C52: Other Tangible Property | G52: 0 | L52: 0 | M52: 0
A53: 47 | B53: 1995 | C53: Contributions & Grants | G53: 0 | L53: 0 | M53: 0
B54: etc. | G54: 0 | L54: 0 | M54: 0
G55: 0 | L55: 0 | M55: 0
C56: Sub-Total | D56: =SUM(D16:D55) -> 0 | E56: =SUM(E16:E55) -> 0 | F56: 0 | G56: 0 | I56: =SUM(I16:I55) -> 0 | J56: =SUM(J16:J55) -> 0 | K56: 0 | L56: 0 | M56: 0
C57: Less Socialized Renewable Energy Generation Investments (input as negative) | G57: =D57+E57+F57 -> 0 | L57: =I57+J57+K57 -> 0 | M57: =G57+L57 -> 0
C58: Less Other Non Rate-Regulated Utility Assets (input as negative) | G58: 0 | L58: =I58+J58+K58 -> 0 | M58: 0
C59: Total PP&E | D59: =SUM(D56:D58) -> 0 | E59: =SUM(E56:E58) -> 0 | F59: 0 | G59: 0 | I59: =SUM(I56:I58) -> 0 | J59: =SUM(J56:J58) -> 0 | K59: =SUM(K56:K58) -> 0 | L59: =SUM(L56:L58) -> 0 | M59: =SUM(M56:M58) -> 0
I61: Less: Fully Allocated Depreciation
A62: 10 | C62: Transportation | I62: Transportation
A63: 8 | C63: Stores Equipment | I63: Stores Equipment
I64: Net Depreciation | K64: =J59-K62-K63 -> 0
A66: Notes:
A68: 1 | B68: Tables in the format outlined above covering all fixed asset accounts should be submitted for the Test Year, Bridge Year and all relevant historical years. At a minimum , the applicant must provide data for the earlier of: 1) all historical years back to its last rebasing; or 2) at least three years of historical actuals, in addition to Bridge Year and Test Year forecasts.
A71: 2 | B71: The "CCA Class" for fixed assets should agree with the CCA Class used for tax purposes in Tax Returns. Fixed Assets sub-components may be used where the underlying asset components are classified under multiple CCA Classes for tax purposes. If an applicant uses any different classes from those shown in the table, an explanation should be provided. (also see note 3 below).
A74: 3 | B74: The table may need to be customized for a utility's asset categories or for any new asset accounts announced or authorized by the Board.
A76: 4 | B76: The additions column (F) must not include construction work in progress (CWIP).

Sheet App.2-BA2_Fix Asset Cont.MIFRS
L1: File Number: | M1: =EBNUMBER -> EB-2014-0113
L2: Exhibit: | M2: 2
L3: Tab: | M3: 2
L4: Schedule: | M4: 2
L5: Page:
L7: Date: | M7: 2015-04-25
A9: Appendix 2-BA
A10: Fixed Asset Continuity Schedule - CGAAP
K11: see separate excel file with yearly schedules
E12: Year | F12: 2012
D14: Cost | J14: Accumulated Depreciation
A15: CCA Class | B15: OEB | C15: Description | D15: Opening Balance | E15: Additions | F15: Disposals | G15: Closing Balance | I15: Opening Balance | J15: Additions | K15: Disposals | L15: Closing Balance | M15: Net Book Value
A16: 12 | B16: 1611 | C16: Computer Software (Formally known as Account 1925) | E16: =122966.23+353134.18 -> 476100.41 | G16: =D16+E16+F16 -> 476100.41 | J16: =-62622.65-35313.42 -> -97936.07 | L16: =I16+J16+K16 -> -97936.07 | M16: =G16+L16 -> 378164.34
A17: CEC | B17: 1612 | C17: Land Rights (Formally known as Account 1906) | G17: =D17+E17+F17 -> 0 | L17: =I17+J17+K17 -> 0 | M17: =G17+L17 -> 0
A18: N/A | B18: 1805 | C18: Land | D18: 6733.79 | E18: 904.09 | G18: =D18+E18+F18 -> 7637.88 | L18: =I18+J18+K18 -> 0 | M18: =G18+L18 -> 7637.88
A19: 47 | B19: 1808 | C19: Buildings | D19: 0 | G19: =D19+E19+F19 -> 0 | L19: =I19+J19+K19 -> 0 | M19: =G19+L19 -> 0
A20: 13 | B20: 1810 | C20: Leasehold Improvements | D20: 0 | G20: 0 | L20: 0 | M20: 0
A21: 47 | B21: 1815 | C21: Transformer Station Equipment >50 kV | D21: 0 | G21: 0 | L21: 0 | M21: 0 | O21: SEE separate file with 2011 to 2015 tables
A22: 47 | B22: 1820 | C22: Distribution Station Equipment <50 kV | D22: 850124.96 | E22: 0 | G22: 850124.96 | I22: -831275.62 | J22: -835.9 | L22: -832111.52 | M22: 18013.44
A23: 47 | B23: 1825 | C23: Storage Battery Equipment | D23: 0 | G23: 0 | L23: 0 | M23: 0
A24: 47 | B24: 1830 | C24: Poles, Towers & Fixtures | D24: 8458646.13 | E24: 188797.41 | G24: 8647443.54 | I24: -3876606.02 | J24: -120686.08 | L24: -3997292.1 | M24: 4650151.44
A25: 47 | B25: 1835 | C25: Overhead Conductors & Devices | D25: 7482814.34 | E25: 195298.31 | G25: 7678112.65 | I25: -3933150.74 | J25: -69636.3 | L25: -4002787.04 | M25: 3675325.61
A26: 47 | B26: 1840 | C26: Underground Conduit | D26: 3936611.71 | E26: 459743.43 | G26: 4396355.14 | I26: -1906280.26 | J26: -83918.58 | L26: -1990198.84 | M26: 2406156.3
A27: 47 | B27: 1845 | C27: Underground Conductors & Devices | D27: 8017556.71 | E27: 559389.01 | G27: 8576945.72 | I27: -3749509.8 | J27: -141840.07 | L27: -3891349.87 | M27: 4685595.85
A28: 47 | B28: 1850 | C28: Line Transformers | D28: =1607179.12+7546009.69 -> 9153188.81 | E28: =245580.75+93154.06 -> 338734.81 | G28: 9491923.62 | I28: =-276610.11-4616796.84 -> -4893406.95 | J28: =-43351.77-105756.68 -> -149108.45 | L28: -5042515.4 | M28: 4449408.22
A29: 47 | B29: 1855 | C29: Services (Overhead & Underground) | D29: =4097276.35+1107564.23 -> 5204840.58 | E29: =82538.83+76011.95 -> 158550.78 | G29: 5363391.36 | I29: =-2148914.09-186652.1 -> -2335566.19 | J29: =-60322.47-27602.57 -> -87925.04 | L29: -2423491.23 | M29: 2939900.13
A30: 47 | B30: 1860 | C30: Meters | D30: =2278507.24+89517.75+73618.78 -> 2441643.77 | E30: 4237.61 | G30: 2445881.38 | I30: =-1495879.88-12564.32-10818.55 -> -1519262.75 | J30: =-66603.36-7035.54-2385.3 -> -76024.2 | L30: -1595286.95 | M30: 850594.43
A31: 47 | B31: 1860 | C31: Meters (Smart Meters) | E31: 3100868.84 | G31: 3100868.84 | J31: -571776.51 | L31: -571776.51 | M31: 2529092.33
A32: N/A | B32: 1905 | C32: Land | D32: 174187.53 | G32: 174187.53 | L32: 0 | M32: 174187.53
A33: 47 | B33: 1908 | C33: Buildings & Fixtures | D33: 2385249.78 | E33: 15493.24 | G33: 2400743.02 | I33: -900206.89 | J33: =-35275.13-1695.67 -> -36970.8 | L33: -937177.69 | M33: 1463565.33
A34: 13 | B34: 1910 | C34: Leasehold Improvements | G34: 0 | L34: 0 | M34: 0
A35: 8 | B35: 1915 | C35: Office Furniture & Equipment (10 years) | E35: 71936.87 | G35: 71936.87 | J35: -7193.64 | L35: -7193.64 | M35: 64743.23
A36: 8 | B36: 1915 | C36: Office Furniture & Equipment (5 years) | G36: 0 | L36: 0 | M36: 0
A37: 10 | B37: 1920 | C37: Computer Equipment - Hardware | E37: 136793.63 | G37: 136793.63 | J37: -40378.55 | L37: -40378.55 | M37: 96415.08
A38: 45 | B38: 1920 | C38: Computer Equip.-Hardware(Post Mar. 22/04) | G38: 0 | L38: 0 | M38: 0
A39: 45.1 | B39: 1920 | C39: Computer Equip.-Hardware(Post Mar. 19/07) | G39: 0 | L39: 0 | M39: 0
A40: 10 | B40: 1930 | C40: Transportation Equipment | E40: 679340 | G40: 679340 | J40: -136811.04 | L40: -136811.04 | M40: 542528.96
A41: 8 | B41: 1935 | C41: Stores Equipment | G41: 0 | L41: 0 | M41: 0
A42: 8 | B42: 1940 | C42: Tools, Shop & Garage Equipment | E42: 377238.9 | G42: 377238.9 | J42: -43345.89 | L42: -43345.89 | M42: 333893.01
A43: 8 | B43: 1945 | C43: Measurement & Testing Equipment | G43: 0 | L43: 0 | M43: 0
A44: 8 | B44: 1950 | C44: Power Operated Equipment | G44: 0 | L44: 0 | M44: 0
A45: 8 | B45: 1955 | C45: Communications Equipment | E45: 12465.77 | G45: 12465.77 | J45: -2493.15 | L45: -2493.15 | M45: 9972.62
A46: 8 | B46: 1955 | C46: Communication Equipment (Smart Meters) | G46: 0 | L46: 0 | M46: 0
A47: 8 | B47: 1960 | C47: Miscellaneous Equipment | E47: 200000 | G47: 200000 | J47: -13333.33 | L47: -13333.33 | M47: 186666.67
A48: 47 | B48: 1970 | C48: Load Management Controls Customer Premises | G48: 0 | L48: 0 | M48: 0
A49: 47 | B49: 1975 | C49: Load Management Controls Utility Premises | G49: 0 | L49: 0 | M49: 0
A50: 47 | B50: 1980 | C50: System Supervisor Equipment | D50: 43592.36 | E50: =14408.55+397907.52 -> 412316.07 | G50: 455908.43 | I50: -31694.61 | J50: =-5261.31-26527.17 -> -31788.48 | L50: -63483.09 | M50: 392425.34
A51: 47 | B51: 1985 | C51: Miscellaneous Fixed Assets | G51: 0 | L51: 0 | M51: 0
A52: 47 | B52: 1990 | C52: Other Tangible Property | G52: 0 | L52: 0 | M52: 0
A53: 47 | B53: 1995 | C53: Contributions & Grants | D53: -7183004.18 | E53: -318520.81 | G53: -7501524.99 | I53: 1975697.58 | J53: 162753.98 | L53: 2138451.56 | M53: -5363073.43
B54: etc. | G54: 0 | L54: 0 | M54: 0
G55: 0 | L55: 0 | M55: 0
C56: Sub-Total | D56: =SUM(D16:D55) -> 40972186.29 | E56: =SUM(E16:E55) -> 7069688.37 | F56: 0 | G56: 48041874.66 | I56: =SUM(I16:I55) -> -22001262.25 | J56: =SUM(J16:J55) -> -1549248.1 | K56: 0 | L56: -23550510.35 | M56: 24491364.31
C57: Less Socialized Renewable Energy Generation Investments (input as negative) | G57: =D57+E57+F57 -> 0 | L57: =I57+J57+K57 -> 0 | M57: =G57+L57 -> 0
C58: Less Other Non Rate-Regulated Utility Assets (input as negative) | G58: 0 | L58: 0 | M58: 0
C59: Total PP&E | D59: =SUM(D56:D58) -> 40972186.29 | E59: =SUM(E56:E58) -> 7069688.37 | F59: 0 | G59: 48041874.66 | I59: =SUM(I56:I58) -> -22001262.25 | J59: -1549248.1 | K59: 0 | L59: -23550510.35 | M59: 24491364.31
C60: Depreciation Expense adj. from gain or loss on the retirement of assets (pool of like assets)
C61: Total | J61: =J59+J60 -> -1549248.1
I63: Less: Fully Allocated Depreciation
A64: 10 | C64: Transportation | I64: Transportation
A65: 8 | C65: Stores Equipment | I65: Stores Equipment
I66: Net Depreciation | K66: =J61-K64-K65 -> -1549248.1
A68: Notes:
A70: 1 | B70: Tables in the format outlined above covering all fixed asset accounts should be submitted for the Test Year, Bridge Year and all relevant historical years. At a minimum , the applicant must provide data for the earlier of: 1) all historical years back to its last rebasing; or 2) at least three years of historical actuals, in addition to Bridge Year and Test Year forecasts.
A73: 2 | B73: The "CCA Class" for fixed assets should agree with the CCA Class used for tax purposes in Tax Returns. Fixed Assets sub-components may be used where the underlying asset components are classified under multiple CCA Classes for tax purposes. If an applicant uses any different classes from those shown in the table, an explanation should be provided. (also see note 3 below).
A76: 3 | B76: The table may need to be customized for a utility's asset categories or for any new asset accounts announced or authorized by the Board.
A78: 4 | B78: The additions column (F) must not include construction work in progress (CWIP).

Sheet Appendix 2-BB Service Life Comp
N1: File Number: | P1: =EBNUMBER -> EB-2014-0113
N2: Exhibit: | P2: 2
N3: Tab: | P3: 2
N4: Schedule: | P4: 2
N5: Page:
N7: Date: | P7: 2015-04-25
B9: Appendix 2-BB
B10: Service Life Comparison
B11: Table F-1 from Kinetrics Report1
D15: Asset Details | G15: Useful Life | K15: USoA Account Number | L15: USoA Account Description | M15: Current | O15: Proposed
B16: Parent* | C16: # | D16: Category| Component | Type | G16: MIN UL | H16: TUL | I16: MAX UL | M16: Years | N16: Rate | O16: Years | P16: Rate
B17: OH | C17: 1 | D17: Fully Dressed Wood Poles | E17: Overall | G17: 35 | H17: 45 | I17: 75 | K17: 1830 | L17: Poles, Towers and Fixtures | M17: 25 | N17: =IF(ISERROR(1/M17), "", 1/M17) -> 0.04 | O17: 45 | P17: =IF(ISERROR(1/O17), "", 1/O17) -> 0.02222222222
E18: Cross Arm | F18: Wood | G18: 20 | H18: 40 | I18: 55 | N18: =IF(ISERROR(1/M18), "", 1/M18) ->  | P18: =IF(ISERROR(1/O18), "", 1/O18) -> 
F19: Steel | G19: 30 | H19: 70 | I19: 95
C20: 2 | D20: Fully Dressed Concrete Poles | E20: Overall | G20: 50 | H20: 60 | I20: 80
E21: Cross Arm | F21: Wood | G21: 20 | H21: 40 | I21: 55
F22: Steel | G22: 30 | H22: 70 | I22: 95
C23: 3 | D23: Fully Dressed Steel Poles | E23: Overall | G23: 60 | H23: 60 | I23: 80
E24: Cross Arm | F24: Wood | G24: 20 | H24: 40 | I24: 55
F25: Steel | G25: 30 | H25: 70 | I25: 95
C26: 4 | D26: OH Line Switch | G26: 30 | H26: 45 | I26: 55 | K26: 1855 | L26: OH Services | M26: 25 | N26: 0.04 | O26: 40 | P26: 0.025
C27: 5 | D27: OH Line Switch Motor | G27: 15 | H27: 25 | I27: 25
C28: 6 | D28: OH Line Switch RTU | G28: 15 | H28: 20 | I28: 20
C29: 7 | D29: OH Integral Switches | G29: 35 | H29: 45 | I29: 60
C30: 8 | D30: OH Conductors | G30: 50 | H30: 60 | I30: 75 | K30: 1835 | L30: Overhead Conductors and Devices | M30: 25 | N30: 0.04 | O30: 60 | P30: 0.01666666667
C31: 9 | D31: OH Transformers & Voltage Regulators | G31: 30 | H31: 40 | I31: 60 | K31: 1850 | L31: Overhead Transformers | M31: 25 | N31: 0.04 | O31: 40 | P31: 0.025
C32: 10 | D32: OH Shunt Capacitor Banks | G32: 25 | H32: 30 | I32: 40
C33: 11 | D33: Reclosers | G33: 25 | H33: 40 | I33: 55
B34: TS & MS | C34: 12 | D34: Power Transformers | E34: Overall | G34: 30 | H34: 45 | I34: 60 | K34: 1820 | L34: Distribution Station Equipment | M34: 30 | N34: 0.03333333333 | O34: 45 | P34: 0.02222222222
E35: Bushing | G35: 10 | H35: 20 | I35: 30
E36: Tap Changer | G36: 20 | H36: 30 | I36: 60
C37: 13 | D37: Station Service Transformer | G37: 30 | H37: 45 | I37: 55
C38: 14 | D38: Station Grounding Transformer | G38: 30 | H38: 40 | I38: 40
C39: 15 | D39: Station DC System | E39: Overall | G39: 10 | H39: 20 | I39: 30
E40: Battery Bank | G40: 10 | H40: 15 | I40: 15 | R40: look at 1820 further
E41: Charger | G41: 20 | H41: 20 | I41: 30
C42: 16 | D42: Station Metal Clad Switchgear | E42: Overall | G42: 30 | H42: 40 | I42: 60
E43: Removable Breaker | G43: 25 | H43: 40 | I43: 60
C44: 17 | D44: Station Independent Breakers | G44: 35 | H44: 45 | I44: 65
C45: 18 | D45: Station Switch | G45: 30 | H45: 50 | I45: 60 | K45: 1820 | L45: Distribution Station Equipment | M45: 30 | N45: 0.03333333333 | O45: 45 | P45: 0.02222222222
C46: 19 | D46: Electromechanical Relays | G46: 25 | H46: 35 | I46: 50
C47: 20 | D47: Solid State Relays | G47: 10 | H47: 30 | I47: 45
C48: 21 | D48: Digital & Numeric Relays | G48: 15 | H48: 20 | I48: 20
C49: 22 | D49: Rigid Busbars | G49: 30 | H49: 55 | I49: 60
C50: 23 | D50: Steel Structure | G50: 35 | H50: 50 | I50: 90
B51: UG | C51: 24 | D51: Primary Paper Insulated Lead Covered (PILC) Cables | G51: 60 | H51: 65 | I51: 75
C52: 25 | D52: Primary Ethylene-Propylene Rubber (EPR) Cables | G52: 20 | H52: 25 | I52: 25
C53: 26 | D53: Primary Non-Tree Retardant (TR) Cross Linked Polyethylene (XLPE) Cables Direct Buried | G53: 20 | H53: 25 | I53: 30
C54: 27 | D54: Primary Non-TR XLPE Cables in Duct | G54: 20 | H54: 25 | I54: 30
C55: 28 | D55: Primary TR XLPE Cables Direct Buried | G55: 25 | H55: 30 | I55: 35
C56: 29 | D56: Primary TR XLPE Cables in Duct | G56: 35 | H56: 40 | I56: 55 | K56: 1840 | L56: Underground Conduit | M56: 25 | N56: 0.04 | O56: 40 | P56: 0.025
C57: 30 | D57: Secondary PILC Cables | G57: 70 | H57: 75 | I57: 80
C58: 31 | D58: Secondary Cables Direct Buried | G58: 25 | H58: 35 | I58: 40 | K58: 1855 | L58: UG Services | M58: 25 | N58: 0.04 | O58: 40 | P58: 0.025
C59: 32 | D59: Secondary Cables in Duct | G59: 35 | H59: 40 | I59: 60
C60: 33 | D60: Network Tranformers | E60: Overall | G60: 20 | H60: 35 | I60: 50 | K60: 1850 | L60: Underground Transformers | M60: 25 | N60: 0.04 | O60: 40 | P60: 0.025
E61: Protector | G61: 20 | H61: 35 | I61: 40
C62: 34 | D62: Pad-Mounted Transformers | G62: 25 | H62: 40 | I62: 45
C63: 35 | D63: Submersible/Vault Transformers | G63: 25 | H63: 35 | I63: 45
C64: 36 | D64: UG Foundation | G64: 35 | H64: 55 | I64: 70 | K64: 1845 | L64: Underground Conductor and Devices | M64: 25 | N64: 0.04 | O64: 40 | P64: 0.025
C65: 37 | D65: UG Vaults | E65: Overall | G65: 40 | H65: 60 | I65: 80
E66: Roof | G66: 20 | H66: 30 | I66: 45
C67: 38 | D67: UG Vault Switches | G67: 20 | H67: 35 | I67: 50 | K67: 1845 | L67: Underground Conductor and Devices | M67: 25 | N67: 0.04 | O67: 40 | P67: 0.025
C68: 39 | D68: Pad-Mounted Switchgear | G68: 20 | H68: 30 | I68: 45 | K68: 1845 | L68: Underground Conductor and Devices | M68: 25 | N68: 0.04 | O68: 40 | P68: 0.025
C69: 40 | D69: Ducts | G69: 30 | H69: 50 | I69: 85
C70: 41 | D70: Concrete Encased Duct Banks | G70: 35 | H70: 55 | I70: 80
C71: 42 | D71: Cable Chambers | G71: 50 | H71: 60 | I71: 80
B72: S | C72: 43 | D72: Remote SCADA | G72: 15 | H72: 20 | I72: 30 | K72: 1980 | L72: SCADA | M72: 15 | N72: 0.06666666667 | O72: 20 | P72: 0.05
B75: Table F-2 from Kinetrics Report1
D77: Asset Details | G77: Useful Life Range | K77: USoA Account Number | L77: USoA Account Description | M77: Current | O77: Proposed
C78: # | D78: Category| Component | Type | M78: Years | N78: Rate | O78: Years | P78: Rate
C79: 1 | D79: Office Equipment | G79: 5-15 | K79: 1915 | L79: =+D79 -> Office Equipment | M79: 10 | N79: =IF(ISERROR(1/M79), "", 1/M79) -> 0.1 | O79: 10 | P79: =IF(ISERROR(1/O79), "", 1/O79) -> 0.1
C80: 2 | D80: Vehicles | E80: Trucks & Buckets | G80: 5-15 | K80: 1930 | L80: Vehicles | N80: =IF(ISERROR(1/M80), "", 1/M80) ->  | O80: 15 | P80: =IF(ISERROR(1/O80), "", 1/O80) -> 0.06666666667
E81: Trailers | G81: 5-20 | K81: 1930 | L81: Vehicles | O81: 20 | P81: 0.05
E82: Vans | G82: 5-10 | K82: 1930 | L82: Vehicles | O82: 10 | P82: 0.1
C83: 3 | D83: Administrative Buildings | G83: 50-75 | K83: 1908 | L83: =+D83 -> Administrative Buildings | M83: 50 | N83: 0.02 | O83: 60 | P83: 0.01666666667
C84: 4 | D84: Leasehold Improvements | G84: Lease dependent
C85: 5 | D85: Station Buildings | E85: Station Buildings | G85: 50-75
E86: Parking | G86: 25-30
E87: Fence | G87: 25-60
E88: Roof | G88: 20-30
C89: 6 | D89: Computer Equipment | E89: Hardware | G89: 3-5 | K89: 1925 | L89: =+E89 -> Hardware | M89: 5 | N89: 0.2 | O89: 5 | P89: 0.2
E90: Software | G90: 2-5 | K90: 1925 | L90: =+E90 -> Software | M90: 5 | N90: 0.2 | O90: 5 | P90: 0.2
C91: 7 | D91: Equipment | E91: Power Operated | G91: 5-10
E92: Stores | G92: 5-10
E93: Tools, Shop, Garage Equipment | G93: 5-10 | K93: 1940 | L93: =+E93 -> Tools, Shop, Garage Equipment | M93: 10 | N93: 0.1 | O93: 10 | P93: 0.1
E94: Measurement & Testing Equipment | G94: 5-10
C95: 8 | D95: Communication | E95: Towers | G95: 60-70
E96: Wireless | G96: 2-10 | K96: 1955 | L96: =+E96 -> Wireless | M96: 5 | N96: 0.2 | O96: 5 | P96: 0.2
C97: 9 | D97: Residential Energy Meters | G97: 25-35
C98: 10 | D98: Industrial/Commercial Energy Meters | G98: 25-35 | K98: 1860 | L98: Interval Meters | M98: 25 | N98: 0.04 | O98: 15 | P98: 0.06666666667
C99: 11 | D99: Wholesale Energy Meters | G99: 15-30 | K99: 1860 | L99: Wholesasle Meters | M99: 25 | N99: 0.04 | O99: 30 | P99: 0.03333333333
C100: 12 | D100: Current & Potential Transformer (CT & PT) | G100: 35-50
C101: 13 | D101: Smart Meters | G101: 5-15 | K101: 1860 | L101: Smart Meters | M101: 15 | N101: 0.06666666667 | O101: 15 | P101: 0.06666666667
C102: 14 | D102: Repeaters - Smart Metering | G102: 10-15
C103: 15 | D103: Data Collectors - Smart Metering | G103: 15-20
B106: * TS & MS = Transformer and Municipal Stations UG = Underground Systems S = Monitoring and Control Systems
B108: Note 1: | C108: Tables F-1 and F-2 above are to be used as a reference in order to complete columns J, K, L and N.
C109: See pages 17-19 of Kinetrics Report

Sheet Instruction for App. 2-C MIFRS
A1: General Instructions to MIFRS Appendices
A2: Types of Schedules to File
A4: The purpose of this tab is to provide general instructions. The specific instructions to each appendix are listed in footnotes to each appendix.
A6: Applicants filing a MIFRS application should provide the following information regarding Appendix 2-B and Appendix 2-C:
A8: · If an applicant chooses to adopt IFRS for financial reporting in 2012, in its 2014 cost of service application it must file information for the historic year (2012),modified IFRS and also provide forecasts for the bridge year (2013) and test year (2014) information in modified IFRS format. The years required to be filed prior to the historic year 2012 may be provided in CGAAP only, except for the year 2011 which must also be presented in modified IFRS format.
A11: · If an applicant chooses to adopt IFRS for financial reporting in 2013, in its 2014 cost of service application it must file information for the year prior (i.e. 2012 – the historic year) in both CGAAP and modified IFRS format, and present modified IFRS based forecasts for the bridge (2013) and test years (2014). The years required to be filed prior to the historic year 2012 may be provided in CGAAP only.
A14: · If an applicant chooses to adopt IFRS for financial reporting in 2014, in its 2014 cost of service application it must provide the required actual years (2012) and the bridge year (2013) in CGAAP based format. An applicant must present modified IFRS based forecasts for the bridge (2013) and test years (2014).
E18: Date of Adoption of IFRS
E19: for Financial Reporting Purposes:
E20: January 1, 2012 | F20: January 1, 2013 | G20: January 1, 2014
A21: Information | C21: 2010 H & Prior | E21: CGAAP | F21: CGAAP | G21: CGAAP
A22: Required to be | C22: 2011 H | E22: MIFRS & CGAAP | F22: CGAAP | G22: CGAAP
A23: Filed in 2014 | C23: 2012 H | E23: MIFRS | F23: MIFRS & CGAAP | G23: CGAAP
A24: CoS Application: | C24: 2013 B | E24: MIFRS | F24: MIFRS | G24: MIFRS & CGAAP
C25: 2014 T | E25: MIFRS | F25: MIFRS | G25: MIFRS
A27: Date of Transition to IFRS | E27: January 1, 2011 | F27: January 1, 2012 | G27: January 1, 2013
A29: H - historic year regulatory financial information
A30: B - bridge year regulatory financial information
A31: T - test year regulatory financial information
B32: Year in which both CGAAP and MIFRS information required
A34: For those applicants that adopted IFRS on January 1, 2012 for financial reporting purposes, the date of transition is January 1, 2011. For those applicants that adopted IFRS on January 1, 2013 for financial reporting purposes, the date of transition is January 1, 2012. For those applicants that adopted IFRS on January 1, 2014 for financial reporting purposes, the date of transition is January 1, 2013.
A39: Summary of Impacts to Revenue Requirement from Transition to MIFRS - Appendix 2-YA
A40: For modified IFRS applications, the applicants must provide a summary of the dollar impacts of modified IFRS to each component of the revenue requirement (e.g. rate base, operating costs, etc), including the overall impact on the proposed revenue requirement. Accordingly, the applicants must identify financial differences and resulting revenue requirement impacts arising from the adoption of modified IFRS accounting.
A45: Depreciation and Amortization - Appendix 2-C
A46: If an applicant chooses to adopt IFRS for financial reporting in 2012, the applicant must complete Appendix 2-CA to Appendix 2-CE (inclusive).
A47: If an applicant chooses to adopt IFRS for financial reporting in 2013, the applicant must complete Appendix 2-CF to Appendix 2-CI (inclusive).
A48: If an applicant chooses to adopt IFRS for financial reporting in 2014, the applicant must complete Appendix 2-CJ to Appendix 2-CM (inclusive).
A51: Continuity of Historic Cost under MIFRS - Appendix 2-BA2
A53: Regulatory Gross Assets of Property, Plant and Equipment
A54: For an applicant that adopted IFRS on January 1, 2012 for financial reporting purposes, the applicant must establish the continuity of historic cost by using the December 31, 2010 regulatory gross assets of property, plant and equipment as the opening January 1, 2011 regulatory gross assets. The applicant must provide schedules (including Appendix 2-BA2, Fixed Asset Continuity Schedule) which must identify the following details to substantiate the continuity of historic cost for regulatory purposes:
A58: · December 31, 2010 regulatory gross assets of property, plant and equipment, by asset class; and
A59: · January 1, 2011 regulatory gross assets of property, plant and equipment, by asset class.
A61: For an applicant that adopts IFRS on January 1, 2013 for financial reporting purposes, the applicant must establish the continuity of historic cost by using the December 31, 2011 regulatory gross assets of property, plant and equipment as the opening January 1, 2012 regulatory gross assets. The applicant must provide schedules (including Appendix 2-BA2, Fixed Asset Continuity Schedule) which must identify the following details to substantiate the continuity of historic cost for regulatory purposes:
A65: · December 31, 2011 regulatory gross assets of property, plant and equipment, by asset class; and
A66: · January 1, 2012 regulatory gross assets of property, plant and equipment, by asset class.
A68: For an applicant that adopts IFRS on January 1, 2014 for financial reporting purposes, the applicant must establish the continuity of historic cost by using the December 31, 2012 regulatory gross assets of property, plant and equipment as the opening January 1, 2013 regulatory gross assets. The applicant must provide schedules (including Appendix 2-BA2, Fixed Asset Continuity Schedule) which must identify the following details to substantiate the continuity of historic cost for regulatory purposes:
A72: · December 31, 2012 regulatory gross assets of property, plant and equipment, by asset class; and
A73: · January 1, 2013 regulatory gross assets of property, plant and equipment, by asset class.
A75: Accumulated Depreciation
A76: For an applicant that adopted IFRS on January 1, 2012 for financial reporting purposes, the applicant must establish the continuity of historic cost by using the December 31, 2010 regulatory accumulated depreciation as the opening January 1, 2011 regulatory accumulated depreciation. The applicant must provide schedules (including Appendix 2-BA2, Fixed Asset Continuity Schedule) which must identify the following details to substantiate the continuity of historic cost for regulatory purposes:
A79: · December 31, 2010 regulatory accumulated depreciation, by asset class; and
A80: · January 1, 2011 regulatory accumulated depreciation, by asset class.
A82: For an applicant that adopted IFRS on January 1, 2013 for financial reporting purposes, the applicant must establish the continuity of historic cost by using the December 31, 2011 regulatory accumulated depreciation as the opening January 1, 2012 regulatory accumulated depreciation. The applicant must provide schedules (including Appendix 2-BA2, Fixed Asset Continuity Schedule) which must identify the following details to substantiate the continuity of historic cost for regulatory purposes:
A85: · December 31, 2011 regulatory accumulated depreciation, by asset class; and
A86: · January 1, 2012 regulatory accumulated depreciation, by asset class.
A88: For an applicant that adopted IFRS on January 1, 2014 for financial reporting purposes, the applicant must establish the continuity of historic cost by using the December 31, 2012 regulatory accumulated depreciation as the opening January 1, 2013 regulatory accumulated depreciation. The applicant must provide schedules (including Appendix 2-BA2, Fixed Asset Continuity Schedule) which must identify the following details to substantiate the continuity of historic cost for regulatory purposes:
A91: · December 31, 2012 regulatory accumulated depreciation, by asset class; and
A92: · January 1, 2013 regulatory accumulated depreciation, by asset class.
A94: Account 1575, IFRS-CGAAP Transitional PP&E Amounts - Appendix 2-EA, Appendix 2-EB, Appendix 2-EC
A95: Please refer to section 2.12.4 of the Filing Requirements.
A97: Account 1576, Accounting Changes Under CGAAP - Appendix 2-ED, Appendix 2-EE
A98: Please refer to section 2.12.5 of the Filing Requirements.

Sheet App.2-CA_CGAAP_DepExp_2011
L1: File Number: | M1: =EBNUMBER -> EB-2014-0113
L2: Exhibit: | M2: 2
L3: Tab: | M3: 2
L4: Schedule: | M4: 2
L5: Page:
L7: Date: | M7: 42119
B9: Appendix 2-CA
B10: Depreciation and Amortization Expense
B11: Assumes the applicant adopted IFRS for financial reporting purposes January 1, 2012
D12: Year | E12: 2012 | F12: CGAAP
B14: Account | C14: Description | D14: Opening Regulatory Gross PP&E as at Jan 1, 2012 | E14: Less Fully Depreciated | F14: Net for Depreciation | G14: Additions | H14: Total for Depreciation | I14: Years | J14: Depreciation Rate | K14: Depreciation Expense | L14: 2012 Depreciation Expense per Appendix 2-B Fixed Assets, Column K (l) | M14: Variance 2 | P14: have GAAP continuity schedule, no 1/2 yr rule
D15: (a) | E15: (b) | F15: (c) | G15: (d) | H15: (e) = (c) + ½ x (d) 1 | I15: (f) | J15: (g) = 1 / (f) | K15: (h) = (e) / (f) | M15: (m) = (h) - (l)
B16: 1611 | C16: Computer Software (Formally known as Account 1925) | D16: =+'App.2-BA2_Fix Asset Cont.MIFRS'!D16 -> 0 | E16: =-'App.2-BA2_Fix Asset Cont.MIFRS'!I16 -> 0 | F16: =D16-E16 -> 0 | G16: =+'App.2-BA2_Fix Asset Cont.MIFRS'!E16 -> 476100.41 | H16: =F16+0.5*G16 -> 238050.205 | I16: 5 | J16: =IF(I16=0,0,1/I16) -> 0.2 | K16: =IF(I16=0,0,H16/I16) -> 47610.041 | L16: 97936 | M16: =IF(ISERROR(+K16-L16), 0, +K16-L16) -> -50325.959 | P16: =+G16*0.5*J16 -> 47610.041
B17: 1612 | C17: Land Rights (Formally known as Account 1906) | D17: =+'App.2-BA2_Fix Asset Cont.MIFRS'!D17 -> 0 | E17: =-'App.2-BA2_Fix Asset Cont.MIFRS'!I17 -> 0 | F17: =D17-E17 -> 0 | G17: =+'App.2-BA2_Fix Asset Cont.MIFRS'!E17 -> 0 | H17: =F17+0.5*G17 -> 0 | J17: 0 | K17: =IF(I17=0,0,H17/I17) -> 0 | M17: 0 | P17: =+G17*0.5*J17 -> 0
B18: 1805 | C18: Land | D18: =+'App.2-BA2_Fix Asset Cont.MIFRS'!D18 -> 6733.79 | E18: =-'App.2-BA2_Fix Asset Cont.MIFRS'!I18 -> 0 | F18: 6733.79 | G18: =+'App.2-BA2_Fix Asset Cont.MIFRS'!E18 -> 904.09 | H18: 7185.835 | I18: 0 | J18: 0 | K18: 0 | M18: 0 | P18: 0
B19: 1808 | C19: Buildings | D19: =+'App.2-BA2_Fix Asset Cont.MIFRS'!D19 -> 0 | E19: =-'App.2-BA2_Fix Asset Cont.MIFRS'!I19 -> 0 | F19: 0 | G19: =+'App.2-BA2_Fix Asset Cont.MIFRS'!E19 -> 0 | H19: 0 | J19: 0 | K19: 0 | M19: 0 | P19: 0
B20: 1810 | C20: Leasehold Improvements | D20: =+'App.2-BA2_Fix Asset Cont.MIFRS'!D20 -> 0 | E20: =-'App.2-BA2_Fix Asset Cont.MIFRS'!I20 -> 0 | F20: 0 | G20: =+'App.2-BA2_Fix Asset Cont.MIFRS'!E20 -> 0 | H20: 0 | J20: 0 | K20: 0 | M20: 0 | P20: 0
B21: 1815 | C21: Transformer Station Equipment >50 kV | D21: =+'App.2-BA2_Fix Asset Cont.MIFRS'!D21 -> 0 | E21: =-'App.2-BA2_Fix Asset Cont.MIFRS'!I21 -> 0 | F21: 0 | G21: =+'App.2-BA2_Fix Asset Cont.MIFRS'!E21 -> 0 | H21: 0 | J21: 0 | K21: 0 | M21: 0 | P21: 0
B22: 1820 | C22: Distribution Station Equipment <50 kV | D22: =+'App.2-BA2_Fix Asset Cont.MIFRS'!D22 -> 850124.96 | E22: =-'App.2-BA2_Fix Asset Cont.MIFRS'!I22 -> 831275.62 | F22: 18849.34 | G22: =+'App.2-BA2_Fix Asset Cont.MIFRS'!E22 -> 0 | H22: 18849.34 | I22: 45 | J22: 0.02222222222 | K22: =IF(I22=0,0,H22/I22) -> 418.8742222 | L22: 836 | M22: -417.1257778 | P22: 0
B23: 1825 | C23: Storage Battery Equipment | D23: =+'App.2-BA2_Fix Asset Cont.MIFRS'!D23 -> 0 | E23: =-'App.2-BA2_Fix Asset Cont.MIFRS'!I23 -> 0 | F23: 0 | G23: =+'App.2-BA2_Fix Asset Cont.MIFRS'!E23 -> 0 | H23: 0 | J23: 0 | K23: 0 | M23: 0 | P23: 0
B24: 1830 | C24: Poles, Towers & Fixtures | D24: =+'App.2-BA2_Fix Asset Cont.MIFRS'!D24 -> 8458646.13 | E24: =-'App.2-BA2_Fix Asset Cont.MIFRS'!I24 -> 3876606.02 | F24: 4582040.11 | G24: =+'App.2-BA2_Fix Asset Cont.MIFRS'!E24 -> 188797.41 | H24: =F24+0.5*G24 -> 4676438.815 | I24: 45 | J24: =IF(I24=0,0,1/I24) -> 0.02222222222 | K24: =IF(I24=0,0,H24/I24) -> 103920.8626 | L24: 120687 | M24: -16766.13744 | P24: 2097.749
B25: 1835 | C25: Overhead Conductors & Devices | D25: =+'App.2-BA2_Fix Asset Cont.MIFRS'!D25 -> 7482814.34 | E25: =-'App.2-BA2_Fix Asset Cont.MIFRS'!I25 -> 3933150.74 | F25: 3549663.6 | G25: =+'App.2-BA2_Fix Asset Cont.MIFRS'!E25 -> 195298.31 | H25: 3647312.755 | I25: 60 | J25: 0.01666666667 | K25: 60788.54592 | L25: 69636 | M25: -8847.454083 | P25: 1627.485917
B26: 1840 | C26: Underground Conduit | D26: =+'App.2-BA2_Fix Asset Cont.MIFRS'!D26 -> 3936611.71 | E26: =-'App.2-BA2_Fix Asset Cont.MIFRS'!I26 -> 1906280.26 | F26: 2030331.45 | G26: =+'App.2-BA2_Fix Asset Cont.MIFRS'!E26 -> 459743.43 | H26: 2260203.165 | I26: 40 | J26: 0.025 | K26: 56505.07913 | L26: 83914 | M26: -27408.92087 | P26: 5746.792875
B27: 1845 | C27: Underground Conductors & Devices | D27: =+'App.2-BA2_Fix Asset Cont.MIFRS'!D27 -> 8017556.71 | E27: =-'App.2-BA2_Fix Asset Cont.MIFRS'!I27 -> 3749509.8 | F27: 4268046.91 | G27: =+'App.2-BA2_Fix Asset Cont.MIFRS'!E27 -> 559389.01 | H27: 4547741.415 | I27: 40 | J27: 0.025 | K27: 113693.5354 | L27: 141840 | M27: -28146.46462 | P27: 6992.362625
B28: 1850 | C28: Line Transformers | D28: =+'App.2-BA2_Fix Asset Cont.MIFRS'!D28 -> 9153188.81 | E28: =-'App.2-BA2_Fix Asset Cont.MIFRS'!I28 -> 4893406.95 | F28: 4259781.86 | G28: =+'App.2-BA2_Fix Asset Cont.MIFRS'!E28 -> 338734.81 | H28: 4429149.265 | I28: 40 | J28: 0.025 | K28: 110728.7316 | L28: 149109 | M28: -38380.26837 | P28: 4234.185125
B29: 1855 | C29: Services (Overhead & Underground) | D29: =+'App.2-BA2_Fix Asset Cont.MIFRS'!D29 -> 5204840.58 | E29: =-'App.2-BA2_Fix Asset Cont.MIFRS'!I29 -> 2335566.19 | F29: 2869274.39 | G29: =+'App.2-BA2_Fix Asset Cont.MIFRS'!E29 -> 158550.78 | H29: 2948549.78 | I29: 40 | J29: 0.025 | K29: 73713.7445 | L29: 87925 | M29: -14211.2555 | P29: 1981.88475
B30: 1860 | C30: Meters | D30: =+'App.2-BA2_Fix Asset Cont.MIFRS'!D30 -> 2441643.77 | E30: =-'App.2-BA2_Fix Asset Cont.MIFRS'!I30 -> 1519262.75 | F30: 922381.02 | G30: =+'App.2-BA2_Fix Asset Cont.MIFRS'!E30 -> 4237.61 | H30: 924499.825 | I30: 15 | J30: 0.06666666667 | K30: 61633.32167 | L30: 76025 | M30: -14391.67833 | P30: 141.2536667
B31: 1860 | C31: Meters (Smart Meters) | D31: =+'App.2-BA2_Fix Asset Cont.MIFRS'!D31 -> 0 | E31: =-'App.2-BA2_Fix Asset Cont.MIFRS'!I31 -> 0 | F31: =D31-E31 -> 0 | G31: =+'App.2-BA2_Fix Asset Cont.MIFRS'!E31 -> 3100868.84 | H31: 1550434.42 | I31: 15 | J31: 0.06666666667 | K31: 103362.2947 | L31: 571777 | M31: -468414.7053 | P31: 103362.2947
B32: 1905 | C32: Land | D32: =+'App.2-BA2_Fix Asset Cont.MIFRS'!D32 -> 174187.53 | E32: =-'App.2-BA2_Fix Asset Cont.MIFRS'!I32 -> 0 | F32: 174187.53 | G32: =+'App.2-BA2_Fix Asset Cont.MIFRS'!E32 -> 0 | H32: 174187.53 | J32: 0 | K32: 0 | M32: 0 | P32: 0
B33: 1908 | C33: Buildings & Fixtures | D33: =+'App.2-BA2_Fix Asset Cont.MIFRS'!D33 -> 2385249.78 | E33: =-'App.2-BA2_Fix Asset Cont.MIFRS'!I33 -> 900206.89 | F33: 1485042.89 | G33: =+'App.2-BA2_Fix Asset Cont.MIFRS'!E33 -> 15493.24 | H33: 1492789.51 | I33: 60 | J33: 0.01666666667 | K33: 24879.82517 | L33: 36971 | M33: -12091.17483 | P33: 129.1103333
B34: 1910 | C34: Leasehold Improvements | D34: =+'App.2-BA2_Fix Asset Cont.MIFRS'!D34 -> 0 | E34: =-'App.2-BA2_Fix Asset Cont.MIFRS'!I34 -> 0 | F34: 0 | G34: =+'App.2-BA2_Fix Asset Cont.MIFRS'!E34 -> 0 | H34: 0 | J34: 0 | K34: 0 | M34: 0 | P34: 0
B35: 1915 | C35: Office Furniture & Equipment (10 years) | D35: =+'App.2-BA2_Fix Asset Cont.MIFRS'!D35 -> 0 | E35: =-'App.2-BA2_Fix Asset Cont.MIFRS'!I35 -> 0 | F35: 0 | G35: =+'App.2-BA2_Fix Asset Cont.MIFRS'!E35 -> 71936.87 | H35: 35968.435 | I35: 10 | J35: 0.1 | K35: 3596.8435 | L35: 7194 | M35: -3597.1565 | P35: 3596.8435
B36: 1915 | C36: Office Furniture & Equipment (5 years) | D36: =+'App.2-BA2_Fix Asset Cont.MIFRS'!D36 -> 0 | E36: =-'App.2-BA2_Fix Asset Cont.MIFRS'!I36 -> 0 | F36: 0 | G36: =+'App.2-BA2_Fix Asset Cont.MIFRS'!E36 -> 0 | H36: 0 | J36: 0 | K36: 0 | L36: 0 | M36: 0 | P36: 0
B37: 1920 | C37: Computer Equipment - Hardware | D37: =+'App.2-BA2_Fix Asset Cont.MIFRS'!D37 -> 0 | E37: =-'App.2-BA2_Fix Asset Cont.MIFRS'!I37 -> 0 | F37: 0 | G37: 0 | H37: =F37+0.5*G37 -> 0 | J37: 0 | K37: 0 | M37: 0 | P37: =+G37*0.5*J37 -> 0
B38: 1920 | C38: Computer Equip.-Hardware(Post Mar. 22/04) | D38: =+'App.2-BA2_Fix Asset Cont.MIFRS'!D38 -> 0 | E38: =-'App.2-BA2_Fix Asset Cont.MIFRS'!I38 -> 0 | F38: 0 | G38: =+'App.2-BA2_Fix Asset Cont.MIFRS'!E37 -> 136793.63 | H38: =F38+0.5*G38 -> 68396.815 | I38: 5 | J38: 0.2 | K38: 13679.363 | L38: 40379 | M38: -26699.637 | P38: =+G38*0.5*J38 -> 13679.363
B39: 1920 | C39: Computer Equip.-Hardware(Post Mar. 19/07) | D39: =+'App.2-BA2_Fix Asset Cont.MIFRS'!D39 -> 0 | E39: =-'App.2-BA2_Fix Asset Cont.MIFRS'!I39 -> 0 | F39: 0 | G39: =+'App.2-BA2_Fix Asset Cont.MIFRS'!E39 -> 0 | H39: 0 | J39: 0 | K39: 0 | M39: 0 | P39: 0
B40: 1930 | C40: Transportation Equipment | D40: =+'App.2-BA2_Fix Asset Cont.MIFRS'!D40 -> 0 | E40: =-'App.2-BA2_Fix Asset Cont.MIFRS'!I40 -> 0 | F40: 0 | G40: =+'App.2-BA2_Fix Asset Cont.MIFRS'!E40 -> 679340 | H40: 339670 | I40: 5 | J40: 0.2 | K40: 67934 | L40: 136811 | M40: -68877 | P40: 67934
B41: 1935 | C41: Stores Equipment | D41: =+'App.2-BA2_Fix Asset Cont.MIFRS'!D41 -> 0 | E41: =-'App.2-BA2_Fix Asset Cont.MIFRS'!I41 -> 0 | F41: 0 | G41: =+'App.2-BA2_Fix Asset Cont.MIFRS'!E41 -> 0 | H41: 0 | J41: 0 | K41: 0 | M41: 0 | P41: 0
B42: 1940 | C42: Tools, Shop & Garage Equipment | D42: =+'App.2-BA2_Fix Asset Cont.MIFRS'!D42 -> 0 | E42: =-'App.2-BA2_Fix Asset Cont.MIFRS'!I42 -> 0 | F42: 0 | G42: =+'App.2-BA2_Fix Asset Cont.MIFRS'!E42 -> 377238.9 | H42: 188619.45 | I42: 10 | J42: 0.1 | K42: 18861.945 | L42: 43346 | M42: -24484.055 | P42: 18861.945
B43: 1945 | C43: Measurement & Testing Equipment | D43: =+'App.2-BA2_Fix Asset Cont.MIFRS'!D43 -> 0 | E43: =-'App.2-BA2_Fix Asset Cont.MIFRS'!I43 -> 0 | F43: 0 | G43: =+'App.2-BA2_Fix Asset Cont.MIFRS'!E43 -> 0 | H43: 0 | J43: 0 | K43: 0 | M43: 0 | P43: 0
B44: 1950 | C44: Power Operated Equipment | D44: =+'App.2-BA2_Fix Asset Cont.MIFRS'!D44 -> 0 | E44: =-'App.2-BA2_Fix Asset Cont.MIFRS'!I44 -> 0 | F44: 0 | G44: =+'App.2-BA2_Fix Asset Cont.MIFRS'!E44 -> 0 | H44: 0 | J44: 0 | K44: 0 | M44: 0 | P44: 0
B45: 1955 | C45: Communications Equipment | D45: =+'App.2-BA2_Fix Asset Cont.MIFRS'!D45 -> 0 | E45: =-'App.2-BA2_Fix Asset Cont.MIFRS'!I45 -> 0 | F45: 0 | G45: =+'App.2-BA2_Fix Asset Cont.MIFRS'!E45 -> 12465.77 | H45: 6232.885 | I45: 5 | J45: 0.2 | K45: 1246.577 | L45: 2493 | M45: -1246.423 | P45: 1246.577
B46: 1955 | C46: Communication Equipment (Smart Meters) | D46: =+'App.2-BA2_Fix Asset Cont.MIFRS'!D46 -> 0 | E46: =-'App.2-BA2_Fix Asset Cont.MIFRS'!I46 -> 0 | F46: 0 | G46: =+'App.2-BA2_Fix Asset Cont.MIFRS'!E46 -> 0 | H46: 0 | J46: 0 | K46: 0 | M46: 0 | P46: 0
B47: 1960 | C47: Miscellaneous Equipment | D47: =+'App.2-BA2_Fix Asset Cont.MIFRS'!D47 -> 0 | E47: =-'App.2-BA2_Fix Asset Cont.MIFRS'!I47 -> 0 | F47: 0 | G47: =+'App.2-BA2_Fix Asset Cont.MIFRS'!E47 -> 200000 | H47: 100000 | I47: 10 | J47: 0.1 | K47: 10000 | L47: 13333 | M47: -3333 | P47: 10000
B48: 1970 | C48: Load Management Controls Customer Premises | D48: =+'App.2-BA2_Fix Asset Cont.MIFRS'!D48 -> 0 | E48: =-'App.2-BA2_Fix Asset Cont.MIFRS'!I48 -> 0 | F48: 0 | G48: =+'App.2-BA2_Fix Asset Cont.MIFRS'!E48 -> 0 | H48: 0 | J48: 0 | K48: 0 | M48: 0 | P48: 0
B49: 1975 | C49: Load Management Controls Utility Premises | D49: =+'App.2-BA2_Fix Asset Cont.MIFRS'!D49 -> 0 | E49: =-'App.2-BA2_Fix Asset Cont.MIFRS'!I49 -> 0 | F49: 0 | G49: =+'App.2-BA2_Fix Asset Cont.MIFRS'!E49 -> 0 | H49: 0 | J49: 0 | K49: 0 | M49: 0 | P49: 0
B50: 1980 | C50: System Supervisor Equipment | D50: =+'App.2-BA2_Fix Asset Cont.MIFRS'!D50 -> 43592.36 | E50: =-'App.2-BA2_Fix Asset Cont.MIFRS'!I50 -> 31694.61 | F50: 11897.75 | G50: =+'App.2-BA2_Fix Asset Cont.MIFRS'!E50 -> 412316.07 | H50: 218055.785 | I50: 15 | J50: 0.06666666667 | K50: 14537.05233 | L50: 31788 | M50: -17250.94767 | P50: 13743.869
B51: 1985 | C51: Miscellaneous Fixed Assets | D51: =+'App.2-BA2_Fix Asset Cont.MIFRS'!D51 -> 0 | E51: =-'App.2-BA2_Fix Asset Cont.MIFRS'!I51 -> 0 | F51: 0 | G51: =+'App.2-BA2_Fix Asset Cont.MIFRS'!E51 -> 0 | H51: 0 | J51: 0 | K51: 0 | M51: 0 | P51: 0
B52: 1990 | C52: Other Tangible Property | D52: =+'App.2-BA2_Fix Asset Cont.MIFRS'!D52 -> 0 | E52: =-'App.2-BA2_Fix Asset Cont.MIFRS'!I52 -> 0 | F52: 0 | G52: =+'App.2-BA2_Fix Asset Cont.MIFRS'!E52 -> 0 | H52: 0 | J52: 0 | K52: 0 | M52: 0 | P52: 0
B53: 1995 | C53: Contributions & Grants | D53: =+'App.2-BA2_Fix Asset Cont.MIFRS'!D53 -> -7183004.18 | E53: =-'App.2-BA2_Fix Asset Cont.MIFRS'!I53 -> -1975697.58 | F53: -5207306.6 | G53: =+'App.2-BA2_Fix Asset Cont.MIFRS'!E53 -> -318520.81 | H53: -5366567.005 | I53: 40 | J53: 0.025 | K53: -134164.1751 | L53: -162754 | M53: 28589.82487 | P53: -3981.510125
B54: etc. | F54: 0 | H54: 0 | J54: 0 | K54: 0 | M54: 0
F55: 0 | H55: 0 | J55: 0 | K55: 0 | M55: 0 | P55: =SUM(P16:P54) -> 299004.2473
C56: Total | D56: =SUM(D16:D55) -> 40972186.29 | E56: =SUM(E16:E55) -> 22001262.25 | F56: =SUM(F16:F55) -> 18970924.04 | G56: =SUM(G16:G55) -> 7069688.37 | H56: =SUM(H16:H55) -> 22505768.23 | K56: =SUM(K16:K55) -> 752946.4615 | L56: =SUM(L16:L55) -> 1549246 | M56: =SUM(M16:M55) -> -796299.5385 | P56: 419000 | Q56: SM
B58: Notes:
P59: =+P56+P55 -> 718004.2473
B60: 1 | C60: Board policy of the "half-year" rule - the applicant must ensure that additions in the year attract a half-year depreciation expense in the first year. Deviations from this standard practice must be supported in the application.
B61: 2 | C61: The applicant must provide an explanation of material variances in evidence.
B63: General | C63: Applicants must provide a breakdown of depreciation and amortization expense in the above format for all relevant accounts. Asset Retirement Obligations (AROs), depreciation and accretion expense should be disclosed separately consistent with the Notes of historical Audited Financial Statements.

Sheet App.2-CB_MIFRS_DepExp_2011
O1: File Number: | P1: =EBNUMBER -> EB-2014-0113
O2: Exhibit: | P2: 2
O3: Tab: | P3: 2
O4: Schedule: | P4: 2
O5: Page:
O7: Date: | P7: 2015-04-25
B9: Appendix 2-CB
B10: Depreciation and Amortization Expense
B11: Assumes the applicant adopted IFRS for financial reporting purposes January 1, 2012
D12: Year | E12: 2012 CGAAP
B14: Account | C14: Description | D14: Opening NBV as at Jan 1, 2012 5 | E14: Additions | F14: Average Remaining Life of Opening NBV 4 | G14: Years (new additions only) 3 | H14: Depreciation Rate on New Additions | I14: Depreciation Expense on Opening NBV | J14: Depreciation Expense on Additions 1 | K14: 2012 Depreciation Expense | L14: 2012 Depreciation Expense per Appendix 2-B Fixed Assets, Column K (l) | M14: Variance 2 | N14: Depreciation Expense on 2012 Full Year Additions | O14: Less Depreciation Expense on Assets Fully Depreciated during the year (o) | P14: 2012 Full Year Depreciation 6
D15: (a) | E15: (d) | F15: (i) | G15: (f) | H15: (g) = 1 / (f) | I15: (j) = (a) / (i) | J15: (h)=((d)*0.5)/(f) | K15: (k) = (j) + (h) | M15: (m) = (k) - (l) | N15: (n) = (d)/(f) | P15: (p) = (j) + (n) - (o)
B16: 1611 | C16: Computer Software (Formally known as Account 1925) | D16: =+'App.2-CA_CGAAP_DepExp_2011'!D16-'App.2-CA_CGAAP_DepExp_2011'!E16 -> 0 | E16: =+'App.2-BA2_Fix Asset Cont.MIFRS'!E16 -> 476100.41 | F16: 9 | G16: 5 | H16: =IF(G16=0,0,1/G16) -> 0.2 | I16: =IF(F16=0,0,+D16/F16) -> 0 | J16: =IF(G16=0,0,+(E16*0.5)/G16) -> 47610.041 | K16: =IF(ISERROR(+I16+J16), 0, +I16+J16) -> 47610.041 | L16: 97936 | M16: =IF(ISERROR(+K16-L16), 0, +K16-L16) -> -50325.959 | N16: =IF(G16=0,0,+(E16)/G16) -> 95220.082 | P16: =IF(ISERROR(+N16+I16-O16), 0, +N16+I16-O16) -> 95220.082 | Q16: =+P16-L16 -> -2715.918
B17: 1612 | C17: Land Rights (Formally known as Account 1906) | D17: =+'App.2-CA_CGAAP_DepExp_2011'!D17-'App.2-CA_CGAAP_DepExp_2011'!E17 -> 0 | E17: =+'App.2-BA2_Fix Asset Cont.MIFRS'!E17 -> 0 | H17: 0 | I17: 0 | J17: 0 | K17: 0 | M17: 0 | N17: 0 | P17: =IF(ISERROR(+N17+I17-O17), 0, +N17+I17-O17) -> 0 | Q17: =+P17-L17 -> 0
B18: 1805 | C18: Land | D18: =+'App.2-CA_CGAAP_DepExp_2011'!D18-'App.2-CA_CGAAP_DepExp_2011'!E18 -> 6733.79 | E18: =+'App.2-BA2_Fix Asset Cont.MIFRS'!E18 -> 904.09 | H18: 0 | I18: 0 | J18: 0 | K18: 0 | M18: 0 | N18: 0 | P18: 0 | Q18: 0
B19: 1808 | C19: Buildings | D19: =+'App.2-CA_CGAAP_DepExp_2011'!D19-'App.2-CA_CGAAP_DepExp_2011'!E19 -> 0 | E19: =+'App.2-BA2_Fix Asset Cont.MIFRS'!E19 -> 0 | H19: 0 | I19: 0 | J19: 0 | K19: 0 | M19: 0 | N19: 0 | P19: 0 | Q19: 0
B20: 1810 | C20: Leasehold Improvements | D20: =+'App.2-CA_CGAAP_DepExp_2011'!D20-'App.2-CA_CGAAP_DepExp_2011'!E20 -> 0 | E20: =+'App.2-BA2_Fix Asset Cont.MIFRS'!E20 -> 0 | H20: 0 | I20: 0 | J20: 0 | K20: 0 | M20: 0 | N20: 0 | P20: 0 | Q20: 0
B21: 1815 | C21: Transformer Station Equipment >50 kV | D21: =+'App.2-CA_CGAAP_DepExp_2011'!D21-'App.2-CA_CGAAP_DepExp_2011'!E21 -> 0 | E21: =+'App.2-BA2_Fix Asset Cont.MIFRS'!E21 -> 0 | H21: 0 | I21: 0 | J21: 0 | K21: 0 | M21: 0 | N21: 0 | P21: 0 | Q21: 0
B22: 1820 | C22: Distribution Station Equipment <50 kV | D22: =+'App.2-CA_CGAAP_DepExp_2011'!D22-'App.2-CA_CGAAP_DepExp_2011'!E22 -> 18849.34 | E22: =+'App.2-BA2_Fix Asset Cont.MIFRS'!E22 -> 0 | F22: 24 | G22: 45 | H22: 0.02222222222 | I22: 785.3891667 | J22: 0 | K22: 785.3891667 | L22: 836 | M22: -50.61083333 | N22: 0 | P22: =IF(ISERROR(+N22+I22-O22), 0, +N22+I22-O22) -> 785.3891667 | Q22: -50.61083333
B23: 1825 | C23: Storage Battery Equipment | D23: =+'App.2-CA_CGAAP_DepExp_2011'!D23-'App.2-CA_CGAAP_DepExp_2011'!E23 -> 0 | E23: =+'App.2-BA2_Fix Asset Cont.MIFRS'!E23 -> 0 | H23: 0 | I23: 0 | J23: 0 | K23: 0 | M23: 0 | N23: 0 | P23: 0 | Q23: 0
B24: 1830 | C24: Poles, Towers & Fixtures | D24: =+'App.2-CA_CGAAP_DepExp_2011'!D24-'App.2-CA_CGAAP_DepExp_2011'!E24 -> 4582040.11 | E24: =+'App.2-BA2_Fix Asset Cont.MIFRS'!E24 -> 188797.41 | F24: 39 | G24: 45 | H24: 0.02222222222 | I24: 117488.2079 | J24: =IF(G24=0,0,+(E24*0.5)/G24) -> 2097.749 | K24: 119585.9569 | L24: 120687 | M24: -1101.043051 | N24: =IF(G24=0,0,+(E24)/G24) -> 4195.498 | P24: 121683.7059 | Q24: 996.7059487
B25: 1835 | C25: Overhead Conductors & Devices | D25: =+'App.2-CA_CGAAP_DepExp_2011'!D25-'App.2-CA_CGAAP_DepExp_2011'!E25 -> 3549663.6 | E25: =+'App.2-BA2_Fix Asset Cont.MIFRS'!E25 -> 195298.31 | F25: 52 | G25: 60 | H25: 0.01666666667 | I25: 68262.76154 | J25: 1627.485917 | K25: 69890.24746 | L25: 69636 | M25: 254.2474551 | N25: 3254.971833 | P25: 71517.73337 | Q25: 1881.733372
B26: 1840 | C26: Underground Conduit | D26: =+'App.2-CA_CGAAP_DepExp_2011'!D26-'App.2-CA_CGAAP_DepExp_2011'!E26 -> 2030331.45 | E26: =+'App.2-BA2_Fix Asset Cont.MIFRS'!E26 -> 459743.43 | F26: 29 | G26: 40 | H26: 0.025 | I26: 70011.42931 | J26: 5746.792875 | K26: 75758.22219 | L26: 83914 | M26: -8155.777815 | N26: 11493.58575 | P26: 81505.01506 | Q26: -2408.98494
B27: 1845 | C27: Underground Conductors & Devices | D27: =+'App.2-CA_CGAAP_DepExp_2011'!D27-'App.2-CA_CGAAP_DepExp_2011'!E27 -> 4268046.91 | E27: =+'App.2-BA2_Fix Asset Cont.MIFRS'!E27 -> 559389.01 | F27: 36 | G27: 40 | H27: 0.025 | I27: 118556.8586 | J27: 6992.362625 | K27: 125549.2212 | L27: 141840 | M27: -16290.77876 | N27: 13984.72525 | P27: 132541.5839 | Q27: -9298.416139
B28: 1850 | C28: Line Transformers | D28: =+'App.2-CA_CGAAP_DepExp_2011'!D28-'App.2-CA_CGAAP_DepExp_2011'!E28 -> 4259781.86 | E28: =+'App.2-BA2_Fix Asset Cont.MIFRS'!E28 -> 338734.81 | F28: 30 | G28: 40 | H28: 0.025 | I28: 141992.7287 | J28: 4234.185125 | K28: 146226.9138 | L28: 149109 | M28: -2882.086208 | N28: 8468.37025 | P28: 150461.0989 | Q28: 1352.098917
B29: 1855 | C29: Services (Overhead & Underground) | D29: =+'App.2-CA_CGAAP_DepExp_2011'!D29-'App.2-CA_CGAAP_DepExp_2011'!E29 -> 2869274.39 | E29: =+'App.2-BA2_Fix Asset Cont.MIFRS'!E29 -> 158550.78 | F29: 34 | G29: 40 | H29: 0.025 | I29: 84390.42324 | J29: 1981.88475 | K29: 86372.30799 | L29: 87925 | M29: -1552.692015 | N29: 3963.7695 | P29: 88354.19274 | Q29: 429.1927353
B30: 1860 | C30: Meters | D30: =+'App.2-CA_CGAAP_DepExp_2011'!D30-'App.2-CA_CGAAP_DepExp_2011'!E30 -> 922381.02 | E30: =+'App.2-BA2_Fix Asset Cont.MIFRS'!E30 -> 4237.61 | F30: 13 | G30: 15 | H30: 0.06666666667 | I30: 70952.38615 | J30: 141.2536667 | K30: 71093.63982 | L30: 76025 | M30: -4931.360179 | N30: 282.5073333 | P30: 71234.89349 | Q30: -4790.106513
B31: 1860 | C31: Meters (Smart Meters) | D31: =+'App.2-CA_CGAAP_DepExp_2011'!D31-'App.2-CA_CGAAP_DepExp_2011'!E31 -> 0 | E31: =+'App.2-BA2_Fix Asset Cont.MIFRS'!E31 -> 3100868.84 | F31: 15 | G31: 15 | H31: 0.06666666667 | I31: 0 | J31: 103362.2947 | K31: 103362.2947 | L31: 571777 | M31: -468414.7053 | N31: 206724.5893 | P31: 206724.5893 | Q31: -365052.4107
B32: 1905 | C32: Land | D32: =+'App.2-CA_CGAAP_DepExp_2011'!D32-'App.2-CA_CGAAP_DepExp_2011'!E32 -> 174187.53 | E32: =+'App.2-BA2_Fix Asset Cont.MIFRS'!E32 -> 0 | F32: 0 | G32: 15 | H32: 0.06666666667 | I32: 0 | J32: 0 | K32: 0 | M32: 0 | N32: 0 | P32: 0 | Q32: 0
B33: 1908 | C33: Buildings & Fixtures | D33: =+'App.2-CA_CGAAP_DepExp_2011'!D33-'App.2-CA_CGAAP_DepExp_2011'!E33 -> 1485042.89 | E33: =+'App.2-BA2_Fix Asset Cont.MIFRS'!E33 -> 15493.24 | F33: 43 | G33: 60 | H33: 0.01666666667 | I33: 34535.88116 | J33: 129.1103333 | K33: 34664.9915 | L33: 36971 | M33: -2306.008504 | N33: =IF(G33=0,0,+(E33)/G33) -> 258.2206667 | P33: 34794.10183 | Q33: -2176.898171
B34: 1910 | C34: Leasehold Improvements | D34: =+'App.2-CA_CGAAP_DepExp_2011'!D34-'App.2-CA_CGAAP_DepExp_2011'!E34 -> 0 | E34: =+'App.2-BA2_Fix Asset Cont.MIFRS'!E34 -> 0 | H34: 0 | I34: 0 | J34: 0 | K34: 0 | M34: 0 | N34: 0 | P34: 0 | Q34: 0
B35: 1915 | C35: Office Furniture & Equipment (10 years) | D35: =+'App.2-CA_CGAAP_DepExp_2011'!D35-'App.2-CA_CGAAP_DepExp_2011'!E35 -> 0 | E35: =+'App.2-BA2_Fix Asset Cont.MIFRS'!E35 -> 71936.87 | F35: 10 | G35: 10 | H35: 0.1 | I35: 0 | J35: 3596.8435 | K35: 3596.8435 | L35: 7194 | M35: -3597.1565 | N35: 7193.687 | P35: 7193.687 | Q35: -0.313
B36: 1915 | C36: Office Furniture & Equipment (5 years) | D36: =+'App.2-CA_CGAAP_DepExp_2011'!D36-'App.2-CA_CGAAP_DepExp_2011'!E36 -> 0 | E36: =+'App.2-BA2_Fix Asset Cont.MIFRS'!E36 -> 0 | H36: 0 | I36: 0 | J36: 0 | K36: 0 | L36: 0 | M36: 0 | N36: 0 | P36: 0 | Q36: 0
B37: 1920 | C37: Computer Equipment - Hardware | D37: =+'App.2-CA_CGAAP_DepExp_2011'!D37-'App.2-CA_CGAAP_DepExp_2011'!E37 -> 0 | E37: 0 | H37: 0 | I37: 0 | J37: 0 | K37: 0 | M37: 0 | N37: 0 | P37: 0 | Q37: 0
B38: 1920 | C38: Computer Equip.-Hardware(Post Mar. 22/04) | D38: =+'App.2-CA_CGAAP_DepExp_2011'!D38-'App.2-CA_CGAAP_DepExp_2011'!E38 -> 0 | E38: =+'App.2-BA2_Fix Asset Cont.MIFRS'!E37 -> 136793.63 | F38: 5 | G38: 3 | H38: 0.3333333333 | I38: 0 | J38: 22798.93833 | K38: 22798.93833 | L38: 40379 | M38: -17580.06167 | N38: 45597.87667 | P38: =IF(ISERROR(+N38+I38-O38), 0, +N38+I38-O38) -> 45597.87667 | Q38: 5218.876667
B39: 1920 | C39: Computer Equip.-Hardware(Post Mar. 19/07) | D39: =+'App.2-CA_CGAAP_DepExp_2011'!D39-'App.2-CA_CGAAP_DepExp_2011'!E39 -> 0 | E39: =+'App.2-BA2_Fix Asset Cont.MIFRS'!E39 -> 0 | H39: 0 | I39: 0 | J39: 0 | K39: 0 | M39: 0 | N39: 0 | P39: 0 | Q39: 0
B40: 1930 | C40: Transportation Equipment | D40: =+'App.2-CA_CGAAP_DepExp_2011'!D40-'App.2-CA_CGAAP_DepExp_2011'!E40 -> 0 | E40: =+'App.2-BA2_Fix Asset Cont.MIFRS'!E40 -> 679340 | F40: 10 | G40: 5 | H40: 0.2 | I40: 0 | J40: 67934 | K40: 67934 | L40: 136811 | M40: -68877 | N40: =IF(G40=0,0,+(E40)/G40) -> 135868 | P40: 135868 | Q40: -943
B41: 1935 | C41: Stores Equipment | D41: =+'App.2-CA_CGAAP_DepExp_2011'!D41-'App.2-CA_CGAAP_DepExp_2011'!E41 -> 0 | E41: =+'App.2-BA2_Fix Asset Cont.MIFRS'!E41 -> 0 | H41: 0 | I41: 0 | J41: 0 | K41: 0 | M41: 0 | N41: 0 | P41: 0 | Q41: 0
B42: 1940 | C42: Tools, Shop & Garage Equipment | D42: =+'App.2-CA_CGAAP_DepExp_2011'!D42-'App.2-CA_CGAAP_DepExp_2011'!E42 -> 0 | E42: =+'App.2-BA2_Fix Asset Cont.MIFRS'!E42 -> 377238.9 | F42: 10 | G42: 10 | H42: 0.1 | I42: 0 | J42: 18861.945 | K42: 18861.945 | L42: 43346 | M42: -24484.055 | N42: 37723.89 | P42: 37723.89 | Q42: -5622.11
B43: 1945 | C43: Measurement & Testing Equipment | D43: =+'App.2-CA_CGAAP_DepExp_2011'!D43-'App.2-CA_CGAAP_DepExp_2011'!E43 -> 0 | E43: =+'App.2-BA2_Fix Asset Cont.MIFRS'!E43 -> 0 | H43: 0 | I43: 0 | J43: 0 | K43: 0 | M43: 0 | N43: 0 | P43: 0 | Q43: 0
B44: 1950 | C44: Power Operated Equipment | D44: =+'App.2-CA_CGAAP_DepExp_2011'!D44-'App.2-CA_CGAAP_DepExp_2011'!E44 -> 0 | E44: =+'App.2-BA2_Fix Asset Cont.MIFRS'!E44 -> 0 | H44: 0 | I44: 0 | J44: 0 | K44: 0 | M44: 0 | N44: 0 | P44: 0 | Q44: 0
B45: 1955 | C45: Communications Equipment | D45: =+'App.2-CA_CGAAP_DepExp_2011'!D45-'App.2-CA_CGAAP_DepExp_2011'!E45 -> 0 | E45: =+'App.2-BA2_Fix Asset Cont.MIFRS'!E45 -> 12465.77 | F45: 15 | G45: 15 | H45: 0.06666666667 | I45: 0 | J45: 415.5256667 | K45: 415.5256667 | L45: 2493 | M45: -2077.474333 | N45: 831.0513333 | P45: 831.0513333 | Q45: -1661.948667
B46: 1955 | C46: Communication Equipment (Smart Meters) | D46: =+'App.2-CA_CGAAP_DepExp_2011'!D46-'App.2-CA_CGAAP_DepExp_2011'!E46 -> 0 | E46: =+'App.2-BA2_Fix Asset Cont.MIFRS'!E46 -> 0 | H46: 0 | I46: 0 | J46: 0 | K46: 0 | M46: 0 | N46: 0 | P46: 0 | Q46: 0
B47: 1960 | C47: Miscellaneous Equipment | D47: =+'App.2-CA_CGAAP_DepExp_2011'!D47-'App.2-CA_CGAAP_DepExp_2011'!E47 -> 0 | E47: =+'App.2-BA2_Fix Asset Cont.MIFRS'!E47 -> 200000 | F47: 15 | G47: 15 | H47: 0.06666666667 | I47: 0 | J47: 6666.666667 | K47: 6666.666667 | L47: 13333 | M47: -6666.333333 | N47: 13333.33333 | P47: 13333.33333 | Q47: 0.3333333333
B48: 1970 | C48: Load Management Controls Customer Premises | D48: =+'App.2-CA_CGAAP_DepExp_2011'!D48-'App.2-CA_CGAAP_DepExp_2011'!E48 -> 0 | E48: =+'App.2-BA2_Fix Asset Cont.MIFRS'!E48 -> 0 | H48: 0 | I48: 0 | J48: 0 | K48: 0 | M48: 0 | N48: 0 | P48: 0 | Q48: 0
B49: 1975 | C49: Load Management Controls Utility Premises | D49: =+'App.2-CA_CGAAP_DepExp_2011'!D49-'App.2-CA_CGAAP_DepExp_2011'!E49 -> 0 | E49: =+'App.2-BA2_Fix Asset Cont.MIFRS'!E49 -> 0 | H49: 0 | I49: 0 | J49: 0 | K49: 0 | M49: 0 | N49: 0 | P49: 0 | Q49: 0
B50: 1980 | C50: System Supervisor Equipment | D50: =+'App.2-CA_CGAAP_DepExp_2011'!D50-'App.2-CA_CGAAP_DepExp_2011'!E50 -> 11897.75 | E50: =+'App.2-BA2_Fix Asset Cont.MIFRS'!E50 -> 412316.07 | F50: 12 | G50: 15 | H50: 0.06666666667 | I50: 991.4791667 | J50: 13743.869 | K50: 14735.34817 | L50: 31788 | M50: -17052.65183 | N50: 27487.738 | P50: 28479.21717 | Q50: -3308.782833
B51: 1985 | C51: Miscellaneous Fixed Assets | D51: =+'App.2-CA_CGAAP_DepExp_2011'!D51-'App.2-CA_CGAAP_DepExp_2011'!E51 -> 0 | E51: =+'App.2-BA2_Fix Asset Cont.MIFRS'!E51 -> 0 | H51: 0 | I51: 0 | J51: 0 | K51: 0 | M51: 0 | N51: 0 | P51: 0 | Q51: 0
B52: 1990 | C52: Other Tangible Property | D52: =+'App.2-CA_CGAAP_DepExp_2011'!D52-'App.2-CA_CGAAP_DepExp_2011'!E52 -> 0 | E52: =+'App.2-BA2_Fix Asset Cont.MIFRS'!E52 -> 0 | H52: 0 | I52: 0 | J52: 0 | K52: 0 | M52: 0 | N52: 0 | P52: 0 | Q52: 0
B53: 1995 | C53: Contributions & Grants | D53: =+'App.2-CA_CGAAP_DepExp_2011'!D53-'App.2-CA_CGAAP_DepExp_2011'!E53 -> -5207306.6 | E53: =+'App.2-BA2_Fix Asset Cont.MIFRS'!E53 -> -318520.81 | F53: 33 | G53: 40 | H53: 0.025 | I53: =IF(F53=0,0,+D53/F53) -> -157797.1697 | J53: -3981.510125 | K53: -161778.6798 | L53: -162754 | M53: 975.320178 | N53: -7963.02025 | P53: -165760.1899 | Q53: -3006.189947
B54: etc. | H54: 0 | I54: 0 | J54: 0 | K54: 0 | M54: 0 | N54: 0 | P54: 0 | Q54: 0
H55: 0 | I55: 0 | J55: 0 | K55: 0 | M55: 0 | N55: 0 | P55: 0 | Q55: 0
C56: Total | D56: =SUM(D16:D55) -> 18970924.04 | E56: =SUM(E16:E55) -> 7069688.37 | I56: =SUM(I16:I55) -> 550170.3753 | J56: 303959.438 | K56: 854129.8133 | L56: 1549246 | M56: -695116.1867 | N56: 607918.876 | O56: =SUM(O16:O55) -> 0 | P56: 1158089.251 | Q56: -391156.7487
C57: Depreciation exp. adj. from gain or loss on the retirement of assets (pool of like assets) | K57: 0
C58: Total | K58: =+K57+K56 -> 854129.8133
B59: Notes:
B61: 1 | C61: Board policy of the "half-year" rule - the applicant must ensure that additions in the year attract a half-year depreciation expense in the first year. Deviations from this standard practice must be supported in the application.
B62: 2 | C62: The applicant must provide an explanation of material variances in evidence.
B63: 3 | C63: The applicant should ensure that the years for new additions of assets are the asset useful lives determined by management in accordance with IFRS.
B64: 4 | C64: A recalculation should be performed to determine the average remaining life of opening balance of assets (i.e. excluding 2011 additions) under IFRS. For example, Asset A had a useful life of 20 years under CGAAP. On January 1, 2011, the date of transition, Asset A was 3 years depreciated. As a result, Asset A would have a remaining service life of 17 years (20 years less 3 years) under CGAAP as of January 1, 2011. Due to the transition to IFRS, management re-assessed the asset useful lives under IFRS principles and concluded that the revised useful life of Asset A is now 30 years. Therefore, the average remaining useful life of opening balance of Asset A is determined to be 27 years (30 years less 3 years) under IFRS as of January 1, 2011.
B65: 5 | C65: NBV must exclude assets still on the books but which have been fully amortized or depreciated.
B66: 6 | C66: This column refers to the calculated full year depreciation but excludes the depreciation expense on assets fully depreciated during the year. This column is used for the purpose of calculating depreciation expense in the following year on the next worksheet.
B68: General: | C68: Applicants must provide a breakdown of depreciation and amortization expense in the above format for all relevant accounts. Asset Retirement Obligations (AROs), depreciation and accretion expense should be disclosed separately consistent with the Notes of historical Audited Financial Statements.

Sheet App.2-CC_MIFRS_DepExp_2012
K1: File Number: | L1: =EBNUMBER -> EB-2014-0113
K2: Exhibit: | L2: 2
K3: Tab: | L3: 2
K4: Schedule: | L4: 2
K5: Page:
K7: Date: | L7: 2015-04-25
B9: Appendix 2-CC
B10: Depreciation and Amortization Expense
B11: Assumes the applicant adopted IFRS for financial reporting purposes January 1, 2012
D12: 2013
B14: Account | C14: Description | D14: Additions | E14: Years (new additions only) | F14: Depreciation Rate on New Additions | G14: 2013 Depreciation Expense 1 | H14: 2013 Depreciation Expense per Apppendix 2-B Fixed Assets, Column K (l) | I14: Variance 2 | J14: Depreciation Expense on 2013 Full Year Additions | K14: Less Depreciation Expense on Assets Fully Depreciated during the year (o) | L14: 2013 Full Year Depreciation 3
D15: (d) | E15: (f) | F15: (g) = 1 / (f) | G15: (h)=2011 Full Year Deprecation + ((d)*0.5)/(f) | I15: (m) = (h) - (l) | J15: (n)=((d))/(f) | L15: (p) = 2012 Full Year Depreciation + (n) - (o)
B16: 1611 | C16: Computer Software (Formally known as Account 1925) | D16: 15135 | E16: 5 | F16: =IF(E16=0,0,1/E16) -> 0.2 | G16: =IF(E16=0,+'App.2-CB_MIFRS_DepExp_2011'!P16,+'App.2-CB_MIFRS_DepExp_2011'!P16+((D16*0.5)/E16)) -> 96733.582 | H16: 62933.67 | I16: =IF(ISERROR(+G16-H16), 0, +G16-H16) -> 33799.912 | J16: =IF(E16=0,0,+(D16)/E16) -> 3027 | L16: =IF(ISERROR(+J16+'App.2-CB_MIFRS_DepExp_2011'!P16-K16), 0, +J16+'App.2-CB_MIFRS_DepExp_2011'!P16-K16) -> 98247.082 | O16: =+H16-L16 -> -35313.412
B17: 1612 | C17: Land Rights (Formally known as Account 1906) | F17: 0 | G17: =IF(E17=0,+'App.2-CB_MIFRS_DepExp_2011'!P17,+'App.2-CB_MIFRS_DepExp_2011'!P17+((D17*0.5)/E17)) -> 0 | I17: 0 | J17: 0 | L17: =IF(ISERROR(+J17+'App.2-CB_MIFRS_DepExp_2011'!P17-K17), 0, +J17+'App.2-CB_MIFRS_DepExp_2011'!P17-K17) -> 0 | O17: =+H17-L17 -> 0
B18: 1805 | C18: Land | E18: 0 | F18: 0 | G18: =IF(E18=0,+'App.2-CB_MIFRS_DepExp_2011'!P18,+'App.2-CB_MIFRS_DepExp_2011'!P18+((D18*0.5)/E18)) -> 0 | I18: 0 | J18: 0 | L18: =IF(ISERROR(+J18+'App.2-CB_MIFRS_DepExp_2011'!P18-K18), 0, +J18+'App.2-CB_MIFRS_DepExp_2011'!P18-K18) -> 0 | O18: 0
B19: 1808 | C19: Buildings | F19: 0 | G19: =IF(E19=0,+'App.2-CB_MIFRS_DepExp_2011'!P19,+'App.2-CB_MIFRS_DepExp_2011'!P19+((D19*0.5)/E19)) -> 0 | I19: 0 | J19: 0 | L19: =IF(ISERROR(+J19+'App.2-CB_MIFRS_DepExp_2011'!P19-K19), 0, +J19+'App.2-CB_MIFRS_DepExp_2011'!P19-K19) -> 0 | O19: 0
B20: 1810 | C20: Leasehold Improvements | F20: 0 | G20: =IF(E20=0,+'App.2-CB_MIFRS_DepExp_2011'!P20,+'App.2-CB_MIFRS_DepExp_2011'!P20+((D20*0.5)/E20)) -> 0 | I20: 0 | J20: 0 | L20: =IF(ISERROR(+J20+'App.2-CB_MIFRS_DepExp_2011'!P20-K20), 0, +J20+'App.2-CB_MIFRS_DepExp_2011'!P20-K20) -> 0 | O20: 0
B21: 1815 | C21: Transformer Station Equipment >50 kV | F21: 0 | G21: =IF(E21=0,+'App.2-CB_MIFRS_DepExp_2011'!P21,+'App.2-CB_MIFRS_DepExp_2011'!P21+((D21*0.5)/E21)) -> 0 | I21: 0 | J21: 0 | L21: =IF(ISERROR(+J21+'App.2-CB_MIFRS_DepExp_2011'!P21-K21), 0, +J21+'App.2-CB_MIFRS_DepExp_2011'!P21-K21) -> 0 | O21: 0
B22: 1820 | C22: Distribution Station Equipment <50 kV | D22: 0 | E22: 45 | F22: 0.02222222222 | G22: =IF(E22=0,+'App.2-CB_MIFRS_DepExp_2011'!P22,+'App.2-CB_MIFRS_DepExp_2011'!P22+((D22*0.5)/E22)) -> 785.3891667 | H22: 835.9 | I22: =IF(ISERROR(+G22-H22), 0, +G22-H22) -> -50.51083333 | J22: 0 | L22: =IF(ISERROR(+J22+'App.2-CB_MIFRS_DepExp_2011'!P22-K22), 0, +J22+'App.2-CB_MIFRS_DepExp_2011'!P22-K22) -> 785.3891667 | O22: 50.51083333
B23: 1825 | C23: Storage Battery Equipment | F23: 0 | G23: =IF(E23=0,+'App.2-CB_MIFRS_DepExp_2011'!P23,+'App.2-CB_MIFRS_DepExp_2011'!P23+((D23*0.5)/E23)) -> 0 | I23: 0 | J23: 0 | L23: =IF(ISERROR(+J23+'App.2-CB_MIFRS_DepExp_2011'!P23-K23), 0, +J23+'App.2-CB_MIFRS_DepExp_2011'!P23-K23) -> 0 | O23: 0
B24: 1830 | C24: Poles, Towers & Fixtures | D24: 286820.42 | E24: 45 | F24: 0.02222222222 | G24: =IF(E24=0,+'App.2-CB_MIFRS_DepExp_2011'!P24,+'App.2-CB_MIFRS_DepExp_2011'!P24+((D24*0.5)/E24)) -> 124870.5995 | H24: 127059.87 | I24: -2189.270496 | J24: 6373.787111 | L24: =IF(ISERROR(+J24+'App.2-CB_MIFRS_DepExp_2011'!P24-K24), 0, +J24+'App.2-CB_MIFRS_DepExp_2011'!P24-K24) -> 128057.4931 | O24: -997.6230598
B25: 1835 | C25: Overhead Conductors & Devices | D25: 192086.61 | E25: 60 | F25: 0.01666666667 | G25: =IF(E25=0,+'App.2-CB_MIFRS_DepExp_2011'!P25,+'App.2-CB_MIFRS_DepExp_2011'!P25+((D25*0.5)/E25)) -> 73118.45512 | H25: 72837.74 | I25: 280.7151218 | J25: 3201.4435 | L25: =IF(ISERROR(+J25+'App.2-CB_MIFRS_DepExp_2011'!P25-K25), 0, +J25+'App.2-CB_MIFRS_DepExp_2011'!P25-K25) -> 74719.17687 | O25: -1881.436872
B26: 1840 | C26: Underground Conduit | D26: 284762.55 | E26: 40 | F26: 0.025 | G26: =IF(E26=0,+'App.2-CB_MIFRS_DepExp_2011'!P26,+'App.2-CB_MIFRS_DepExp_2011'!P26+((D26*0.5)/E26)) -> 85064.54694 | H26: 91037.64 | I26: -5973.093065 | J26: 7119.06375 | L26: =IF(ISERROR(+J26+'App.2-CB_MIFRS_DepExp_2011'!P26-K26), 0, +J26+'App.2-CB_MIFRS_DepExp_2011'!P26-K26) -> 88624.07881 | O26: 2413.56119
B27: 1845 | C27: Underground Conductors & Devices | D27: 314372.51 | E27: 40 | F27: 0.025 | G27: =IF(E27=0,+'App.2-CB_MIFRS_DepExp_2011'!P27,+'App.2-CB_MIFRS_DepExp_2011'!P27+((D27*0.5)/E27)) -> 136471.2402 | H27: 149699.38 | I27: -13228.13976 | J27: 7859.31275 | L27: =IF(ISERROR(+J27+'App.2-CB_MIFRS_DepExp_2011'!P27-K27), 0, +J27+'App.2-CB_MIFRS_DepExp_2011'!P27-K27) -> 140400.8966 | O27: 9298.483389
B28: 1850 | C28: Line Transformers | D28: 347421.75 | E28: 40 | F28: 0.025 | G28: =IF(E28=0,+'App.2-CB_MIFRS_DepExp_2011'!P28,+'App.2-CB_MIFRS_DepExp_2011'!P28+((D28*0.5)/E28)) -> 154803.8708 | H28: 157793.89 | I28: -2990.019208 | J28: 8685.54375 | L28: =IF(ISERROR(+J28+'App.2-CB_MIFRS_DepExp_2011'!P28-K28), 0, +J28+'App.2-CB_MIFRS_DepExp_2011'!P28-K28) -> 159146.6427 | O28: -1352.752667
B29: 1855 | C29: Services (Overhead & Underground) | D29: 146631.46 | E29: 40 | F29: 0.025 | G29: =IF(E29=0,+'App.2-CB_MIFRS_DepExp_2011'!P29,+'App.2-CB_MIFRS_DepExp_2011'!P29+((D29*0.5)/E29)) -> 90187.08599 | H29: 91590.82 | I29: -1403.734015 | J29: 3665.7865 | L29: =IF(ISERROR(+J29+'App.2-CB_MIFRS_DepExp_2011'!P29-K29), 0, +J29+'App.2-CB_MIFRS_DepExp_2011'!P29-K29) -> 92019.97924 | O29: -429.1592353
B30: 1860 | C30: Meters | D30: 456.3 | E30: 15 | F30: 0.06666666667 | G30: =IF(E30=0,+'App.2-CB_MIFRS_DepExp_2011'!P30,+'App.2-CB_MIFRS_DepExp_2011'!P30+((D30*0.5)/E30)) -> 71250.10349 | H30: 74902.27 | I30: -3652.166513 | J30: 30.42 | L30: =IF(ISERROR(+J30+'App.2-CB_MIFRS_DepExp_2011'!P30-K30), 0, +J30+'App.2-CB_MIFRS_DepExp_2011'!P30-K30) -> 71265.31349 | O30: 3636.956513
B31: 1860 | C31: Meters (Smart Meters) | D31: 46474.95 | E31: 15 | F31: 0.06666666667 | G31: =IF(E31=0,+'App.2-CB_MIFRS_DepExp_2011'!P31,+'App.2-CB_MIFRS_DepExp_2011'!P31+((D31*0.5)/E31)) -> 208273.7543 | H31: 209822.92 | I31: -1549.165667 | J31: 3098.33 | L31: =IF(ISERROR(+J31+'App.2-CB_MIFRS_DepExp_2011'!P31-K31), 0, +J31+'App.2-CB_MIFRS_DepExp_2011'!P31-K31) -> 209822.9193 | O31: 0.0006666666886
B32: 1905 | C32: Land | F32: 0 | G32: =IF(E32=0,+'App.2-CB_MIFRS_DepExp_2011'!P32,+'App.2-CB_MIFRS_DepExp_2011'!P32+((D32*0.5)/E32)) -> 0 | I32: 0 | J32: 0 | L32: =IF(ISERROR(+J32+'App.2-CB_MIFRS_DepExp_2011'!P32-K32), 0, +J32+'App.2-CB_MIFRS_DepExp_2011'!P32-K32) -> 0 | O32: 0
B33: 1908 | C33: Buildings & Fixtures | D33: 17973.34 | E33: 60 | F33: 0.01666666667 | G33: =IF(E33=0,+'App.2-CB_MIFRS_DepExp_2011'!P33,+'App.2-CB_MIFRS_DepExp_2011'!P33+((D33*0.5)/E33)) -> 34943.87966 | H33: 37826.26 | I33: -2882.380337 | J33: 299.5556667 | L33: =IF(ISERROR(+J33+'App.2-CB_MIFRS_DepExp_2011'!P33-K33), 0, +J33+'App.2-CB_MIFRS_DepExp_2011'!P33-K33) -> 35093.6575 | O33: 2732.602504
B34: 1910 | C34: Leasehold Improvements | F34: 0 | G34: =IF(E34=0,+'App.2-CB_MIFRS_DepExp_2011'!P34,+'App.2-CB_MIFRS_DepExp_2011'!P34+((D34*0.5)/E34)) -> 0 | I34: 0 | J34: 0 | L34: =IF(ISERROR(+J34+'App.2-CB_MIFRS_DepExp_2011'!P34-K34), 0, +J34+'App.2-CB_MIFRS_DepExp_2011'!P34-K34) -> 0 | O34: 0
B35: 1915 | C35: Office Furniture & Equipment (10 years) | E35: 10 | F35: 0.1 | G35: =IF(E35=0,+'App.2-CB_MIFRS_DepExp_2011'!P35,+'App.2-CB_MIFRS_DepExp_2011'!P35+((D35*0.5)/E35)) -> 7193.687 | H35: 7193.64 | I35: 0.047 | J35: 0 | L35: =IF(ISERROR(+J35+'App.2-CB_MIFRS_DepExp_2011'!P35-K35), 0, +J35+'App.2-CB_MIFRS_DepExp_2011'!P35-K35) -> 7193.687 | O35: -0.047
B36: 1915 | C36: Office Furniture & Equipment (5 years) | F36: 0 | G36: =IF(E36=0,+'App.2-CB_MIFRS_DepExp_2011'!P36,+'App.2-CB_MIFRS_DepExp_2011'!P36+((D36*0.5)/E36)) -> 0 | I36: 0 | J36: 0 | L36: =IF(ISERROR(+J36+'App.2-CB_MIFRS_DepExp_2011'!P36-K36), 0, +J36+'App.2-CB_MIFRS_DepExp_2011'!P36-K36) -> 0 | O36: 0
B37: 1920 | C37: Computer Equipment - Hardware | F37: 0 | G37: =IF(E37=0,+'App.2-CB_MIFRS_DepExp_2011'!P37,+'App.2-CB_MIFRS_DepExp_2011'!P37+((D37*0.5)/E37)) -> 0 | I37: 0 | J37: 0 | L37: =IF(ISERROR(+J37+'App.2-CB_MIFRS_DepExp_2011'!P37-K37), 0, +J37+'App.2-CB_MIFRS_DepExp_2011'!P37-K37) -> 0 | O37: 0
B38: 1920 | C38: Computer Equip.-Hardware(Post Mar. 22/04) | D38: 165763.17 | E38: 5 | F38: 0.2 | G38: =IF(E38=0,+'App.2-CB_MIFRS_DepExp_2011'!P38,+'App.2-CB_MIFRS_DepExp_2011'!P38+((D38*0.5)/E38)) -> 62174.19367 | H38: 60511.34 | I38: 1662.853667 | J38: 33152.634 | L38: =IF(ISERROR(+J38+'App.2-CB_MIFRS_DepExp_2011'!P38-K38), 0, +J38+'App.2-CB_MIFRS_DepExp_2011'!P38-K38) -> 78750.51067 | O38: -18239.17067
B39: 1920 | C39: Computer Equip.-Hardware(Post Mar. 19/07) | F39: 0 | G39: =IF(E39=0,+'App.2-CB_MIFRS_DepExp_2011'!P39,+'App.2-CB_MIFRS_DepExp_2011'!P39+((D39*0.5)/E39)) -> 0 | I39: 0 | J39: 0 | L39: =IF(ISERROR(+J39+'App.2-CB_MIFRS_DepExp_2011'!P39-K39), 0, +J39+'App.2-CB_MIFRS_DepExp_2011'!P39-K39) -> 0 | O39: 0
B40: 1930 | C40: Transportation Equipment | D40: 209083.48 | E40: 15 | F40: 0.06666666667 | G40: =IF(E40=0,+'App.2-CB_MIFRS_DepExp_2011'!P40,+'App.2-CB_MIFRS_DepExp_2011'!P40+((D40*0.5)/E40)) -> 142837.4493 | H40: 85343 | I40: 57494.44933 | J40: 13938.89867 | K40: 67940 | L40: =IF(ISERROR(+J40+'App.2-CB_MIFRS_DepExp_2011'!P40-K40), 0, +J40+'App.2-CB_MIFRS_DepExp_2011'!P40-K40) -> 81866.89867 | O40: 3476.101333
B41: 1935 | C41: Stores Equipment | F41: 0 | G41: =IF(E41=0,+'App.2-CB_MIFRS_DepExp_2011'!P41,+'App.2-CB_MIFRS_DepExp_2011'!P41+((D41*0.5)/E41)) -> 0 | I41: 0 | J41: 0 | L41: =IF(ISERROR(+J41+'App.2-CB_MIFRS_DepExp_2011'!P41-K41), 0, +J41+'App.2-CB_MIFRS_DepExp_2011'!P41-K41) -> 0 | O41: 0
B42: 1940 | C42: Tools, Shop & Garage Equipment | D42: 22888.4 | E42: 10 | F42: 0.1 | G42: =IF(E42=0,+'App.2-CB_MIFRS_DepExp_2011'!P42,+'App.2-CB_MIFRS_DepExp_2011'!P42+((D42*0.5)/E42)) -> 38868.31 | H42: 40012.73 | I42: -1144.42 | J42: 2288.84 | L42: =IF(ISERROR(+J42+'App.2-CB_MIFRS_DepExp_2011'!P42-K42), 0, +J42+'App.2-CB_MIFRS_DepExp_2011'!P42-K42) -> 40012.73 | O42: 0
B43: 1945 | C43: Measurement & Testing Equipment | F43: 0 | G43: =IF(E43=0,+'App.2-CB_MIFRS_DepExp_2011'!P43,+'App.2-CB_MIFRS_DepExp_2011'!P43+((D43*0.5)/E43)) -> 0 | I43: 0 | J43: 0 | L43: =IF(ISERROR(+J43+'App.2-CB_MIFRS_DepExp_2011'!P43-K43), 0, +J43+'App.2-CB_MIFRS_DepExp_2011'!P43-K43) -> 0 | O43: 0
B44: 1950 | C44: Power Operated Equipment | F44: 0 | G44: =IF(E44=0,+'App.2-CB_MIFRS_DepExp_2011'!P44,+'App.2-CB_MIFRS_DepExp_2011'!P44+((D44*0.5)/E44)) -> 0 | I44: 0 | J44: 0 | L44: =IF(ISERROR(+J44+'App.2-CB_MIFRS_DepExp_2011'!P44-K44), 0, +J44+'App.2-CB_MIFRS_DepExp_2011'!P44-K44) -> 0 | O44: 0
B45: 1955 | C45: Communications Equipment | E45: 5 | F45: 0.2 | G45: =IF(E45=0,+'App.2-CB_MIFRS_DepExp_2011'!P45,+'App.2-CB_MIFRS_DepExp_2011'!P45+((D45*0.5)/E45)) -> 831.0513333 | H45: 2493.1 | I45: -1662.048667 | J45: 0 | L45: =IF(ISERROR(+J45+'App.2-CB_MIFRS_DepExp_2011'!P45-K45), 0, +J45+'App.2-CB_MIFRS_DepExp_2011'!P45-K45) -> 831.0513333 | O45: 1662.048667
B46: 1955 | C46: Communication Equipment (Smart Meters) | F46: 0 | G46: =IF(E46=0,+'App.2-CB_MIFRS_DepExp_2011'!P46,+'App.2-CB_MIFRS_DepExp_2011'!P46+((D46*0.5)/E46)) -> 0 | I46: 0 | J46: 0 | L46: =IF(ISERROR(+J46+'App.2-CB_MIFRS_DepExp_2011'!P46-K46), 0, +J46+'App.2-CB_MIFRS_DepExp_2011'!P46-K46) -> 0 | O46: 0
B47: 1960 | C47: Miscellaneous Equipment | E47: 10 | F47: 0.1 | G47: =IF(E47=0,+'App.2-CB_MIFRS_DepExp_2011'!P47,+'App.2-CB_MIFRS_DepExp_2011'!P47+((D47*0.5)/E47)) -> 13333.33333 | H47: 13333.33 | I47: 0.003333333334 | J47: 0 | L47: =IF(ISERROR(+J47+'App.2-CB_MIFRS_DepExp_2011'!P47-K47), 0, +J47+'App.2-CB_MIFRS_DepExp_2011'!P47-K47) -> 13333.33333 | O47: -0.003333333334
B48: 1970 | C48: Load Management Controls Customer Premises | F48: 0 | G48: =IF(E48=0,+'App.2-CB_MIFRS_DepExp_2011'!P48,+'App.2-CB_MIFRS_DepExp_2011'!P48+((D48*0.5)/E48)) -> 0 | I48: 0 | J48: 0 | L48: =IF(ISERROR(+J48+'App.2-CB_MIFRS_DepExp_2011'!P48-K48), 0, +J48+'App.2-CB_MIFRS_DepExp_2011'!P48-K48) -> 0 | O48: 0
B49: 1975 | C49: Load Management Controls Utility Premises | F49: 0 | G49: =IF(E49=0,+'App.2-CB_MIFRS_DepExp_2011'!P49,+'App.2-CB_MIFRS_DepExp_2011'!P49+((D49*0.5)/E49)) -> 0 | I49: 0 | J49: 0 | L49: =IF(ISERROR(+J49+'App.2-CB_MIFRS_DepExp_2011'!P49-K49), 0, +J49+'App.2-CB_MIFRS_DepExp_2011'!P49-K49) -> 0 | O49: 0
B50: 1980 | C50: System Supervisor Equipment | D50: 69794.85 | E50: 15 | F50: 0.06666666667 | G50: =IF(E50=0,+'App.2-CB_MIFRS_DepExp_2011'!P50,+'App.2-CB_MIFRS_DepExp_2011'!P50+((D50*0.5)/E50)) -> 30805.71217 | H50: 36441.47 | I50: -5635.757833 | J50: 4652.99 | L50: =IF(ISERROR(+J50+'App.2-CB_MIFRS_DepExp_2011'!P50-K50), 0, +J50+'App.2-CB_MIFRS_DepExp_2011'!P50-K50) -> 33132.20717 | O50: 3309.262833
B51: 1985 | C51: Miscellaneous Fixed Assets | F51: 0 | G51: =IF(E51=0,+'App.2-CB_MIFRS_DepExp_2011'!P51,+'App.2-CB_MIFRS_DepExp_2011'!P51+((D51*0.5)/E51)) -> 0 | I51: 0 | J51: 0 | L51: =IF(ISERROR(+J51+'App.2-CB_MIFRS_DepExp_2011'!P51-K51), 0, +J51+'App.2-CB_MIFRS_DepExp_2011'!P51-K51) -> 0 | O51: 0
B52: 1990 | C52: Other Tangible Property | F52: 0 | G52: =IF(E52=0,+'App.2-CB_MIFRS_DepExp_2011'!P52,+'App.2-CB_MIFRS_DepExp_2011'!P52+((D52*0.5)/E52)) -> 0 | I52: 0 | J52: 0 | L52: =IF(ISERROR(+J52+'App.2-CB_MIFRS_DepExp_2011'!P52-K52), 0, +J52+'App.2-CB_MIFRS_DepExp_2011'!P52-K52) -> 0 | O52: 0
B53: 1995 | C53: Contributions & Grants | D53: -596143.78 | E53: 40 | F53: 0.025 | G53: =IF(E53=0,+'App.2-CB_MIFRS_DepExp_2011'!P53,+'App.2-CB_MIFRS_DepExp_2011'!P53+((D53*0.5)/E53)) -> -173211.9872 | H53: -177960.78 | I53: 4748.792803 | J53: =IF(E53=0,0,+(D53)/E53) -> -14903.5945 | L53: =IF(ISERROR(+J53+'App.2-CB_MIFRS_DepExp_2011'!P53-K53), 0, +J53+'App.2-CB_MIFRS_DepExp_2011'!P53-K53) -> -180663.7844 | O53: 2703.004447
F54: 0 | G54: =IF(E54=0,+'App.2-CB_MIFRS_DepExp_2011'!P54,+'App.2-CB_MIFRS_DepExp_2011'!P54+((D54*0.5)/E54)) -> 0 | I54: 0 | J54: 0 | L54: =IF(ISERROR(+J54+'App.2-CB_MIFRS_DepExp_2011'!P54-K54), 0, +J54+'App.2-CB_MIFRS_DepExp_2011'!P54-K54) -> 0
F55: 0 | G55: =IF(E55=0,+'App.2-CB_MIFRS_DepExp_2011'!P55,+'App.2-CB_MIFRS_DepExp_2011'!P55+((D55*0.5)/E55)) -> 0 | I55: 0 | J55: 0 | L55: =IF(ISERROR(+J55+'App.2-CB_MIFRS_DepExp_2011'!P55-K55), 0, +J55+'App.2-CB_MIFRS_DepExp_2011'!P55-K55) -> 0
C56: Total | D56: =SUM(D16:D55) -> 1523521.01 | G56: =SUM(G16:G55) -> 1199334.257 | H56: 1143708.19 | I56: 55626.06686 | J56: 82490.01119 | K56: 67940 | L56: 1172639.262 | O56: =+H56-L56 -> -28931.07246
C57: Depreciation exp. adj. from gain or loss on the retirement of assets (pool of like assets) | G57: 0
C58: Total | G58: =+G56+G57 -> 1199334.257
B59: Notes:
B60: 1 | C60: Board policy of the "half-year" rule - the applicant must ensure that additions in the year attract a half-year depreciation expense in the first year. Deviations from this standard practice must be supported in the application.
B61: 2 | C61: The applicant must provide an explanation of material variances in evidence.
B62: 3 | C62: This column refers to the calculated full year depreciation but excludes the depreciation expense on assets fully depreciated during the year. This column is used for the purpose of calculating depreciation expense in the following year on the next worksheet.
B64: General: | C64: Applicants must provide a breakdown of depreciation and amortization expense in the above format for all relevant accounts. Asset Retirement Obligations (AROs), depreciation and accretion expense should be disclosed separately consistent with the Notes of historical Audited Financial Statements.

Sheet App.2-CD_MIFRS_DepExp_2013
J1: File Number: | K1: =EBNUMBER -> EB-2014-0113
J2: Exhibit: | K2: 2
J3: Tab: | K3: 2
J4: Schedule: | K4: 2
J5: Page:
J7: Date: | K7: 2015-04-25
A9: Appendix 2-CD
A10: Depreciation and Amortization Expense
A11: Assumes the applicant adopted IFRS for financial reporting purposes January 1, 2012
C12: 2014 | D12: CGAAP
A14: Account | B14: Description | C14: Additions | D14: Years (new additions only) | E14: Depreciation Rate on New Additions | F14: 2014 Depreciation Expense 1 | G14: 2014 Depreciation Expense per Apppendix 2-B Fixed Assets, Column K (l) | H14: Variance 2 | I14: Depreciation Expense on 2014 Full Year Additions | J14: Less Depreciation Expense on Assets Fully Depreciated during the year (o) | K14: 2014 Full Year Depreciation 3
C15: (d) | D15: (f) | E15: (g) = 1 / (f) | F15: (h)=2012 Full Year Deprecation + ((d)*0.5)/(f) | H15: (m) = (h) - (l) | I15: (n)=((d))/(f) | K15: (p) = 2013 Full Year Depreciation + (n) - (o)
A16: 1611 | B16: Computer Software (Formally known as Account 1925) | C16: 96500 | D16: 5 | E16: =IF(D16=0,0,1/D16) -> 0.2 | F16: =IF(D16=0,+'App.2-CC_MIFRS_DepExp_2012'!L16,+'App.2-CC_MIFRS_DepExp_2012'!L16+((C16*0.5)/D16)) -> 107897.082 | G16: 80233.67 | H16: =IF(ISERROR(+F16-G16), 0, +F16-G16) -> 27663.412 | I16: =IF(D16=0,0,+(C16)/D16) -> 19300 | K16: =IF(ISERROR(+I16+'App.2-CC_MIFRS_DepExp_2012'!L16-J16), 0, +I16+'App.2-CC_MIFRS_DepExp_2012'!L16-J16) -> 117547.082 | M16: =+K16-G16 -> 37313.412
A17: 1612 | B17: Land Rights (Formally known as Account 1906) | E17: 0 | F17: =IF(D17=0,+'App.2-CC_MIFRS_DepExp_2012'!L17,+'App.2-CC_MIFRS_DepExp_2012'!L17+((C17*0.5)/D17)) -> 0 | H17: 0 | I17: 0 | K17: =IF(ISERROR(+I17+'App.2-CC_MIFRS_DepExp_2012'!L17-J17), 0, +I17+'App.2-CC_MIFRS_DepExp_2012'!L17-J17) -> 0 | M17: =+K17-G17 -> 0
A18: 1805 | B18: Land | D18: 0 | E18: 0 | F18: =IF(D18=0,+'App.2-CC_MIFRS_DepExp_2012'!L18,+'App.2-CC_MIFRS_DepExp_2012'!L18+((C18*0.5)/D18)) -> 0 | H18: 0 | I18: 0 | K18: =IF(ISERROR(+I18+'App.2-CC_MIFRS_DepExp_2012'!L18-J18), 0, +I18+'App.2-CC_MIFRS_DepExp_2012'!L18-J18) -> 0 | M18: 0
A19: 1808 | B19: Buildings | E19: 0 | F19: =IF(D19=0,+'App.2-CC_MIFRS_DepExp_2012'!L19,+'App.2-CC_MIFRS_DepExp_2012'!L19+((C19*0.5)/D19)) -> 0 | H19: 0 | I19: 0 | K19: =IF(ISERROR(+I19+'App.2-CC_MIFRS_DepExp_2012'!L19-J19), 0, +I19+'App.2-CC_MIFRS_DepExp_2012'!L19-J19) -> 0 | M19: 0
A20: 1810 | B20: Leasehold Improvements | E20: 0 | F20: =IF(D20=0,+'App.2-CC_MIFRS_DepExp_2012'!L20,+'App.2-CC_MIFRS_DepExp_2012'!L20+((C20*0.5)/D20)) -> 0 | H20: 0 | I20: 0 | K20: =IF(ISERROR(+I20+'App.2-CC_MIFRS_DepExp_2012'!L20-J20), 0, +I20+'App.2-CC_MIFRS_DepExp_2012'!L20-J20) -> 0 | M20: 0
A21: 1815 | B21: Transformer Station Equipment >50 kV | E21: 0 | F21: =IF(D21=0,+'App.2-CC_MIFRS_DepExp_2012'!L21,+'App.2-CC_MIFRS_DepExp_2012'!L21+((C21*0.5)/D21)) -> 0 | H21: 0 | I21: 0 | K21: =IF(ISERROR(+I21+'App.2-CC_MIFRS_DepExp_2012'!L21-J21), 0, +I21+'App.2-CC_MIFRS_DepExp_2012'!L21-J21) -> 0 | M21: 0
A22: 1820 | B22: Distribution Station Equipment <50 kV | D22: 45 | E22: 0.02222222222 | F22: =IF(D22=0,+'App.2-CC_MIFRS_DepExp_2012'!L22,+'App.2-CC_MIFRS_DepExp_2012'!L22+((C22*0.5)/D22)) -> 785.3891667 | G22: 835.9 | H22: -50.51083333 | I22: 0 | K22: =IF(ISERROR(+I22+'App.2-CC_MIFRS_DepExp_2012'!L22-J22), 0, +I22+'App.2-CC_MIFRS_DepExp_2012'!L22-J22) -> 785.3891667 | M22: -50.51083333
A23: 1825 | B23: Storage Battery Equipment | E23: 0 | F23: =IF(D23=0,+'App.2-CC_MIFRS_DepExp_2012'!L23,+'App.2-CC_MIFRS_DepExp_2012'!L23+((C23*0.5)/D23)) -> 0 | H23: 0 | I23: 0 | K23: =IF(ISERROR(+I23+'App.2-CC_MIFRS_DepExp_2012'!L23-J23), 0, +I23+'App.2-CC_MIFRS_DepExp_2012'!L23-J23) -> 0 | M23: 0
A24: 1830 | B24: Poles, Towers & Fixtures | C24: 337027 | D24: 45 | E24: 0.02222222222 | F24: =IF(D24=0,+'App.2-CC_MIFRS_DepExp_2012'!L24,+'App.2-CC_MIFRS_DepExp_2012'!L24+((C24*0.5)/D24)) -> 131802.2375 | G24: 134549.36 | H24: -2747.122496 | I24: 7489.488889 | K24: =IF(ISERROR(+I24+'App.2-CC_MIFRS_DepExp_2012'!L24-J24), 0, +I24+'App.2-CC_MIFRS_DepExp_2012'!L24-J24) -> 135546.9819 | M24: 997.6219487
A25: 1835 | B25: Overhead Conductors & Devices | C25: 276757 | D25: 60 | E25: 0.01666666667 | F25: =IF(D25=0,+'App.2-CC_MIFRS_DepExp_2012'!L25,+'App.2-CC_MIFRS_DepExp_2012'!L25+((C25*0.5)/D25)) -> 77025.48521 | G25: 77450.36 | H25: -424.8747949 | I25: 4612.616667 | K25: =IF(ISERROR(+I25+'App.2-CC_MIFRS_DepExp_2012'!L25-J25), 0, +I25+'App.2-CC_MIFRS_DepExp_2012'!L25-J25) -> 79331.79354 | M25: 1881.433538
A26: 1840 | B26: Underground Conduit | C26: 338922 | D26: 40 | E26: 0.025 | F26: =IF(D26=0,+'App.2-CC_MIFRS_DepExp_2012'!L26,+'App.2-CC_MIFRS_DepExp_2012'!L26+((C26*0.5)/D26)) -> 92860.60381 | G26: 99510.69 | H26: -6650.08619 | I26: 8473.05 | K26: =IF(ISERROR(+I26+'App.2-CC_MIFRS_DepExp_2012'!L26-J26), 0, +I26+'App.2-CC_MIFRS_DepExp_2012'!L26-J26) -> 97097.12881 | M26: -2413.56119
A27: 1845 | B27: Underground Conductors & Devices | C27: 291948 | D27: 40 | E27: 0.025 | F27: =IF(D27=0,+'App.2-CC_MIFRS_DepExp_2012'!L27,+'App.2-CC_MIFRS_DepExp_2012'!L27+((C27*0.5)/D27)) -> 144050.2466 | G27: 156998.08 | H27: -12947.83339 | I27: 7298.7 | K27: =IF(ISERROR(+I27+'App.2-CC_MIFRS_DepExp_2012'!L27-J27), 0, +I27+'App.2-CC_MIFRS_DepExp_2012'!L27-J27) -> 147699.5966 | M27: -9298.483389
A28: 1850 | B28: Line Transformers | C28: 397485 | D28: 40 | E28: 0.025 | F28: =IF(D28=0,+'App.2-CC_MIFRS_DepExp_2012'!L28,+'App.2-CC_MIFRS_DepExp_2012'!L28+((C28*0.5)/D28)) -> 164115.2052 | G28: 167731.11 | H28: -3615.904833 | I28: 9937.125 | K28: =IF(ISERROR(+I28+'App.2-CC_MIFRS_DepExp_2012'!L28-J28), 0, +I28+'App.2-CC_MIFRS_DepExp_2012'!L28-J28) -> 169083.7677 | M28: 1352.657667
A29: 1855 | B29: Services (Overhead & Underground) | C29: 144843 | D29: 40 | E29: 0.025 | F29: =IF(D29=0,+'App.2-CC_MIFRS_DepExp_2012'!L29,+'App.2-CC_MIFRS_DepExp_2012'!L29+((C29*0.5)/D29)) -> 93830.51674 | G29: 95211.9 | H29: -1381.383265 | I29: 3621.075 | K29: =IF(ISERROR(+I29+'App.2-CC_MIFRS_DepExp_2012'!L29-J29), 0, +I29+'App.2-CC_MIFRS_DepExp_2012'!L29-J29) -> 95641.05424 | M29: 429.1542353
A30: 1860 | B30: Meters | D30: 15 | E30: 0.06666666667 | F30: =IF(D30=0,+'App.2-CC_MIFRS_DepExp_2012'!L30,+'App.2-CC_MIFRS_DepExp_2012'!L30+((C30*0.5)/D30)) -> 71265.31349 | G30: 71894.68 | H30: -629.3665128 | I30: 0 | K30: =IF(ISERROR(+I30+'App.2-CC_MIFRS_DepExp_2012'!L30-J30), 0, +I30+'App.2-CC_MIFRS_DepExp_2012'!L30-J30) -> 71265.31349 | M30: -629.3665128
A31: 1860 | B31: Meters (Smart Meters) | C31: 13018 | D31: 15 | E31: 0.06666666667 | F31: =IF(D31=0,+'App.2-CC_MIFRS_DepExp_2012'!L31,+'App.2-CC_MIFRS_DepExp_2012'!L31+((C31*0.5)/D31)) -> 210256.8527 | G31: 210690.79 | H31: -433.9373333 | I31: 867.8666667 | K31: =IF(ISERROR(+I31+'App.2-CC_MIFRS_DepExp_2012'!L31-J31), 0, +I31+'App.2-CC_MIFRS_DepExp_2012'!L31-J31) -> 210690.786 | M31: =+K31-G31 -> -0.004000000015
A32: 1905 | B32: Land | E32: 0 | F32: =IF(D32=0,+'App.2-CC_MIFRS_DepExp_2012'!L32,+'App.2-CC_MIFRS_DepExp_2012'!L32+((C32*0.5)/D32)) -> 0 | H32: 0 | I32: 0 | K32: =IF(ISERROR(+I32+'App.2-CC_MIFRS_DepExp_2012'!L32-J32), 0, +I32+'App.2-CC_MIFRS_DepExp_2012'!L32-J32) -> 0 | M32: 0
A33: 1908 | B33: Buildings & Fixtures | C33: 100000 | D33: 60 | E33: 0.01666666667 | F33: =IF(D33=0,+'App.2-CC_MIFRS_DepExp_2012'!L33,+'App.2-CC_MIFRS_DepExp_2012'!L33+((C33*0.5)/D33)) -> 35926.99083 | G33: 39492.93 | H33: -3565.939171 | I33: 1666.666667 | K33: =IF(ISERROR(+I33+'App.2-CC_MIFRS_DepExp_2012'!L33-J33), 0, +I33+'App.2-CC_MIFRS_DepExp_2012'!L33-J33) -> 36760.32416 | M33: -2732.605837
A34: 1910 | B34: Leasehold Improvements | E34: 0 | F34: =IF(D34=0,+'App.2-CC_MIFRS_DepExp_2012'!L34,+'App.2-CC_MIFRS_DepExp_2012'!L34+((C34*0.5)/D34)) -> 0 | H34: 0 | I34: 0 | K34: =IF(ISERROR(+I34+'App.2-CC_MIFRS_DepExp_2012'!L34-J34), 0, +I34+'App.2-CC_MIFRS_DepExp_2012'!L34-J34) -> 0 | M34: 0
A35: 1915 | B35: Office Furniture & Equipment (10 years) | C35: 70000 | D35: 10 | E35: 0.1 | F35: =IF(D35=0,+'App.2-CC_MIFRS_DepExp_2012'!L35,+'App.2-CC_MIFRS_DepExp_2012'!L35+((C35*0.5)/D35)) -> 10693.687 | G35: 14193.64 | H35: -3499.953 | I35: 7000 | K35: =IF(ISERROR(+I35+'App.2-CC_MIFRS_DepExp_2012'!L35-J35), 0, +I35+'App.2-CC_MIFRS_DepExp_2012'!L35-J35) -> 14193.687 | M35: 0.047
A36: 1915 | B36: Office Furniture & Equipment (5 years) | E36: 0 | F36: =IF(D36=0,+'App.2-CC_MIFRS_DepExp_2012'!L36,+'App.2-CC_MIFRS_DepExp_2012'!L36+((C36*0.5)/D36)) -> 0 | H36: 0 | I36: 0 | K36: =IF(ISERROR(+I36+'App.2-CC_MIFRS_DepExp_2012'!L36-J36), 0, +I36+'App.2-CC_MIFRS_DepExp_2012'!L36-J36) -> 0 | M36: 0
A37: 1920 | B37: Computer Equipment - Hardware | E37: 0 | F37: =IF(D37=0,+'App.2-CC_MIFRS_DepExp_2012'!L37,+'App.2-CC_MIFRS_DepExp_2012'!L37+((C37*0.5)/D37)) -> 0 | H37: 0 | I37: 0 | K37: =IF(ISERROR(+I37+'App.2-CC_MIFRS_DepExp_2012'!L37-J37), 0, +I37+'App.2-CC_MIFRS_DepExp_2012'!L37-J37) -> 0 | M37: 0
A38: 1920 | B38: Computer Equip.-Hardware(Post Mar. 22/04) | C38: 19500 | D38: 5 | E38: 0.2 | F38: =IF(D38=0,+'App.2-CC_MIFRS_DepExp_2012'!L38,+'App.2-CC_MIFRS_DepExp_2012'!L38+((C38*0.5)/D38)) -> 80700.51067 | G38: 64411 | H38: 16289.51067 | I38: 3900 | K38: =IF(ISERROR(+I38+'App.2-CC_MIFRS_DepExp_2012'!L38-J38), 0, +I38+'App.2-CC_MIFRS_DepExp_2012'!L38-J38) -> 82650.51067 | M38: 18239.51067
A39: 1920 | B39: Computer Equip.-Hardware(Post Mar. 19/07) | E39: 0 | F39: =IF(D39=0,+'App.2-CC_MIFRS_DepExp_2012'!L39,+'App.2-CC_MIFRS_DepExp_2012'!L39+((C39*0.5)/D39)) -> 0 | H39: 0 | I39: 0 | K39: =IF(ISERROR(+I39+'App.2-CC_MIFRS_DepExp_2012'!L39-J39), 0, +I39+'App.2-CC_MIFRS_DepExp_2012'!L39-J39) -> 0 | M39: 0
A40: 1930 | B40: Transportation Equipment | C40: 352792.06 | D40: 15 | E40: 0.06666666667 | F40: =IF(D40=0,+'App.2-CC_MIFRS_DepExp_2012'!L40,+'App.2-CC_MIFRS_DepExp_2012'!L40+((C40*0.5)/D40)) -> 93626.634 | G40: 94676.61 | H40: -1049.976 | I40: 23519.47067 | J40: 14000 | K40: =IF(ISERROR(+I40+'App.2-CC_MIFRS_DepExp_2012'!L40-J40), 0, +I40+'App.2-CC_MIFRS_DepExp_2012'!L40-J40) -> 91386.36933 | M40: -3290.240667
A41: 1935 | B41: Stores Equipment | E41: 0 | F41: =IF(D41=0,+'App.2-CC_MIFRS_DepExp_2012'!L41,+'App.2-CC_MIFRS_DepExp_2012'!L41+((C41*0.5)/D41)) -> 0 | H41: 0 | I41: 0 | K41: =IF(ISERROR(+I41+'App.2-CC_MIFRS_DepExp_2012'!L41-J41), 0, +I41+'App.2-CC_MIFRS_DepExp_2012'!L41-J41) -> 0 | M41: 0
A42: 1940 | B42: Tools, Shop & Garage Equipment | C42: 28000 | D42: 10 | E42: 0.1 | F42: =IF(D42=0,+'App.2-CC_MIFRS_DepExp_2012'!L42,+'App.2-CC_MIFRS_DepExp_2012'!L42+((C42*0.5)/D42)) -> 41412.73 | G42: 42812.73 | H42: -1400 | I42: 2800 | K42: =IF(ISERROR(+I42+'App.2-CC_MIFRS_DepExp_2012'!L42-J42), 0, +I42+'App.2-CC_MIFRS_DepExp_2012'!L42-J42) -> 42812.73 | M42: 0
A43: 1945 | B43: Measurement & Testing Equipment | E43: 0 | F43: =IF(D43=0,+'App.2-CC_MIFRS_DepExp_2012'!L43,+'App.2-CC_MIFRS_DepExp_2012'!L43+((C43*0.5)/D43)) -> 0 | H43: 0 | I43: 0 | K43: =IF(ISERROR(+I43+'App.2-CC_MIFRS_DepExp_2012'!L43-J43), 0, +I43+'App.2-CC_MIFRS_DepExp_2012'!L43-J43) -> 0 | M43: 0
A44: 1950 | B44: Power Operated Equipment | E44: 0 | F44: =IF(D44=0,+'App.2-CC_MIFRS_DepExp_2012'!L44,+'App.2-CC_MIFRS_DepExp_2012'!L44+((C44*0.5)/D44)) -> 0 | H44: 0 | I44: 0 | K44: =IF(ISERROR(+I44+'App.2-CC_MIFRS_DepExp_2012'!L44-J44), 0, +I44+'App.2-CC_MIFRS_DepExp_2012'!L44-J44) -> 0 | M44: 0
A45: 1955 | B45: Communications Equipment | C45: 0 | D45: 5 | E45: 0.2 | F45: =IF(D45=0,+'App.2-CC_MIFRS_DepExp_2012'!L45,+'App.2-CC_MIFRS_DepExp_2012'!L45+((C45*0.5)/D45)) -> 831.0513333 | G45: 2493.15 | H45: -1662.098667 | I45: 0 | K45: =IF(ISERROR(+I45+'App.2-CC_MIFRS_DepExp_2012'!L45-J45), 0, +I45+'App.2-CC_MIFRS_DepExp_2012'!L45-J45) -> 831.0513333 | M45: -1662.098667
A46: 1955 | B46: Communication Equipment (Smart Meters) | E46: 0 | F46: =IF(D46=0,+'App.2-CC_MIFRS_DepExp_2012'!L46,+'App.2-CC_MIFRS_DepExp_2012'!L46+((C46*0.5)/D46)) -> 0 | H46: 0 | I46: 0 | K46: =IF(ISERROR(+I46+'App.2-CC_MIFRS_DepExp_2012'!L46-J46), 0, +I46+'App.2-CC_MIFRS_DepExp_2012'!L46-J46) -> 0 | M46: 0
A47: 1960 | B47: Miscellaneous Equipment | C47: 0 | D47: 10 | E47: 0.1 | F47: =IF(D47=0,+'App.2-CC_MIFRS_DepExp_2012'!L47,+'App.2-CC_MIFRS_DepExp_2012'!L47+((C47*0.5)/D47)) -> 13333.33333 | G47: 13333.33 | H47: 0.003333333334 | I47: 0 | K47: =IF(ISERROR(+I47+'App.2-CC_MIFRS_DepExp_2012'!L47-J47), 0, +I47+'App.2-CC_MIFRS_DepExp_2012'!L47-J47) -> 13333.33333 | M47: 0.003333333334
A48: 1970 | B48: Load Management Controls Customer Premises | E48: 0 | F48: =IF(D48=0,+'App.2-CC_MIFRS_DepExp_2012'!L48,+'App.2-CC_MIFRS_DepExp_2012'!L48+((C48*0.5)/D48)) -> 0 | H48: 0 | I48: 0 | K48: =IF(ISERROR(+I48+'App.2-CC_MIFRS_DepExp_2012'!L48-J48), 0, +I48+'App.2-CC_MIFRS_DepExp_2012'!L48-J48) -> 0 | M48: 0
A49: 1975 | B49: Load Management Controls Utility Premises | E49: 0 | F49: =IF(D49=0,+'App.2-CC_MIFRS_DepExp_2012'!L49,+'App.2-CC_MIFRS_DepExp_2012'!L49+((C49*0.5)/D49)) -> 0 | H49: 0 | I49: 0 | K49: =IF(ISERROR(+I49+'App.2-CC_MIFRS_DepExp_2012'!L49-J49), 0, +I49+'App.2-CC_MIFRS_DepExp_2012'!L49-J49) -> 0 | M49: 0
A50: 1980 | B50: System Supervisor Equipment | C50: 150000 | D50: 15 | E50: 0.06666666667 | F50: =IF(D50=0,+'App.2-CC_MIFRS_DepExp_2012'!L50,+'App.2-CC_MIFRS_DepExp_2012'!L50+((C50*0.5)/D50)) -> 38132.20717 | G50: 41094.46 | H50: -2962.252833 | I50: 10000 | K50: =IF(ISERROR(+I50+'App.2-CC_MIFRS_DepExp_2012'!L50-J50), 0, +I50+'App.2-CC_MIFRS_DepExp_2012'!L50-J50) -> 43132.20717 | M50: 2037.747167
A51: 1985 | B51: Miscellaneous Fixed Assets | E51: 0 | F51: =IF(D51=0,+'App.2-CC_MIFRS_DepExp_2012'!L51,+'App.2-CC_MIFRS_DepExp_2012'!L51+((C51*0.5)/D51)) -> 0 | H51: 0 | I51: 0 | K51: =IF(ISERROR(+I51+'App.2-CC_MIFRS_DepExp_2012'!L51-J51), 0, +I51+'App.2-CC_MIFRS_DepExp_2012'!L51-J51) -> 0 | M51: 0
A52: 1990 | B52: Other Tangible Property | E52: 0 | F52: =IF(D52=0,+'App.2-CC_MIFRS_DepExp_2012'!L52,+'App.2-CC_MIFRS_DepExp_2012'!L52+((C52*0.5)/D52)) -> 0 | H52: 0 | I52: 0 | K52: =IF(ISERROR(+I52+'App.2-CC_MIFRS_DepExp_2012'!L52-J52), 0, +I52+'App.2-CC_MIFRS_DepExp_2012'!L52-J52) -> 0 | M52: 0
A53: 1995 | B53: Contributions & Grants | C53: -100000 | D53: 40 | E53: 0.025 | F53: =IF(D53=0,+'App.2-CC_MIFRS_DepExp_2012'!L53,+'App.2-CC_MIFRS_DepExp_2012'!L53+((C53*0.5)/D53)) -> -181913.7844 | G53: -180752.45 | H53: -1161.334447 | I53: -2500 | K53: =IF(ISERROR(+I53+'App.2-CC_MIFRS_DepExp_2012'!L53-J53), 0, +I53+'App.2-CC_MIFRS_DepExp_2012'!L53-J53) -> -183163.7844 | M53: -2411.334447
A54: etc. | E54: 0 | F54: =IF(D54=0,+'App.2-CC_MIFRS_DepExp_2012'!L54,+'App.2-CC_MIFRS_DepExp_2012'!L54+((C54*0.5)/D54)) -> 0 | H54: 0 | I54: 0 | K54: =IF(ISERROR(+I54+'App.2-CC_MIFRS_DepExp_2012'!L54-J54), 0, +I54+'App.2-CC_MIFRS_DepExp_2012'!L54-J54) -> 0
E55: 0 | F55: =IF(D55=0,+'App.2-CC_MIFRS_DepExp_2012'!L55,+'App.2-CC_MIFRS_DepExp_2012'!L55+((C55*0.5)/D55)) -> 0 | H55: 0 | I55: 0 | K55: =IF(ISERROR(+I55+'App.2-CC_MIFRS_DepExp_2012'!L55-J55), 0, +I55+'App.2-CC_MIFRS_DepExp_2012'!L55-J55) -> 0
B56: Total | C56: =SUM(C16:C55) -> 2516792.06 | F56: =SUM(F16:F55) -> 1226632.292 | G56: 1226861.94 | H56: -229.6477642 | I56: 107986.0596 | J56: 14000 | K56: 1266625.322 | M56: 39763.38201
B57: Depreciation exp. adj. from gain or loss on the retirement of assets (pool of like assets) | F57: 0
B58: Total | F58: =+F57+F56 -> 1226632.292
A59: Notes:
A60: 1 | B60: Board policy of the "half-year" rule - the applicant must ensure that additions in the year attract a half-year depreciation expense in the first year. Deviations from this standard practice must be supported in the application.
A61: 2 | B61: The applicant must provide an explanation of material variances in evidence.
A62: 3 | B62: This column refers to the calculated full year depreciation but excludes the depreciation expense on assets fully depreciated during the year. This column is used for the purpose of calculating depreciation expense in the following year on the next worksheet.
A64: General: | B64: Applicants must provide a breakdown of depreciation and amortization expense in the above format for all relevant accounts. Asset Retirement Obligations (AROs), depreciation and accretion expense should be disclosed separately consistent with the Notes of historical Audited Financial Statements.

Sheet App.2-CE_MIFRS_DepExp_2014
H1: File Number: | I1: =EBNUMBER -> EB-2014-0113
H2: Exhibit: | I2: 2
H3: Tab: | I3: 2
H4: Schedule: | I4: 2
H5: Page:
H7: Date: | I7: 2015-04-25
B9: Appendix 2-CE
B10: Depreciation and Amortization Expense
B11: Assumes the applicant adopted IFRS for financial reporting purposes January 1, 2012
D12: 2015 | E12: MIFRS
B14: Account | C14: Description | D14: Additions | E14: Years (new additions only) | F14: Depreciation Rate on New Additions | G14: 2015 Depreciation Expense 1 | H14: 2015 Depreciation Expense per Appendix 2-B Fixed Assets, Column K (l) | I14: Variance 2
D15: (d) | E15: (f) | F15: (g) = 1 / (f) | G15: (h)=2013 Full Year Depreciation + ((d)*0.5)/(f) | I15: (m) = (h) - (l)
B16: 1611 | C16: Computer Software (Formally known as Account 1925) | D16: 13000 | E16: 5 | F16: =IF(E16=0,0,1/E16) -> 0.2 | G16: =IF(E16=0,'App.2-CD_MIFRS_DepExp_2013'!K16,+'App.2-CD_MIFRS_DepExp_2013'!K16+((D16*0.5)/E16)) -> 118847.082 | H16: =27931+37312 -> 65243 | I16: =IF(ISERROR(+G16-H16), 0, +G16-H16) -> 53604.082
B17: 1612 | C17: Land Rights (Formally known as Account 1906) | F17: 0 | G17: =IF(E17=0,'App.2-CD_MIFRS_DepExp_2013'!K17,+'App.2-CD_MIFRS_DepExp_2013'!K17+((D17*0.5)/E17)) -> 0 | I17: 0
B18: 1805 | C18: Land | E18: 0 | F18: 0 | G18: =IF(E18=0,'App.2-CD_MIFRS_DepExp_2013'!K18,+'App.2-CD_MIFRS_DepExp_2013'!K18+((D18*0.5)/E18)) -> 0 | I18: 0
B19: 1808 | C19: Buildings | F19: 0 | G19: =IF(E19=0,'App.2-CD_MIFRS_DepExp_2013'!K19,+'App.2-CD_MIFRS_DepExp_2013'!K19+((D19*0.5)/E19)) -> 0 | I19: 0
B20: 1810 | C20: Leasehold Improvements | F20: 0 | G20: =IF(E20=0,'App.2-CD_MIFRS_DepExp_2013'!K20,+'App.2-CD_MIFRS_DepExp_2013'!K20+((D20*0.5)/E20)) -> 0 | I20: 0
B21: 1815 | C21: Transformer Station Equipment >50 kV | F21: 0 | G21: =IF(E21=0,'App.2-CD_MIFRS_DepExp_2013'!K21,+'App.2-CD_MIFRS_DepExp_2013'!K21+((D21*0.5)/E21)) -> 0 | I21: 0
B22: 1820 | C22: Distribution Station Equipment <50 kV | E22: 45 | F22: 0.02222222222 | G22: =IF(E22=0,'App.2-CD_MIFRS_DepExp_2013'!K22,+'App.2-CD_MIFRS_DepExp_2013'!K22+((D22*0.5)/E22)) -> 785.3891667 | H22: 836 | I22: -50.61083333
B23: 1825 | C23: Storage Battery Equipment | F23: 0 | G23: =IF(E23=0,'App.2-CD_MIFRS_DepExp_2013'!K23,+'App.2-CD_MIFRS_DepExp_2013'!K23+((D23*0.5)/E23)) -> 0 | I23: 0
B24: 1830 | C24: Poles, Towers & Fixtures | D24: 326655 | E24: 45 | F24: 0.02222222222 | G24: =IF(E24=0,'App.2-CD_MIFRS_DepExp_2013'!K24,+'App.2-CD_MIFRS_DepExp_2013'!K24+((D24*0.5)/E24)) -> 139176.4819 | H24: 138179 | I24: 997.4819487
B25: 1835 | C25: Overhead Conductors & Devices | D25: 268280 | E25: 60 | F25: 0.01666666667 | G25: =IF(E25=0,'App.2-CD_MIFRS_DepExp_2013'!K25,+'App.2-CD_MIFRS_DepExp_2013'!K25+((D25*0.5)/E25)) -> 81567.46021 | H25: 79686 | I25: 1881.460205
B26: 1840 | C26: Underground Conduit | D26: 329925 | E26: 40 | F26: 0.025 | G26: =IF(E26=0,'App.2-CD_MIFRS_DepExp_2013'!K26,+'App.2-CD_MIFRS_DepExp_2013'!K26+((D26*0.5)/E26)) -> 101221.1913 | H26: 103635 | I26: -2413.80869
B27: 1845 | C27: Underground Conductors & Devices | D27: 285377 | E27: 40 | F27: 0.025 | G27: =IF(E27=0,'App.2-CD_MIFRS_DepExp_2013'!K27,+'App.2-CD_MIFRS_DepExp_2013'!K27+((D27*0.5)/E27)) -> 151266.8091 | H27: 160565 | I27: -9298.190889
B28: 1850 | C28: Line Transformers | D28: =270632+115271 -> 385903 | E28: 40 | F28: 0.025 | G28: =IF(E28=0,'App.2-CD_MIFRS_DepExp_2013'!K28,+'App.2-CD_MIFRS_DepExp_2013'!K28+((D28*0.5)/E28)) -> 173907.5552 | H28: =60491+112064 -> 172555 | I28: 1352.555167
B29: 1855 | C29: Services (Overhead & Underground) | D29: =11533+29353 -> 40886 | E29: 40 | F29: 0.025 | G29: =IF(E29=0,'App.2-CD_MIFRS_DepExp_2013'!K29,+'App.2-CD_MIFRS_DepExp_2013'!K29+((D29*0.5)/E29)) -> 96152.12924 | H29: =66901+30072 -> 96973 | I29: -820.8707647
B30: 1860 | C30: Meters | E30: 15 | F30: 0.06666666667 | G30: =IF(E30=0,'App.2-CD_MIFRS_DepExp_2013'!K30,+'App.2-CD_MIFRS_DepExp_2013'!K30+((D30*0.5)/E30)) -> 71265.31349 | H30: =7066+2385 -> 9451 | I30: 61814.31349 | M30: Stranded meter less $59,000
B31: 1860 | C31: Meters (Smart Meters) | D31: 12974 | E31: 15 | F31: 0.06666666667 | G31: =IF(E31=0,'App.2-CD_MIFRS_DepExp_2013'!K31,+'App.2-CD_MIFRS_DepExp_2013'!K31+((D31*0.5)/E31)) -> 211123.2527 | H31: 211555 | I31: -431.7473333
B32: 1905 | C32: Land | F32: 0 | G32: =IF(E32=0,'App.2-CD_MIFRS_DepExp_2013'!K32,+'App.2-CD_MIFRS_DepExp_2013'!K32+((D32*0.5)/E32)) -> 0 | I32: 0
B33: 1908 | C33: Buildings & Fixtures | D33: 100000 | E33: 60 | F33: 0.01666666667 | G33: =IF(E33=0,'App.2-CD_MIFRS_DepExp_2013'!K33,+'App.2-CD_MIFRS_DepExp_2013'!K33+((D33*0.5)/E33)) -> 37593.6575 | H33: =37962+2363 -> 40325 | I33: -2731.342504
B34: 1910 | C34: Leasehold Improvements | F34: 0 | G34: =IF(E34=0,'App.2-CD_MIFRS_DepExp_2013'!K34,+'App.2-CD_MIFRS_DepExp_2013'!K34+((D34*0.5)/E34)) -> 0 | I34: 0
B35: 1915 | C35: Office Furniture & Equipment (10 years) | D35: 70000 | E35: 10 | F35: 0.1 | G35: =IF(E35=0,'App.2-CD_MIFRS_DepExp_2013'!K35,+'App.2-CD_MIFRS_DepExp_2013'!K35+((D35*0.5)/E35)) -> 17693.687 | H35: 17694 | I35: -0.313
B36: 1915 | C36: Office Furniture & Equipment (5 years) | F36: 0 | G36: =IF(E36=0,'App.2-CD_MIFRS_DepExp_2013'!K36,+'App.2-CD_MIFRS_DepExp_2013'!K36+((D36*0.5)/E36)) -> 0 | I36: 0
B37: 1920 | C37: Computer Equipment - Hardware | F37: 0 | G37: =IF(E37=0,'App.2-CD_MIFRS_DepExp_2013'!K37,+'App.2-CD_MIFRS_DepExp_2013'!K37+((D37*0.5)/E37)) -> 0 | I37: 0
B38: 1920 | C38: Computer Equip.-Hardware(Post Mar. 22/04) | D38: 85000 | E38: 5 | F38: 0.2 | G38: =IF(E38=0,'App.2-CD_MIFRS_DepExp_2013'!K38,+'App.2-CD_MIFRS_DepExp_2013'!K38+((D38*0.5)/E38)) -> 91150.51067 | H38: 69587 | I38: 21563.51067
B39: 1920 | C39: Computer Equip.-Hardware(Post Mar. 19/07) | F39: 0 | G39: =IF(E39=0,'App.2-CD_MIFRS_DepExp_2013'!K39,+'App.2-CD_MIFRS_DepExp_2013'!K39+((D39*0.5)/E39)) -> 0 | I39: 0
B40: 1930 | C40: Transportation Equipment | D40: 125000 | E40: 10 | F40: 0.1 | G40: =IF(E40=0,'App.2-CD_MIFRS_DepExp_2013'!K40,+'App.2-CD_MIFRS_DepExp_2013'!K40+((D40*0.5)/E40)) -> 97636.36933 | H40: 100927 | I40: -3290.630667
B41: 1935 | C41: Stores Equipment | F41: 0 | G41: =IF(E41=0,'App.2-CD_MIFRS_DepExp_2013'!K41,+'App.2-CD_MIFRS_DepExp_2013'!K41+((D41*0.5)/E41)) -> 0 | I41: 0
B42: 1940 | C42: Tools, Shop & Garage Equipment | D42: 20000 | E42: 10 | F42: 0.1 | G42: =IF(E42=0,'App.2-CD_MIFRS_DepExp_2013'!K42,+'App.2-CD_MIFRS_DepExp_2013'!K42+((D42*0.5)/E42)) -> 43812.73 | H42: 43812 | I42: 0.73
B43: 1945 | C43: Measurement & Testing Equipment | F43: 0 | G43: =IF(E43=0,'App.2-CD_MIFRS_DepExp_2013'!K43,+'App.2-CD_MIFRS_DepExp_2013'!K43+((D43*0.5)/E43)) -> 0 | I43: 0
B44: 1950 | C44: Power Operated Equipment | F44: 0 | G44: =IF(E44=0,'App.2-CD_MIFRS_DepExp_2013'!K44,+'App.2-CD_MIFRS_DepExp_2013'!K44+((D44*0.5)/E44)) -> 0 | I44: 0
B45: 1955 | C45: Communications Equipment | D45: 0 | E45: 5 | F45: 0.2 | G45: =IF(E45=0,'App.2-CD_MIFRS_DepExp_2013'!K45,+'App.2-CD_MIFRS_DepExp_2013'!K45+((D45*0.5)/E45)) -> 831.0513333 | H45: 2493 | I45: -1661.948667
B46: 1955 | C46: Communication Equipment (Smart Meters) | F46: 0 | G46: =IF(E46=0,'App.2-CD_MIFRS_DepExp_2013'!K46,+'App.2-CD_MIFRS_DepExp_2013'!K46+((D46*0.5)/E46)) -> 0 | I46: 0
B47: 1960 | C47: Miscellaneous Equipment | D47: 0 | E47: 10 | F47: 0.1 | G47: =IF(E47=0,'App.2-CD_MIFRS_DepExp_2013'!K47,+'App.2-CD_MIFRS_DepExp_2013'!K47+((D47*0.5)/E47)) -> 13333.33333 | H47: 13333 | I47: 0.3333333333
B48: 1970 | C48: Load Management Controls Customer Premises | F48: 0 | G48: =IF(E48=0,'App.2-CD_MIFRS_DepExp_2013'!K48,+'App.2-CD_MIFRS_DepExp_2013'!K48+((D48*0.5)/E48)) -> 0 | I48: 0
B49: 1975 | C49: Load Management Controls Utility Premises | F49: 0 | G49: =IF(E49=0,'App.2-CD_MIFRS_DepExp_2013'!K49,+'App.2-CD_MIFRS_DepExp_2013'!K49+((D49*0.5)/E49)) -> 0 | I49: 0
B50: 1980 | C50: System Supervisor Equipment | D50: 100000 | E50: 15 | F50: 0.06666666667 | G50: =IF(E50=0,'App.2-CD_MIFRS_DepExp_2013'!K50,+'App.2-CD_MIFRS_DepExp_2013'!K50+((D50*0.5)/E50)) -> 46465.5405 | H50: =6511+40834 -> 47345 | I50: -879.4595
B51: 1985 | C51: Miscellaneous Fixed Assets | F51: 0 | G51: =IF(E51=0,'App.2-CD_MIFRS_DepExp_2013'!K51,+'App.2-CD_MIFRS_DepExp_2013'!K51+((D51*0.5)/E51)) -> 0 | I51: 0
B52: 1990 | C52: Other Tangible Property | F52: 0 | G52: =IF(E52=0,'App.2-CD_MIFRS_DepExp_2013'!K52,+'App.2-CD_MIFRS_DepExp_2013'!K52+((D52*0.5)/E52)) -> 0 | I52: 0
B53: 1995 | C53: Contributions & Grants | D53: -100000 | E53: 40 | F53: 0.025 | G53: =IF(E53=0,'App.2-CD_MIFRS_DepExp_2013'!K53,+'App.2-CD_MIFRS_DepExp_2013'!K53+((D53*0.5)/E53)) -> -184413.7844 | H53: -165979 | I53: -18434.78445
B54: etc. | F54: 0 | G54: =IF(E54=0,'App.2-CD_MIFRS_DepExp_2013'!K54,+'App.2-CD_MIFRS_DepExp_2013'!K54+((D54*0.5)/E54)) -> 0 | I54: 0
F55: 0 | G55: =IF(E55=0,'App.2-CD_MIFRS_DepExp_2013'!K55,+'App.2-CD_MIFRS_DepExp_2013'!K55+((D55*0.5)/E55)) -> 0 | I55: 0
C56: Total | D56: =SUM(D16:D55) -> 2063000 | G56: =SUM(G16:G55) -> 1309415.76 | H56: =SUM(H16:H55) -> 1208215 | I56: =SUM(I16:I55) -> 101200.7595
C57: Depreciation exp. adj. from gain or loss on the retirement of assets (pool of like assets) | L57: Stranded meters | N57: =+I30 -> 61814.31349
C58: Total Depreciation expense to be included in the test year revenue requirement | G58: =SUM(G56:G57) -> 1309415.76 | L58: Contributed capital | N58: =+I53 -> -18434.78445
B59: Notes: | N59: =+N57+N58 -> 43379.52904
B60: 1 | C60: Board policy of the "half-year" rule - the applicant must ensure that additions in the year attract a half-year depreciation expense in the first year. Deviations from this standard practice must be supported in the application.
B61: 2 | C61: The applicant must provide an explanation of material variances in evidence.
B63: General: | C63: Applicants must provide a breakdown of depreciation and amortization expense in the above format for all relevant accounts. Asset Retirement Obligations (AROs), depreciation and accretion expense should be disclosed separately consistent with the Notes of historical Audited Financial Statements.

Sheet App.2-CF_CGAAP_DepExp_2012
K1: File Number: | L1: =EBNUMBER -> EB-2014-0113
K2: Exhibit: | L2: 2
K3: Tab: | L3: 2
K4: Schedule: | L4: 2
K5: Page:
K7: Date: | L7: 2015-04-25
A9: Appendix 2-CF N/A
A10: Depreciation and Amortization Expense
A11: Assumes the applicant adopted IFRS for financial reporting purposes January 1, 2013
C12: Year | D12: 2012 | E12: CGAAP
A14: Account | B14: Description | C14: Opening Regulatory Gross PP&E as at Jan 1, 2012 | D14: Less Fully Depreciated | E14: Net for Depreciation | F14: Additions | G14: Total for Depreciation | H14: Years | I14: Depreciation Rate | J14: Depreciation Expense | K14: 2012 Depreciation Expense per Appendix 2-B Fixed Assets, Column K (l) | L14: Variance 2
C15: (a) | D15: (b) | E15: (c) | F15: (d) | G15: (e) = (c) + ½ x (d) 1 | H15: (f) | I15: (g) = 1 / (f) | J15: (h) = (e) / (f) | L15: (m) = (h) - (l)
A16: 1611 | B16: Computer Software (Formally known as Account 1925) | I16: =IF(H16=0,0,1/H16) -> 0 | J16: =IF(H16=0,0,G16/H16) -> 0 | L16: =IF(ISERROR(+J16-K16), 0, +J16-K16) -> 0
A17: 1612 | B17: Land Rights (Formally known as Account 1906) | I17: 0 | J17: =IF(H17=0,0,G17/H17) -> 0 | L17: 0
A18: 1805 | B18: Land | I18: 0 | J18: 0 | L18: 0
A19: 1808 | B19: Buildings | I19: 0 | J19: 0 | L19: 0
A20: 1810 | B20: Leasehold Improvements | I20: 0 | J20: 0 | L20: 0
A21: 1815 | B21: Transformer Station Equipment >50 kV | I21: 0 | J21: 0 | L21: 0
A22: 1820 | B22: Distribution Station Equipment <50 kV | I22: 0 | J22: 0 | L22: 0
A23: 1825 | B23: Storage Battery Equipment | I23: 0 | J23: 0 | L23: 0
A24: 1830 | B24: Poles, Towers & Fixtures | I24: 0 | J24: 0 | L24: 0
A25: 1835 | B25: Overhead Conductors & Devices | I25: 0 | J25: 0 | L25: 0
A26: 1840 | B26: Underground Conduit | I26: 0 | J26: 0 | L26: 0
A27: 1845 | B27: Underground Conductors & Devices | I27: 0 | J27: 0 | L27: 0
A28: 1850 | B28: Line Transformers | I28: 0 | J28: 0 | L28: 0
A29: 1855 | B29: Services (Overhead & Underground) | I29: 0 | J29: 0 | L29: 0
A30: 1860 | B30: Meters | I30: 0 | J30: 0 | L30: 0
A31: 1860 | B31: Meters (Smart Meters) | I31: 0 | J31: 0 | L31: 0
A32: 1905 | B32: Land | I32: 0 | J32: 0 | L32: 0
A33: 1908 | B33: Buildings & Fixtures | I33: 0 | J33: 0 | L33: 0
A34: 1910 | B34: Leasehold Improvements | I34: 0 | J34: 0 | L34: 0
A35: 1915 | B35: Office Furniture & Equipment (10 years) | I35: 0 | J35: 0 | L35: 0
A36: 1915 | B36: Office Furniture & Equipment (5 years) | I36: 0 | J36: 0 | L36: 0
A37: 1920 | B37: Computer Equipment - Hardware | I37: 0 | J37: 0 | L37: 0
A38: 1920 | B38: Computer Equip.-Hardware(Post Mar. 22/04) | I38: 0 | J38: 0 | L38: 0
A39: 1920 | B39: Computer Equip.-Hardware(Post Mar. 19/07) | I39: 0 | J39: 0 | L39: 0
A40: 1930 | B40: Transportation Equipment | I40: 0 | J40: 0 | L40: 0
A41: 1935 | B41: Stores Equipment | I41: 0 | J41: 0 | L41: 0
A42: 1940 | B42: Tools, Shop & Garage Equipment | I42: 0 | J42: 0 | L42: 0
A43: 1945 | B43: Measurement & Testing Equipment | I43: 0 | J43: 0 | L43: 0
A44: 1950 | B44: Power Operated Equipment | I44: 0 | J44: 0 | L44: 0
A45: 1955 | B45: Communications Equipment | I45: 0 | J45: 0 | L45: 0
A46: 1955 | B46: Communication Equipment (Smart Meters) | I46: 0 | J46: 0 | L46: 0
A47: 1960 | B47: Miscellaneous Equipment | I47: 0 | J47: 0 | L47: 0
A48: 1970 | B48: Load Management Controls Customer Premises | I48: 0 | J48: 0 | L48: 0
A49: 1975 | B49: Load Management Controls Utility Premises | I49: 0 | J49: 0 | L49: 0
A50: 1980 | B50: System Supervisor Equipment | I50: 0 | J50: 0 | L50: 0
A51: 1985 | B51: Miscellaneous Fixed Assets | I51: 0 | J51: 0 | L51: 0
A52: 1990 | B52: Other Tangible Property | I52: 0 | J52: 0 | L52: 0
A53: 1995 | B53: Contributions & Grants | I53: 0 | J53: 0 | L53: 0
A54: etc. | I54: 0 | J54: 0 | L54: 0
I55: 0 | J55: 0 | L55: 0
B56: Total | J56: =SUM(J16:J55) -> 0 | K56: =SUM(K16:K55) -> 0 | L56: =SUM(L16:L55) -> 0
A58: Notes:
A60: 1 | B60: Board policy of the "half-year" rule - the applicant must ensure that additions in the year attract a half-year depreciation expense in the first year. Deviations from this standard practice must be supported in the application.
A61: 2 | B61: The applicant must provide an explanation of material variances in evidence.
A63: General | B63: Applicants must provide a breakdown of depreciation and amortization expense in the above format for all relevant accounts. Asset Retirement Obligations (AROs), depreciation and accretion expense should be disclosed separately consistent with the Notes of historical Audited Financial Statements.

Sheet App.2-CG_MIFRS_DepExp_2012
N1: File Number: | O1: =EBNUMBER -> EB-2014-0113
N2: Exhibit: | O2: 2
N3: Tab: | O3: 2
N4: Schedule: | O4: 2
N5: Page:
N7: Date: | O7: 2015-04-25
A9: Appendix 2-CG N/A
A10: Depreciation and Amortization Expense
A11: Assumes the applicant adopted IFRS for financial reporting purposes January 1, 2013
C12: Year | D12: 2012 | E12: MIFRS
A14: Account | B14: Description | C14: Opening NBV as at Jan 1, 2012 5 | D14: Additions | E14: Average Remaining Life of Opening NBV 4 | F14: Years (new additions only) 3 | G14: Depreciation Rate on New Additions | H14: Depreciation Expense on Opening NBV | I14: Depreciation Expense on Additions 1 | J14: 2012 Depreciation Expense | K14: 2012 Depreciation Expense per Appendix 2-B Fixed Assets, Column K (l) | L14: Variance 2 | M14: Depreciation Expense on 2012 Full Year Additions | N14: Less Depreciation Expense on Assets Fully Depreciated during the year (o) | O14: 2012 Full Year Depreciation 6
C15: (a) | D15: (d) | E15: (i) | F15: (f) | G15: (g) = 1 / (f) | H15: (j) = (a) / (i) | I15: (h)=((d)*0.5)/(f) | J15: (k) = (j) + (h) | L15: (m) = (k) - (l) | M15: (n) = (d)/(f) | O15: (p) = (j) + (n) - (o)
A16: 1611 | B16: Computer Software (Formally known as Account 1925) | C16: =+'App.2-CF_CGAAP_DepExp_2012'!C16 -> 0 | D16: =+'App.2-CF_CGAAP_DepExp_2012'!F16 -> 0 | E16: =+'App.2-CB_MIFRS_DepExp_2011'!F16 -> 9 | F16: =+'App.2-CC_MIFRS_DepExp_2012'!E16 -> 5 | G16: =IF(F16=0,0,1/F16) -> 0.2 | H16: =IF(E16=0,0,+C16/E16) -> 0 | I16: =IF(F16=0,0,+(D16*0.5)/F16) -> 0 | J16: =IF(ISERROR(+H16+I16), 0, +H16+I16) -> 0 | L16: =IF(ISERROR(+J16-K16), 0, +J16-K16) -> 0 | M16: =IF(F16=0,0,+(D16)/F16) -> 0 | O16: =IF(ISERROR(+M16+H16-N16), 0, +M16+H16-N16) -> 0
A17: 1612 | B17: Land Rights (Formally known as Account 1906) | C17: =+'App.2-CF_CGAAP_DepExp_2012'!C17 -> 0 | D17: =+'App.2-CF_CGAAP_DepExp_2012'!F17 -> 0 | E17: =+'App.2-CB_MIFRS_DepExp_2011'!F17 -> 0 | F17: =+'App.2-CC_MIFRS_DepExp_2012'!E17 -> 0 | G17: 0 | H17: 0 | I17: 0 | J17: 0 | L17: 0 | M17: 0 | O17: =IF(ISERROR(+M17+H17-N17), 0, +M17+H17-N17) -> 0
A18: 1805 | B18: Land | C18: =+'App.2-CF_CGAAP_DepExp_2012'!C18 -> 0 | D18: =+'App.2-CF_CGAAP_DepExp_2012'!F18 -> 0 | E18: =+'App.2-CB_MIFRS_DepExp_2011'!F18 -> 0 | F18: =+'App.2-CC_MIFRS_DepExp_2012'!E18 -> 0 | G18: 0 | H18: 0 | I18: 0 | J18: 0 | L18: 0 | M18: 0 | O18: 0
A19: 1808 | B19: Buildings | C19: =+'App.2-CF_CGAAP_DepExp_2012'!C19 -> 0 | D19: =+'App.2-CF_CGAAP_DepExp_2012'!F19 -> 0 | E19: =+'App.2-CB_MIFRS_DepExp_2011'!F19 -> 0 | F19: =+'App.2-CC_MIFRS_DepExp_2012'!E19 -> 0 | G19: 0 | H19: 0 | I19: 0 | J19: 0 | L19: 0 | M19: 0 | O19: 0
A20: 1810 | B20: Leasehold Improvements | C20: =+'App.2-CF_CGAAP_DepExp_2012'!C20 -> 0 | D20: =+'App.2-CF_CGAAP_DepExp_2012'!F20 -> 0 | E20: =+'App.2-CB_MIFRS_DepExp_2011'!F20 -> 0 | F20: =+'App.2-CC_MIFRS_DepExp_2012'!E20 -> 0 | G20: 0 | H20: 0 | I20: 0 | J20: 0 | L20: 0 | M20: 0 | O20: 0
A21: 1815 | B21: Transformer Station Equipment >50 kV | C21: =+'App.2-CF_CGAAP_DepExp_2012'!C21 -> 0 | D21: =+'App.2-CF_CGAAP_DepExp_2012'!F21 -> 0 | E21: =+'App.2-CB_MIFRS_DepExp_2011'!F21 -> 0 | F21: =+'App.2-CC_MIFRS_DepExp_2012'!E21 -> 0 | G21: 0 | H21: 0 | I21: 0 | J21: 0 | L21: 0 | M21: 0 | O21: 0
A22: 1820 | B22: Distribution Station Equipment <50 kV | C22: =+'App.2-CF_CGAAP_DepExp_2012'!C22 -> 0 | D22: =+'App.2-CF_CGAAP_DepExp_2012'!F22 -> 0 | G22: 0 | H22: 0 | I22: 0 | J22: 0 | L22: 0 | M22: 0 | O22: 0
A23: 1825 | B23: Storage Battery Equipment | C23: =+'App.2-CF_CGAAP_DepExp_2012'!C23 -> 0 | D23: =+'App.2-CF_CGAAP_DepExp_2012'!F23 -> 0 | G23: 0 | H23: 0 | I23: 0 | J23: 0 | L23: 0 | M23: 0 | O23: 0
A24: 1830 | B24: Poles, Towers & Fixtures | C24: =+'App.2-CF_CGAAP_DepExp_2012'!C24 -> 0 | D24: =+'App.2-CF_CGAAP_DepExp_2012'!F24 -> 0 | G24: 0 | H24: 0 | I24: 0 | J24: 0 | L24: 0 | M24: 0 | O24: 0
A25: 1835 | B25: Overhead Conductors & Devices | C25: =+'App.2-CF_CGAAP_DepExp_2012'!C25 -> 0 | D25: =+'App.2-CF_CGAAP_DepExp_2012'!F25 -> 0 | G25: 0 | H25: 0 | I25: 0 | J25: 0 | L25: 0 | M25: 0 | O25: 0
A26: 1840 | B26: Underground Conduit | C26: =+'App.2-CF_CGAAP_DepExp_2012'!C26 -> 0 | D26: =+'App.2-CF_CGAAP_DepExp_2012'!F26 -> 0 | G26: 0 | H26: 0 | I26: 0 | J26: 0 | L26: 0 | M26: 0 | O26: 0
A27: 1845 | B27: Underground Conductors & Devices | C27: =+'App.2-CF_CGAAP_DepExp_2012'!C27 -> 0 | D27: =+'App.2-CF_CGAAP_DepExp_2012'!F27 -> 0 | G27: 0 | H27: 0 | I27: 0 | J27: 0 | L27: 0 | M27: 0 | O27: 0
A28: 1850 | B28: Line Transformers | C28: =+'App.2-CF_CGAAP_DepExp_2012'!C28 -> 0 | D28: =+'App.2-CF_CGAAP_DepExp_2012'!F28 -> 0 | G28: 0 | H28: 0 | I28: 0 | J28: 0 | L28: 0 | M28: 0 | O28: 0
A29: 1855 | B29: Services (Overhead & Underground) | C29: =+'App.2-CF_CGAAP_DepExp_2012'!C29 -> 0 | D29: =+'App.2-CF_CGAAP_DepExp_2012'!F29 -> 0 | G29: 0 | H29: 0 | I29: 0 | J29: 0 | L29: 0 | M29: 0 | O29: 0
A30: 1860 | B30: Meters | C30: =+'App.2-CF_CGAAP_DepExp_2012'!C30 -> 0 | D30: =+'App.2-CF_CGAAP_DepExp_2012'!F30 -> 0 | G30: 0 | H30: 0 | I30: 0 | J30: 0 | L30: 0 | M30: 0 | O30: 0
A31: 1860 | B31: Meters (Smart Meters) | C31: =+'App.2-CF_CGAAP_DepExp_2012'!C31 -> 0 | D31: =+'App.2-CF_CGAAP_DepExp_2012'!F31 -> 0 | G31: 0 | H31: 0 | I31: 0 | J31: 0 | L31: 0 | M31: 0 | O31: 0
A32: 1905 | B32: Land | C32: =+'App.2-CF_CGAAP_DepExp_2012'!C32 -> 0 | D32: =+'App.2-CF_CGAAP_DepExp_2012'!F32 -> 0 | G32: 0 | H32: 0 | I32: 0 | J32: 0 | L32: 0 | M32: 0 | O32: 0
A33: 1908 | B33: Buildings & Fixtures | C33: =+'App.2-CF_CGAAP_DepExp_2012'!C33 -> 0 | D33: =+'App.2-CF_CGAAP_DepExp_2012'!F33 -> 0 | G33: 0 | H33: 0 | I33: 0 | J33: 0 | L33: 0 | M33: 0 | O33: 0
A34: 1910 | B34: Leasehold Improvements | C34: =+'App.2-CF_CGAAP_DepExp_2012'!C34 -> 0 | D34: =+'App.2-CF_CGAAP_DepExp_2012'!F34 -> 0 | G34: 0 | H34: 0 | I34: 0 | J34: 0 | L34: 0 | M34: 0 | O34: 0
A35: 1915 | B35: Office Furniture & Equipment (10 years) | C35: =+'App.2-CF_CGAAP_DepExp_2012'!C35 -> 0 | D35: =+'App.2-CF_CGAAP_DepExp_2012'!F35 -> 0 | G35: 0 | H35: 0 | I35: 0 | J35: 0 | L35: 0 | M35: 0 | O35: 0
A36: 1915 | B36: Office Furniture & Equipment (5 years) | C36: =+'App.2-CF_CGAAP_DepExp_2012'!C36 -> 0 | D36: =+'App.2-CF_CGAAP_DepExp_2012'!F36 -> 0 | G36: 0 | H36: 0 | I36: 0 | J36: 0 | L36: 0 | M36: 0 | O36: 0
A37: 1920 | B37: Computer Equipment - Hardware | C37: =+'App.2-CF_CGAAP_DepExp_2012'!C37 -> 0 | D37: =+'App.2-CF_CGAAP_DepExp_2012'!F37 -> 0 | G37: 0 | H37: 0 | I37: 0 | J37: 0 | L37: 0 | M37: 0 | O37: 0
A38: 1920 | B38: Computer Equip.-Hardware(Post Mar. 22/04) | C38: =+'App.2-CF_CGAAP_DepExp_2012'!C38 -> 0 | D38: =+'App.2-CF_CGAAP_DepExp_2012'!F38 -> 0 | G38: 0 | H38: 0 | I38: 0 | J38: 0 | L38: 0 | M38: 0 | O38: 0
A39: 1920 | B39: Computer Equip.-Hardware(Post Mar. 19/07) | C39: =+'App.2-CF_CGAAP_DepExp_2012'!C39 -> 0 | D39: =+'App.2-CF_CGAAP_DepExp_2012'!F39 -> 0 | G39: 0 | H39: 0 | I39: 0 | J39: 0 | L39: 0 | M39: 0 | O39: 0
A40: 1930 | B40: Transportation Equipment | C40: =+'App.2-CF_CGAAP_DepExp_2012'!C40 -> 0 | D40: =+'App.2-CF_CGAAP_DepExp_2012'!F40 -> 0 | G40: 0 | H40: 0 | I40: 0 | J40: 0 | L40: 0 | M40: 0 | O40: 0
A41: 1935 | B41: Stores Equipment | C41: =+'App.2-CF_CGAAP_DepExp_2012'!C41 -> 0 | D41: =+'App.2-CF_CGAAP_DepExp_2012'!F41 -> 0 | G41: 0 | H41: 0 | I41: 0 | J41: 0 | L41: 0 | M41: 0 | O41: 0
A42: 1940 | B42: Tools, Shop & Garage Equipment | C42: =+'App.2-CF_CGAAP_DepExp_2012'!C42 -> 0 | D42: =+'App.2-CF_CGAAP_DepExp_2012'!F42 -> 0 | G42: 0 | H42: 0 | I42: 0 | J42: 0 | L42: 0 | M42: 0 | O42: 0
A43: 1945 | B43: Measurement & Testing Equipment | C43: =+'App.2-CF_CGAAP_DepExp_2012'!C43 -> 0 | D43: =+'App.2-CF_CGAAP_DepExp_2012'!F43 -> 0 | G43: 0 | H43: 0 | I43: 0 | J43: 0 | L43: 0 | M43: 0 | O43: 0
A44: 1950 | B44: Power Operated Equipment | C44: =+'App.2-CF_CGAAP_DepExp_2012'!C44 -> 0 | D44: =+'App.2-CF_CGAAP_DepExp_2012'!F44 -> 0 | G44: 0 | H44: 0 | I44: 0 | J44: 0 | L44: 0 | M44: 0 | O44: 0
A45: 1955 | B45: Communications Equipment | C45: =+'App.2-CF_CGAAP_DepExp_2012'!C45 -> 0 | D45: =+'App.2-CF_CGAAP_DepExp_2012'!F45 -> 0 | G45: 0 | H45: 0 | I45: 0 | J45: 0 | L45: 0 | M45: 0 | O45: 0
A46: 1955 | B46: Communication Equipment (Smart Meters) | C46: =+'App.2-CF_CGAAP_DepExp_2012'!C46 -> 0 | D46: =+'App.2-CF_CGAAP_DepExp_2012'!F46 -> 0 | G46: 0 | H46: 0 | I46: 0 | J46: 0 | L46: 0 | M46: 0 | O46: 0
A47: 1960 | B47: Miscellaneous Equipment | C47: =+'App.2-CF_CGAAP_DepExp_2012'!C47 -> 0 | D47: =+'App.2-CF_CGAAP_DepExp_2012'!F47 -> 0 | G47: 0 | H47: 0 | I47: 0 | J47: 0 | L47: 0 | M47: 0 | O47: 0
A48: 1970 | B48: Load Management Controls Customer Premises | C48: =+'App.2-CF_CGAAP_DepExp_2012'!C48 -> 0 | D48: =+'App.2-CF_CGAAP_DepExp_2012'!F48 -> 0 | G48: 0 | H48: 0 | I48: 0 | J48: 0 | L48: 0 | M48: 0 | O48: 0
A49: 1975 | B49: Load Management Controls Utility Premises | C49: =+'App.2-CF_CGAAP_DepExp_2012'!C49 -> 0 | D49: =+'App.2-CF_CGAAP_DepExp_2012'!F49 -> 0 | G49: 0 | H49: 0 | I49: 0 | J49: 0 | L49: 0 | M49: 0 | O49: 0
A50: 1980 | B50: System Supervisor Equipment | C50: =+'App.2-CF_CGAAP_DepExp_2012'!C50 -> 0 | D50: =+'App.2-CF_CGAAP_DepExp_2012'!F50 -> 0 | G50: 0 | H50: 0 | I50: 0 | J50: 0 | L50: 0 | M50: 0 | O50: 0
A51: 1985 | B51: Miscellaneous Fixed Assets | C51: =+'App.2-CF_CGAAP_DepExp_2012'!C51 -> 0 | D51: =+'App.2-CF_CGAAP_DepExp_2012'!F51 -> 0 | G51: 0 | H51: 0 | I51: 0 | J51: 0 | L51: 0 | M51: 0 | O51: 0
A52: 1990 | B52: Other Tangible Property | C52: =+'App.2-CF_CGAAP_DepExp_2012'!C52 -> 0 | D52: =+'App.2-CF_CGAAP_DepExp_2012'!F52 -> 0 | G52: 0 | H52: 0 | I52: 0 | J52: 0 | L52: 0 | M52: 0 | O52: 0
A53: 1995 | B53: Contributions & Grants | C53: =+'App.2-CF_CGAAP_DepExp_2012'!C53 -> 0 | D53: =+'App.2-CF_CGAAP_DepExp_2012'!F53 -> 0 | G53: 0 | H53: 0 | I53: 0 | J53: 0 | L53: 0 | M53: 0 | O53: 0
A54: etc. | G54: 0 | H54: 0 | I54: 0 | J54: 0 | L54: 0 | M54: 0 | O54: 0
G55: 0 | H55: 0 | I55: 0 | J55: 0 | L55: 0 | M55: 0 | O55: 0
B56: Total | C56: =SUM(C16:C55) -> 0 | D56: =SUM(D16:D55) -> 0 | H56: =SUM(H16:H55) -> 0 | I56: 0 | J56: 0 | K56: 0 | L56: 0 | M56: 0 | N56: =SUM(N16:N55) -> 0 | O56: 0
B57: Depreciation exp. adj. from gain or loss on the retirement of assets (pool of like assets) | J57: 0
B58: Total | J58: =+J56+J57 -> 0
A59: Notes:
A61: 1 | B61: Board policy of the "half-year" rule - the applicant must ensure that additions in the year attract a half-year depreciation expense in the first year. Deviations from this standard practice must be supported in the application.
A62: 2 | B62: The applicant must provide an explanation of material variances in evidence.
A63: 3 | B63: The applicant should ensure that the years for new additions of assets are the asset useful lives determined by management in accordance with IFRS.
A64: 4 | B64: A recalculation should be performed to determine the average remaining life of opening balance of assets (i.e. excluding 2012 additions) under IFRS. For example, Asset A had a useful life of 20 years under CGAAP. On January 1, 2012, the date of transition, Asset A was 3 years depreciated. As a result, Asset A would have a remaining service life of 17 years (20 years less 3 years) under CGAAP as of January 1, 2012. Due to the transition to IFRS, management re-assessed the asset useful lives under IFRS principles and concluded that the revised useful life of Asset A is now 30 years. Therefore, the average remaining useful life of opening balance of Asset A is determined to be 27 years (30 years less 3 years) under IFRS as of January 1, 2012.
A65: 5 | B65: NBV must exclude assets still on the books but which have been fully amortized or depreciated.
A66: 6 | B66: This column refers to the calculated full year depreciation but excludes the depreciation expense on assets fully depreciated during the year. This column is used for the purpose of calculating depreciation expense in the following year on the next worksheet.
A68: General: | B68: Applicants must provide a breakdown of depreciation and amortization expense in the above format for all relevant accounts. Asset Retirement Obligations (AROs), depreciation and accretion expense should be disclosed separately consistent with the Notes of historical Audited Financial Statements.

Sheet App.2-CH_MIFRS_DepExp_2013
J1: File Number: | K1: =EBNUMBER -> EB-2014-0113
J2: Exhibit: | K2: 2
J3: Tab: | K3: 2
J4: Schedule: | K4: 2
J5: Page:
J7: Date: | K7: 2015-04-25
A9: Appendix 2-CH N/A
A10: Depreciation and Amortization Expense
A11: Assumes the applicant adopted IFRS for financial reporting purposes January 1, 2013
C12: 2013 | D12: MIFRS
A14: Account | B14: Description | C14: Additions | D14: Years (new additions only) | E14: Depreciation Rate on New Additions | F14: 2013 Depreciation Expense 1 | G14: 2013 Depreciation Expense per Apppendix 2-B Fixed Assets, Column K (l) | H14: Variance 2 | I14: Depreciation Expense on 2013 Full Year Additions | J14: Less Depreciation Expense on Assets Fully Depreciated during the year (o) | K14: 2013 Full Year Depreciation 3
C15: (d) | D15: (f) | E15: (g) = 1 / (f) | F15: (h)=2012 Full Year Deprecation + ((d)*0.5)/(f) | H15: (m) = (h) - (l) | I15: (n)=((d))/(f) | K15: (p) = 2012 Full Year Depreciation + (n) - (o)
A16: 1611 | B16: Computer Software (Formally known as Account 1925) | E16: =IF(D16=0,0,1/D16) -> 0 | F16: =IF(D16=0,+'App.2-CG_MIFRS_DepExp_2012'!O16,+'App.2-CG_MIFRS_DepExp_2012'!O16+((C16*0.5)/D16)) -> 0 | H16: =IF(ISERROR(+F16-G16), 0, +F16-G16) -> 0 | I16: =IF(D16=0,0,+(C16)/D16) -> 0 | K16: =IF(ISERROR(+I16+'App.2-CG_MIFRS_DepExp_2012'!O16-J16), 0, +I16+'App.2-CG_MIFRS_DepExp_2012'!O16-J16) -> 0
A17: 1612 | B17: Land Rights (Formally known as Account 1906) | E17: 0 | F17: =IF(D17=0,+'App.2-CG_MIFRS_DepExp_2012'!O17,+'App.2-CG_MIFRS_DepExp_2012'!O17+((C17*0.5)/D17)) -> 0 | H17: 0 | I17: 0 | K17: =IF(ISERROR(+I17+'App.2-CG_MIFRS_DepExp_2012'!O17-J17), 0, +I17+'App.2-CG_MIFRS_DepExp_2012'!O17-J17) -> 0
A18: 1805 | B18: Land | E18: 0 | F18: =IF(D18=0,+'App.2-CG_MIFRS_DepExp_2012'!O18,+'App.2-CG_MIFRS_DepExp_2012'!O18+((C18*0.5)/D18)) -> 0 | H18: 0 | I18: 0 | K18: =IF(ISERROR(+I18+'App.2-CG_MIFRS_DepExp_2012'!O18-J18), 0, +I18+'App.2-CG_MIFRS_DepExp_2012'!O18-J18) -> 0
A19: 1808 | B19: Buildings | E19: 0 | F19: =IF(D19=0,+'App.2-CG_MIFRS_DepExp_2012'!O19,+'App.2-CG_MIFRS_DepExp_2012'!O19+((C19*0.5)/D19)) -> 0 | H19: 0 | I19: 0 | K19: =IF(ISERROR(+I19+'App.2-CG_MIFRS_DepExp_2012'!O19-J19), 0, +I19+'App.2-CG_MIFRS_DepExp_2012'!O19-J19) -> 0
A20: 1810 | B20: Leasehold Improvements | E20: 0 | F20: =IF(D20=0,+'App.2-CG_MIFRS_DepExp_2012'!O20,+'App.2-CG_MIFRS_DepExp_2012'!O20+((C20*0.5)/D20)) -> 0 | H20: 0 | I20: 0 | K20: =IF(ISERROR(+I20+'App.2-CG_MIFRS_DepExp_2012'!O20-J20), 0, +I20+'App.2-CG_MIFRS_DepExp_2012'!O20-J20) -> 0
A21: 1815 | B21: Transformer Station Equipment >50 kV | E21: 0 | F21: =IF(D21=0,+'App.2-CG_MIFRS_DepExp_2012'!O21,+'App.2-CG_MIFRS_DepExp_2012'!O21+((C21*0.5)/D21)) -> 0 | H21: 0 | I21: 0 | K21: =IF(ISERROR(+I21+'App.2-CG_MIFRS_DepExp_2012'!O21-J21), 0, +I21+'App.2-CG_MIFRS_DepExp_2012'!O21-J21) -> 0
A22: 1820 | B22: Distribution Station Equipment <50 kV | E22: 0 | F22: =IF(D22=0,+'App.2-CG_MIFRS_DepExp_2012'!O22,+'App.2-CG_MIFRS_DepExp_2012'!O22+((C22*0.5)/D22)) -> 0 | H22: 0 | I22: 0 | K22: =IF(ISERROR(+I22+'App.2-CG_MIFRS_DepExp_2012'!O22-J22), 0, +I22+'App.2-CG_MIFRS_DepExp_2012'!O22-J22) -> 0
A23: 1825 | B23: Storage Battery Equipment | E23: 0 | F23: =IF(D23=0,+'App.2-CG_MIFRS_DepExp_2012'!O23,+'App.2-CG_MIFRS_DepExp_2012'!O23+((C23*0.5)/D23)) -> 0 | H23: 0 | I23: 0 | K23: =IF(ISERROR(+I23+'App.2-CG_MIFRS_DepExp_2012'!O23-J23), 0, +I23+'App.2-CG_MIFRS_DepExp_2012'!O23-J23) -> 0
A24: 1830 | B24: Poles, Towers & Fixtures | E24: 0 | F24: =IF(D24=0,+'App.2-CG_MIFRS_DepExp_2012'!O24,+'App.2-CG_MIFRS_DepExp_2012'!O24+((C24*0.5)/D24)) -> 0 | H24: 0 | I24: 0 | K24: =IF(ISERROR(+I24+'App.2-CG_MIFRS_DepExp_2012'!O24-J24), 0, +I24+'App.2-CG_MIFRS_DepExp_2012'!O24-J24) -> 0
A25: 1835 | B25: Overhead Conductors & Devices | E25: 0 | F25: =IF(D25=0,+'App.2-CG_MIFRS_DepExp_2012'!O25,+'App.2-CG_MIFRS_DepExp_2012'!O25+((C25*0.5)/D25)) -> 0 | H25: 0 | I25: 0 | K25: =IF(ISERROR(+I25+'App.2-CG_MIFRS_DepExp_2012'!O25-J25), 0, +I25+'App.2-CG_MIFRS_DepExp_2012'!O25-J25) -> 0
A26: 1840 | B26: Underground Conduit | E26: 0 | F26: =IF(D26=0,+'App.2-CG_MIFRS_DepExp_2012'!O26,+'App.2-CG_MIFRS_DepExp_2012'!O26+((C26*0.5)/D26)) -> 0 | H26: 0 | I26: 0 | K26: =IF(ISERROR(+I26+'App.2-CG_MIFRS_DepExp_2012'!O26-J26), 0, +I26+'App.2-CG_MIFRS_DepExp_2012'!O26-J26) -> 0
A27: 1845 | B27: Underground Conductors & Devices | E27: 0 | F27: =IF(D27=0,+'App.2-CG_MIFRS_DepExp_2012'!O27,+'App.2-CG_MIFRS_DepExp_2012'!O27+((C27*0.5)/D27)) -> 0 | H27: 0 | I27: 0 | K27: =IF(ISERROR(+I27+'App.2-CG_MIFRS_DepExp_2012'!O27-J27), 0, +I27+'App.2-CG_MIFRS_DepExp_2012'!O27-J27) -> 0
A28: 1850 | B28: Line Transformers | E28: 0 | F28: =IF(D28=0,+'App.2-CG_MIFRS_DepExp_2012'!O28,+'App.2-CG_MIFRS_DepExp_2012'!O28+((C28*0.5)/D28)) -> 0 | H28: 0 | I28: 0 | K28: =IF(ISERROR(+I28+'App.2-CG_MIFRS_DepExp_2012'!O28-J28), 0, +I28+'App.2-CG_MIFRS_DepExp_2012'!O28-J28) -> 0
A29: 1855 | B29: Services (Overhead & Underground) | E29: 0 | F29: =IF(D29=0,+'App.2-CG_MIFRS_DepExp_2012'!O29,+'App.2-CG_MIFRS_DepExp_2012'!O29+((C29*0.5)/D29)) -> 0 | H29: 0 | I29: 0 | K29: =IF(ISERROR(+I29+'App.2-CG_MIFRS_DepExp_2012'!O29-J29), 0, +I29+'App.2-CG_MIFRS_DepExp_2012'!O29-J29) -> 0
A30: 1860 | B30: Meters | E30: 0 | F30: =IF(D30=0,+'App.2-CG_MIFRS_DepExp_2012'!O30,+'App.2-CG_MIFRS_DepExp_2012'!O30+((C30*0.5)/D30)) -> 0 | H30: 0 | I30: 0 | K30: =IF(ISERROR(+I30+'App.2-CG_MIFRS_DepExp_2012'!O30-J30), 0, +I30+'App.2-CG_MIFRS_DepExp_2012'!O30-J30) -> 0
A31: 1860 | B31: Meters (Smart Meters) | E31: 0 | F31: =IF(D31=0,+'App.2-CG_MIFRS_DepExp_2012'!O31,+'App.2-CG_MIFRS_DepExp_2012'!O31+((C31*0.5)/D31)) -> 0 | H31: 0 | I31: 0 | K31: =IF(ISERROR(+I31+'App.2-CG_MIFRS_DepExp_2012'!O31-J31), 0, +I31+'App.2-CG_MIFRS_DepExp_2012'!O31-J31) -> 0
A32: 1905 | B32: Land | E32: 0 | F32: =IF(D32=0,+'App.2-CG_MIFRS_DepExp_2012'!O32,+'App.2-CG_MIFRS_DepExp_2012'!O32+((C32*0.5)/D32)) -> 0 | H32: 0 | I32: 0 | K32: =IF(ISERROR(+I32+'App.2-CG_MIFRS_DepExp_2012'!O32-J32), 0, +I32+'App.2-CG_MIFRS_DepExp_2012'!O32-J32) -> 0
A33: 1908 | B33: Buildings & Fixtures | E33: 0 | F33: =IF(D33=0,+'App.2-CG_MIFRS_DepExp_2012'!O33,+'App.2-CG_MIFRS_DepExp_2012'!O33+((C33*0.5)/D33)) -> 0 | H33: 0 | I33: 0 | K33: =IF(ISERROR(+I33+'App.2-CG_MIFRS_DepExp_2012'!O33-J33), 0, +I33+'App.2-CG_MIFRS_DepExp_2012'!O33-J33) -> 0
A34: 1910 | B34: Leasehold Improvements | E34: 0 | F34: =IF(D34=0,+'App.2-CG_MIFRS_DepExp_2012'!O34,+'App.2-CG_MIFRS_DepExp_2012'!O34+((C34*0.5)/D34)) -> 0 | H34: 0 | I34: 0 | K34: =IF(ISERROR(+I34+'App.2-CG_MIFRS_DepExp_2012'!O34-J34), 0, +I34+'App.2-CG_MIFRS_DepExp_2012'!O34-J34) -> 0
A35: 1915 | B35: Office Furniture & Equipment (10 years) | E35: 0 | F35: =IF(D35=0,+'App.2-CG_MIFRS_DepExp_2012'!O35,+'App.2-CG_MIFRS_DepExp_2012'!O35+((C35*0.5)/D35)) -> 0 | H35: 0 | I35: 0 | K35: =IF(ISERROR(+I35+'App.2-CG_MIFRS_DepExp_2012'!O35-J35), 0, +I35+'App.2-CG_MIFRS_DepExp_2012'!O35-J35) -> 0
A36: 1915 | B36: Office Furniture & Equipment (5 years) | E36: 0 | F36: =IF(D36=0,+'App.2-CG_MIFRS_DepExp_2012'!O36,+'App.2-CG_MIFRS_DepExp_2012'!O36+((C36*0.5)/D36)) -> 0 | H36: 0 | I36: 0 | K36: =IF(ISERROR(+I36+'App.2-CG_MIFRS_DepExp_2012'!O36-J36), 0, +I36+'App.2-CG_MIFRS_DepExp_2012'!O36-J36) -> 0
A37: 1920 | B37: Computer Equipment - Hardware | E37: 0 | F37: =IF(D37=0,+'App.2-CG_MIFRS_DepExp_2012'!O37,+'App.2-CG_MIFRS_DepExp_2012'!O37+((C37*0.5)/D37)) -> 0 | H37: 0 | I37: 0 | K37: =IF(ISERROR(+I37+'App.2-CG_MIFRS_DepExp_2012'!O37-J37), 0, +I37+'App.2-CG_MIFRS_DepExp_2012'!O37-J37) -> 0
A38: 1920 | B38: Computer Equip.-Hardware(Post Mar. 22/04) | E38: 0 | F38: =IF(D38=0,+'App.2-CG_MIFRS_DepExp_2012'!O38,+'App.2-CG_MIFRS_DepExp_2012'!O38+((C38*0.5)/D38)) -> 0 | H38: 0 | I38: 0 | K38: =IF(ISERROR(+I38+'App.2-CG_MIFRS_DepExp_2012'!O38-J38), 0, +I38+'App.2-CG_MIFRS_DepExp_2012'!O38-J38) -> 0
A39: 1920 | B39: Computer Equip.-Hardware(Post Mar. 19/07) | E39: 0 | F39: =IF(D39=0,+'App.2-CG_MIFRS_DepExp_2012'!O39,+'App.2-CG_MIFRS_DepExp_2012'!O39+((C39*0.5)/D39)) -> 0 | H39: 0 | I39: 0 | K39: =IF(ISERROR(+I39+'App.2-CG_MIFRS_DepExp_2012'!O39-J39), 0, +I39+'App.2-CG_MIFRS_DepExp_2012'!O39-J39) -> 0
A40: 1930 | B40: Transportation Equipment | E40: 0 | F40: =IF(D40=0,+'App.2-CG_MIFRS_DepExp_2012'!O40,+'App.2-CG_MIFRS_DepExp_2012'!O40+((C40*0.5)/D40)) -> 0 | H40: 0 | I40: 0 | K40: =IF(ISERROR(+I40+'App.2-CG_MIFRS_DepExp_2012'!O40-J40), 0, +I40+'App.2-CG_MIFRS_DepExp_2012'!O40-J40) -> 0
A41: 1935 | B41: Stores Equipment | E41: 0 | F41: =IF(D41=0,+'App.2-CG_MIFRS_DepExp_2012'!O41,+'App.2-CG_MIFRS_DepExp_2012'!O41+((C41*0.5)/D41)) -> 0 | H41: 0 | I41: 0 | K41: =IF(ISERROR(+I41+'App.2-CG_MIFRS_DepExp_2012'!O41-J41), 0, +I41+'App.2-CG_MIFRS_DepExp_2012'!O41-J41) -> 0
A42: 1940 | B42: Tools, Shop & Garage Equipment | E42: 0 | F42: =IF(D42=0,+'App.2-CG_MIFRS_DepExp_2012'!O42,+'App.2-CG_MIFRS_DepExp_2012'!O42+((C42*0.5)/D42)) -> 0 | H42: 0 | I42: 0 | K42: =IF(ISERROR(+I42+'App.2-CG_MIFRS_DepExp_2012'!O42-J42), 0, +I42+'App.2-CG_MIFRS_DepExp_2012'!O42-J42) -> 0
A43: 1945 | B43: Measurement & Testing Equipment | E43: 0 | F43: =IF(D43=0,+'App.2-CG_MIFRS_DepExp_2012'!O43,+'App.2-CG_MIFRS_DepExp_2012'!O43+((C43*0.5)/D43)) -> 0 | H43: 0 | I43: 0 | K43: =IF(ISERROR(+I43+'App.2-CG_MIFRS_DepExp_2012'!O43-J43), 0, +I43+'App.2-CG_MIFRS_DepExp_2012'!O43-J43) -> 0
A44: 1950 | B44: Power Operated Equipment | E44: 0 | F44: =IF(D44=0,+'App.2-CG_MIFRS_DepExp_2012'!O44,+'App.2-CG_MIFRS_DepExp_2012'!O44+((C44*0.5)/D44)) -> 0 | H44: 0 | I44: 0 | K44: =IF(ISERROR(+I44+'App.2-CG_MIFRS_DepExp_2012'!O44-J44), 0, +I44+'App.2-CG_MIFRS_DepExp_2012'!O44-J44) -> 0
A45: 1955 | B45: Communications Equipment | E45: 0 | F45: =IF(D45=0,+'App.2-CG_MIFRS_DepExp_2012'!O45,+'App.2-CG_MIFRS_DepExp_2012'!O45+((C45*0.5)/D45)) -> 0 | H45: 0 | I45: 0 | K45: =IF(ISERROR(+I45+'App.2-CG_MIFRS_DepExp_2012'!O45-J45), 0, +I45+'App.2-CG_MIFRS_DepExp_2012'!O45-J45) -> 0
A46: 1955 | B46: Communication Equipment (Smart Meters) | E46: 0 | F46: =IF(D46=0,+'App.2-CG_MIFRS_DepExp_2012'!O46,+'App.2-CG_MIFRS_DepExp_2012'!O46+((C46*0.5)/D46)) -> 0 | H46: 0 | I46: 0 | K46: =IF(ISERROR(+I46+'App.2-CG_MIFRS_DepExp_2012'!O46-J46), 0, +I46+'App.2-CG_MIFRS_DepExp_2012'!O46-J46) -> 0
A47: 1960 | B47: Miscellaneous Equipment | E47: 0 | F47: =IF(D47=0,+'App.2-CG_MIFRS_DepExp_2012'!O47,+'App.2-CG_MIFRS_DepExp_2012'!O47+((C47*0.5)/D47)) -> 0 | H47: 0 | I47: 0 | K47: =IF(ISERROR(+I47+'App.2-CG_MIFRS_DepExp_2012'!O47-J47), 0, +I47+'App.2-CG_MIFRS_DepExp_2012'!O47-J47) -> 0
A48: 1970 | B48: Load Management Controls Customer Premises | E48: 0 | F48: =IF(D48=0,+'App.2-CG_MIFRS_DepExp_2012'!O48,+'App.2-CG_MIFRS_DepExp_2012'!O48+((C48*0.5)/D48)) -> 0 | H48: 0 | I48: 0 | K48: =IF(ISERROR(+I48+'App.2-CG_MIFRS_DepExp_2012'!O48-J48), 0, +I48+'App.2-CG_MIFRS_DepExp_2012'!O48-J48) -> 0
A49: 1975 | B49: Load Management Controls Utility Premises | E49: 0 | F49: =IF(D49=0,+'App.2-CG_MIFRS_DepExp_2012'!O49,+'App.2-CG_MIFRS_DepExp_2012'!O49+((C49*0.5)/D49)) -> 0 | H49: 0 | I49: 0 | K49: =IF(ISERROR(+I49+'App.2-CG_MIFRS_DepExp_2012'!O49-J49), 0, +I49+'App.2-CG_MIFRS_DepExp_2012'!O49-J49) -> 0
A50: 1980 | B50: System Supervisor Equipment | E50: 0 | F50: =IF(D50=0,+'App.2-CG_MIFRS_DepExp_2012'!O50,+'App.2-CG_MIFRS_DepExp_2012'!O50+((C50*0.5)/D50)) -> 0 | H50: 0 | I50: 0 | K50: =IF(ISERROR(+I50+'App.2-CG_MIFRS_DepExp_2012'!O50-J50), 0, +I50+'App.2-CG_MIFRS_DepExp_2012'!O50-J50) -> 0
A51: 1985 | B51: Miscellaneous Fixed Assets | E51: 0 | F51: =IF(D51=0,+'App.2-CG_MIFRS_DepExp_2012'!O51,+'App.2-CG_MIFRS_DepExp_2012'!O51+((C51*0.5)/D51)) -> 0 | H51: 0 | I51: 0 | K51: =IF(ISERROR(+I51+'App.2-CG_MIFRS_DepExp_2012'!O51-J51), 0, +I51+'App.2-CG_MIFRS_DepExp_2012'!O51-J51) -> 0
A52: 1990 | B52: Other Tangible Property | E52: 0 | F52: =IF(D52=0,+'App.2-CG_MIFRS_DepExp_2012'!O52,+'App.2-CG_MIFRS_DepExp_2012'!O52+((C52*0.5)/D52)) -> 0 | H52: 0 | I52: 0 | K52: =IF(ISERROR(+I52+'App.2-CG_MIFRS_DepExp_2012'!O52-J52), 0, +I52+'App.2-CG_MIFRS_DepExp_2012'!O52-J52) -> 0
A53: 1995 | B53: Contributions & Grants | E53: 0 | F53: =IF(D53=0,+'App.2-CG_MIFRS_DepExp_2012'!O53,+'App.2-CG_MIFRS_DepExp_2012'!O53+((C53*0.5)/D53)) -> 0 | H53: 0 | I53: 0 | K53: =IF(ISERROR(+I53+'App.2-CG_MIFRS_DepExp_2012'!O53-J53), 0, +I53+'App.2-CG_MIFRS_DepExp_2012'!O53-J53) -> 0
A54: etc. | E54: 0 | F54: =IF(D54=0,+'App.2-CG_MIFRS_DepExp_2012'!O54,+'App.2-CG_MIFRS_DepExp_2012'!O54+((C54*0.5)/D54)) -> 0 | H54: 0 | I54: 0 | K54: =IF(ISERROR(+I54+'App.2-CG_MIFRS_DepExp_2012'!O54-J54), 0, +I54+'App.2-CG_MIFRS_DepExp_2012'!O54-J54) -> 0
E55: 0 | F55: =IF(D55=0,+'App.2-CG_MIFRS_DepExp_2012'!O55,+'App.2-CG_MIFRS_DepExp_2012'!O55+((C55*0.5)/D55)) -> 0 | H55: 0 | I55: 0 | K55: =IF(ISERROR(+I55+'App.2-CG_MIFRS_DepExp_2012'!O55-J55), 0, +I55+'App.2-CG_MIFRS_DepExp_2012'!O55-J55) -> 0
B56: Total | C56: =SUM(C16:C55) -> 0 | F56: =SUM(F16:F55) -> 0 | G56: 0 | H56: 0 | I56: 0 | J56: 0 | K56: 0
B57: Depreciation exp. adj. from gain or loss on the retirement of assets (pool of like assets) | F57: 0
B58: Total | F58: =+F57+F56 -> 0
A59: Notes:
A60: 1 | B60: Board policy of the "half-year" rule - the applicant must ensure that additions in the year attract a half-year depreciation expense in the first year. Deviations from this standard practice must be supported in the application.
A61: 2 | B61: The applicant must provide an explanation of material variances in evidence.
A62: 3 | B62: This column refers to the calculated full year depreciation but excludes the depreciation expense on assets fully depreciated during the year. This column is used for the purpose of calculating depreciation expense in the following year on the next worksheet.
A64: General: | B64: Applicants must provide a breakdown of depreciation and amortization expense in the above format for all relevant accounts. Asset Retirement Obligations (AROs), depreciation and accretion expense should be disclosed separately consistent with the Notes of historical Audited Financial Statements.

Sheet App.2-CI_MIFRS_DepExp_2014
G1: File Number: | H1: =EBNUMBER -> EB-2014-0113
G2: Exhibit: | H2: 2
G3: Tab: | H3: 2
G4: Schedule: | H4: 2
G5: Page:
G7: Date: | H7: 2015-04-25
A9: Appendix 2-CI N/A
A10: Depreciation and Amortization Expense
A11: Assumes the applicant adopted IFRS for financial reporting purposes January 1, 2013
C12: 2014 | D12: MIFRS
A14: Account | B14: Description | C14: Additions | D14: Years (new additions only) | E14: Depreciation Rate on New Additions | F14: 2014 Depreciation Expense 1 | G14: 2014 Depreciation Expense per Appendix 2-B Fixed Assets, Column K (l) | H14: Variance 2
C15: (d) | D15: (f) | E15: (g) = 1 / (f) | F15: (h)=2013 Full Year Depreciation + ((d)*0.5)/(f) | H15: (m) = (h) - (l)
A16: 1611 | B16: Computer Software (Formally known as Account 1925) | E16: =IF(D16=0,0,1/D16) -> 0 | F16: =IF(D16=0,'App.2-CH_MIFRS_DepExp_2013'!K16,+'App.2-CH_MIFRS_DepExp_2013'!K16+((C16*0.5)/D16)) -> 0 | H16: =IF(ISERROR(+F16-G16), 0, +F16-G16) -> 0
A17: 1612 | B17: Land Rights (Formally known as Account 1906) | E17: 0 | F17: =IF(D17=0,'App.2-CH_MIFRS_DepExp_2013'!K17,+'App.2-CH_MIFRS_DepExp_2013'!K17+((C17*0.5)/D17)) -> 0 | H17: 0
A18: 1805 | B18: Land | E18: 0 | F18: =IF(D18=0,'App.2-CH_MIFRS_DepExp_2013'!K18,+'App.2-CH_MIFRS_DepExp_2013'!K18+((C18*0.5)/D18)) -> 0 | H18: 0
A19: 1808 | B19: Buildings | E19: 0 | F19: =IF(D19=0,'App.2-CH_MIFRS_DepExp_2013'!K19,+'App.2-CH_MIFRS_DepExp_2013'!K19+((C19*0.5)/D19)) -> 0 | H19: 0
A20: 1810 | B20: Leasehold Improvements | E20: 0 | F20: =IF(D20=0,'App.2-CH_MIFRS_DepExp_2013'!K20,+'App.2-CH_MIFRS_DepExp_2013'!K20+((C20*0.5)/D20)) -> 0 | H20: 0
A21: 1815 | B21: Transformer Station Equipment >50 kV | E21: 0 | F21: =IF(D21=0,'App.2-CH_MIFRS_DepExp_2013'!K21,+'App.2-CH_MIFRS_DepExp_2013'!K21+((C21*0.5)/D21)) -> 0 | H21: 0
A22: 1820 | B22: Distribution Station Equipment <50 kV | E22: 0 | F22: =IF(D22=0,'App.2-CH_MIFRS_DepExp_2013'!K22,+'App.2-CH_MIFRS_DepExp_2013'!K22+((C22*0.5)/D22)) -> 0 | H22: 0
A23: 1825 | B23: Storage Battery Equipment | E23: 0 | F23: =IF(D23=0,'App.2-CH_MIFRS_DepExp_2013'!K23,+'App.2-CH_MIFRS_DepExp_2013'!K23+((C23*0.5)/D23)) -> 0 | H23: 0
A24: 1830 | B24: Poles, Towers & Fixtures | E24: 0 | F24: =IF(D24=0,'App.2-CH_MIFRS_DepExp_2013'!K24,+'App.2-CH_MIFRS_DepExp_2013'!K24+((C24*0.5)/D24)) -> 0 | H24: 0
A25: 1835 | B25: Overhead Conductors & Devices | E25: 0 | F25: =IF(D25=0,'App.2-CH_MIFRS_DepExp_2013'!K25,+'App.2-CH_MIFRS_DepExp_2013'!K25+((C25*0.5)/D25)) -> 0 | H25: 0
A26: 1840 | B26: Underground Conduit | E26: 0 | F26: =IF(D26=0,'App.2-CH_MIFRS_DepExp_2013'!K26,+'App.2-CH_MIFRS_DepExp_2013'!K26+((C26*0.5)/D26)) -> 0 | H26: 0
A27: 1845 | B27: Underground Conductors & Devices | E27: 0 | F27: =IF(D27=0,'App.2-CH_MIFRS_DepExp_2013'!K27,+'App.2-CH_MIFRS_DepExp_2013'!K27+((C27*0.5)/D27)) -> 0 | H27: 0
A28: 1850 | B28: Line Transformers | E28: 0 | F28: =IF(D28=0,'App.2-CH_MIFRS_DepExp_2013'!K28,+'App.2-CH_MIFRS_DepExp_2013'!K28+((C28*0.5)/D28)) -> 0 | H28: 0
A29: 1855 | B29: Services (Overhead & Underground) | E29: 0 | F29: =IF(D29=0,'App.2-CH_MIFRS_DepExp_2013'!K29,+'App.2-CH_MIFRS_DepExp_2013'!K29+((C29*0.5)/D29)) -> 0 | H29: 0
A30: 1860 | B30: Meters | E30: 0 | F30: =IF(D30=0,'App.2-CH_MIFRS_DepExp_2013'!K30,+'App.2-CH_MIFRS_DepExp_2013'!K30+((C30*0.5)/D30)) -> 0 | H30: 0
A31: 1860 | B31: Meters (Smart Meters) | E31: 0 | F31: =IF(D31=0,'App.2-CH_MIFRS_DepExp_2013'!K31,+'App.2-CH_MIFRS_DepExp_2013'!K31+((C31*0.5)/D31)) -> 0 | H31: 0
A32: 1905 | B32: Land | E32: 0 | F32: =IF(D32=0,'App.2-CH_MIFRS_DepExp_2013'!K32,+'App.2-CH_MIFRS_DepExp_2013'!K32+((C32*0.5)/D32)) -> 0 | H32: 0
A33: 1908 | B33: Buildings & Fixtures | E33: 0 | F33: =IF(D33=0,'App.2-CH_MIFRS_DepExp_2013'!K33,+'App.2-CH_MIFRS_DepExp_2013'!K33+((C33*0.5)/D33)) -> 0 | H33: 0
A34: 1910 | B34: Leasehold Improvements | E34: 0 | F34: =IF(D34=0,'App.2-CH_MIFRS_DepExp_2013'!K34,+'App.2-CH_MIFRS_DepExp_2013'!K34+((C34*0.5)/D34)) -> 0 | H34: 0
A35: 1915 | B35: Office Furniture & Equipment (10 years) | E35: 0 | F35: =IF(D35=0,'App.2-CH_MIFRS_DepExp_2013'!K35,+'App.2-CH_MIFRS_DepExp_2013'!K35+((C35*0.5)/D35)) -> 0 | H35: 0
A36: 1915 | B36: Office Furniture & Equipment (5 years) | E36: 0 | F36: =IF(D36=0,'App.2-CH_MIFRS_DepExp_2013'!K36,+'App.2-CH_MIFRS_DepExp_2013'!K36+((C36*0.5)/D36)) -> 0 | H36: 0
A37: 1920 | B37: Computer Equipment - Hardware | E37: 0 | F37: =IF(D37=0,'App.2-CH_MIFRS_DepExp_2013'!K37,+'App.2-CH_MIFRS_DepExp_2013'!K37+((C37*0.5)/D37)) -> 0 | H37: 0
A38: 1920 | B38: Computer Equip.-Hardware(Post Mar. 22/04) | E38: 0 | F38: =IF(D38=0,'App.2-CH_MIFRS_DepExp_2013'!K38,+'App.2-CH_MIFRS_DepExp_2013'!K38+((C38*0.5)/D38)) -> 0 | H38: 0
A39: 1920 | B39: Computer Equip.-Hardware(Post Mar. 19/07) | E39: 0 | F39: =IF(D39=0,'App.2-CH_MIFRS_DepExp_2013'!K39,+'App.2-CH_MIFRS_DepExp_2013'!K39+((C39*0.5)/D39)) -> 0 | H39: 0
A40: 1930 | B40: Transportation Equipment | E40: 0 | F40: =IF(D40=0,'App.2-CH_MIFRS_DepExp_2013'!K40,+'App.2-CH_MIFRS_DepExp_2013'!K40+((C40*0.5)/D40)) -> 0 | H40: 0
A41: 1935 | B41: Stores Equipment | E41: 0 | F41: =IF(D41=0,'App.2-CH_MIFRS_DepExp_2013'!K41,+'App.2-CH_MIFRS_DepExp_2013'!K41+((C41*0.5)/D41)) -> 0 | H41: 0
A42: 1940 | B42: Tools, Shop & Garage Equipment | E42: 0 | F42: =IF(D42=0,'App.2-CH_MIFRS_DepExp_2013'!K42,+'App.2-CH_MIFRS_DepExp_2013'!K42+((C42*0.5)/D42)) -> 0 | H42: 0
A43: 1945 | B43: Measurement & Testing Equipment | E43: 0 | F43: =IF(D43=0,'App.2-CH_MIFRS_DepExp_2013'!K43,+'App.2-CH_MIFRS_DepExp_2013'!K43+((C43*0.5)/D43)) -> 0 | H43: 0
A44: 1950 | B44: Power Operated Equipment | E44: 0 | F44: =IF(D44=0,'App.2-CH_MIFRS_DepExp_2013'!K44,+'App.2-CH_MIFRS_DepExp_2013'!K44+((C44*0.5)/D44)) -> 0 | H44: 0
A45: 1955 | B45: Communications Equipment | E45: 0 | F45: =IF(D45=0,'App.2-CH_MIFRS_DepExp_2013'!K45,+'App.2-CH_MIFRS_DepExp_2013'!K45+((C45*0.5)/D45)) -> 0 | H45: 0
A46: 1955 | B46: Communication Equipment (Smart Meters) | E46: 0 | F46: =IF(D46=0,'App.2-CH_MIFRS_DepExp_2013'!K46,+'App.2-CH_MIFRS_DepExp_2013'!K46+((C46*0.5)/D46)) -> 0 | H46: 0
A47: 1960 | B47: Miscellaneous Equipment | E47: 0 | F47: =IF(D47=0,'App.2-CH_MIFRS_DepExp_2013'!K47,+'App.2-CH_MIFRS_DepExp_2013'!K47+((C47*0.5)/D47)) -> 0 | H47: 0
A48: 1970 | B48: Load Management Controls Customer Premises | E48: 0 | F48: =IF(D48=0,'App.2-CH_MIFRS_DepExp_2013'!K48,+'App.2-CH_MIFRS_DepExp_2013'!K48+((C48*0.5)/D48)) -> 0 | H48: 0
A49: 1975 | B49: Load Management Controls Utility Premises | E49: 0 | F49: =IF(D49=0,'App.2-CH_MIFRS_DepExp_2013'!K49,+'App.2-CH_MIFRS_DepExp_2013'!K49+((C49*0.5)/D49)) -> 0 | H49: 0
A50: 1980 | B50: System Supervisor Equipment | E50: 0 | F50: =IF(D50=0,'App.2-CH_MIFRS_DepExp_2013'!K50,+'App.2-CH_MIFRS_DepExp_2013'!K50+((C50*0.5)/D50)) -> 0 | H50: 0
A51: 1985 | B51: Miscellaneous Fixed Assets | E51: 0 | F51: =IF(D51=0,'App.2-CH_MIFRS_DepExp_2013'!K51,+'App.2-CH_MIFRS_DepExp_2013'!K51+((C51*0.5)/D51)) -> 0 | H51: 0
A52: 1990 | B52: Other Tangible Property | E52: 0 | F52: =IF(D52=0,'App.2-CH_MIFRS_DepExp_2013'!K52,+'App.2-CH_MIFRS_DepExp_2013'!K52+((C52*0.5)/D52)) -> 0 | H52: 0
A53: 1995 | B53: Contributions & Grants | E53: 0 | F53: =IF(D53=0,'App.2-CH_MIFRS_DepExp_2013'!K53,+'App.2-CH_MIFRS_DepExp_2013'!K53+((C53*0.5)/D53)) -> 0 | H53: 0
A54: etc. | E54: 0 | F54: =IF(D54=0,'App.2-CH_MIFRS_DepExp_2013'!K54,+'App.2-CH_MIFRS_DepExp_2013'!K54+((C54*0.5)/D54)) -> 0 | H54: 0
E55: 0 | F55: =IF(D55=0,'App.2-CH_MIFRS_DepExp_2013'!K55,+'App.2-CH_MIFRS_DepExp_2013'!K55+((C55*0.5)/D55)) -> 0 | H55: 0
B56: Total | C56: =SUM(C16:C55) -> 0 | F56: =SUM(F16:F55) -> 0 | G56: =SUM(G16:G55) -> 0 | H56: =SUM(H16:H55) -> 0
B57: Depreciation exp. adj. from gain or loss on the retirement of assets (pool of like assets) | F57: 0
B58: Total Depreciation expense to be included in the test year revenue requirement | F58: =SUM(F56:F57) -> 0
A59: Notes:
A60: 1 | B60: Board policy of the "half-year" rule - the applicant must ensure that additions in the year attract a half-year depreciation expense in the first year. Deviations from this standard practice must be supported in the application.
A61: 2 | B61: The applicant must provide an explanation of material variances in evidence.
A63: General: | B63: Applicants must provide a breakdown of depreciation and amortization expense in the above format for all relevant accounts. Asset Retirement Obligations (AROs), depreciation and accretion expense should be disclosed separately consistent with the Notes of historical Audited Financial Statements.

Sheet App.2-CJ_CGAAP_DepExp_2012
K1: File Number: | L1: =EBNUMBER -> EB-2014-0113
K2: Exhibit: | L2: 2
K3: Tab: | L3: 2
K4: Schedule: | L4: 2
K5: Page:
K7: Date: | L7: 2015-04-25
A9: Appendix 2- N/A
A10: Depreciation and Amortization Expense
A11: Assumes the applicant adopted IFRS for financial reporting purposes January 1, 2015
C12: Year | D12: 2012 | E12: CGAAP
A14: Account | B14: Description | C14: Opening Regulatory Gross PP&E as at Jan 1, 2012 | D14: Less Fully Depreciated | E14: Net for Depreciation | F14: Additions | G14: Total for Depreciation | H14: Years | I14: Depreciation Rate | J14: 2012 Depreciation Expense | K14: 2012 Depreciation Expense per Appendix 2-B Fixed Assets, Column K (l) | L14: Variance 2
C15: (a) | D15: (b) | E15: (c) | F15: (d) | G15: (e) = (c) + ½ x (d) 1 | H15: (f) | I15: (g) = 1 / (f) | J15: (h) = (e) / (f) | L15: (m) = (h) - (l)
A16: 1611 | B16: Computer Software (Formally known as Account 1925) | C16: 0 | D16: 0 | E16: =C16-D16 -> 0 | F16: 476100.41 | G16: =E16+0.5*F16 -> 238050.205 | H16: 5 | I16: =IF(H16=0,0,1/H16) -> 0.2 | J16: =IF(H16=0,0,G16/H16) -> 47610.041 | K16: 97936 | L16: -50325.959
A17: 1612 | B17: Land Rights (Formally known as Account 1906) | C17: 0 | D17: 0 | E17: =C17-D17 -> 0 | F17: 0 | G17: =E17+0.5*F17 -> 0 | I17: 0 | J17: =IF(H17=0,0,G17/H17) -> 0 | L17: 0
A18: 1805 | B18: Land | C18: 6733.79 | D18: 0 | E18: 6733.79 | F18: 904.09 | G18: 7185.835 | H18: 0 | I18: 0 | J18: 0 | L18: 0
A19: 1808 | B19: Buildings | C19: 0 | D19: 0 | E19: 0 | F19: 0 | G19: 0 | I19: 0 | J19: 0 | L19: 0
A20: 1810 | B20: Leasehold Improvements | C20: 0 | D20: 0 | E20: 0 | F20: 0 | G20: 0 | I20: 0 | J20: 0 | L20: 0
A21: 1815 | B21: Transformer Station Equipment >50 kV | C21: 0 | D21: 0 | E21: 0 | F21: 0 | G21: 0 | I21: 0 | J21: 0 | L21: 0
A22: 1820 | B22: Distribution Station Equipment <50 kV | C22: 850124.96 | D22: 831275.62 | E22: 18849.34 | F22: 0 | G22: 18849.34 | H22: 45 | I22: 0.02222222222 | J22: =IF(H22=0,0,G22/H22) -> 418.8742222 | K22: 836 | L22: -417.1257778
A23: 1825 | B23: Storage Battery Equipment | C23: 0 | D23: 0 | E23: 0 | F23: 0 | G23: 0 | I23: 0 | J23: 0 | L23: 0
A24: 1830 | B24: Poles, Towers & Fixtures | C24: 8458646.13 | D24: 3876606.02 | E24: 4582040.11 | F24: 188797.41 | G24: =E24+0.5*F24 -> 4676438.815 | H24: 45 | I24: =IF(H24=0,0,1/H24) -> 0.02222222222 | J24: =IF(H24=0,0,G24/H24) -> 103920.8626 | K24: 120687 | L24: -16766.13744
A25: 1835 | B25: Overhead Conductors & Devices | C25: 7482814.34 | D25: 3933150.74 | E25: 3549663.6 | F25: 195298.31 | G25: 3647312.755 | H25: 60 | I25: 0.01666666667 | J25: 60788.54592 | K25: 69636 | L25: -8847.454083
A26: 1840 | B26: Underground Conduit | C26: 3936611.71 | D26: 1906280.26 | E26: 2030331.45 | F26: 459743.43 | G26: 2260203.165 | H26: 40 | I26: 0.025 | J26: 56505.07913 | K26: 83914 | L26: -27408.92087
A27: 1845 | B27: Underground Conductors & Devices | C27: 8017556.71 | D27: 3749509.8 | E27: 4268046.91 | F27: 559389.01 | G27: 4547741.415 | H27: 40 | I27: 0.025 | J27: 113693.5354 | K27: 141840 | L27: -28146.46462
A28: 1850 | B28: Line Transformers | C28: 9153188.81 | D28: 4893406.95 | E28: 4259781.86 | F28: 338734.81 | G28: 4429149.265 | H28: 40 | I28: 0.025 | J28: 110728.7316 | K28: 149109 | L28: -38380.26837
A29: 1855 | B29: Services (Overhead & Underground) | C29: 5204840.58 | D29: 2335566.19 | E29: 2869274.39 | F29: 158550.78 | G29: 2948549.78 | H29: 40 | I29: 0.025 | J29: 73713.7445 | K29: 87925 | L29: -14211.2555
A30: 1860 | B30: Meters | C30: 2441643.77 | D30: 1519262.75 | E30: 922381.02 | F30: 4237.61 | G30: 924499.825 | H30: 15 | I30: 0.06666666667 | J30: 61633.32167 | K30: 76025 | L30: -14391.67833
A31: 1860 | B31: Meters (Smart Meters) | C31: 0 | D31: 0 | E31: =C31-D31 -> 0 | F31: 3100868.84 | G31: 1550434.42 | H31: 15 | I31: 0.06666666667 | J31: 103362.2947 | K31: 571777 | L31: -468414.7053
A32: 1905 | B32: Land | C32: 174187.53 | D32: 0 | E32: 174187.53 | F32: 0 | G32: 174187.53 | I32: 0 | J32: 0 | L32: 0
A33: 1908 | B33: Buildings & Fixtures | C33: 2385249.78 | D33: 900206.89 | E33: 1485042.89 | F33: 15493.24 | G33: 1492789.51 | H33: 60 | I33: 0.01666666667 | J33: 24879.82517 | K33: 36971 | L33: -12091.17483
A34: 1910 | B34: Leasehold Improvements | C34: 0 | D34: 0 | E34: 0 | F34: 0 | G34: 0 | I34: 0 | J34: 0 | L34: 0
A35: 1915 | B35: Office Furniture & Equipment (10 years) | C35: 0 | D35: 0 | E35: 0 | F35: 71936.87 | G35: 35968.435 | H35: 10 | I35: 0.1 | J35: 3596.8435 | K35: 7194 | L35: -3597.1565
A36: 1915 | B36: Office Furniture & Equipment (5 years) | C36: 0 | D36: 0 | E36: 0 | F36: 0 | G36: 0 | I36: 0 | J36: 0 | K36: 0 | L36: 0
A37: 1920 | B37: Computer Equipment - Hardware | C37: 0 | D37: 0 | E37: 0 | F37: 136793.63 | G37: 68396.815 | I37: 0 | J37: 0 | L37: 0
A38: 1920 | B38: Computer Equip.-Hardware(Post Mar. 22/04) | C38: 0 | D38: 0 | E38: 0 | F38: 0 | G38: 0 | H38: 5 | I38: 0.2 | J38: 0 | K38: 40379 | L38: -40379
A39: 1920 | B39: Computer Equip.-Hardware(Post Mar. 19/07) | C39: 0 | D39: 0 | E39: 0 | F39: 0 | G39: 0 | I39: 0 | J39: 0 | L39: 0
A40: 1930 | B40: Transportation Equipment | C40: 0 | D40: 0 | E40: 0 | F40: 679340 | G40: 339670 | H40: 5 | I40: 0.2 | J40: 67934 | K40: 136811 | L40: -68877
A41: 1935 | B41: Stores Equipment | C41: 0 | D41: 0 | E41: 0 | F41: 0 | G41: 0 | I41: 0 | J41: 0 | L41: 0
A42: 1940 | B42: Tools, Shop & Garage Equipment | C42: 0 | D42: 0 | E42: 0 | F42: 377238.9 | G42: 188619.45 | H42: 10 | I42: 0.1 | J42: 18861.945 | K42: 43346 | L42: -24484.055
A43: 1945 | B43: Measurement & Testing Equipment | C43: 0 | D43: 0 | E43: 0 | F43: 0 | G43: 0 | I43: 0 | J43: 0 | L43: 0
A44: 1950 | B44: Power Operated Equipment | C44: 0 | D44: 0 | E44: 0 | F44: 0 | G44: 0 | I44: 0 | J44: 0 | L44: 0
A45: 1955 | B45: Communications Equipment | C45: 0 | D45: 0 | E45: 0 | F45: 12465.77 | G45: 6232.885 | H45: 5 | I45: 0.2 | J45: 1246.577 | K45: 2493 | L45: -1246.423
A46: 1955 | B46: Communication Equipment (Smart Meters) | C46: 0 | D46: 0 | E46: 0 | F46: 0 | G46: 0 | I46: 0 | J46: 0 | L46: 0
A47: 1960 | B47: Miscellaneous Equipment | C47: 0 | D47: 0 | E47: 0 | F47: 200000 | G47: 100000 | H47: 10 | I47: 0.1 | J47: 10000 | K47: 13333 | L47: -3333
A48: 1970 | B48: Load Management Controls Customer Premises | C48: 0 | D48: 0 | E48: 0 | F48: 0 | G48: 0 | I48: 0 | J48: 0 | L48: 0
A49: 1975 | B49: Load Management Controls Utility Premises | C49: 0 | D49: 0 | E49: 0 | F49: 0 | G49: 0 | I49: 0 | J49: 0 | L49: 0
A50: 1980 | B50: System Supervisor Equipment | C50: 43592.36 | D50: 31694.61 | E50: 11897.75 | F50: 412316.07 | G50: 218055.785 | H50: 15 | I50: 0.06666666667 | J50: 14537.05233 | K50: 31788 | L50: -17250.94767
A51: 1985 | B51: Miscellaneous Fixed Assets | C51: 0 | D51: 0 | E51: 0 | F51: 0 | G51: 0 | I51: 0 | J51: 0 | L51: 0
A52: 1990 | B52: Other Tangible Property | C52: 0 | D52: 0 | E52: 0 | F52: 0 | G52: 0 | I52: 0 | J52: 0 | L52: 0
A53: 1995 | B53: Contributions & Grants | C53: -7183004.18 | D53: -1975697.58 | E53: -5207306.6 | F53: -318520.81 | G53: -5366567.005 | H53: 40 | I53: 0.025 | J53: -134164.1751 | K53: -162754 | L53: 28589.82487
A54: etc. | E54: 0 | G54: 0 | I54: 0 | J54: 0 | L54: 0
E55: 0 | G55: =E55+0.5*F55 -> 0 | I55: 0 | J55: 0 | L55: =IF(ISERROR(+J55-K55), "", +J55-K55) -> 0
B56: Total | C56: =SUM(C16:C55) -> 40972186.29 | D56: =SUM(D16:D55) -> 22001262.25 | E56: =SUM(E16:E55) -> 18970924.04 | F56: =SUM(F16:F55) -> 7069688.37 | G56: =SUM(G16:G55) -> 22505768.23 | J56: =SUM(J16:J55) -> 739267.0985 | K56: =SUM(K16:K55) -> 1549246 | L56: =SUM(L16:L55) -> -809978.9015
A58: Notes:
A59: 1 | B59: Board policy of the "half-year" rule - the applicant must ensure that additions in the year attract a half-year depreciation expense in the first year. Deviations from this standard practice must be supported in the application.
A60: 2 | B60: The applicant must provide an explanation of material variances in evidence.
A61: General: | B61: Applicants must provide a breakdown of depreciation and amortization expense in the above format for all relevant accounts. Asset Retirement Obligations (AROs), depreciation and accretion expense should be disclosed separately consistent with the Notes of historical Audited Financial Statements.

Sheet App.2-CK_CGAAP_DepExp_2013
K1: File Number: | L1: =EBNUMBER -> EB-2014-0113
K2: Exhibit: | L2: 2
K3: Tab: | L3: 2
K4: Schedule: | L4: 2
K5: Page:
K7: Date: | L7: 2015-04-25
A9: Appendix 2-CK N/A
A10: Depreciation and Amortization Expense
A11: Assumes the applicant adopted IFRS for financial reporting purposes January 1, 2014
C12: Year | D12: 2013 | E12: CGAAP
A14: Account | B14: Description | C14: Opening Regulatory Gross PP&E as at Jan 1, 2013 | D14: Less Fully Depreciated | E14: Net for Depreciation | F14: Additions | G14: Total for Depreciation | H14: Years | I14: Depreciation Rate | J14: 2013 Depreciation Expense | K14: 2013 Depreciation Expense per Appendix 2-B Fixed Assets, Column K (l) | L14: Variance 2
C15: (a) | D15: (b) | E15: (c) | F15: (d) | G15: (e) = (c) + ½ x (d) 1 | H15: (f) | I15: (g) = 1 / (f) | J15: (h) = (e) / (f) | L15: (m) = (h) - (l)
A16: 1611 | B16: Computer Software (Formally known as Account 1925) | E16: =C16-D16 -> 0 | G16: =E16+0.5*F16 -> 0 | I16: =IF(H16=0,0,1/H16) -> 0 | J16: =IF(H16=0,0,G16/H16) -> 0 | L16: =IF(ISERROR(+J16-K16), 0, +J16-K16) -> 0
A17: 1612 | B17: Land Rights (Formally known as Account 1906) | E17: =C17-D17 -> 0 | G17: =E17+0.5*F17 -> 0 | I17: 0 | J17: 0 | L17: 0
A18: 1805 | B18: Land | E18: 0 | G18: 0 | I18: 0 | J18: 0 | L18: 0
A19: 1808 | B19: Buildings | E19: 0 | G19: 0 | I19: 0 | J19: 0 | L19: 0
A20: 1810 | B20: Leasehold Improvements | E20: 0 | G20: 0 | I20: 0 | J20: 0 | L20: 0
A21: 1815 | B21: Transformer Station Equipment >50 kV | E21: 0 | G21: 0 | I21: 0 | J21: 0 | L21: 0
A22: 1820 | B22: Distribution Station Equipment <50 kV | E22: 0 | G22: 0 | I22: 0 | J22: 0 | L22: 0
A23: 1825 | B23: Storage Battery Equipment | E23: 0 | G23: 0 | I23: 0 | J23: 0 | L23: 0
A24: 1830 | B24: Poles, Towers & Fixtures | E24: 0 | G24: 0 | I24: 0 | J24: 0 | L24: 0
A25: 1835 | B25: Overhead Conductors & Devices | E25: 0 | G25: 0 | I25: 0 | J25: 0 | L25: 0
A26: 1840 | B26: Underground Conduit | E26: 0 | G26: 0 | I26: 0 | J26: 0 | L26: 0
A27: 1845 | B27: Underground Conductors & Devices | E27: 0 | G27: 0 | I27: 0 | J27: 0 | L27: 0
A28: 1850 | B28: Line Transformers | E28: 0 | G28: 0 | I28: 0 | J28: 0 | L28: 0
A29: 1855 | B29: Services (Overhead & Underground) | E29: 0 | G29: 0 | I29: 0 | J29: 0 | L29: 0
A30: 1860 | B30: Meters | E30: 0 | G30: 0 | I30: 0 | J30: 0 | L30: 0
A31: 1860 | B31: Meters (Smart Meters) | E31: 0 | G31: 0 | I31: 0 | J31: 0 | L31: 0
A32: 1905 | B32: Land | E32: 0 | G32: 0 | I32: 0 | J32: 0 | L32: 0
A33: 1908 | B33: Buildings & Fixtures | E33: 0 | G33: 0 | I33: 0 | J33: 0 | L33: 0
A34: 1910 | B34: Leasehold Improvements | E34: 0 | G34: 0 | I34: 0 | J34: 0 | L34: 0
A35: 1915 | B35: Office Furniture & Equipment (10 years) | E35: 0 | G35: 0 | I35: 0 | J35: 0 | L35: 0
A36: 1915 | B36: Office Furniture & Equipment (5 years) | E36: 0 | G36: 0 | I36: 0 | J36: 0 | L36: 0
A37: 1920 | B37: Computer Equipment - Hardware | E37: 0 | G37: 0 | I37: 0 | J37: 0 | L37: 0
A38: 1920 | B38: Computer Equip.-Hardware(Post Mar. 22/04) | E38: 0 | G38: 0 | I38: 0 | J38: 0 | L38: 0
A39: 1920 | B39: Computer Equip.-Hardware(Post Mar. 19/07) | E39: 0 | G39: 0 | I39: 0 | J39: 0 | L39: 0
A40: 1930 | B40: Transportation Equipment | E40: 0 | G40: 0 | I40: 0 | J40: 0 | L40: 0
A41: 1935 | B41: Stores Equipment | E41: 0 | G41: 0 | I41: 0 | J41: 0 | L41: 0
A42: 1940 | B42: Tools, Shop & Garage Equipment | E42: 0 | G42: 0 | I42: 0 | J42: 0 | L42: 0
A43: 1945 | B43: Measurement & Testing Equipment | E43: 0 | G43: 0 | I43: 0 | J43: 0 | L43: 0
A44: 1950 | B44: Power Operated Equipment | E44: 0 | G44: 0 | I44: 0 | J44: 0 | L44: 0
A45: 1955 | B45: Communications Equipment | E45: 0 | G45: 0 | I45: 0 | J45: 0 | L45: 0
A46: 1955 | B46: Communication Equipment (Smart Meters) | E46: 0 | G46: 0 | I46: 0 | J46: 0 | L46: 0
A47: 1960 | B47: Miscellaneous Equipment | E47: 0 | G47: 0 | I47: 0 | J47: 0 | L47: 0
A48: 1970 | B48: Load Management Controls Customer Premises | E48: 0 | G48: 0 | I48: 0 | J48: 0 | L48: 0
A49: 1975 | B49: Load Management Controls Utility Premises | E49: 0 | G49: 0 | I49: 0 | J49: 0 | L49: 0
A50: 1980 | B50: System Supervisor Equipment | E50: 0 | G50: 0 | I50: 0 | J50: 0 | L50: 0
A51: 1985 | B51: Miscellaneous Fixed Assets | E51: 0 | G51: 0 | I51: 0 | J51: 0 | L51: 0
A52: 1990 | B52: Other Tangible Property | E52: 0 | G52: 0 | I52: 0 | J52: 0 | L52: 0
A53: 1995 | B53: Contributions & Grants | E53: 0 | G53: 0 | I53: 0 | J53: 0 | L53: 0
A54: etc. | E54: 0 | G54: 0 | I54: 0 | J54: 0 | L54: 0
E55: 0 | G55: 0 | I55: 0 | J55: 0 | L55: 0
B56: Total | C56: =SUM(C16:C55) -> 0 | D56: =SUM(D16:D55) -> 0 | E56: =SUM(E16:E55) -> 0 | F56: =SUM(F16:F55) -> 0 | G56: =SUM(G16:G55) -> 0 | J56: =SUM(J16:J55) -> 0 | K56: =SUM(K16:K55) -> 0 | L56: =SUM(L16:L55) -> 0
A58: Notes:
A59: 1 | B59: Board policy of the "half-year" rule - the applicant must ensure that additions in the year attract a half-year depreciation expense in the first year. Deviations from this standard practice must be supported in the application.
A60: 2 | B60: The applicant must provide an explanation of material variances in evidence.
A62: General: | B62: Applicants must provide a breakdown of depreciation and amortization expense in the above format for all relevant accounts. Asset Retirement Obligations (AROs), depreciation and accretion expense should be disclosed separately consistent with the Notes of historical Audited Financial Statements.

Sheet App.2-CL_MIFRS_DepExp_2013
N1: File Number: | O1: =EBNUMBER -> EB-2014-0113
N2: Exhibit: | O2: 2
N3: Tab: | O3: 2
N4: Schedule: | O4: 2
N5: Page:
N7: Date: | O7: 2015-04-25
A9: Appendix 2-CL N/A
A10: Depreciation and Amortization Expense
A11: Assumes the applicant adopted IFRS for financial reporting purposes January 1, 2014
C12: Year | D12: 2014 | E12: MIFRS
A14: Account | B14: Description | C14: Opening NBV as at Jan 1, 2013 5 | D14: Additions | E14: Average Remaining Life of Opening NBV 4 | F14: Years (new additions only) 3 | G14: Depreciation Rate on New Additions | H14: Depreciation Expense on Opening NBV | I14: Depreciation Expense on Additions 1 | J14: 2013 Depreciation Expense | K14: 2013 Depreciation Expense per Appendix 2-B Fixed Assets, Column K (l) | L14: Variance 2 | M14: Depreciation Expense on 2013 Full Year Additions | N14: Less Depreciation Expense on Assets Fully Depreciated during the year (o) | O14: 2013 Full Year Depreciation 6
C15: (a) | D15: (d) | E15: (i) | F15: (f) | G15: (g) = 1 / (f) | H15: (j) = (a) / (i) | I15: (h)=((d)*0.5)/(f) | J15: (k) = (j) + (h) | L15: (m) = (k) - (l) | M15: (n)=((d))/(f) | O15: (p) = (j) + (n) - (o)
A16: 1611 | B16: Computer Software (Formally known as Account 1925) | G16: =IF(F16=0,0,1/F16) -> 0 | H16: =IF(E16=0,0,+C16/E16) -> 0 | I16: =IF(F16=0,0,+(D16*0.5)/F16) -> 0 | J16: =IF(ISERROR(+H16+I16), 0, +H16+I16) -> 0 | L16: =IF(ISERROR(+J16-K16), 0, +J16-K16) -> 0 | M16: =IF(F16=0,0,+(D16)/F16) -> 0 | O16: =IF(ISERROR(+M16+H16-N16), 0, +M16+H16-N16) -> 0
A17: 1612 | B17: Land Rights (Formally known as Account 1906) | G17: 0 | H17: 0 | I17: 0 | J17: 0 | L17: 0 | M17: 0 | O17: =IF(ISERROR(+M17+H17-N17), 0, +M17+H17-N17) -> 0
A18: 1805 | B18: Land | G18: 0 | H18: 0 | I18: 0 | J18: 0 | L18: 0 | M18: 0 | O18: 0
A19: 1808 | B19: Buildings | G19: 0 | H19: 0 | I19: 0 | J19: 0 | L19: 0 | M19: 0 | O19: 0
A20: 1810 | B20: Leasehold Improvements | G20: 0 | H20: 0 | I20: 0 | J20: 0 | L20: 0 | M20: 0 | O20: 0
A21: 1815 | B21: Transformer Station Equipment >50 kV | G21: 0 | H21: 0 | I21: 0 | J21: 0 | L21: 0 | M21: 0 | O21: 0
A22: 1820 | B22: Distribution Station Equipment <50 kV | G22: 0 | H22: 0 | I22: 0 | J22: 0 | L22: 0 | M22: 0 | O22: 0
A23: 1825 | B23: Storage Battery Equipment | G23: 0 | H23: 0 | I23: 0 | J23: 0 | L23: 0 | M23: 0 | O23: 0
A24: 1830 | B24: Poles, Towers & Fixtures | G24: 0 | H24: 0 | I24: 0 | J24: 0 | L24: 0 | M24: 0 | O24: 0
A25: 1835 | B25: Overhead Conductors & Devices | G25: 0 | H25: 0 | I25: 0 | J25: 0 | L25: 0 | M25: 0 | O25: 0
A26: 1840 | B26: Underground Conduit | G26: 0 | H26: 0 | I26: 0 | J26: 0 | L26: 0 | M26: 0 | O26: 0
A27: 1845 | B27: Underground Conductors & Devices | G27: 0 | H27: 0 | I27: 0 | J27: 0 | L27: 0 | M27: 0 | O27: 0
A28: 1850 | B28: Line Transformers | G28: 0 | H28: 0 | I28: 0 | J28: 0 | L28: 0 | M28: 0 | O28: 0
A29: 1855 | B29: Services (Overhead & Underground) | G29: 0 | H29: 0 | I29: 0 | J29: 0 | L29: 0 | M29: 0 | O29: 0
A30: 1860 | B30: Meters | G30: 0 | H30: 0 | I30: 0 | J30: 0 | L30: 0 | M30: 0 | O30: 0
A31: 1860 | B31: Meters (Smart Meters) | G31: 0 | H31: 0 | I31: 0 | J31: 0 | L31: 0 | M31: 0 | O31: 0
A32: 1905 | B32: Land | G32: 0 | H32: 0 | I32: 0 | J32: 0 | L32: 0 | M32: 0 | O32: 0
A33: 1908 | B33: Buildings & Fixtures | G33: 0 | H33: 0 | I33: 0 | J33: 0 | L33: 0 | M33: 0 | O33: 0
A34: 1910 | B34: Leasehold Improvements | G34: 0 | H34: 0 | I34: 0 | J34: 0 | L34: 0 | M34: 0 | O34: 0
A35: 1915 | B35: Office Furniture & Equipment (10 years) | G35: 0 | H35: 0 | I35: 0 | J35: 0 | L35: 0 | M35: 0 | O35: 0
A36: 1915 | B36: Office Furniture & Equipment (5 years) | G36: 0 | H36: 0 | I36: 0 | J36: 0 | L36: 0 | M36: 0 | O36: 0
A37: 1920 | B37: Computer Equipment - Hardware | G37: 0 | H37: 0 | I37: 0 | J37: 0 | L37: 0 | M37: 0 | O37: 0
A38: 1920 | B38: Computer Equip.-Hardware(Post Mar. 22/04) | G38: 0 | H38: 0 | I38: 0 | J38: 0 | L38: 0 | M38: 0 | O38: 0
A39: 1920 | B39: Computer Equip.-Hardware(Post Mar. 19/07) | G39: 0 | H39: 0 | I39: 0 | J39: 0 | L39: 0 | M39: 0 | O39: 0
A40: 1930 | B40: Transportation Equipment | G40: 0 | H40: 0 | I40: 0 | J40: 0 | L40: 0 | M40: 0 | O40: 0
A41: 1935 | B41: Stores Equipment | G41: 0 | H41: 0 | I41: 0 | J41: 0 | L41: 0 | M41: 0 | O41: 0
A42: 1940 | B42: Tools, Shop & Garage Equipment | G42: 0 | H42: 0 | I42: 0 | J42: 0 | L42: 0 | M42: 0 | O42: 0
A43: 1945 | B43: Measurement & Testing Equipment | G43: 0 | H43: 0 | I43: 0 | J43: 0 | L43: 0 | M43: 0 | O43: 0
A44: 1950 | B44: Power Operated Equipment | G44: 0 | H44: 0 | I44: 0 | J44: 0 | L44: 0 | M44: 0 | O44: 0
A45: 1955 | B45: Communications Equipment | G45: 0 | H45: 0 | I45: 0 | J45: 0 | L45: 0 | M45: 0 | O45: 0
A46: 1955 | B46: Communication Equipment (Smart Meters) | G46: 0 | H46: 0 | I46: 0 | J46: 0 | L46: 0 | M46: 0 | O46: 0
A47: 1960 | B47: Miscellaneous Equipment | G47: 0 | H47: 0 | I47: 0 | J47: 0 | L47: 0 | M47: 0 | O47: 0
A48: 1970 | B48: Load Management Controls Customer Premises | G48: 0 | H48: 0 | I48: 0 | J48: 0 | L48: 0 | M48: 0 | O48: 0
A49: 1975 | B49: Load Management Controls Utility Premises | G49: 0 | H49: 0 | I49: 0 | J49: 0 | L49: 0 | M49: 0 | O49: 0
A50: 1980 | B50: System Supervisor Equipment | G50: 0 | H50: 0 | I50: 0 | J50: 0 | L50: 0 | M50: 0 | O50: 0
A51: 1985 | B51: Miscellaneous Fixed Assets | G51: 0 | H51: 0 | I51: 0 | J51: 0 | L51: 0 | M51: 0 | O51: 0
A52: 1990 | B52: Other Tangible Property | G52: 0 | H52: 0 | I52: 0 | J52: 0 | L52: 0 | M52: 0 | O52: 0
A53: 1995 | B53: Contributions & Grants | G53: 0 | H53: 0 | I53: 0 | J53: 0 | L53: 0 | M53: 0 | O53: 0
A54: etc. | G54: 0 | H54: 0 | I54: 0 | J54: 0 | L54: 0 | M54: 0 | O54: 0
G55: 0 | H55: 0 | I55: 0 | J55: 0 | L55: 0 | M55: 0 | O55: 0
B56: Total | C56: =SUM(C16:C55) -> 0 | D56: =SUM(D16:D55) -> 0 | H56: =SUM(H16:H55) -> 0 | I56: 0 | J56: 0 | K56: 0 | L56: 0 | M56: 0 | N56: =SUM(N16:N55) -> 0 | O56: 0
B57: Depreciation exp. adj. from gain or loss on the retirement of assets (pool of like assets) | J57: 0
B58: Total | J58: =+J56+J57 -> 0
A59: Notes:
A61: 1 | B61: Board policy of the "half-year" rule - the applicant must ensure that additions in the year attract a half-year depreciation expense in the first year. Deviations from this standard practice must be supported in the application.
A62: 2 | B62: The applicant must provide an explanation of material variances in evidence.
A63: 3 | B63: The applicant should ensure that the years for new additions of assets are the asset useful lives determined by management in accordance with IFRS.
A64: 4 | B64: A recalculation should be performed to determine the average remaining life of opening balance of assets (i.e. excluding 2013 additions) under IFRS. For example, Asset A had a useful life of 20 years under CGAAP. On January 1, 2013, the date of transition, Asset A was 3 years depreciated. As a result, Asset A would have a remaining service life of 17 years (20 years less 3 years) under CGAAP as of January 1, 2013. Due to the transition to IFRS, management re-assessed the asset useful lives under IFRS principles and concluded that the revised useful life of Asset A is now 30 years. Therefore, the average remaining useful life of opening balance of Asset A is determined to be 27 years (30 years less 3 years) under IFRS as of January 1, 2013.
A65: 5 | B65: NBV must exclude assets still on the books but which have been fully amortized or depreciated.
A66: 6 | B66: This column refers to the calculated full year depreciation but excludes the depreciation expense on assets fully depreciated during the year. This column is used for the purpose of calculating depreciation expense in the following year on the next worksheet.
A68: General: | B68: Applicants must provide a breakdown of depreciation and amortization expense in the above format for all relevant accounts. Asset Retirement Obligations (AROs), depreciation and accretion expense should be disclosed separately consistent with the Notes of historical Audited Financial Statements.

Sheet App.2-CM_MIFRS_DepExp_2014
I1: File Number: | J1: =EBNUMBER -> EB-2014-0113
I2: Exhibit: | J2: 2
I3: Tab: | J3: 2
I4: Schedule: | J4: 2
I5: Page:
I7: Date: | J7: 2015-04-25
A9: Appendix 2-CM N/A
A10: Depreciation and Amortization Expense
A11: Assumes the applicant adopted IFRS for financial reporting purposes January 1, 2014
C12: Year | D12: 2015 | E12: MIFRS
A14: Account | B14: Description | C14: Additions | D14: Years (new additions only) | E14: Depreciation Rate on New Additions | F14: 2014 Depreciation Expense 1 | G14: 2014 Depreciation Expense per Appendix 2-B Fixed Assets, Column K (l) | H14: Variance 2
C15: (d) | D15: (f) | E15: (g) = 1 / (f) | F15: (h)=2013 Full Year Depreciation + ((d)*0.5)/(f) | H15: (m) = (h) - (l)
A16: 1611 | B16: Computer Software (Formally known as Account 1925) | E16: =IF(D16=0,0,1/D16) -> 0 | F16: =IF(D16=0,'App.2-CL_MIFRS_DepExp_2013'!O16,+'App.2-CL_MIFRS_DepExp_2013'!O16+((C16*0.5)/D16)) -> 0 | H16: =IF(ISERROR(+F16-G16), 0, +F16-G16) -> 0
A17: 1612 | B17: Land Rights (Formally known as Account 1906) | E17: 0 | F17: =IF(D17=0,'App.2-CL_MIFRS_DepExp_2013'!O17,+'App.2-CL_MIFRS_DepExp_2013'!O17+((C17*0.5)/D17)) -> 0 | H17: 0
A18: 1805 | B18: Land | E18: 0 | F18: =IF(D18=0,'App.2-CL_MIFRS_DepExp_2013'!O18,+'App.2-CL_MIFRS_DepExp_2013'!O18+((C18*0.5)/D18)) -> 0 | H18: 0
A19: 1808 | B19: Buildings | E19: 0 | F19: =IF(D19=0,'App.2-CL_MIFRS_DepExp_2013'!O19,+'App.2-CL_MIFRS_DepExp_2013'!O19+((C19*0.5)/D19)) -> 0 | H19: 0
A20: 1810 | B20: Leasehold Improvements | E20: 0 | F20: =IF(D20=0,'App.2-CL_MIFRS_DepExp_2013'!O20,+'App.2-CL_MIFRS_DepExp_2013'!O20+((C20*0.5)/D20)) -> 0 | H20: 0
A21: 1815 | B21: Transformer Station Equipment >50 kV | E21: 0 | F21: =IF(D21=0,'App.2-CL_MIFRS_DepExp_2013'!O21,+'App.2-CL_MIFRS_DepExp_2013'!O21+((C21*0.5)/D21)) -> 0 | H21: 0
A22: 1820 | B22: Distribution Station Equipment <50 kV | E22: 0 | F22: =IF(D22=0,'App.2-CL_MIFRS_DepExp_2013'!O22,+'App.2-CL_MIFRS_DepExp_2013'!O22+((C22*0.5)/D22)) -> 0 | H22: 0
A23: 1825 | B23: Storage Battery Equipment | E23: 0 | F23: =IF(D23=0,'App.2-CL_MIFRS_DepExp_2013'!O23,+'App.2-CL_MIFRS_DepExp_2013'!O23+((C23*0.5)/D23)) -> 0 | H23: 0
A24: 1830 | B24: Poles, Towers & Fixtures | E24: 0 | F24: =IF(D24=0,'App.2-CL_MIFRS_DepExp_2013'!O24,+'App.2-CL_MIFRS_DepExp_2013'!O24+((C24*0.5)/D24)) -> 0 | H24: 0
A25: 1835 | B25: Overhead Conductors & Devices | E25: 0 | F25: =IF(D25=0,'App.2-CL_MIFRS_DepExp_2013'!O25,+'App.2-CL_MIFRS_DepExp_2013'!O25+((C25*0.5)/D25)) -> 0 | H25: 0
A26: 1840 | B26: Underground Conduit | E26: 0 | F26: =IF(D26=0,'App.2-CL_MIFRS_DepExp_2013'!O26,+'App.2-CL_MIFRS_DepExp_2013'!O26+((C26*0.5)/D26)) -> 0 | H26: 0
A27: 1845 | B27: Underground Conductors & Devices | E27: 0 | F27: =IF(D27=0,'App.2-CL_MIFRS_DepExp_2013'!O27,+'App.2-CL_MIFRS_DepExp_2013'!O27+((C27*0.5)/D27)) -> 0 | H27: 0
A28: 1850 | B28: Line Transformers | E28: 0 | F28: =IF(D28=0,'App.2-CL_MIFRS_DepExp_2013'!O28,+'App.2-CL_MIFRS_DepExp_2013'!O28+((C28*0.5)/D28)) -> 0 | H28: 0
A29: 1855 | B29: Services (Overhead & Underground) | E29: 0 | F29: =IF(D29=0,'App.2-CL_MIFRS_DepExp_2013'!O29,+'App.2-CL_MIFRS_DepExp_2013'!O29+((C29*0.5)/D29)) -> 0 | H29: 0
A30: 1860 | B30: Meters | E30: 0 | F30: =IF(D30=0,'App.2-CL_MIFRS_DepExp_2013'!O30,+'App.2-CL_MIFRS_DepExp_2013'!O30+((C30*0.5)/D30)) -> 0 | H30: 0
A31: 1860 | B31: Meters (Smart Meters) | E31: 0 | F31: =IF(D31=0,'App.2-CL_MIFRS_DepExp_2013'!O31,+'App.2-CL_MIFRS_DepExp_2013'!O31+((C31*0.5)/D31)) -> 0 | H31: 0
A32: 1905 | B32: Land | E32: 0 | F32: =IF(D32=0,'App.2-CL_MIFRS_DepExp_2013'!O32,+'App.2-CL_MIFRS_DepExp_2013'!O32+((C32*0.5)/D32)) -> 0 | H32: 0
A33: 1908 | B33: Buildings & Fixtures | E33: 0 | F33: =IF(D33=0,'App.2-CL_MIFRS_DepExp_2013'!O33,+'App.2-CL_MIFRS_DepExp_2013'!O33+((C33*0.5)/D33)) -> 0 | H33: 0
A34: 1910 | B34: Leasehold Improvements | E34: 0 | F34: =IF(D34=0,'App.2-CL_MIFRS_DepExp_2013'!O34,+'App.2-CL_MIFRS_DepExp_2013'!O34+((C34*0.5)/D34)) -> 0 | H34: 0
A35: 1915 | B35: Office Furniture & Equipment (10 years) | E35: 0 | F35: =IF(D35=0,'App.2-CL_MIFRS_DepExp_2013'!O35,+'App.2-CL_MIFRS_DepExp_2013'!O35+((C35*0.5)/D35)) -> 0 | H35: 0
A36: 1915 | B36: Office Furniture & Equipment (5 years) | E36: 0 | F36: =IF(D36=0,'App.2-CL_MIFRS_DepExp_2013'!O36,+'App.2-CL_MIFRS_DepExp_2013'!O36+((C36*0.5)/D36)) -> 0 | H36: 0
A37: 1920 | B37: Computer Equipment - Hardware | E37: 0 | F37: =IF(D37=0,'App.2-CL_MIFRS_DepExp_2013'!O37,+'App.2-CL_MIFRS_DepExp_2013'!O37+((C37*0.5)/D37)) -> 0 | H37: 0
A38: 1920 | B38: Computer Equip.-Hardware(Post Mar. 22/04) | E38: 0 | F38: =IF(D38=0,'App.2-CL_MIFRS_DepExp_2013'!O38,+'App.2-CL_MIFRS_DepExp_2013'!O38+((C38*0.5)/D38)) -> 0 | H38: 0
A39: 1920 | B39: Computer Equip.-Hardware(Post Mar. 19/07) | E39: 0 | F39: =IF(D39=0,'App.2-CL_MIFRS_DepExp_2013'!O39,+'App.2-CL_MIFRS_DepExp_2013'!O39+((C39*0.5)/D39)) -> 0 | H39: 0
A40: 1930 | B40: Transportation Equipment | E40: 0 | F40: =IF(D40=0,'App.2-CL_MIFRS_DepExp_2013'!O40,+'App.2-CL_MIFRS_DepExp_2013'!O40+((C40*0.5)/D40)) -> 0 | H40: 0
A41: 1935 | B41: Stores Equipment | E41: 0 | F41: =IF(D41=0,'App.2-CL_MIFRS_DepExp_2013'!O41,+'App.2-CL_MIFRS_DepExp_2013'!O41+((C41*0.5)/D41)) -> 0 | H41: 0
A42: 1940 | B42: Tools, Shop & Garage Equipment | E42: 0 | F42: =IF(D42=0,'App.2-CL_MIFRS_DepExp_2013'!O42,+'App.2-CL_MIFRS_DepExp_2013'!O42+((C42*0.5)/D42)) -> 0 | H42: 0
A43: 1945 | B43: Measurement & Testing Equipment | E43: 0 | F43: =IF(D43=0,'App.2-CL_MIFRS_DepExp_2013'!O43,+'App.2-CL_MIFRS_DepExp_2013'!O43+((C43*0.5)/D43)) -> 0 | H43: 0
A44: 1950 | B44: Power Operated Equipment | E44: 0 | F44: =IF(D44=0,'App.2-CL_MIFRS_DepExp_2013'!O44,+'App.2-CL_MIFRS_DepExp_2013'!O44+((C44*0.5)/D44)) -> 0 | H44: 0
A45: 1955 | B45: Communications Equipment | E45: 0 | F45: =IF(D45=0,'App.2-CL_MIFRS_DepExp_2013'!O45,+'App.2-CL_MIFRS_DepExp_2013'!O45+((C45*0.5)/D45)) -> 0 | H45: 0
A46: 1955 | B46: Communication Equipment (Smart Meters) | E46: 0 | F46: =IF(D46=0,'App.2-CL_MIFRS_DepExp_2013'!O46,+'App.2-CL_MIFRS_DepExp_2013'!O46+((C46*0.5)/D46)) -> 0 | H46: 0
A47: 1960 | B47: Miscellaneous Equipment | E47: 0 | F47: =IF(D47=0,'App.2-CL_MIFRS_DepExp_2013'!O47,+'App.2-CL_MIFRS_DepExp_2013'!O47+((C47*0.5)/D47)) -> 0 | H47: 0
A48: 1970 | B48: Load Management Controls Customer Premises | E48: 0 | F48: =IF(D48=0,'App.2-CL_MIFRS_DepExp_2013'!O48,+'App.2-CL_MIFRS_DepExp_2013'!O48+((C48*0.5)/D48)) -> 0 | H48: 0
A49: 1975 | B49: Load Management Controls Utility Premises | E49: 0 | F49: =IF(D49=0,'App.2-CL_MIFRS_DepExp_2013'!O49,+'App.2-CL_MIFRS_DepExp_2013'!O49+((C49*0.5)/D49)) -> 0 | H49: 0
A50: 1980 | B50: System Supervisor Equipment | E50: 0 | F50: =IF(D50=0,'App.2-CL_MIFRS_DepExp_2013'!O50,+'App.2-CL_MIFRS_DepExp_2013'!O50+((C50*0.5)/D50)) -> 0 | H50: 0
A51: 1985 | B51: Miscellaneous Fixed Assets | E51: 0 | F51: =IF(D51=0,'App.2-CL_MIFRS_DepExp_2013'!O51,+'App.2-CL_MIFRS_DepExp_2013'!O51+((C51*0.5)/D51)) -> 0 | H51: 0
A52: 1990 | B52: Other Tangible Property | E52: 0 | F52: =IF(D52=0,'App.2-CL_MIFRS_DepExp_2013'!O52,+'App.2-CL_MIFRS_DepExp_2013'!O52+((C52*0.5)/D52)) -> 0 | H52: 0
A53: 1995 | B53: Contributions & Grants | E53: 0 | F53: =IF(D53=0,'App.2-CL_MIFRS_DepExp_2013'!O53,+'App.2-CL_MIFRS_DepExp_2013'!O53+((C53*0.5)/D53)) -> 0 | H53: 0
A54: etc. | E54: 0 | F54: =IF(D54=0,'App.2-CL_MIFRS_DepExp_2013'!O54,+'App.2-CL_MIFRS_DepExp_2013'!O54+((C54*0.5)/D54)) -> 0 | H54: 0
E55: 0 | F55: =IF(D55=0,'App.2-CL_MIFRS_DepExp_2013'!O55,+'App.2-CL_MIFRS_DepExp_2013'!O55+((C55*0.5)/D55)) -> 0 | H55: 0
B56: Total | C56: =SUM(C16:C55) -> 0 | F56: =SUM(F16:F55) -> 0 | G56: =SUM(G16:G55) -> 0 | H56: =SUM(H16:H55) -> 0
B57: Depreciation exp. adj. from gain or loss on the retirement of assets (pool of like assets) | F57: 0
B58: Total Depreciation expense to be included in the test year revenue requirement | F58: =SUM(F56:F57) -> 0
A60: Notes:
A61: 1 | B61: Board policy of the "half-year" rule - the applicant must ensure that additions in the year attract a half-year depreciation expense in the first year. Deviations from this standard practice must be supported in the application.
A62: 2 | B62: The applicant must provide an explanation of material variances in evidence.
A65: General: | B65: Applicants must provide a breakdown of depreciation and amortization expense in the above format for all relevant accounts. Asset Retirement Obligations (AROs), depreciation and accretion expense should be disclosed separately consistent with the Notes of historical Audited Financial Statements.

Sheet Instruction for App. 2-C CGAAP (hidden)
A1: General Instructions to CGAAP - ASPE Appendices
A2: Types of Schedules to File
A5: Applicants filing a CGAAP or ASPE application should provide the following information:
A7: Depreciation and Amortization - Appendix 2-C
A8: If an applicant chooses to remain on CGAAP or adopt ASPE and make the changes to capitalization and depreciation expense policies in 2012, the applicant must complete Appendix 2-CN to Appendix 2-CQ (inclusive).
A9: If an applicant chooses to remain on CGAAP or adopt ASPE and make the changes to capitalization and depreciation expense policies in 2013, the applicant must complete Appendix 2-CR to Appendix 2-CU (inclusive).
A11: Account 1576, Accounting Changes Under CGAAP - Appendix 2-ED, Appendix 2-EE
A12: Please refer to section 2.12.5 of the Filing Requirements.

Sheet App.2-CN_OldCGAAP_DepExp_2012 (hidden)
K1: File Number: | L1: =EBNUMBER -> EB-2014-0113
K2: Exhibit:
K3: Tab:
K4: Schedule:
K5: Page:
K7: Date:
A9: Appendix 2-CN
A10: Depreciation and Amortization Expense
A11: Assumes the applicant made capitalization and depreciation expense accounting policy changes under CGAAP effective January 1, 2012
C12: Year | D12: 2012 | E12: Former CGAAP - CGAAP without the changes to the policies
A14: Account | B14: Description | C14: Opening Regulatory Gross PP&E as at Jan 1, 2012 | D14: Less Fully Depreciated | E14: Net for Depreciation | F14: Additions | G14: Total for Depreciation | H14: Years | I14: Depreciation Rate | J14: Depreciation Expense | K14: 2012 Depreciation Expense per Appendix 2-B Fixed Assets, Column K (l) | L14: Variance 2
C15: (a) | D15: (b) | E15: (c) | F15: (d) | G15: (e) = (c) + ½ x (d) 1 | H15: (f) | I15: (g) = 1 / (f) | J15: (h) = (e) / (f) | L15: (m) = (h) - (l)
A16: 1611 | B16: Computer Software (Formally known as Account 1925) | E16: =C16-D16 -> 0 | G16: =E16+0.5*F16 -> 0 | I16: =IF(H16=0,0,1/H16) -> 0 | J16: =IF(H16=0,0,G16/H16) -> 0 | L16: =IF(ISERROR(+J16-K16), 0, +J16-K16) -> 0
A17: 1612 | B17: Land Rights (Formally known as Account 1906) | E17: =C17-D17 -> 0 | G17: =E17+0.5*F17 -> 0 | I17: 0 | J17: 0 | L17: 0
A18: 1805 | B18: Land | E18: 0 | G18: 0 | I18: 0 | J18: 0 | L18: 0
A19: 1808 | B19: Buildings | E19: 0 | G19: 0 | I19: 0 | J19: 0 | L19: 0
A20: 1810 | B20: Leasehold Improvements | E20: 0 | G20: 0 | I20: 0 | J20: 0 | L20: 0
A21: 1815 | B21: Transformer Station Equipment >50 kV | E21: 0 | G21: 0 | I21: 0 | J21: 0 | L21: 0
A22: 1820 | B22: Distribution Station Equipment <50 kV | E22: 0 | G22: 0 | I22: 0 | J22: 0 | L22: 0
A23: 1825 | B23: Storage Battery Equipment | E23: 0 | G23: 0 | I23: 0 | J23: 0 | L23: 0
A24: 1830 | B24: Poles, Towers & Fixtures | E24: 0 | G24: 0 | I24: 0 | J24: 0 | L24: 0
A25: 1835 | B25: Overhead Conductors & Devices | E25: 0 | G25: 0 | I25: 0 | J25: 0 | L25: 0
A26: 1840 | B26: Underground Conduit | E26: 0 | G26: 0 | I26: 0 | J26: 0 | L26: 0
A27: 1845 | B27: Underground Conductors & Devices | E27: 0 | G27: 0 | I27: 0 | J27: 0 | L27: 0
A28: 1850 | B28: Line Transformers | E28: 0 | G28: 0 | I28: 0 | J28: 0 | L28: 0
A29: 1855 | B29: Services (Overhead & Underground) | E29: 0 | G29: 0 | I29: 0 | J29: 0 | L29: 0
A30: 1860 | B30: Meters | E30: 0 | G30: 0 | I30: 0 | J30: 0 | L30: 0
A31: 1860 | B31: Meters (Smart Meters) | E31: 0 | G31: 0 | I31: 0 | J31: 0 | L31: 0
A32: 1905 | B32: Land | E32: 0 | G32: 0 | I32: 0 | J32: 0 | L32: 0
A33: 1908 | B33: Buildings & Fixtures | E33: 0 | G33: 0 | I33: 0 | J33: 0 | L33: 0
A34: 1910 | B34: Leasehold Improvements | E34: 0 | G34: 0 | I34: 0 | J34: 0 | L34: 0
A35: 1915 | B35: Office Furniture & Equipment (10 years) | E35: 0 | G35: 0 | I35: 0 | J35: 0 | L35: 0
A36: 1915 | B36: Office Furniture & Equipment (5 years) | E36: 0 | G36: 0 | I36: 0 | J36: 0 | L36: 0
A37: 1920 | B37: Computer Equipment - Hardware | E37: 0 | G37: 0 | I37: 0 | J37: 0 | L37: 0
A38: 1920 | B38: Computer Equip.-Hardware(Post Mar. 22/04) | E38: 0 | G38: 0 | I38: 0 | J38: 0 | L38: 0
A39: 1920 | B39: Computer Equip.-Hardware(Post Mar. 19/07) | E39: 0 | G39: 0 | I39: 0 | J39: 0 | L39: 0
A40: 1930 | B40: Transportation Equipment | E40: 0 | G40: 0 | I40: 0 | J40: 0 | L40: 0
A41: 1935 | B41: Stores Equipment | E41: 0 | G41: 0 | I41: 0 | J41: 0 | L41: 0
A42: 1940 | B42: Tools, Shop & Garage Equipment | E42: 0 | G42: 0 | I42: 0 | J42: 0 | L42: 0
A43: 1945 | B43: Measurement & Testing Equipment | E43: 0 | G43: 0 | I43: 0 | J43: 0 | L43: 0
A44: 1950 | B44: Power Operated Equipment | E44: 0 | G44: 0 | I44: 0 | J44: 0 | L44: 0
A45: 1955 | B45: Communications Equipment | E45: 0 | G45: 0 | I45: 0 | J45: 0 | L45: 0
A46: 1955 | B46: Communication Equipment (Smart Meters) | E46: 0 | G46: 0 | I46: 0 | J46: 0 | L46: 0
A47: 1960 | B47: Miscellaneous Equipment | E47: 0 | G47: 0 | I47: 0 | J47: 0 | L47: 0
A48: 1970 | B48: Load Management Controls - Customer Premises | E48: 0 | G48: 0 | I48: 0 | J48: 0 | L48: 0
A49: 1975 | B49: Load Management Controls Utility Premises | E49: 0 | G49: 0 | I49: 0 | J49: 0 | L49: 0
A50: 1980 | B50: System Supervisor Equipment | E50: 0 | G50: 0 | I50: 0 | J50: 0 | L50: 0
A51: 1985 | B51: Miscellaneous Fixed Assets | E51: 0 | G51: 0 | I51: 0 | J51: 0 | L51: 0
A52: 1990 | B52: Other Tangible Property | E52: 0 | G52: 0 | I52: 0 | J52: 0 | L52: 0
A53: 1995 | B53: Contributions & Grants | E53: 0 | G53: 0 | I53: 0 | J53: 0 | L53: 0
A54: etc. | E54: 0 | G54: 0 | I54: 0 | J54: 0 | L54: 0
E55: 0 | G55: 0 | I55: 0 | J55: 0 | L55: 0
B56: Total | C56: =SUM(C16:C55) -> 0 | D56: =SUM(D16:D55) -> 0 | E56: =SUM(E16:E55) -> 0 | F56: =SUM(F16:F55) -> 0 | G56: =SUM(G16:G55) -> 0 | J56: =SUM(J16:J55) -> 0 | K56: =SUM(K16:K55) -> 0 | L56: =SUM(L16:L55) -> 0
A58: Notes:
A60: 1 | B60: Board policy of the "half-year" rule - the applicant must ensure that additions in the year attract a half-year depreciation expense in the first year. Deviations from this standard practice must be supported in the application.
A61: 2 | B61: The applicant must provide an explanation of material variances in evidence.
A63: General | B63: Applicants must provide a breakdown of depreciation and amortization expense in the above format for all relevant accounts. Asset Retirement Obligations (AROs), depreciation and accretion expense should be disclosed separately consistent with the Notes of historical Audited Financial Statements.

Sheet App.2-CO_NewCGAAP_DepExp_2012 (hidden)
N1: File Number: | O1: =EBNUMBER -> EB-2014-0113
N2: Exhibit:
N3: Tab:
N4: Schedule:
N5: Page:
N7: Date:
A9: Appendix 2-CO
A10: Depreciation and Amortization Expense
A11: Assumes the applicant made capitalization and depreciation expense accounting policy changes under CGAAP effective January 1, 2012
C13: Year | D13: 2012 | E13: Revised CGAAP or ASPE - CGAAP or ASPE with the changes to the policies
A15: Account | B15: Description | C15: Opening NBV as at Jan 1, 2012 5 | D15: Additions | E15: Average Remaining Life of Opening NBV 4 | F15: Years (new additions only) 3 | G15: Depreciation Rate on New Additions | H15: Depreciation Expense on Opening NBV | I15: Depreciation Expense on Additions 1 | J15: 2012 Depreciation Expense | K15: 2012 Depreciation Expense per Appendix 2-B Fixed Assets, Column K (l) | L15: Variance 2 | M15: Depreciation Expense on 2012 Full Year Additions | N15: Less Depreciation Expense on Assets Fully Depreciated during the year (o) | O15: 2012 Full Year Depreciation 6
C16: (a) | D16: (d) | E16: (i) | F16: (f) | G16: (g) = 1 / (f) | H16: (j) = (a) / (i) | I16: (h)=((d)*0.5)/(f) | J16: (k) = (j) + (h) | L16: (m) = (k) - (l) | M16: (n) = (d)/(f) | O16: (p) = (j) + (n) - (o)
A17: 1611 | B17: Computer Software (Formally known as Account 1925) | G17: =IF(F17=0,0,1/F17) -> 0 | H17: =IF(E17=0,0,+C17/E17) -> 0 | I17: =IF(F17=0,0,+(D17*0.5)/F17) -> 0 | J17: =IF(ISERROR(+H17+I17), 0, +H17+I17) -> 0 | L17: =IF(ISERROR(+J17-K17), 0, +J17-K17) -> 0 | M17: =IF(F17=0,0,+(D17)/F17) -> 0 | O17: =IF(ISERROR(+M17+H17-N17), 0, +M17+H17-N17) -> 0
A18: 1612 | B18: Land Rights (Formally known as Account 1906) | G18: 0 | H18: 0 | I18: 0 | J18: 0 | L18: 0 | M18: 0 | O18: =IF(ISERROR(+M18+H18-N18), 0, +M18+H18-N18) -> 0
A19: 1805 | B19: Land | G19: 0 | H19: 0 | I19: 0 | J19: 0 | L19: 0 | M19: 0 | O19: 0
A20: 1808 | B20: Buildings | G20: 0 | H20: 0 | I20: 0 | J20: 0 | L20: 0 | M20: 0 | O20: 0
A21: 1810 | B21: Leasehold Improvements | G21: 0 | H21: 0 | I21: 0 | J21: 0 | L21: 0 | M21: 0 | O21: 0
A22: 1815 | B22: Transformer Station Equipment >50 kV | G22: 0 | H22: 0 | I22: 0 | J22: 0 | L22: 0 | M22: 0 | O22: 0
A23: 1820 | B23: Distribution Station Equipment <50 kV | G23: 0 | H23: 0 | I23: 0 | J23: 0 | L23: 0 | M23: 0 | O23: 0
A24: 1825 | B24: Storage Battery Equipment | G24: 0 | H24: 0 | I24: 0 | J24: 0 | L24: 0 | M24: 0 | O24: 0
A25: 1830 | B25: Poles, Towers & Fixtures | G25: 0 | H25: 0 | I25: 0 | J25: 0 | L25: 0 | M25: 0 | O25: 0
A26: 1835 | B26: Overhead Conductors & Devices | G26: 0 | H26: 0 | I26: 0 | J26: 0 | L26: 0 | M26: 0 | O26: 0
A27: 1840 | B27: Underground Conduit | G27: 0 | H27: 0 | I27: 0 | J27: 0 | L27: 0 | M27: 0 | O27: 0
A28: 1845 | B28: Underground Conductors & Devices | G28: 0 | H28: 0 | I28: 0 | J28: 0 | L28: 0 | M28: 0 | O28: 0
A29: 1850 | B29: Line Transformers | G29: 0 | H29: 0 | I29: 0 | J29: 0 | L29: 0 | M29: 0 | O29: 0
A30: 1855 | B30: Services (Overhead & Underground) | G30: 0 | H30: 0 | I30: 0 | J30: 0 | L30: 0 | M30: 0 | O30: 0
A31: 1860 | B31: Meters | G31: 0 | H31: 0 | I31: 0 | J31: 0 | L31: 0 | M31: 0 | O31: 0
A32: 1860 | B32: Meters (Smart Meters) | G32: 0 | H32: 0 | I32: 0 | J32: 0 | L32: 0 | M32: 0 | O32: 0
A33: 1905 | B33: Land | G33: 0 | H33: 0 | I33: 0 | J33: 0 | L33: 0 | M33: 0 | O33: 0
A34: 1908 | B34: Buildings & Fixtures | G34: 0 | H34: 0 | I34: 0 | J34: 0 | L34: 0 | M34: 0 | O34: 0
A35: 1910 | B35: Leasehold Improvements | G35: 0 | H35: 0 | I35: 0 | J35: 0 | L35: 0 | M35: 0 | O35: 0
A36: 1915 | B36: Office Furniture & Equipment (10 years) | G36: 0 | H36: 0 | I36: 0 | J36: 0 | L36: 0 | M36: 0 | O36: 0
A37: 1915 | B37: Office Furniture & Equipment (5 years) | G37: 0 | H37: 0 | I37: 0 | J37: 0 | L37: 0 | M37: 0 | O37: 0
A38: 1920 | B38: Computer Equipment - Hardware | G38: 0 | H38: 0 | I38: 0 | J38: 0 | L38: 0 | M38: 0 | O38: 0
A39: 1920 | B39: Computer Equip.-Hardware(Post Mar. 22/04) | G39: 0 | H39: 0 | I39: 0 | J39: 0 | L39: 0 | M39: 0 | O39: 0
A40: 1920 | B40: Computer Equip.-Hardware(Post Mar. 19/07) | G40: 0 | H40: 0 | I40: 0 | J40: 0 | L40: 0 | M40: 0 | O40: 0
A41: 1930 | B41: Transportation Equipment | G41: 0 | H41: 0 | I41: 0 | J41: 0 | L41: 0 | M41: 0 | O41: 0
A42: 1935 | B42: Stores Equipment | G42: 0 | H42: 0 | I42: 0 | J42: 0 | L42: 0 | M42: 0 | O42: 0
A43: 1940 | B43: Tools, Shop & Garage Equipment | G43: 0 | H43: 0 | I43: 0 | J43: 0 | L43: 0 | M43: 0 | O43: 0
A44: 1945 | B44: Measurement & Testing Equipment | G44: 0 | H44: 0 | I44: 0 | J44: 0 | L44: 0 | M44: 0 | O44: 0
A45: 1950 | B45: Power Operated Equipment | G45: 0 | H45: 0 | I45: 0 | J45: 0 | L45: 0 | M45: 0 | O45: 0
A46: 1955 | B46: Communications Equipment | G46: 0 | H46: 0 | I46: 0 | J46: 0 | L46: 0 | M46: 0 | O46: 0
A47: 1955 | B47: Communication Equipment (Smart Meters) | G47: 0 | H47: 0 | I47: 0 | J47: 0 | L47: 0 | M47: 0 | O47: 0
A48: 1960 | B48: Miscellaneous Equipment | G48: 0 | H48: 0 | I48: 0 | J48: 0 | L48: 0 | M48: 0 | O48: 0
A49: 1970 | B49: Load Management Controls - Customer Premises | G49: 0 | H49: 0 | I49: 0 | J49: 0 | L49: 0 | M49: 0 | O49: 0
A50: 1975 | B50: Load Management Controls Utility Premises | G50: 0 | H50: 0 | I50: 0 | J50: 0 | L50: 0 | M50: 0 | O50: 0
A51: 1980 | B51: System Supervisor Equipment | G51: 0 | H51: 0 | I51: 0 | J51: 0 | L51: 0 | M51: 0 | O51: 0
A52: 1985 | B52: Miscellaneous Fixed Assets | G52: 0 | H52: 0 | I52: 0 | J52: 0 | L52: 0 | M52: 0 | O52: 0
A53: 1990 | B53: Other Tangible Property | G53: 0 | H53: 0 | I53: 0 | J53: 0 | L53: 0 | M53: 0 | O53: 0
A54: 1995 | B54: Contributions & Grants | G54: 0 | H54: 0 | I54: 0 | J54: 0 | L54: 0 | M54: 0 | O54: 0
A55: etc. | G55: 0 | H55: 0 | I55: 0 | J55: 0 | L55: 0 | M55: 0 | O55: 0
G56: 0 | H56: 0 | I56: 0 | J56: 0 | L56: 0 | M56: 0 | O56: 0
B57: Total | C57: =SUM(C17:C56) -> 0 | D57: =SUM(D17:D56) -> 0 | H57: =SUM(H17:H56) -> 0 | I57: 0 | J57: 0 | K57: 0 | L57: 0 | M57: 0 | N57: =SUM(N17:N56) -> 0 | O57: 0
A59: Notes:
A61: 1 | B61: Board policy of the "half-year" rule - the applicant must ensure that additions in the year attract a half-year depreciation expense in the first year. Deviations from this standard practice must be supported in the application.
A62: 2 | B62: The applicant must provide an explanation of material variances in evidence.
A63: 3 | B63: The applicant should ensure that the years for new additions of assets are the asset useful lives determined by management in accordance with the Board's regulatory accounting policies. The capitalization and depreciation expense accounting changes should be implemented consistent with the Board’s regulatory accounting policies as set out for modified IFRS as contained in the Report of the Board, Transition to International Financial Reporting Standards, EB-2008-0408, the Kinectrics Report, and the Revised 2012 Accounting Procedures Handbook for Electricity Distributors (“APH”).
A64: 4 | B64: A recalculation should be performed to determine the average remaining life of opening balance of assets (i.e. excluding 2012 additions) under the change in policies under CGAAP. For example, Asset A had a useful life of 20 years under CGAAP without the change in policies. On January 1, 2012, the effective date of the changes in policies, Asset A was 3 years depreciated. As a result, Asset A would have a remaining service life of 17 years (20 years less 3 years) as of January 1, 2012. Due to making the change in policies under CGAAP, management re-assessed the asset useful lives and concluded that the revised useful life of Asset A is now 30 years. Therefore, the average remaining useful life of the opening balance of Asset A is determined to be 27 years (30 years less 3 years) under the revised CGAAP as of January 1, 2012.
A65: 5 | B65: NBV must exclude assets still on the books but which have been fully amortized or depreciated.
A66: 6 | B66: This column refers to the calculated full year depreciation but excludes the depreciation expense on assets fully depreciated during the year. This column is used for the purpose of calculating depreciation expense in the following year on the next worksheet.
A68: General: | B68: Applicants must provide a breakdown of depreciation and amortization expense in the above format for all relevant accounts. Asset Retirement Obligations (AROs), depreciation and accretion expense should be disclosed separately consistent with the Notes of historical Audited Financial Statements.

Sheet App.2-CP_NewCGAAP_DepExp_2013 (hidden)
J1: File Number: | K1: =EBNUMBER -> EB-2014-0113
J2: Exhibit:
J3: Tab:
J4: Schedule:
J5: Page:
J7: Date:
A9: Appendix 2-CP
A10: Depreciation and Amortization Expense
A11: Assumes the applicant made capitalization and depreciation expense accounting policy changes under CGAAP effective January 1, 2012
C12: 2013 | D12: Revised CGAAP or ASPE - CGAAP or ASPE with the changes to the policies
A14: Account | B14: Description | C14: Additions | D14: Years (new additions only) | E14: Depreciation Rate on New Additions | F14: 2013 Depreciation Expense 1 | G14: 2013 Depreciation Expense per Apppendix 2-B Fixed Assets, Column K (l) | H14: Variance 2 | I14: Depreciation Expense on 2013 Full Year Additions | J14: Less Depreciation Expense on Assets Fully Depreciated during the year (o) | K14: 2013 Full Year Depreciation 3
C15: (d) | D15: (f) | E15: (g) = 1 / (f) | F15: (h)=2012 Full Year Deprecation + ((d)*0.5)/(f) | H15: (m) = (h) - (l) | I15: (n)=((d))/(f) | K15: (p) = 2012 Full Year Depreciation + (n) - (o)
A16: 1611 | B16: Computer Software (Formally known as Account 1925) | E16: =IF(D16=0,0,1/D16) -> 0 | F16: =IF(D16=0,+'App.2-CO_NewCGAAP_DepExp_2012'!O17,+'App.2-CO_NewCGAAP_DepExp_2012'!O17+((C16*0.5)/D16)) -> 0 | H16: =IF(ISERROR(+F16-G16), 0, +F16-G16) -> 0 | I16: =IF(D16=0,0,+(C16)/D16) -> 0 | K16: =IF(ISERROR(+I16+'App.2-CO_NewCGAAP_DepExp_2012'!O17-J16), 0, +I16+'App.2-CO_NewCGAAP_DepExp_2012'!O17-J16) -> 0
A17: 1612 | B17: Land Rights (Formally known as Account 1906) | E17: 0 | F17: =IF(D17=0,+'App.2-CO_NewCGAAP_DepExp_2012'!O18,+'App.2-CO_NewCGAAP_DepExp_2012'!O18+((C17*0.5)/D17)) -> 0 | H17: 0 | I17: 0 | K17: =IF(ISERROR(+I17+'App.2-CO_NewCGAAP_DepExp_2012'!O18-J17), 0, +I17+'App.2-CO_NewCGAAP_DepExp_2012'!O18-J17) -> 0
A18: 1805 | B18: Land | E18: 0 | F18: =IF(D18=0,+'App.2-CO_NewCGAAP_DepExp_2012'!O19,+'App.2-CO_NewCGAAP_DepExp_2012'!O19+((C18*0.5)/D18)) -> 0 | H18: 0 | I18: 0 | K18: =IF(ISERROR(+I18+'App.2-CO_NewCGAAP_DepExp_2012'!O19-J18), 0, +I18+'App.2-CO_NewCGAAP_DepExp_2012'!O19-J18) -> 0
A19: 1808 | B19: Buildings | E19: 0 | F19: =IF(D19=0,+'App.2-CO_NewCGAAP_DepExp_2012'!O20,+'App.2-CO_NewCGAAP_DepExp_2012'!O20+((C19*0.5)/D19)) -> 0 | H19: 0 | I19: 0 | K19: =IF(ISERROR(+I19+'App.2-CO_NewCGAAP_DepExp_2012'!O20-J19), 0, +I19+'App.2-CO_NewCGAAP_DepExp_2012'!O20-J19) -> 0
A20: 1810 | B20: Leasehold Improvements | E20: 0 | F20: =IF(D20=0,+'App.2-CO_NewCGAAP_DepExp_2012'!O21,+'App.2-CO_NewCGAAP_DepExp_2012'!O21+((C20*0.5)/D20)) -> 0 | H20: 0 | I20: 0 | K20: =IF(ISERROR(+I20+'App.2-CO_NewCGAAP_DepExp_2012'!O21-J20), 0, +I20+'App.2-CO_NewCGAAP_DepExp_2012'!O21-J20) -> 0
A21: 1815 | B21: Transformer Station Equipment >50 kV | E21: 0 | F21: =IF(D21=0,+'App.2-CO_NewCGAAP_DepExp_2012'!O22,+'App.2-CO_NewCGAAP_DepExp_2012'!O22+((C21*0.5)/D21)) -> 0 | H21: 0 | I21: 0 | K21: =IF(ISERROR(+I21+'App.2-CO_NewCGAAP_DepExp_2012'!O22-J21), 0, +I21+'App.2-CO_NewCGAAP_DepExp_2012'!O22-J21) -> 0
A22: 1820 | B22: Distribution Station Equipment <50 kV | E22: 0 | F22: =IF(D22=0,+'App.2-CO_NewCGAAP_DepExp_2012'!O23,+'App.2-CO_NewCGAAP_DepExp_2012'!O23+((C22*0.5)/D22)) -> 0 | H22: 0 | I22: 0 | K22: =IF(ISERROR(+I22+'App.2-CO_NewCGAAP_DepExp_2012'!O23-J22), 0, +I22+'App.2-CO_NewCGAAP_DepExp_2012'!O23-J22) -> 0
A23: 1825 | B23: Storage Battery Equipment | E23: 0 | F23: =IF(D23=0,+'App.2-CO_NewCGAAP_DepExp_2012'!O24,+'App.2-CO_NewCGAAP_DepExp_2012'!O24+((C23*0.5)/D23)) -> 0 | H23: 0 | I23: 0 | K23: =IF(ISERROR(+I23+'App.2-CO_NewCGAAP_DepExp_2012'!O24-J23), 0, +I23+'App.2-CO_NewCGAAP_DepExp_2012'!O24-J23) -> 0
A24: 1830 | B24: Poles, Towers & Fixtures | E24: 0 | F24: =IF(D24=0,+'App.2-CO_NewCGAAP_DepExp_2012'!O25,+'App.2-CO_NewCGAAP_DepExp_2012'!O25+((C24*0.5)/D24)) -> 0 | H24: 0 | I24: 0 | K24: =IF(ISERROR(+I24+'App.2-CO_NewCGAAP_DepExp_2012'!O25-J24), 0, +I24+'App.2-CO_NewCGAAP_DepExp_2012'!O25-J24) -> 0
A25: 1835 | B25: Overhead Conductors & Devices | E25: 0 | F25: =IF(D25=0,+'App.2-CO_NewCGAAP_DepExp_2012'!O26,+'App.2-CO_NewCGAAP_DepExp_2012'!O26+((C25*0.5)/D25)) -> 0 | H25: 0 | I25: 0 | K25: =IF(ISERROR(+I25+'App.2-CO_NewCGAAP_DepExp_2012'!O26-J25), 0, +I25+'App.2-CO_NewCGAAP_DepExp_2012'!O26-J25) -> 0
A26: 1840 | B26: Underground Conduit | E26: 0 | F26: =IF(D26=0,+'App.2-CO_NewCGAAP_DepExp_2012'!O27,+'App.2-CO_NewCGAAP_DepExp_2012'!O27+((C26*0.5)/D26)) -> 0 | H26: 0 | I26: 0 | K26: =IF(ISERROR(+I26+'App.2-CO_NewCGAAP_DepExp_2012'!O27-J26), 0, +I26+'App.2-CO_NewCGAAP_DepExp_2012'!O27-J26) -> 0
A27: 1845 | B27: Underground Conductors & Devices | E27: 0 | F27: =IF(D27=0,+'App.2-CO_NewCGAAP_DepExp_2012'!O28,+'App.2-CO_NewCGAAP_DepExp_2012'!O28+((C27*0.5)/D27)) -> 0 | H27: 0 | I27: 0 | K27: =IF(ISERROR(+I27+'App.2-CO_NewCGAAP_DepExp_2012'!O28-J27), 0, +I27+'App.2-CO_NewCGAAP_DepExp_2012'!O28-J27) -> 0
A28: 1850 | B28: Line Transformers | E28: 0 | F28: =IF(D28=0,+'App.2-CO_NewCGAAP_DepExp_2012'!O29,+'App.2-CO_NewCGAAP_DepExp_2012'!O29+((C28*0.5)/D28)) -> 0 | H28: 0 | I28: 0 | K28: =IF(ISERROR(+I28+'App.2-CO_NewCGAAP_DepExp_2012'!O29-J28), 0, +I28+'App.2-CO_NewCGAAP_DepExp_2012'!O29-J28) -> 0
A29: 1855 | B29: Services (Overhead & Underground) | E29: 0 | F29: =IF(D29=0,+'App.2-CO_NewCGAAP_DepExp_2012'!O30,+'App.2-CO_NewCGAAP_DepExp_2012'!O30+((C29*0.5)/D29)) -> 0 | H29: 0 | I29: 0 | K29: =IF(ISERROR(+I29+'App.2-CO_NewCGAAP_DepExp_2012'!O30-J29), 0, +I29+'App.2-CO_NewCGAAP_DepExp_2012'!O30-J29) -> 0
A30: 1860 | B30: Meters | E30: 0 | F30: =IF(D30=0,+'App.2-CO_NewCGAAP_DepExp_2012'!O31,+'App.2-CO_NewCGAAP_DepExp_2012'!O31+((C30*0.5)/D30)) -> 0 | H30: 0 | I30: 0 | K30: =IF(ISERROR(+I30+'App.2-CO_NewCGAAP_DepExp_2012'!O31-J30), 0, +I30+'App.2-CO_NewCGAAP_DepExp_2012'!O31-J30) -> 0
A31: 1860 | B31: Meters (Smart Meters) | E31: 0 | F31: =IF(D31=0,+'App.2-CO_NewCGAAP_DepExp_2012'!O32,+'App.2-CO_NewCGAAP_DepExp_2012'!O32+((C31*0.5)/D31)) -> 0 | H31: 0 | I31: 0 | K31: =IF(ISERROR(+I31+'App.2-CO_NewCGAAP_DepExp_2012'!O32-J31), 0, +I31+'App.2-CO_NewCGAAP_DepExp_2012'!O32-J31) -> 0
A32: 1905 | B32: Land | E32: 0 | F32: =IF(D32=0,+'App.2-CO_NewCGAAP_DepExp_2012'!O33,+'App.2-CO_NewCGAAP_DepExp_2012'!O33+((C32*0.5)/D32)) -> 0 | H32: 0 | I32: 0 | K32: =IF(ISERROR(+I32+'App.2-CO_NewCGAAP_DepExp_2012'!O33-J32), 0, +I32+'App.2-CO_NewCGAAP_DepExp_2012'!O33-J32) -> 0
A33: 1908 | B33: Buildings & Fixtures | E33: 0 | F33: =IF(D33=0,+'App.2-CO_NewCGAAP_DepExp_2012'!O34,+'App.2-CO_NewCGAAP_DepExp_2012'!O34+((C33*0.5)/D33)) -> 0 | H33: 0 | I33: 0 | K33: =IF(ISERROR(+I33+'App.2-CO_NewCGAAP_DepExp_2012'!O34-J33), 0, +I33+'App.2-CO_NewCGAAP_DepExp_2012'!O34-J33) -> 0
A34: 1910 | B34: Leasehold Improvements | E34: 0 | F34: =IF(D34=0,+'App.2-CO_NewCGAAP_DepExp_2012'!O35,+'App.2-CO_NewCGAAP_DepExp_2012'!O35+((C34*0.5)/D34)) -> 0 | H34: 0 | I34: 0 | K34: =IF(ISERROR(+I34+'App.2-CO_NewCGAAP_DepExp_2012'!O35-J34), 0, +I34+'App.2-CO_NewCGAAP_DepExp_2012'!O35-J34) -> 0
A35: 1915 | B35: Office Furniture & Equipment (10 years) | E35: 0 | F35: =IF(D35=0,+'App.2-CO_NewCGAAP_DepExp_2012'!O36,+'App.2-CO_NewCGAAP_DepExp_2012'!O36+((C35*0.5)/D35)) -> 0 | H35: 0 | I35: 0 | K35: =IF(ISERROR(+I35+'App.2-CO_NewCGAAP_DepExp_2012'!O36-J35), 0, +I35+'App.2-CO_NewCGAAP_DepExp_2012'!O36-J35) -> 0
A36: 1915 | B36: Office Furniture & Equipment (5 years) | E36: 0 | F36: =IF(D36=0,+'App.2-CO_NewCGAAP_DepExp_2012'!O37,+'App.2-CO_NewCGAAP_DepExp_2012'!O37+((C36*0.5)/D36)) -> 0 | H36: 0 | I36: 0 | K36: =IF(ISERROR(+I36+'App.2-CO_NewCGAAP_DepExp_2012'!O37-J36), 0, +I36+'App.2-CO_NewCGAAP_DepExp_2012'!O37-J36) -> 0
A37: 1920 | B37: Computer Equipment - Hardware | E37: 0 | F37: =IF(D37=0,+'App.2-CO_NewCGAAP_DepExp_2012'!O38,+'App.2-CO_NewCGAAP_DepExp_2012'!O38+((C37*0.5)/D37)) -> 0 | H37: 0 | I37: 0 | K37: =IF(ISERROR(+I37+'App.2-CO_NewCGAAP_DepExp_2012'!O38-J37), 0, +I37+'App.2-CO_NewCGAAP_DepExp_2012'!O38-J37) -> 0
A38: 1920 | B38: Computer Equip.-Hardware(Post Mar. 22/04) | E38: 0 | F38: =IF(D38=0,+'App.2-CO_NewCGAAP_DepExp_2012'!O39,+'App.2-CO_NewCGAAP_DepExp_2012'!O39+((C38*0.5)/D38)) -> 0 | H38: 0 | I38: 0 | K38: =IF(ISERROR(+I38+'App.2-CO_NewCGAAP_DepExp_2012'!O39-J38), 0, +I38+'App.2-CO_NewCGAAP_DepExp_2012'!O39-J38) -> 0
A39: 1920 | B39: Computer Equip.-Hardware(Post Mar. 19/07) | E39: 0 | F39: =IF(D39=0,+'App.2-CO_NewCGAAP_DepExp_2012'!O40,+'App.2-CO_NewCGAAP_DepExp_2012'!O40+((C39*0.5)/D39)) -> 0 | H39: 0 | I39: 0 | K39: =IF(ISERROR(+I39+'App.2-CO_NewCGAAP_DepExp_2012'!O40-J39), 0, +I39+'App.2-CO_NewCGAAP_DepExp_2012'!O40-J39) -> 0
A40: 1930 | B40: Transportation Equipment | E40: 0 | F40: =IF(D40=0,+'App.2-CO_NewCGAAP_DepExp_2012'!O41,+'App.2-CO_NewCGAAP_DepExp_2012'!O41+((C40*0.5)/D40)) -> 0 | H40: 0 | I40: 0 | K40: =IF(ISERROR(+I40+'App.2-CO_NewCGAAP_DepExp_2012'!O41-J40), 0, +I40+'App.2-CO_NewCGAAP_DepExp_2012'!O41-J40) -> 0
A41: 1935 | B41: Stores Equipment | E41: 0 | F41: =IF(D41=0,+'App.2-CO_NewCGAAP_DepExp_2012'!O42,+'App.2-CO_NewCGAAP_DepExp_2012'!O42+((C41*0.5)/D41)) -> 0 | H41: 0 | I41: 0 | K41: =IF(ISERROR(+I41+'App.2-CO_NewCGAAP_DepExp_2012'!O42-J41), 0, +I41+'App.2-CO_NewCGAAP_DepExp_2012'!O42-J41) -> 0
A42: 1940 | B42: Tools, Shop & Garage Equipment | E42: 0 | F42: =IF(D42=0,+'App.2-CO_NewCGAAP_DepExp_2012'!O43,+'App.2-CO_NewCGAAP_DepExp_2012'!O43+((C42*0.5)/D42)) -> 0 | H42: 0 | I42: 0 | K42: =IF(ISERROR(+I42+'App.2-CO_NewCGAAP_DepExp_2012'!O43-J42), 0, +I42+'App.2-CO_NewCGAAP_DepExp_2012'!O43-J42) -> 0
A43: 1945 | B43: Measurement & Testing Equipment | E43: 0 | F43: =IF(D43=0,+'App.2-CO_NewCGAAP_DepExp_2012'!O44,+'App.2-CO_NewCGAAP_DepExp_2012'!O44+((C43*0.5)/D43)) -> 0 | H43: 0 | I43: 0 | K43: =IF(ISERROR(+I43+'App.2-CO_NewCGAAP_DepExp_2012'!O44-J43), 0, +I43+'App.2-CO_NewCGAAP_DepExp_2012'!O44-J43) -> 0
A44: 1950 | B44: Power Operated Equipment | E44: 0 | F44: =IF(D44=0,+'App.2-CO_NewCGAAP_DepExp_2012'!O45,+'App.2-CO_NewCGAAP_DepExp_2012'!O45+((C44*0.5)/D44)) -> 0 | H44: 0 | I44: 0 | K44: =IF(ISERROR(+I44+'App.2-CO_NewCGAAP_DepExp_2012'!O45-J44), 0, +I44+'App.2-CO_NewCGAAP_DepExp_2012'!O45-J44) -> 0
A45: 1955 | B45: Communications Equipment | E45: 0 | F45: =IF(D45=0,+'App.2-CO_NewCGAAP_DepExp_2012'!O46,+'App.2-CO_NewCGAAP_DepExp_2012'!O46+((C45*0.5)/D45)) -> 0 | H45: 0 | I45: 0 | K45: =IF(ISERROR(+I45+'App.2-CO_NewCGAAP_DepExp_2012'!O46-J45), 0, +I45+'App.2-CO_NewCGAAP_DepExp_2012'!O46-J45) -> 0
A46: 1955 | B46: Communication Equipment (Smart Meters) | E46: 0 | F46: =IF(D46=0,+'App.2-CO_NewCGAAP_DepExp_2012'!O47,+'App.2-CO_NewCGAAP_DepExp_2012'!O47+((C46*0.5)/D46)) -> 0 | H46: 0 | I46: 0 | K46: =IF(ISERROR(+I46+'App.2-CO_NewCGAAP_DepExp_2012'!O47-J46), 0, +I46+'App.2-CO_NewCGAAP_DepExp_2012'!O47-J46) -> 0
A47: 1960 | B47: Miscellaneous Equipment | E47: 0 | F47: =IF(D47=0,+'App.2-CO_NewCGAAP_DepExp_2012'!O48,+'App.2-CO_NewCGAAP_DepExp_2012'!O48+((C47*0.5)/D47)) -> 0 | H47: 0 | I47: 0 | K47: =IF(ISERROR(+I47+'App.2-CO_NewCGAAP_DepExp_2012'!O48-J47), 0, +I47+'App.2-CO_NewCGAAP_DepExp_2012'!O48-J47) -> 0
A48: 1970 | B48: Load Management Controls - Customer Premises | E48: 0 | F48: =IF(D48=0,+'App.2-CO_NewCGAAP_DepExp_2012'!O49,+'App.2-CO_NewCGAAP_DepExp_2012'!O49+((C48*0.5)/D48)) -> 0 | H48: 0 | I48: 0 | K48: =IF(ISERROR(+I48+'App.2-CO_NewCGAAP_DepExp_2012'!O49-J48), 0, +I48+'App.2-CO_NewCGAAP_DepExp_2012'!O49-J48) -> 0
A49: 1975 | B49: Load Management Controls Utility Premises | E49: 0 | F49: =IF(D49=0,+'App.2-CO_NewCGAAP_DepExp_2012'!O50,+'App.2-CO_NewCGAAP_DepExp_2012'!O50+((C49*0.5)/D49)) -> 0 | H49: 0 | I49: 0 | K49: =IF(ISERROR(+I49+'App.2-CO_NewCGAAP_DepExp_2012'!O50-J49), 0, +I49+'App.2-CO_NewCGAAP_DepExp_2012'!O50-J49) -> 0
A50: 1980 | B50: System Supervisor Equipment | E50: 0 | F50: =IF(D50=0,+'App.2-CO_NewCGAAP_DepExp_2012'!O51,+'App.2-CO_NewCGAAP_DepExp_2012'!O51+((C50*0.5)/D50)) -> 0 | H50: 0 | I50: 0 | K50: =IF(ISERROR(+I50+'App.2-CO_NewCGAAP_DepExp_2012'!O51-J50), 0, +I50+'App.2-CO_NewCGAAP_DepExp_2012'!O51-J50) -> 0
A51: 1985 | B51: Miscellaneous Fixed Assets | E51: 0 | F51: =IF(D51=0,+'App.2-CO_NewCGAAP_DepExp_2012'!O52,+'App.2-CO_NewCGAAP_DepExp_2012'!O52+((C51*0.5)/D51)) -> 0 | H51: 0 | I51: 0 | K51: =IF(ISERROR(+I51+'App.2-CO_NewCGAAP_DepExp_2012'!O52-J51), 0, +I51+'App.2-CO_NewCGAAP_DepExp_2012'!O52-J51) -> 0
A52: 1990 | B52: Other Tangible Property | E52: 0 | F52: =IF(D52=0,+'App.2-CO_NewCGAAP_DepExp_2012'!O53,+'App.2-CO_NewCGAAP_DepExp_2012'!O53+((C52*0.5)/D52)) -> 0 | H52: 0 | I52: 0 | K52: =IF(ISERROR(+I52+'App.2-CO_NewCGAAP_DepExp_2012'!O53-J52), 0, +I52+'App.2-CO_NewCGAAP_DepExp_2012'!O53-J52) -> 0
A53: 1995 | B53: Contributions & Grants | E53: 0 | F53: =IF(D53=0,+'App.2-CO_NewCGAAP_DepExp_2012'!O54,+'App.2-CO_NewCGAAP_DepExp_2012'!O54+((C53*0.5)/D53)) -> 0 | H53: 0 | I53: 0 | K53: =IF(ISERROR(+I53+'App.2-CO_NewCGAAP_DepExp_2012'!O54-J53), 0, +I53+'App.2-CO_NewCGAAP_DepExp_2012'!O54-J53) -> 0
A54: etc. | E54: 0 | F54: =IF(D54=0,+'App.2-CO_NewCGAAP_DepExp_2012'!O55,+'App.2-CO_NewCGAAP_DepExp_2012'!O55+((C54*0.5)/D54)) -> 0 | H54: 0 | I54: 0 | K54: =IF(ISERROR(+I54+'App.2-CO_NewCGAAP_DepExp_2012'!O55-J54), 0, +I54+'App.2-CO_NewCGAAP_DepExp_2012'!O55-J54) -> 0
E55: 0 | F55: =IF(D55=0,+'App.2-CO_NewCGAAP_DepExp_2012'!O56,+'App.2-CO_NewCGAAP_DepExp_2012'!O56+((C55*0.5)/D55)) -> 0 | H55: 0 | I55: 0 | K55: =IF(ISERROR(+I55+'App.2-CO_NewCGAAP_DepExp_2012'!O56-J55), 0, +I55+'App.2-CO_NewCGAAP_DepExp_2012'!O56-J55) -> 0
B56: Total | C56: =SUM(C16:C55) -> 0 | F56: =SUM(F16:F55) -> 0 | G56: 0 | H56: 0 | I56: 0 | J56: 0 | K56: 0
A58: Notes:
A59: 1 | B59: Board policy of the "half-year" rule - the applicant must ensure that additions in the year attract a half-year depreciation expense in the first year. Deviations from this standard practice must be supported in the application.
A60: 2 | B60: The applicant must provide an explanation of material variances in evidence.
A61: 3 | B61: This column refers to the calculated full year depreciation but excludes the depreciation expense on assets fully depreciated during the year. This column is used for the purpose of calculating depreciation expense in the following year on the next worksheet.
A63: General: | B63: Applicants must provide a breakdown of depreciation and amortization expense in the above format for all relevant accounts. Asset Retirement Obligations (AROs), depreciation and accretion expense should be disclosed separately consistent with the Notes of historical Audited Financial Statements.

Sheet App.2-CQ NewCGAAP_DepExp_2014 (hidden)
G1: File Number: | H1: =EBNUMBER -> EB-2014-0113
G2: Exhibit:
G3: Tab:
G4: Schedule:
G5: Page:
G7: Date:
A9: Appendix 2-CQ
A10: Depreciation and Amortization Expense
A11: Assumes the applicant made capitalization and depreciation expense accounting policy changes under CGAAP effective January 1, 2012
B12: 2014 | C12: Revised CGAAP or ASPE - CGAAP or ASPE with the changes to the policies
A14: Account | B14: Description | C14: Additions | D14: Years (new additions only) | E14: Depreciation Rate on New Additions | F14: 2014 Depreciation Expense 1 | G14: 2014 Depreciation Expense per Appendix 2-B Fixed Assets, Column K (l) | H14: Variance 2
C15: (d) | D15: (f) | E15: (g) = 1 / (f) | F15: (h)=2013 Full Year Depreciation + ((d)*0.5)/(f) | H15: (m) = (h) - (l)
A16: 1611 | B16: Computer Software (Formally known as Account 1925) | E16: =IF(D16=0,0,1/D16) -> 0 | F16: =IF(D16=0,'App.2-CP_NewCGAAP_DepExp_2013'!K16,+'App.2-CP_NewCGAAP_DepExp_2013'!K16+((C16*0.5)/D16)) -> 0 | H16: =IF(ISERROR(+F16-G16), 0, +F16-G16) -> 0
A17: 1612 | B17: Land Rights (Formally known as Account 1906) | E17: 0 | F17: =IF(D17=0,'App.2-CP_NewCGAAP_DepExp_2013'!K17,+'App.2-CP_NewCGAAP_DepExp_2013'!K17+((C17*0.5)/D17)) -> 0 | H17: 0
A18: 1805 | B18: Land | E18: 0 | F18: =IF(D18=0,'App.2-CP_NewCGAAP_DepExp_2013'!K18,+'App.2-CP_NewCGAAP_DepExp_2013'!K18+((C18*0.5)/D18)) -> 0 | H18: 0
A19: 1808 | B19: Buildings | E19: 0 | F19: =IF(D19=0,'App.2-CP_NewCGAAP_DepExp_2013'!K19,+'App.2-CP_NewCGAAP_DepExp_2013'!K19+((C19*0.5)/D19)) -> 0 | H19: 0
A20: 1810 | B20: Leasehold Improvements | E20: 0 | F20: =IF(D20=0,'App.2-CP_NewCGAAP_DepExp_2013'!K20,+'App.2-CP_NewCGAAP_DepExp_2013'!K20+((C20*0.5)/D20)) -> 0 | H20: 0
A21: 1815 | B21: Transformer Station Equipment >50 kV | E21: 0 | F21: =IF(D21=0,'App.2-CP_NewCGAAP_DepExp_2013'!K21,+'App.2-CP_NewCGAAP_DepExp_2013'!K21+((C21*0.5)/D21)) -> 0 | H21: 0
A22: 1820 | B22: Distribution Station Equipment <50 kV | E22: 0 | F22: =IF(D22=0,'App.2-CP_NewCGAAP_DepExp_2013'!K22,+'App.2-CP_NewCGAAP_DepExp_2013'!K22+((C22*0.5)/D22)) -> 0 | H22: 0
A23: 1825 | B23: Storage Battery Equipment | E23: 0 | F23: =IF(D23=0,'App.2-CP_NewCGAAP_DepExp_2013'!K23,+'App.2-CP_NewCGAAP_DepExp_2013'!K23+((C23*0.5)/D23)) -> 0 | H23: 0
A24: 1830 | B24: Poles, Towers & Fixtures | E24: 0 | F24: =IF(D24=0,'App.2-CP_NewCGAAP_DepExp_2013'!K24,+'App.2-CP_NewCGAAP_DepExp_2013'!K24+((C24*0.5)/D24)) -> 0 | H24: 0
A25: 1835 | B25: Overhead Conductors & Devices | E25: 0 | F25: =IF(D25=0,'App.2-CP_NewCGAAP_DepExp_2013'!K25,+'App.2-CP_NewCGAAP_DepExp_2013'!K25+((C25*0.5)/D25)) -> 0 | H25: 0
A26: 1840 | B26: Underground Conduit | E26: 0 | F26: =IF(D26=0,'App.2-CP_NewCGAAP_DepExp_2013'!K26,+'App.2-CP_NewCGAAP_DepExp_2013'!K26+((C26*0.5)/D26)) -> 0 | H26: 0
A27: 1845 | B27: Underground Conductors & Devices | E27: 0 | F27: =IF(D27=0,'App.2-CP_NewCGAAP_DepExp_2013'!K27,+'App.2-CP_NewCGAAP_DepExp_2013'!K27+((C27*0.5)/D27)) -> 0 | H27: 0
A28: 1850 | B28: Line Transformers | E28: 0 | F28: =IF(D28=0,'App.2-CP_NewCGAAP_DepExp_2013'!K28,+'App.2-CP_NewCGAAP_DepExp_2013'!K28+((C28*0.5)/D28)) -> 0 | H28: 0
A29: 1855 | B29: Services (Overhead & Underground) | E29: 0 | F29: =IF(D29=0,'App.2-CP_NewCGAAP_DepExp_2013'!K29,+'App.2-CP_NewCGAAP_DepExp_2013'!K29+((C29*0.5)/D29)) -> 0 | H29: 0
A30: 1860 | B30: Meters | E30: 0 | F30: =IF(D30=0,'App.2-CP_NewCGAAP_DepExp_2013'!K30,+'App.2-CP_NewCGAAP_DepExp_2013'!K30+((C30*0.5)/D30)) -> 0 | H30: 0
A31: 1860 | B31: Meters (Smart Meters) | E31: 0 | F31: =IF(D31=0,'App.2-CP_NewCGAAP_DepExp_2013'!K31,+'App.2-CP_NewCGAAP_DepExp_2013'!K31+((C31*0.5)/D31)) -> 0 | H31: 0
A32: 1905 | B32: Land | E32: 0 | F32: =IF(D32=0,'App.2-CP_NewCGAAP_DepExp_2013'!K32,+'App.2-CP_NewCGAAP_DepExp_2013'!K32+((C32*0.5)/D32)) -> 0 | H32: 0
A33: 1908 | B33: Buildings & Fixtures | E33: 0 | F33: =IF(D33=0,'App.2-CP_NewCGAAP_DepExp_2013'!K33,+'App.2-CP_NewCGAAP_DepExp_2013'!K33+((C33*0.5)/D33)) -> 0 | H33: 0
A34: 1910 | B34: Leasehold Improvements | E34: 0 | F34: =IF(D34=0,'App.2-CP_NewCGAAP_DepExp_2013'!K34,+'App.2-CP_NewCGAAP_DepExp_2013'!K34+((C34*0.5)/D34)) -> 0 | H34: 0
A35: 1915 | B35: Office Furniture & Equipment (10 years) | E35: 0 | F35: =IF(D35=0,'App.2-CP_NewCGAAP_DepExp_2013'!K35,+'App.2-CP_NewCGAAP_DepExp_2013'!K35+((C35*0.5)/D35)) -> 0 | H35: 0
A36: 1915 | B36: Office Furniture & Equipment (5 years) | E36: 0 | F36: =IF(D36=0,'App.2-CP_NewCGAAP_DepExp_2013'!K36,+'App.2-CP_NewCGAAP_DepExp_2013'!K36+((C36*0.5)/D36)) -> 0 | H36: 0
A37: 1920 | B37: Computer Equipment - Hardware | E37: 0 | F37: =IF(D37=0,'App.2-CP_NewCGAAP_DepExp_2013'!K37,+'App.2-CP_NewCGAAP_DepExp_2013'!K37+((C37*0.5)/D37)) -> 0 | H37: 0
A38: 1920 | B38: Computer Equip.-Hardware(Post Mar. 22/04) | E38: 0 | F38: =IF(D38=0,'App.2-CP_NewCGAAP_DepExp_2013'!K38,+'App.2-CP_NewCGAAP_DepExp_2013'!K38+((C38*0.5)/D38)) -> 0 | H38: 0
A39: 1920 | B39: Computer Equip.-Hardware(Post Mar. 19/07) | E39: 0 | F39: =IF(D39=0,'App.2-CP_NewCGAAP_DepExp_2013'!K39,+'App.2-CP_NewCGAAP_DepExp_2013'!K39+((C39*0.5)/D39)) -> 0 | H39: 0
A40: 1930 | B40: Transportation Equipment | E40: 0 | F40: =IF(D40=0,'App.2-CP_NewCGAAP_DepExp_2013'!K40,+'App.2-CP_NewCGAAP_DepExp_2013'!K40+((C40*0.5)/D40)) -> 0 | H40: 0
A41: 1935 | B41: Stores Equipment | E41: 0 | F41: =IF(D41=0,'App.2-CP_NewCGAAP_DepExp_2013'!K41,+'App.2-CP_NewCGAAP_DepExp_2013'!K41+((C41*0.5)/D41)) -> 0 | H41: 0
A42: 1940 | B42: Tools, Shop & Garage Equipment | E42: 0 | F42: =IF(D42=0,'App.2-CP_NewCGAAP_DepExp_2013'!K42,+'App.2-CP_NewCGAAP_DepExp_2013'!K42+((C42*0.5)/D42)) -> 0 | H42: 0
A43: 1945 | B43: Measurement & Testing Equipment | E43: 0 | F43: =IF(D43=0,'App.2-CP_NewCGAAP_DepExp_2013'!K43,+'App.2-CP_NewCGAAP_DepExp_2013'!K43+((C43*0.5)/D43)) -> 0 | H43: 0
A44: 1950 | B44: Power Operated Equipment | E44: 0 | F44: =IF(D44=0,'App.2-CP_NewCGAAP_DepExp_2013'!K44,+'App.2-CP_NewCGAAP_DepExp_2013'!K44+((C44*0.5)/D44)) -> 0 | H44: 0
A45: 1955 | B45: Communications Equipment | E45: 0 | F45: =IF(D45=0,'App.2-CP_NewCGAAP_DepExp_2013'!K45,+'App.2-CP_NewCGAAP_DepExp_2013'!K45+((C45*0.5)/D45)) -> 0 | H45: 0
A46: 1955 | B46: Communication Equipment (Smart Meters) | E46: 0 | F46: =IF(D46=0,'App.2-CP_NewCGAAP_DepExp_2013'!K46,+'App.2-CP_NewCGAAP_DepExp_2013'!K46+((C46*0.5)/D46)) -> 0 | H46: 0
A47: 1960 | B47: Miscellaneous Equipment | E47: 0 | F47: =IF(D47=0,'App.2-CP_NewCGAAP_DepExp_2013'!K47,+'App.2-CP_NewCGAAP_DepExp_2013'!K47+((C47*0.5)/D47)) -> 0 | H47: 0
A48: 1970 | B48: Load Management Controls - Customer Premises | E48: 0 | F48: =IF(D48=0,'App.2-CP_NewCGAAP_DepExp_2013'!K48,+'App.2-CP_NewCGAAP_DepExp_2013'!K48+((C48*0.5)/D48)) -> 0 | H48: 0
A49: 1975 | B49: Load Management Controls Utility Premises | E49: 0 | F49: =IF(D49=0,'App.2-CP_NewCGAAP_DepExp_2013'!K49,+'App.2-CP_NewCGAAP_DepExp_2013'!K49+((C49*0.5)/D49)) -> 0 | H49: 0
A50: 1980 | B50: System Supervisor Equipment | E50: 0 | F50: =IF(D50=0,'App.2-CP_NewCGAAP_DepExp_2013'!K50,+'App.2-CP_NewCGAAP_DepExp_2013'!K50+((C50*0.5)/D50)) -> 0 | H50: 0
A51: 1985 | B51: Miscellaneous Fixed Assets | E51: 0 | F51: =IF(D51=0,'App.2-CP_NewCGAAP_DepExp_2013'!K51,+'App.2-CP_NewCGAAP_DepExp_2013'!K51+((C51*0.5)/D51)) -> 0 | H51: 0
A52: 1990 | B52: Other Tangible Property | E52: 0 | F52: =IF(D52=0,'App.2-CP_NewCGAAP_DepExp_2013'!K52,+'App.2-CP_NewCGAAP_DepExp_2013'!K52+((C52*0.5)/D52)) -> 0 | H52: 0
A53: 1995 | B53: Contributions & Grants | E53: 0 | F53: =IF(D53=0,'App.2-CP_NewCGAAP_DepExp_2013'!K53,+'App.2-CP_NewCGAAP_DepExp_2013'!K53+((C53*0.5)/D53)) -> 0 | H53: 0
A54: etc. | E54: 0 | F54: =IF(D54=0,'App.2-CP_NewCGAAP_DepExp_2013'!K54,+'App.2-CP_NewCGAAP_DepExp_2013'!K54+((C54*0.5)/D54)) -> 0 | H54: 0
E55: 0 | F55: =IF(D55=0,'App.2-CP_NewCGAAP_DepExp_2013'!K55,+'App.2-CP_NewCGAAP_DepExp_2013'!K55+((C55*0.5)/D55)) -> 0 | H55: 0
B56: Total | C56: =SUM(C16:C55) -> 0 | F56: =SUM(F16:F55) -> 0 | G56: =SUM(G16:G55) -> 0 | H56: =SUM(H16:H55) -> 0
B57: Total Depreciation expense to be included in the test year revenue requirement | F57: =+F56 -> 0
A58: Notes:
A59: 1 | B59: Board policy of the "half-year" rule - the applicant must ensure that additions in the year attract a half-year depreciation expense in the first year. Deviations from this standard practice must be supported in the application.
A60: 2 | B60: The applicant must provide an explanation of material variances in evidence.
A62: General: | B62: Applicants must provide a breakdown of depreciation and amortization expense in the above format for all relevant accounts. Asset Retirement Obligations (AROs), depreciation and accretion expense should be disclosed separately consistent with the Notes of historical Audited Financial Statements.

Sheet App.2-CR_OldCGAAP_DepExp_2012 (hidden)
K1: File Number: | L1: =EBNUMBER -> EB-2014-0113
K2: Exhibit:
K3: Tab:
K4: Schedule:
K5: Page:
K7: Date:
A9: Appendix 2-CR
A10: Depreciation and Amortization Expense
A11: Assumes the applicant made capitalization and depreciation expense accounting policy changes under CGAAP effective January 1, 2013
C12: Year | D12: 2012 | E12: Former CGAAP - CGAAP without the changes to the policies
A14: Account | B14: Description | C14: Opening Regulatory Gross PP&E as at Jan 1, 2012 | D14: Less Fully Depreciated | E14: Net for Depreciation | F14: Additions | G14: Total for Depreciation | H14: Years | I14: Depreciation Rate | J14: 2012 Depreciation Expense | K14: 2012 Depreciation Expense per Appendix 2-B Fixed Assets, Column K (l) | L14: Variance 2
C15: (a) | D15: (b) | E15: (c) | F15: (d) | G15: (e) = (c) + ½ x (d) 1 | H15: (f) | I15: (g) = 1 / (f) | J15: (h) = (e) / (f) | L15: (m) = (h) - (l)
A16: 1611 | B16: Computer Software (Formally known as Account 1925) | E16: =C16-D16 -> 0 | G16: =E16+0.5*F16 -> 0 | I16: =IF(H16=0,"",1/H16) ->  | J16: =IF(H16=0,0,G16/H16) -> 0 | L16: =IF(ISERROR(+J16-K16), "", +J16-K16) -> 0
A17: 1612 | B17: Land Rights (Formally known as Account 1906) | E17: =C17-D17 -> 0 | G17: =E17+0.5*F17 -> 0 | J17: 0 | L17: =IF(ISERROR(+J17-K17), "", +J17-K17) -> 0
A18: 1805 | B18: Land | E18: 0 | G18: 0 | J18: 0 | L18: 0
A19: 1808 | B19: Buildings | E19: 0 | G19: 0 | J19: 0 | L19: 0
A20: 1810 | B20: Leasehold Improvements | E20: 0 | G20: 0 | J20: 0 | L20: 0
A21: 1815 | B21: Transformer Station Equipment >50 kV | E21: 0 | G21: 0 | J21: 0 | L21: 0
A22: 1820 | B22: Distribution Station Equipment <50 kV | E22: 0 | G22: 0 | J22: 0 | L22: 0
A23: 1825 | B23: Storage Battery Equipment | E23: 0 | G23: 0 | J23: 0 | L23: 0
A24: 1830 | B24: Poles, Towers & Fixtures | E24: 0 | G24: 0 | J24: 0 | L24: 0
A25: 1835 | B25: Overhead Conductors & Devices | E25: 0 | G25: 0 | J25: 0 | L25: 0
A26: 1840 | B26: Underground Conduit | E26: 0 | G26: 0 | J26: 0 | L26: 0
A27: 1845 | B27: Underground Conductors & Devices | E27: 0 | G27: 0 | J27: 0 | L27: 0
A28: 1850 | B28: Line Transformers | E28: 0 | G28: 0 | J28: 0 | L28: 0
A29: 1855 | B29: Services (Overhead & Underground) | E29: 0 | G29: 0 | J29: 0 | L29: 0
A30: 1860 | B30: Meters | E30: 0 | G30: 0 | J30: 0 | L30: 0
A31: 1860 | B31: Meters (Smart Meters) | E31: 0 | G31: 0 | J31: 0 | L31: 0
A32: 1905 | B32: Land | E32: 0 | G32: 0 | J32: 0 | L32: 0
A33: 1908 | B33: Buildings & Fixtures | E33: 0 | G33: 0 | J33: 0 | L33: 0
A34: 1910 | B34: Leasehold Improvements | E34: 0 | G34: 0 | J34: 0 | L34: 0
A35: 1915 | B35: Office Furniture & Equipment (10 years) | E35: 0 | G35: 0 | J35: 0 | L35: 0
A36: 1915 | B36: Office Furniture & Equipment (5 years) | E36: 0 | G36: 0 | J36: 0 | L36: 0
A37: 1920 | B37: Computer Equipment - Hardware | E37: 0 | G37: 0 | J37: 0 | L37: 0
A38: 1920 | B38: Computer Equip.-Hardware(Post Mar. 22/04) | E38: 0 | G38: 0 | J38: 0 | L38: 0
A39: 1920 | B39: Computer Equip.-Hardware(Post Mar. 19/07) | E39: 0 | G39: 0 | J39: 0 | L39: 0
A40: 1930 | B40: Transportation Equipment | E40: 0 | G40: 0 | J40: 0 | L40: 0
A41: 1935 | B41: Stores Equipment | E41: 0 | G41: 0 | J41: 0 | L41: 0
A42: 1940 | B42: Tools, Shop & Garage Equipment | E42: 0 | G42: 0 | J42: 0 | L42: 0
A43: 1945 | B43: Measurement & Testing Equipment | E43: 0 | G43: 0 | J43: 0 | L43: 0
A44: 1950 | B44: Power Operated Equipment | E44: 0 | G44: 0 | J44: 0 | L44: 0
A45: 1955 | B45: Communications Equipment | E45: 0 | G45: 0 | J45: 0 | L45: 0
A46: 1955 | B46: Communication Equipment (Smart Meters) | E46: 0 | G46: 0 | J46: 0 | L46: 0
A47: 1960 | B47: Miscellaneous Equipment | E47: 0 | G47: 0 | J47: 0 | L47: 0
A48: 1970 | B48: Load Management Controls - Customer Premises | E48: 0 | G48: 0 | J48: 0 | L48: 0
A49: 1975 | B49: Load Management Controls Utility Premises | E49: 0 | G49: 0 | J49: 0 | L49: 0
A50: 1980 | B50: System Supervisor Equipment | E50: 0 | G50: 0 | J50: 0 | L50: 0
A51: 1985 | B51: Miscellaneous Fixed Assets | E51: 0 | G51: 0 | J51: 0 | L51: 0
A52: 1990 | B52: Other Tangible Property | E52: 0 | G52: 0 | J52: 0 | L52: 0
A53: 1995 | B53: Contributions & Grants | E53: 0 | G53: 0 | J53: 0 | L53: 0
A54: etc. | E54: 0 | G54: 0 | J54: 0 | L54: 0
E55: 0 | G55: 0 | J55: 0 | L55: 0
B56: Total | C56: =SUM(C16:C55) -> 0 | D56: =SUM(D16:D55) -> 0 | E56: =SUM(E16:E55) -> 0 | F56: =SUM(F16:F55) -> 0 | G56: =SUM(G16:G55) -> 0 | J56: =SUM(J16:J55) -> 0 | K56: =SUM(K16:K55) -> 0 | L56: =SUM(L16:L55) -> 0
A58: Notes:
A59: 1 | B59: Board policy of the "half-year" rule - the applicant must ensure that additions in the year attract a half-year depreciation expense in the first year. Deviations from this standard practice must be supported in the application.
A60: 2 | B60: The applicant must provide an explanation of material variances in evidence.
A62: General: | B62: Applicants must provide a breakdown of depreciation and amortization expense in the above format for all relevant accounts. Asset Retirement Obligations (AROs), depreciation and accretion expense should be disclosed separately consistent with the Notes of historical Audited Financial Statements.

Sheet App.2-CS_OldCGAAP_DepExp_2013 (hidden)
K1: File Number: | L1: =EBNUMBER -> EB-2014-0113
K2: Exhibit:
K3: Tab:
K4: Schedule:
K5: Page:
K7: Date:
A9: Appendix 2-CS
A10: Depreciation and Amortization Expense
A11: Assumes the applicant made capitalization and depreciation expense accounting policy changes under CGAAP effective January 1, 2013
C12: Year | D12: 2013 | E12: Former CGAAP - CGAAP without the changes to the policies
A14: Account | B14: Description | C14: Opening Regulatory Gross PP&E as at Jan 1, 2013 | D14: Less Fully Depreciated | E14: Net for Depreciation | F14: Additions | G14: Total for Depreciation | H14: Years | I14: Depreciation Rate | J14: 2013 Depreciation Expense | K14: 2013 Depreciation Expense per Appendix 2-B Fixed Assets, Column K (l) | L14: Variance 2
C15: (a) | D15: (b) | E15: (c) | F15: (d) | G15: (e) = (c) + ½ x (d) 1 | H15: (f) | I15: (g) = 1 / (f) | J15: (h) = (e) / (f) | L15: (m) = (h) - (l)
A16: 1611 | B16: Computer Software (Formally known as Account 1925) | E16: =C16-D16 -> 0 | G16: =E16+0.5*F16 -> 0 | I16: =IF(H16=0,0,1/H16) -> 0 | J16: =IF(H16=0,0,G16/H16) -> 0 | L16: =IF(ISERROR(+J16-K16), 0, +J16-K16) -> 0
A17: 1612 | B17: Land Rights (Formally known as Account 1906) | E17: =C17-D17 -> 0 | G17: =E17+0.5*F17 -> 0 | I17: 0 | J17: 0 | L17: 0
A18: 1805 | B18: Land | E18: 0 | G18: 0 | I18: 0 | J18: 0 | L18: 0
A19: 1808 | B19: Buildings | E19: 0 | G19: 0 | I19: 0 | J19: 0 | L19: 0
A20: 1810 | B20: Leasehold Improvements | E20: 0 | G20: 0 | I20: 0 | J20: 0 | L20: 0
A21: 1815 | B21: Transformer Station Equipment >50 kV | E21: 0 | G21: 0 | I21: 0 | J21: 0 | L21: 0
A22: 1820 | B22: Distribution Station Equipment <50 kV | E22: 0 | G22: 0 | I22: 0 | J22: 0 | L22: 0
A23: 1825 | B23: Storage Battery Equipment | E23: 0 | G23: 0 | I23: 0 | J23: 0 | L23: 0
A24: 1830 | B24: Poles, Towers & Fixtures | E24: 0 | G24: 0 | I24: 0 | J24: 0 | L24: 0
A25: 1835 | B25: Overhead Conductors & Devices | E25: 0 | G25: 0 | I25: 0 | J25: 0 | L25: 0
A26: 1840 | B26: Underground Conduit | E26: 0 | G26: 0 | I26: 0 | J26: 0 | L26: 0
A27: 1845 | B27: Underground Conductors & Devices | E27: 0 | G27: 0 | I27: 0 | J27: 0 | L27: 0
A28: 1850 | B28: Line Transformers | E28: 0 | G28: 0 | I28: 0 | J28: 0 | L28: 0
A29: 1855 | B29: Services (Overhead & Underground) | E29: 0 | G29: 0 | I29: 0 | J29: 0 | L29: 0
A30: 1860 | B30: Meters | E30: 0 | G30: 0 | I30: 0 | J30: 0 | L30: 0
A31: 1860 | B31: Meters (Smart Meters) | E31: 0 | G31: 0 | I31: 0 | J31: 0 | L31: 0
A32: 1905 | B32: Land | E32: 0 | G32: 0 | I32: 0 | J32: 0 | L32: 0
A33: 1908 | B33: Buildings & Fixtures | E33: 0 | G33: 0 | I33: 0 | J33: 0 | L33: 0
A34: 1910 | B34: Leasehold Improvements | E34: 0 | G34: 0 | I34: 0 | J34: 0 | L34: 0
A35: 1915 | B35: Office Furniture & Equipment (10 years) | E35: 0 | G35: 0 | I35: 0 | J35: 0 | L35: 0
A36: 1915 | B36: Office Furniture & Equipment (5 years) | E36: 0 | G36: 0 | I36: 0 | J36: 0 | L36: 0
A37: 1920 | B37: Computer Equipment - Hardware | E37: 0 | G37: 0 | I37: 0 | J37: 0 | L37: 0
A38: 1920 | B38: Computer Equip.-Hardware(Post Mar. 22/04) | E38: 0 | G38: 0 | I38: 0 | J38: 0 | L38: 0
A39: 1920 | B39: Computer Equip.-Hardware(Post Mar. 19/07) | E39: 0 | G39: 0 | I39: 0 | J39: 0 | L39: 0
A40: 1930 | B40: Transportation Equipment | E40: 0 | G40: 0 | I40: 0 | J40: 0 | L40: 0
A41: 1935 | B41: Stores Equipment | E41: 0 | G41: 0 | I41: 0 | J41: 0 | L41: 0
A42: 1940 | B42: Tools, Shop & Garage Equipment | E42: 0 | G42: 0 | I42: 0 | J42: 0 | L42: 0
A43: 1945 | B43: Measurement & Testing Equipment | E43: 0 | G43: 0 | I43: 0 | J43: 0 | L43: 0
A44: 1950 | B44: Power Operated Equipment | E44: 0 | G44: 0 | I44: 0 | J44: 0 | L44: 0
A45: 1955 | B45: Communications Equipment | E45: 0 | G45: 0 | I45: 0 | J45: 0 | L45: 0
A46: 1955 | B46: Communication Equipment (Smart Meters) | E46: 0 | G46: 0 | I46: 0 | J46: 0 | L46: 0
A47: 1960 | B47: Miscellaneous Equipment | E47: 0 | G47: 0 | I47: 0 | J47: 0 | L47: 0
A48: 1970 | B48: Load Management Controls - Customer Premises | E48: 0 | G48: 0 | I48: 0 | J48: 0 | L48: 0
A49: 1975 | B49: Load Management Controls Utility Premises | E49: 0 | G49: 0 | I49: 0 | J49: 0 | L49: 0
A50: 1980 | B50: System Supervisor Equipment | E50: 0 | G50: 0 | I50: 0 | J50: 0 | L50: 0
A51: 1985 | B51: Miscellaneous Fixed Assets | E51: 0 | G51: 0 | I51: 0 | J51: 0 | L51: 0
A52: 1990 | B52: Other Tangible Property | E52: 0 | G52: 0 | I52: 0 | J52: 0 | L52: 0
A53: 1995 | B53: Contributions & Grants | E53: 0 | G53: 0 | I53: 0 | J53: 0 | L53: 0
A54: etc. | E54: 0 | G54: 0 | I54: 0 | J54: 0 | L54: 0
E55: 0 | G55: 0 | I55: 0 | J55: 0 | L55: 0
B56: Total | C56: =SUM(C16:C55) -> 0 | D56: =SUM(D16:D55) -> 0 | E56: =SUM(E16:E55) -> 0 | F56: =SUM(F16:F55) -> 0 | G56: =SUM(G16:G55) -> 0 | J56: =SUM(J16:J55) -> 0 | K56: =SUM(K16:K55) -> 0 | L56: =SUM(L16:L55) -> 0
A58: Notes:
A59: 1 | B59: Board policy of the "half-year" rule - the applicant must ensure that additions in the year attract a half-year depreciation expense in the first year. Deviations from this standard practice must be supported in the application.
A60: 2 | B60: The applicant must provide an explanation of material variances in evidence.
A62: General: | B62: Applicants must provide a breakdown of depreciation and amortization expense in the above format for all relevant accounts. Asset Retirement Obligations (AROs), depreciation and accretion expense should be disclosed separately consistent with the Notes of historical Audited Financial Statements.

Sheet App.2-CT_NewCGAAP_DepExp_2013 (hidden)
N1: File Number: | O1: =EBNUMBER -> EB-2014-0113
N2: Exhibit:
N3: Tab:
N4: Schedule:
N5: Page:
N7: Date:
A9: Appendix 2-CT
A10: Depreciation and Amortization Expense
A11: Assumes the applicant made capitalization and depreciation expense accounting policy changes under CGAAP effective January 1, 2013
C12: Year | D12: 2013 | E12: Revised CGAAP or ASPE - CGAAP or ASPE with the changes to the policies
A14: Account | B14: Description | C14: Opening NBV as at Jan 1, 2013 5 | D14: Additions | E14: Average Remaining Life of Opening NBV 4 | F14: Years (new additions only) 3 | G14: Depreciation Rate on New Additions | H14: Depreciation Expense on Opening NBV | I14: Depreciation Expense on Additions 1 | J14: 2013 Depreciation Expense | K14: 2013 Depreciation Expense per Appendix 2-B Fixed Assets, Column K (l) | L14: Variance 2 | M14: Depreciation Expense on 2013 Full Year Additions | N14: Less Depreciation Expense on Assets Fully Depreciated during the year (o) | O14: 2013 Full Year Depreciation 6
C15: (a) | D15: (d) | E15: (i) | F15: (f) | G15: (g) = 1 / (f) | H15: (j) = (a) / (i) | I15: (h)=((d)*0.5)/(f) | J15: (k) = (j) + (h) | L15: (m) = (k) - (l) | M15: (n)=((d))/(f) | O15: (p) = (j) + (n) - (o)
A16: 1611 | B16: Computer Software (Formally known as Account 1925) | G16: =IF(F16=0,0,1/F16) -> 0 | H16: =IF(E16=0,0,+C16/E16) -> 0 | I16: =IF(F16=0,0,+(D16*0.5)/F16) -> 0 | J16: =IF(ISERROR(+H16+I16), 0, +H16+I16) -> 0 | L16: =IF(ISERROR(+J16-K16), 0, +J16-K16) -> 0 | M16: =IF(F16=0,0,+(D16)/F16) -> 0 | O16: =IF(ISERROR(+M16+H16-N16), 0, +M16+H16-N16) -> 0
A17: 1612 | B17: Land Rights (Formally known as Account 1906) | G17: 0 | H17: 0 | I17: 0 | J17: 0 | L17: 0 | M17: 0 | O17: =IF(ISERROR(+M17+H17-N17), 0, +M17+H17-N17) -> 0
A18: 1805 | B18: Land | G18: 0 | H18: 0 | I18: 0 | J18: 0 | L18: 0 | M18: 0 | O18: 0
A19: 1808 | B19: Buildings | G19: 0 | H19: 0 | I19: 0 | J19: 0 | L19: 0 | M19: 0 | O19: 0
A20: 1810 | B20: Leasehold Improvements | G20: 0 | H20: 0 | I20: 0 | J20: 0 | L20: 0 | M20: 0 | O20: 0
A21: 1815 | B21: Transformer Station Equipment >50 kV | G21: 0 | H21: 0 | I21: 0 | J21: 0 | L21: 0 | M21: 0 | O21: 0
A22: 1820 | B22: Distribution Station Equipment <50 kV | G22: 0 | H22: 0 | I22: 0 | J22: 0 | L22: 0 | M22: 0 | O22: 0
A23: 1825 | B23: Storage Battery Equipment | G23: 0 | H23: 0 | I23: 0 | J23: 0 | L23: 0 | M23: 0 | O23: 0
A24: 1830 | B24: Poles, Towers & Fixtures | G24: 0 | H24: 0 | I24: 0 | J24: 0 | L24: 0 | M24: 0 | O24: 0
A25: 1835 | B25: Overhead Conductors & Devices | G25: 0 | H25: 0 | I25: 0 | J25: 0 | L25: 0 | M25: 0 | O25: 0
A26: 1840 | B26: Underground Conduit | G26: 0 | H26: 0 | I26: 0 | J26: 0 | L26: 0 | M26: 0 | O26: 0
A27: 1845 | B27: Underground Conductors & Devices | G27: 0 | H27: 0 | I27: 0 | J27: 0 | L27: 0 | M27: 0 | O27: 0
A28: 1850 | B28: Line Transformers | G28: 0 | H28: 0 | I28: 0 | J28: 0 | L28: 0 | M28: 0 | O28: 0
A29: 1855 | B29: Services (Overhead & Underground) | G29: 0 | H29: 0 | I29: 0 | J29: 0 | L29: 0 | M29: 0 | O29: 0
A30: 1860 | B30: Meters | G30: 0 | H30: 0 | I30: 0 | J30: 0 | L30: 0 | M30: 0 | O30: 0
A31: 1860 | B31: Meters (Smart Meters) | G31: 0 | H31: 0 | I31: 0 | J31: 0 | L31: 0 | M31: 0 | O31: 0
A32: 1905 | B32: Land | G32: 0 | H32: 0 | I32: 0 | J32: 0 | L32: 0 | M32: 0 | O32: 0
A33: 1908 | B33: Buildings & Fixtures | G33: 0 | H33: 0 | I33: 0 | J33: 0 | L33: 0 | M33: 0 | O33: 0
A34: 1910 | B34: Leasehold Improvements | G34: 0 | H34: 0 | I34: 0 | J34: 0 | L34: 0 | M34: 0 | O34: 0
A35: 1915 | B35: Office Furniture & Equipment (10 years) | G35: 0 | H35: 0 | I35: 0 | J35: 0 | L35: 0 | M35: 0 | O35: 0
A36: 1915 | B36: Office Furniture & Equipment (5 years) | G36: 0 | H36: 0 | I36: 0 | J36: 0 | L36: 0 | M36: 0 | O36: 0
A37: 1920 | B37: Computer Equipment - Hardware | G37: 0 | H37: 0 | I37: 0 | J37: 0 | L37: 0 | M37: 0 | O37: 0
A38: 1920 | B38: Computer Equip.-Hardware(Post Mar. 22/04) | G38: 0 | H38: 0 | I38: 0 | J38: 0 | L38: 0 | M38: 0 | O38: 0
A39: 1920 | B39: Computer Equip.-Hardware(Post Mar. 19/07) | G39: 0 | H39: 0 | I39: 0 | J39: 0 | L39: 0 | M39: 0 | O39: 0
A40: 1930 | B40: Transportation Equipment | G40: 0 | H40: 0 | I40: 0 | J40: 0 | L40: 0 | M40: 0 | O40: 0
A41: 1935 | B41: Stores Equipment | G41: 0 | H41: 0 | I41: 0 | J41: 0 | L41: 0 | M41: 0 | O41: 0
A42: 1940 | B42: Tools, Shop & Garage Equipment | G42: 0 | H42: 0 | I42: 0 | J42: 0 | L42: 0 | M42: 0 | O42: 0
A43: 1945 | B43: Measurement & Testing Equipment | G43: 0 | H43: 0 | I43: 0 | J43: 0 | L43: 0 | M43: 0 | O43: 0
A44: 1950 | B44: Power Operated Equipment | G44: 0 | H44: 0 | I44: 0 | J44: 0 | L44: 0 | M44: 0 | O44: 0
A45: 1955 | B45: Communications Equipment | G45: 0 | H45: 0 | I45: 0 | J45: 0 | L45: 0 | M45: 0 | O45: 0
A46: 1955 | B46: Communication Equipment (Smart Meters) | G46: 0 | H46: 0 | I46: 0 | J46: 0 | L46: 0 | M46: 0 | O46: 0
A47: 1960 | B47: Miscellaneous Equipment | G47: 0 | H47: 0 | I47: 0 | J47: 0 | L47: 0 | M47: 0 | O47: 0
A48: 1970 | B48: Load Management Controls - Customer Premises | G48: 0 | H48: 0 | I48: 0 | J48: 0 | L48: 0 | M48: 0 | O48: 0
A49: 1975 | B49: Load Management Controls Utility Premises | G49: 0 | H49: 0 | I49: 0 | J49: 0 | L49: 0 | M49: 0 | O49: 0
A50: 1980 | B50: System Supervisor Equipment | G50: 0 | H50: 0 | I50: 0 | J50: 0 | L50: 0 | M50: 0 | O50: 0
A51: 1985 | B51: Miscellaneous Fixed Assets | G51: 0 | H51: 0 | I51: 0 | J51: 0 | L51: 0 | M51: 0 | O51: 0
A52: 1990 | B52: Other Tangible Property | G52: 0 | H52: 0 | I52: 0 | J52: 0 | L52: 0 | M52: 0 | O52: 0
A53: 1995 | B53: Contributions & Grants | G53: 0 | H53: 0 | I53: 0 | J53: 0 | L53: 0 | M53: 0 | O53: 0
A54: etc. | G54: 0 | H54: 0 | I54: 0 | J54: 0 | L54: 0 | M54: 0 | O54: 0
G55: 0 | H55: 0 | I55: 0 | J55: 0 | L55: 0 | M55: 0 | O55: 0
B56: Total | C56: =SUM(C16:C55) -> 0 | D56: =SUM(D16:D55) -> 0 | H56: =SUM(H16:H55) -> 0 | I56: 0 | J56: 0 | K56: 0 | L56: 0 | M56: 0 | N56: =SUM(N16:N55) -> 0 | O56: 0
A58: Notes:
A60: 1 | B60: Board policy of the "half-year" rule - the applicant must ensure that additions in the year attract a half-year depreciation expense in the first year. Deviations from this standard practice must be supported in the application.
A61: 2 | B61: The applicant must provide an explanation of material variances in evidence.
A62: 3 | B62: The applicant should ensure that the years for new additions of assets are the asset useful lives determined by management in accordance with the Board's regulatory accounting policies. The capitalization and depreciation expense accounting changes should be implemented consistent with the Board’s regulatory accounting policies as set out for modified IFRS as contained in the Report of the Board, Transition to International Financial Reporting Standards, EB-2008-0408, the Kinectrics Report, and the Revised 2012 Accounting Procedures Handbook for Electricity Distributors (“APH”).
A63: 4 | B63: A recalculation should be performed to determine the average remaining life of opening balance of assets (i.e. excluding 2013 additions) under the change in policies under CGAAP. For example, Asset A had a useful life of 20 years under CGAAP without the change in policies. On January 1, 2013, the effective date of the changes in poliices, Asset A was 3 years depreciated. As a result, Asset A would have a remaining service life of 17 years (20 years less 3 years) as of January 1, 2013. Due to making the change in policies under CGAAP, management re-assessed the asset useful lives and concluded that the revised useful life of Asset A is now 30 years. Therefore, the average remaining useful life of the opening balance of Asset A is determined to be 27 years (30 years less 3 years) under the revised CGAAP as of January 1, 2013.
A64: 5 | B64: NBV must exclude assets still on the books but which have been fully amortized or depreciated.
A65: 6 | B65: This column refers to the calculated full year depreciation but excludes the depreciation expense on assets fully depreciated during the year. This column is used for the purpose of calculating depreciation expense in the following year on the next worksheet.
A67: General: | B67: Applicants must provide a breakdown of depreciation and amortization expense in the above format for all relevant accounts. Asset Retirement Obligations (AROs), depreciation and accretion expense should be disclosed separately consistent with the Notes of historical Audited Financial Statements.

Sheet App.2-CU_NewCGAAP_DepExp_2014 (hidden)
I1: File Number: | J1: =EBNUMBER -> EB-2014-0113
I2: Exhibit:
I3: Tab:
I4: Schedule:
I5: Page:
I7: Date:
A9: Appendix 2-CU
A10: Depreciation and Amortization Expense
A11: Assumes the applicant made capitalization and depreciation expense accounting policy changes under CGAAP effective January 1, 2013
C12: Year | D12: 2014 | E12: Revised CGAAP or ASPE - CGAAP or ASPE with the changes to the policies
A14: Account | B14: Description | C14: Additions | D14: Years (new additions only) | E14: Depreciation Rate on New Additions | F14: 2014 Depreciation Expense 1 | G14: 2014 Depreciation Expense per Appendix 2-B Fixed Assets, Column K (l) | H14: Variance 2
C15: (d) | D15: (f) | E15: (g) = 1 / (f) | F15: (h)=2013 Full Year Depreciation + ((d)*0.5)/(f) | H15: (m) = (h) - (l)
A16: 1611 | B16: Computer Software (Formally known as Account 1925) | E16: =IF(D16=0,0,1/D16) -> 0 | F16: =IF(D16=0,'App.2-CT_NewCGAAP_DepExp_2013'!O16,+'App.2-CT_NewCGAAP_DepExp_2013'!O16+((C16*0.5)/D16)) -> 0 | H16: =IF(ISERROR(+F16-G16), 0, +F16-G16) -> 0
A17: 1612 | B17: Land Rights (Formally known as Account 1906) | E17: 0 | F17: =IF(D17=0,'App.2-CT_NewCGAAP_DepExp_2013'!O17,+'App.2-CT_NewCGAAP_DepExp_2013'!O17+((C17*0.5)/D17)) -> 0 | H17: 0
A18: 1805 | B18: Land | E18: 0 | F18: =IF(D18=0,'App.2-CT_NewCGAAP_DepExp_2013'!O18,+'App.2-CT_NewCGAAP_DepExp_2013'!O18+((C18*0.5)/D18)) -> 0 | H18: 0
A19: 1808 | B19: Buildings | E19: 0 | F19: =IF(D19=0,'App.2-CT_NewCGAAP_DepExp_2013'!O19,+'App.2-CT_NewCGAAP_DepExp_2013'!O19+((C19*0.5)/D19)) -> 0 | H19: 0
A20: 1810 | B20: Leasehold Improvements | E20: 0 | F20: =IF(D20=0,'App.2-CT_NewCGAAP_DepExp_2013'!O20,+'App.2-CT_NewCGAAP_DepExp_2013'!O20+((C20*0.5)/D20)) -> 0 | H20: 0
A21: 1815 | B21: Transformer Station Equipment >50 kV | E21: 0 | F21: =IF(D21=0,'App.2-CT_NewCGAAP_DepExp_2013'!O21,+'App.2-CT_NewCGAAP_DepExp_2013'!O21+((C21*0.5)/D21)) -> 0 | H21: 0
A22: 1820 | B22: Distribution Station Equipment <50 kV | E22: 0 | F22: =IF(D22=0,'App.2-CT_NewCGAAP_DepExp_2013'!O22,+'App.2-CT_NewCGAAP_DepExp_2013'!O22+((C22*0.5)/D22)) -> 0 | H22: 0
A23: 1825 | B23: Storage Battery Equipment | E23: 0 | F23: =IF(D23=0,'App.2-CT_NewCGAAP_DepExp_2013'!O23,+'App.2-CT_NewCGAAP_DepExp_2013'!O23+((C23*0.5)/D23)) -> 0 | H23: 0
A24: 1830 | B24: Poles, Towers & Fixtures | E24: 0 | F24: =IF(D24=0,'App.2-CT_NewCGAAP_DepExp_2013'!O24,+'App.2-CT_NewCGAAP_DepExp_2013'!O24+((C24*0.5)/D24)) -> 0 | H24: 0
A25: 1835 | B25: Overhead Conductors & Devices | E25: 0 | F25: =IF(D25=0,'App.2-CT_NewCGAAP_DepExp_2013'!O25,+'App.2-CT_NewCGAAP_DepExp_2013'!O25+((C25*0.5)/D25)) -> 0 | H25: 0
A26: 1840 | B26: Underground Conduit | E26: 0 | F26: =IF(D26=0,'App.2-CT_NewCGAAP_DepExp_2013'!O26,+'App.2-CT_NewCGAAP_DepExp_2013'!O26+((C26*0.5)/D26)) -> 0 | H26: 0
A27: 1845 | B27: Underground Conductors & Devices | E27: 0 | F27: =IF(D27=0,'App.2-CT_NewCGAAP_DepExp_2013'!O27,+'App.2-CT_NewCGAAP_DepExp_2013'!O27+((C27*0.5)/D27)) -> 0 | H27: 0
A28: 1850 | B28: Line Transformers | E28: 0 | F28: =IF(D28=0,'App.2-CT_NewCGAAP_DepExp_2013'!O28,+'App.2-CT_NewCGAAP_DepExp_2013'!O28+((C28*0.5)/D28)) -> 0 | H28: 0
A29: 1855 | B29: Services (Overhead & Underground) | E29: 0 | F29: =IF(D29=0,'App.2-CT_NewCGAAP_DepExp_2013'!O29,+'App.2-CT_NewCGAAP_DepExp_2013'!O29+((C29*0.5)/D29)) -> 0 | H29: 0
A30: 1860 | B30: Meters | E30: 0 | F30: =IF(D30=0,'App.2-CT_NewCGAAP_DepExp_2013'!O30,+'App.2-CT_NewCGAAP_DepExp_2013'!O30+((C30*0.5)/D30)) -> 0 | H30: 0
A31: 1860 | B31: Meters (Smart Meters) | E31: 0 | F31: =IF(D31=0,'App.2-CT_NewCGAAP_DepExp_2013'!O31,+'App.2-CT_NewCGAAP_DepExp_2013'!O31+((C31*0.5)/D31)) -> 0 | H31: 0
A32: 1905 | B32: Land | E32: 0 | F32: =IF(D32=0,'App.2-CT_NewCGAAP_DepExp_2013'!O32,+'App.2-CT_NewCGAAP_DepExp_2013'!O32+((C32*0.5)/D32)) -> 0 | H32: 0
A33: 1908 | B33: Buildings & Fixtures | E33: 0 | F33: =IF(D33=0,'App.2-CT_NewCGAAP_DepExp_2013'!O33,+'App.2-CT_NewCGAAP_DepExp_2013'!O33+((C33*0.5)/D33)) -> 0 | H33: 0
A34: 1910 | B34: Leasehold Improvements | E34: 0 | F34: =IF(D34=0,'App.2-CT_NewCGAAP_DepExp_2013'!O34,+'App.2-CT_NewCGAAP_DepExp_2013'!O34+((C34*0.5)/D34)) -> 0 | H34: 0
A35: 1915 | B35: Office Furniture & Equipment (10 years) | E35: 0 | F35: =IF(D35=0,'App.2-CT_NewCGAAP_DepExp_2013'!O35,+'App.2-CT_NewCGAAP_DepExp_2013'!O35+((C35*0.5)/D35)) -> 0 | H35: 0
A36: 1915 | B36: Office Furniture & Equipment (5 years) | E36: 0 | F36: =IF(D36=0,'App.2-CT_NewCGAAP_DepExp_2013'!O36,+'App.2-CT_NewCGAAP_DepExp_2013'!O36+((C36*0.5)/D36)) -> 0 | H36: 0
A37: 1920 | B37: Computer Equipment - Hardware | E37: 0 | F37: =IF(D37=0,'App.2-CT_NewCGAAP_DepExp_2013'!O37,+'App.2-CT_NewCGAAP_DepExp_2013'!O37+((C37*0.5)/D37)) -> 0 | H37: 0
A38: 1920 | B38: Computer Equip.-Hardware(Post Mar. 22/04) | E38: 0 | F38: =IF(D38=0,'App.2-CT_NewCGAAP_DepExp_2013'!O38,+'App.2-CT_NewCGAAP_DepExp_2013'!O38+((C38*0.5)/D38)) -> 0 | H38: 0
A39: 1920 | B39: Computer Equip.-Hardware(Post Mar. 19/07) | E39: 0 | F39: =IF(D39=0,'App.2-CT_NewCGAAP_DepExp_2013'!O39,+'App.2-CT_NewCGAAP_DepExp_2013'!O39+((C39*0.5)/D39)) -> 0 | H39: 0
A40: 1930 | B40: Transportation Equipment | E40: 0 | F40: =IF(D40=0,'App.2-CT_NewCGAAP_DepExp_2013'!O40,+'App.2-CT_NewCGAAP_DepExp_2013'!O40+((C40*0.5)/D40)) -> 0 | H40: 0
A41: 1935 | B41: Stores Equipment | E41: 0 | F41: =IF(D41=0,'App.2-CT_NewCGAAP_DepExp_2013'!O41,+'App.2-CT_NewCGAAP_DepExp_2013'!O41+((C41*0.5)/D41)) -> 0 | H41: 0
A42: 1940 | B42: Tools, Shop & Garage Equipment | E42: 0 | F42: =IF(D42=0,'App.2-CT_NewCGAAP_DepExp_2013'!O42,+'App.2-CT_NewCGAAP_DepExp_2013'!O42+((C42*0.5)/D42)) -> 0 | H42: 0
A43: 1945 | B43: Measurement & Testing Equipment | E43: 0 | F43: =IF(D43=0,'App.2-CT_NewCGAAP_DepExp_2013'!O43,+'App.2-CT_NewCGAAP_DepExp_2013'!O43+((C43*0.5)/D43)) -> 0 | H43: 0
A44: 1950 | B44: Power Operated Equipment | E44: 0 | F44: =IF(D44=0,'App.2-CT_NewCGAAP_DepExp_2013'!O44,+'App.2-CT_NewCGAAP_DepExp_2013'!O44+((C44*0.5)/D44)) -> 0 | H44: 0
A45: 1955 | B45: Communications Equipment | E45: 0 | F45: =IF(D45=0,'App.2-CT_NewCGAAP_DepExp_2013'!O45,+'App.2-CT_NewCGAAP_DepExp_2013'!O45+((C45*0.5)/D45)) -> 0 | H45: 0
A46: 1955 | B46: Communication Equipment (Smart Meters) | E46: 0 | F46: =IF(D46=0,'App.2-CT_NewCGAAP_DepExp_2013'!O46,+'App.2-CT_NewCGAAP_DepExp_2013'!O46+((C46*0.5)/D46)) -> 0 | H46: 0
A47: 1960 | B47: Miscellaneous Equipment | E47: 0 | F47: =IF(D47=0,'App.2-CT_NewCGAAP_DepExp_2013'!O47,+'App.2-CT_NewCGAAP_DepExp_2013'!O47+((C47*0.5)/D47)) -> 0 | H47: 0
A48: 1970 | B48: Load Management Controls - Customer Premises | E48: 0 | F48: =IF(D48=0,'App.2-CT_NewCGAAP_DepExp_2013'!O48,+'App.2-CT_NewCGAAP_DepExp_2013'!O48+((C48*0.5)/D48)) -> 0 | H48: 0
A49: 1975 | B49: Load Management Controls Utility Premises | E49: 0 | F49: =IF(D49=0,'App.2-CT_NewCGAAP_DepExp_2013'!O49,+'App.2-CT_NewCGAAP_DepExp_2013'!O49+((C49*0.5)/D49)) -> 0 | H49: 0
A50: 1980 | B50: System Supervisor Equipment | E50: 0 | F50: =IF(D50=0,'App.2-CT_NewCGAAP_DepExp_2013'!O50,+'App.2-CT_NewCGAAP_DepExp_2013'!O50+((C50*0.5)/D50)) -> 0 | H50: 0
A51: 1985 | B51: Miscellaneous Fixed Assets | E51: 0 | F51: =IF(D51=0,'App.2-CT_NewCGAAP_DepExp_2013'!O51,+'App.2-CT_NewCGAAP_DepExp_2013'!O51+((C51*0.5)/D51)) -> 0 | H51: 0
A52: 1990 | B52: Other Tangible Property | E52: 0 | F52: =IF(D52=0,'App.2-CT_NewCGAAP_DepExp_2013'!O52,+'App.2-CT_NewCGAAP_DepExp_2013'!O52+((C52*0.5)/D52)) -> 0 | H52: 0
A53: 1995 | B53: Contributions & Grants | E53: 0 | F53: =IF(D53=0,'App.2-CT_NewCGAAP_DepExp_2013'!O53,+'App.2-CT_NewCGAAP_DepExp_2013'!O53+((C53*0.5)/D53)) -> 0 | H53: 0
A54: etc. | E54: 0 | F54: =IF(D54=0,'App.2-CT_NewCGAAP_DepExp_2013'!O54,+'App.2-CT_NewCGAAP_DepExp_2013'!O54+((C54*0.5)/D54)) -> 0 | H54: 0
E55: 0 | F55: =IF(D55=0,'App.2-CT_NewCGAAP_DepExp_2013'!O55,+'App.2-CT_NewCGAAP_DepExp_2013'!O55+((C55*0.5)/D55)) -> 0 | H55: 0
B56: Total | C56: =SUM(C16:C55) -> 0 | F56: =SUM(F16:F55) -> 0 | G56: =SUM(G16:G55) -> 0 | H56: =SUM(H16:H55) -> 0
B57: Total Depreciation expense to be included in the test year revenue requirement | F57: =+F56 -> 0
A59: Notes:
A60: 1 | B60: Board policy of the "half-year" rule - the applicant must ensure that additions in the year attract a half-year depreciation expense in the first year. Deviations from this standard practice must be supported in the application.
A61: 2 | B61: The applicant must provide an explanation of material variances in evidence.
A63: General: | B63: Applicants must provide a breakdown of depreciation and amortization expense in the above format for all relevant accounts. Asset Retirement Obligations (AROs), depreciation and accretion expense should be disclosed separately consistent with the Notes of historical Audited Financial Statements.

Sheet App.2-CV_USGAAP_DepExp (hidden)
K1: File Number: | L1: =EBNUMBER -> EB-2014-0113
K2: Exhibit:
K3: Tab:
K4: Schedule:
K5: Page:
K7: Date:
A9: Appendix 2-CV
A10: Depreciation and Amortization Expense
A11: Assumes the applicant adopted USGAAP for financial reporting purposes. For applicants adopting USGAAP for financial reporting purposes January 1, 2012, applicants must complete 5 versions of the table below (2011 CGAAP, 2011 USGAAP, 2012 USGAAP, 2013 USGAAP, and 2014 USGAAP). For applicants adopting USGAAP for financial reporting purposes January 1, 2013, applicants must complete 4 versions of the table below (2012 CGAAP, 2012 USGAAP, 2013 USGAAP, and 2014 USGAAP). For applicants adopting USGAAP for financial reporting purposes January 1, 2014, applicants must complete 4 versions of the table below (2012 CGAAP, 2013 CGAAP, 2013 USGAAP, and 2014 USGAAP).
B12: Year | D12: USGAAP
A14: Account | B14: Description | C14: Opening Regulatory Gross PP&E | D14: Less Fully Depreciated | E14: Net for Depreciation | F14: Additions | G14: Total for Depreciation | H14: Years | I14: Depreciation Rate | J14: Depreciation Expense | K14: Depreciation Expense per Appendix 2-B Fixed Assets, Column K (l) | L14: Variance 2
C15: (a) | D15: (b) | E15: (c) | F15: (d) | G15: (e) = (c) + ½ x (d) 1 | H15: (f) | I15: (g) = 1 / (f) | J15: (h) = (e) / (f) | L15: (m) = (h) - (l)
A16: 1611 | B16: Computer Software (Formally known as Account 1925) | E16: =C16-D16 -> 0 | G16: =E16+0.5*F16 -> 0 | I16: =IF(H16=0,0,1/H16) -> 0 | J16: =IF(H16=0,0,G16/H16) -> 0 | L16: =IF(ISERROR(+J16-K16), 0, +J16-K16) -> 0
A17: 1612 | B17: Land Rights (Formally known as Account 1906) | E17: =C17-D17 -> 0 | G17: =E17+0.5*F17 -> 0 | I17: 0 | J17: 0 | L17: 0
A18: 1805 | B18: Land | E18: 0 | G18: 0 | I18: 0 | J18: 0 | L18: 0
A19: 1808 | B19: Buildings | E19: 0 | G19: 0 | I19: 0 | J19: 0 | L19: 0
A20: 1810 | B20: Leasehold Improvements | E20: 0 | G20: 0 | I20: 0 | J20: 0 | L20: 0
A21: 1815 | B21: Transformer Station Equipment >50 kV | E21: 0 | G21: 0 | I21: 0 | J21: 0 | L21: 0
A22: 1820 | B22: Distribution Station Equipment <50 kV | E22: 0 | G22: 0 | I22: 0 | J22: 0 | L22: 0
A23: 1825 | B23: Storage Battery Equipment | E23: 0 | G23: 0 | I23: 0 | J23: 0 | L23: 0
A24: 1830 | B24: Poles, Towers & Fixtures | E24: 0 | G24: 0 | I24: 0 | J24: 0 | L24: 0
A25: 1835 | B25: Overhead Conductors & Devices | E25: 0 | G25: 0 | I25: 0 | J25: 0 | L25: 0
A26: 1840 | B26: Underground Conduit | E26: 0 | G26: 0 | I26: 0 | J26: 0 | L26: 0
A27: 1845 | B27: Underground Conductors & Devices | E27: 0 | G27: 0 | I27: 0 | J27: 0 | L27: 0
A28: 1850 | B28: Line Transformers | E28: 0 | G28: 0 | I28: 0 | J28: 0 | L28: 0
A29: 1855 | B29: Services (Overhead & Underground) | E29: 0 | G29: 0 | I29: 0 | J29: 0 | L29: 0
A30: 1860 | B30: Meters | E30: 0 | G30: 0 | I30: 0 | J30: 0 | L30: 0
A31: 1860 | B31: Meters (Smart Meters) | E31: 0 | G31: 0 | I31: 0 | J31: 0 | L31: 0
A32: 1905 | B32: Land | E32: 0 | G32: 0 | I32: 0 | J32: 0 | L32: 0
A33: 1908 | B33: Buildings & Fixtures | E33: 0 | G33: 0 | I33: 0 | J33: 0 | L33: 0
A34: 1910 | B34: Leasehold Improvements | E34: 0 | G34: 0 | I34: 0 | J34: 0 | L34: 0
A35: 1915 | B35: Office Furniture & Equipment (10 years) | E35: 0 | G35: 0 | I35: 0 | J35: 0 | L35: 0
A36: 1915 | B36: Office Furniture & Equipment (5 years) | E36: 0 | G36: 0 | I36: 0 | J36: 0 | L36: 0
A37: 1920 | B37: Computer Equipment - Hardware | E37: 0 | G37: 0 | I37: 0 | J37: 0 | L37: 0
A38: 1920 | B38: Computer Equip.-Hardware(Post Mar. 22/04) | E38: 0 | G38: 0 | I38: 0 | J38: 0 | L38: 0
A39: 1920 | B39: Computer Equip.-Hardware(Post Mar. 19/07) | E39: 0 | G39: 0 | I39: 0 | J39: 0 | L39: 0
A40: 1930 | B40: Transportation Equipment | E40: 0 | G40: 0 | I40: 0 | J40: 0 | L40: 0
A41: 1935 | B41: Stores Equipment | E41: 0 | G41: 0 | I41: 0 | J41: 0 | L41: 0
A42: 1940 | B42: Tools, Shop & Garage Equipment | E42: 0 | G42: 0 | I42: 0 | J42: 0 | L42: 0
A43: 1945 | B43: Measurement & Testing Equipment | E43: 0 | G43: 0 | I43: 0 | J43: 0 | L43: 0
A44: 1950 | B44: Power Operated Equipment | E44: 0 | G44: 0 | I44: 0 | J44: 0 | L44: 0
A45: 1955 | B45: Communications Equipment | E45: 0 | G45: 0 | I45: 0 | J45: 0 | L45: 0
A46: 1955 | B46: Communication Equipment (Smart Meters) | E46: 0 | G46: 0 | I46: 0 | J46: 0 | L46: 0
A47: 1960 | B47: Miscellaneous Equipment | E47: 0 | G47: 0 | I47: 0 | J47: 0 | L47: 0
A48: 1970 | B48: Load Management Controls - Customer Premises | E48: 0 | G48: 0 | I48: 0 | J48: 0 | L48: 0
A49: 1975 | B49: Load Management Controls Utility Premises | E49: 0 | G49: 0 | I49: 0 | J49: 0 | L49: 0
A50: 1980 | B50: System Supervisor Equipment | E50: 0 | G50: 0 | I50: 0 | J50: 0 | L50: 0
A51: 1985 | B51: Miscellaneous Fixed Assets | E51: 0 | G51: 0 | I51: 0 | J51: 0 | L51: 0
A52: 1990 | B52: Other Tangible Property | E52: 0 | G52: 0 | I52: 0 | J52: 0 | L52: 0
A53: 1995 | B53: Contributions & Grants | E53: 0 | G53: 0 | I53: 0 | J53: 0 | L53: 0
A54: etc. | E54: 0 | G54: 0 | I54: 0 | J54: 0 | L54: 0
E55: 0 | G55: 0 | I55: 0 | J55: 0 | L55: 0
B56: Total | C56: =SUM(C16:C55) -> 0 | D56: =SUM(D16:D55) -> 0 | E56: =SUM(E16:E55) -> 0 | F56: 0 | G56: 0 | J56: =SUM(J16:J55) -> 0 | K56: =SUM(K16:K55) -> 0 | L56: =SUM(L16:L55) -> 0
A58: Notes:
A60: 1 | B60: Board policy of the "half-year" rule - the applicant must ensure that additions in the year attract a half-year depreciation expense in the first year. Deviations from this standard practice must be supported in the application.
A61: 2 | B61: The applicant must provide an explanation of material variances in evidence.
A64: General: | B64: Applicants must provide a breakdown of depreciation and amortization expense in the above format for all relevant accounts. Asset Retirement Obligations (AROs), depreciation and accretion expense should be disclosed separately consistent with the Notes of historical Audited Financial Statements.

Sheet App.2-DA_Overhead
L1: File Number: | M1: =EBNUMBER -> EB-2014-0113
L2: Exhibit: | M2: 2
L3: Tab: | M3: 2
L4: Schedule: | M4: 2
L5: Page:
L7: Date: | M7: 2015-04-25
A9: Appendix 2-DA
A10: Overhead Expense
A12: The following table should be completed based on the information requested below. An explanation should be provided for any blank entries. The entries should include overhead costs that are currently capitalized on self-constructed assets under MIFRS.
E13: (A) 1 | F13: (B) | G13: (C) | H13: (D) | I13: (E) 1 | J13: (F) | K13: (G)
A14: Nature of the Overhead Costs | E14: Dollar | F14: Dollar | G14: Dollar | H14: Dollar Impact - | I14: Dollar Impact - | J14: Directly | K14: Reasons why the overhead costs are allowed to be
E15: Impact on PP&E | F15: Impact on PP&E | G15: Impact on PP&E | H15: PP&E Variance | I15: PP&E Variance | J15: Attributable? | K15: capitalized under MIFRS or an alternate accounting
E16: Historic Year | F16: Bridge Year | G16: Test Year | H16: Test versus Bridge | I16: Test versus Historic | J16: (Y/N) | K16: standard given limitations on capitalized overhead
A17: employee benefits | E17: 140425 | F17: 185000 | G17: 189000 | H17: =+G17-F17 -> 4000 | I17: =+G17-E17 -> 48575 | J17: Y | K17: allocation of direct benefits expressed as an overhead percentage applied at payroll time sheet entry
A18: costs of site preparation | H18: 0 | I18: 0
A19: initial delivery and handling costs | H19: 0 | I19: 0
A20: costs of testing whether the asset is functioning properly | H20: 0 | I20: 0
A21: professional fees | H21: 0 | I21: 0
H22: 0 | I22: 0
A23: costs of opening a new facility | H23: 0 | I23: 0
A24: costs of introducing a new product or service (including costs of advertising and promotional activities) | H24: 0 | I24: 0
A25: costs of conducting business in a new location or with a new class of customer (including costs of staff training) | H25: 0 | I25: 0
A26: administration and other general overhead costs | E26: 0 | F26: 0 | G26: 0 | H26: 0 | I26: 0
H27: 0 | I27: 0
H28: 0 | I28: 0
H29: 0 | I29: 0
A30: Insert description of additional item(s) and new rows if needed. | H30: 0 | I30: 0
A31: Total | E31: =SUM(E17:E30) -> 140425 | F31: =SUM(F17:F30) -> 185000 | G31: =SUM(G17:G30) -> 189000 | H31: =SUM(H17:H30) -> 4000 | I31: =SUM(I17:I30) -> 48575
A34: The following table should be completed based on the information requested below. An explanation should be provided for any blank entries. The entries should include overhead costs that were capitalized on self-constructed assets under CGAAP but are no longer capitalized under MIFRS or an alternate accounting standard and are included in OM&A.
E35: (A) 1 | F35: (B) | G35: (C) | H35: (D) | I35: (E) 1 | J35: (F) | K35: (G)
A36: Nature of the Overhead Costs | E36: Dollar | F36: Dollar | G36: Dollar | H36: Dollar Impact - | I36: Dollar Impact - | J36: Directly | K36: Reasons why the overhead costs are not allowed to be
E37: Impact on OM&A | F37: Impact on OM&A | G37: Impact on OM&A | H37: OM&A Variance | I37: OM&A Variance | J37: Attributable? | K37: capitalized under MIFRS or an alternate accounting
E38: Historic Year | F38: Bridge Year | G38: Test Year | H38: Test versus Bridge | I38: Test versus Historic | J38: (Y/N) | K38: standard given limitations on capitalized overhead
A39: employee benefits | E39: =+E17 -> 140425 | F39: =+F17 -> 185000 | G39: =+G17 -> 189000 | H39: =+G39-F39 -> 4000 | I39: =+G39-E39 -> 48575 | K39: =+K17 -> allocation of direct benefits expressed as an overhead percentage applied at payroll time sheet entry
A40: costs of site preparation | H40: =+G40-F40 -> 0 | I40: =+G40-E40 -> 0
A41: initial delivery and handling costs | H41: =+G41-F41 -> 0 | I41: =+G41-E41 -> 0
A42: costs of testing whether the asset is functioning properly | H42: =+G42-F42 -> 0 | I42: =+G42-E42 -> 0
A43: professional fees | H43: =+G43-F43 -> 0 | I43: =+G43-E43 -> 0
A45: costs of opening a new facility | H45: =+G45-F45 -> 0 | I45: =+G45-E45 -> 0
A46: costs of introducing a new product or service (including costs of advertising and promotional activities) | H46: 0 | I46: 0
A47: costs of conducting business in a new location or with a new class of customer (including costs of staff training) | H47: 0 | I47: 0
A48: administration and other general overhead costs | H48: 0 | I48: 0
H49: 0 | I49: 0
H50: 0 | I50: 0
H51: 0 | I51: 0
A52: Insert description of additional item(s) and new rows if needed. | H52: 0 | I52: 0
A53: Total | E53: =SUM(E39:E52) -> 140425 | F53: =SUM(F39:F52) -> 185000 | G53: =SUM(G39:G52) -> 189000 | H53: =SUM(H39:H52) -> 4000 | I53: =SUM(I39:I52) -> 48575
A55: Notes:
A56: 1 | B56: If the applicant chooses to adopt IFRS for financial reporting purposes in 2014, the applicant does not need to complete Columns A, E. If the applicant adopts IFRS for financial reporting purposes in 2012 or 2013, the applicant must complete all columns.

Sheet App.2-DB_Overhead (hidden)
L1: File Number: | M1: =EBNUMBER -> EB-2014-0113
L2: Exhibit:
L3: Tab:
L4: Schedule:
L5: Page:
L7: Date:
A9: Appendix 2-DB
A10: Overhead Expense
A12: The following table should be completed based on the information requested below. An explanation should be provided for any blank entries. The entries should include overhead costs that are currently capitalized on self-constructed assets under revised CGAAP or ASPE (with the changes in capitalization and depreciation expense policies).
E13: (A) | F13: (B) | G13: (C) | H13: (D) | I13: (E) | J13: (F) | K13: (G)
A14: Nature of the Overhead Costs | E14: Dollar | F14: Dollar | G14: Dollar | H14: Dollar Impact - | I14: Dollar Impact - | J14: Directly | K14: Reasons why the overhead costs are allowed to be
E15: Impact on PP&E | F15: Impact on PP&E | G15: Impact on PP&E | H15: PP&E Variance | I15: PP&E Variance | J15: Attributable? | K15: capitalized under CGAAP or ASPE (with the changes in
E16: Historic Year | F16: Bridge Year | G16: Test Year | H16: Test versus Bridge | I16: Test versus Historic | J16: (Y/N) | K16: policies) given limitations on capitalized overhead
A17: employee benefits | H17: =+G17-F17 -> 0 | I17: =+G17-E17 -> 0
A18: costs of site preparation | H18: 0 | I18: 0
A19: initial delivery and handling costs | H19: 0 | I19: 0
A20: costs of testing whether the asset is functioning properly | H20: 0 | I20: 0
A21: professional fees | H21: 0 | I21: 0
H22: 0 | I22: 0
A23: costs of opening a new facility | H23: 0 | I23: 0
A24: costs of introducing a new product or service (including costs of advertising and promotional activities) | H24: 0 | I24: 0
A25: costs of conducting business in a new location or with a new class of customer (including costs of staff training) | H25: 0 | I25: 0
A26: administration and other general overhead costs | H26: 0 | I26: 0
H27: 0 | I27: 0
H28: 0 | I28: 0
H29: 0 | I29: 0
A30: Insert description of additional item(s) and new rows if needed. | H30: 0 | I30: 0
A31: Total | E31: =SUM(E17:E30) -> 0 | F31: =SUM(F17:F30) -> 0 | G31: =SUM(G17:G30) -> 0 | H31: =SUM(H17:H30) -> 0 | I31: =SUM(I17:I30) -> 0
A34: The following table should be completed based on the information requested below. An explanation should be provided for any blank entries. The entries should include overhead costs that were capitalized on self-constructed assets under CGAAP but are no longer capitalized under revised CGAAP or ASPE (with the changes in capitalization and depreciation expense policies) and are included in OM&A.
E35: (A) | F35: (B) | G35: (C) | H35: (D) | I35: (E) | J35: (F) | K35: (G)
A36: Nature of the Overhead Costs | E36: Dollar | F36: Dollar | G36: Dollar | H36: Dollar Impact - | I36: Dollar Impact - | J36: Directly | K36: Reasons why the overhead costs are allowed to be
E37: Impact on OM&A | F37: Impact on OM&A | G37: Impact on OM&A | H37: OM&A Variance | I37: OM&A Variance | J37: Attributable? | K37: capitalized under CGAAP or ASPE (with the changes in
E38: Historic Year | F38: Bridge Year | G38: Test Year | H38: Test versus Bridge | I38: Test versus Historic | J38: (Y/N) | K38: policies) given limitations on capitalized overhead
A39: employee benefits | H39: =+G39-F39 -> 0 | I39: =+G39-E39 -> 0
A40: costs of site preparation | H40: =+G40-F40 -> 0 | I40: =+G40-E40 -> 0
A41: initial delivery and handling costs | H41: =+G41-F41 -> 0 | I41: =+G41-E41 -> 0
A42: costs of testing whether the asset is functioning properly | H42: =+G42-F42 -> 0 | I42: =+G42-E42 -> 0
A43: professional fees | H43: =+G43-F43 -> 0 | I43: =+G43-E43 -> 0
A45: costs of opening a new facility | H45: =+G45-F45 -> 0 | I45: =+G45-E45 -> 0
A46: costs of introducing a new product or service (including costs of advertising and promotional activities) | H46: 0 | I46: 0
A47: costs of conducting business in a new location or with a new class of customer (including costs of staff training) | H47: 0 | I47: 0
A48: administration and other general overhead costs | H48: 0 | I48: 0
H49: 0 | I49: 0
H50: 0 | I50: 0
H51: 0 | I51: 0
A52: Insert description of additional item(s) and new rows if needed. | H52: 0 | I52: 0
A53: Total | E53: =SUM(E39:E52) -> 0 | F53: =SUM(F39:F52) -> 0 | G53: =SUM(G39:G52) -> 0 | H53: =SUM(H39:H52) -> 0 | I53: =SUM(I39:I52) -> 0

Sheet App.2-EA_PP&E Deferral Account
H1: File Number: | I1: =EBNUMBER -> EB-2014-0113
H2: Exhibit:
H3: Tab:
H4: Schedule:
H5: Page:
H7: Date:
A9: Appendix 2-EA
A10: Account 1575 - IFRS-CGAAP Transitional PP&E Amounts
A11: 2012 Adopters of IFRS for Financial Reporting Purposes
A13: For applicants that adopt IFRS on January 1, 2012 for financial reporting purposes
A15: Note: this sheet should be filled out if the applicant adopts IFRS for its financial reporting purpose as of January 1, 2012.
B17: =RebaseYear &" Rebasing Year" -> 2011 Rebasing Year | C17: 2011 | D17: 2012 | E17: 2013 | F17: 2014 Rebasing Year | G17: 2015 | H17: 2016 | I17: 2017 | J17: 2018
A18: Reporting Basis | B18: CGAAP | C18: IRM | D18: IRM | E18: IRM | F18: MIFRS | G18: IRM | H18: IRM | I18: IRM | J18: IRM
A19: Forecast vs. Actual Used in Rebasing Year | B19: Forecast | C19: Actual | D19: Actual | E19: Forecast | F19: Forecast | M19: Under GAAP adopted IFRS policies
C20: $ | D20: $ | E20: $ | F20: $ | G20: $ | H20: $ | I20: $ | J20: $
A21: PP&E Values under CGAAP
A22: Opening net PP&E - Note 1
A23: Net Additions - Note 4
A24: Net Depreciation (amounts should be negative) - Note 4
A25: Closing net PP&E (1)
A27: PP&E Values under MIFRS (Starts from 2011, the transition year)
A28: Opening net PP&E - Note 1
A29: Net Additions - Note 4
A30: Net Depreciation (amounts should be negative) - Note 4 | L30: Change in GAAP Policy in 2013 to equal MIFRS
A31: Closing net PP&E (2)
A33: Difference in Closing net PP&E, CGAAP vs. MIFRS | C33: =C25-C31 -> 0 | D33: =D25-D31 -> 0 | E33: =E25-E31 -> 0
A36: Effect on Deferral and Variance Account Rate Riders
A37: Closing balance in deferral account | F37: =IF(ISERROR(E33), 0, E33) -> 0 | H37: WACC
A38: Return on Rate Base Associated with deferred PP&E balance at WACC - Note 2 | F38: =E33*I37*I38 -> 0 | G38: # of years of rate rider disposition period
A39: Amount included in Deferral and Variance Account Rate Rider Calculation | F39: =F37+F38 -> 0
A41: Notes:
A42: 1 For an applicant that adopts IFRS on January 1, 2012, the PP&E values as of January 1, 2011 under both CGAAP and MIFRS should be the same.
A43: 2 Return on rate base associated with deferred balance is calculated as:
A44: the deferral account opening balance as of 2014 rebasing year x WACC X # of years of rate rider disposition period
A45: * Please note that the calculation should be adjusted once WACC is updated and finalized in the rate application.
A46: 3 The PP&E deferral account is cleared by including the total balance in the deferral and variance account rate rider calculation.
A47: 4 Net additions are additions net of disposals; Net depreciation is additions to depreciation net of disposals.

Sheet App.2-EB_PP&E Deferral Account
H1: File Number: | I1: =EBNUMBER -> EB-2014-0113
H2: Exhibit: | I2: 2
H3: Tab: | I3: 2
H4: Schedule: | I4: 2
H5: Page:
H7: Date: | I7: 2015-04-25
A9: Appendix 2-EB N/A
A10: Account 1575 - IFRS-CGAAP Transitional PP&E Amounts
A11: 2013 Adopters of IFRS for Financial Reporting Purposes
A13: For applicants that adopt IFRS on January 1, 2013 for financial reporting purposes
A15: Note: this sheet should be filled out if the applicant adopts IFRS for its financial reporting purpose as of January 1, 2013.
B17: =RebaseYear &" Rebasing Year" -> 2011 Rebasing Year | C17: 2011 | D17: 2012 | E17: 2013 | F17: 2014 Rebasing Year | G17: 2015 | H17: 2016 | I17: 2017 | J17: 2018
A18: Reporting Basis | B18: CGAAP | C18: IRM | D18: IRM | E18: IRM | F18: MIFRS | G18: IRM | H18: IRM | I18: IRM | J18: IRM
A19: Forecast vs. Actual Used in Rebasing Year | B19: Forecast | C19: Actual | D19: Actual | E19: Forecast | F19: Forecast
D20: $ | E20: $ | F20: $ | G20: $ | H20: $ | I20: $ | J20: $
A21: PP&E Values under CGAAP
A22: Opening net PP&E - Note 1
A23: Net Additions - Note 4
A24: Net Depreciation (amounts should be negative) - Note 4
A25: Closing net PP&E (1) | D25: =D22+D23+D24 -> 0 | E25: =E22+E23+E24 -> 0
A27: PP&E Values under MIFRS (Starts from 2012, the transition year)
A28: Opening net PP&E - Note 1 | D28: =+D22 -> 0 | E28: =+D31 -> 0
A29: Net Additions - Note 4 | D29: =+D23 -> 0 | E29: =+E23 -> 0
A30: Net Depreciation (amounts should be negative) - Note 4 | D30: =+D24 -> 0 | E30: =+E24 -> 0
A31: Closing net PP&E (2) | D31: =SUM(D28:D30) -> 0 | E31: =SUM(E28:E30) -> 0
L32: GAAP UFL = IFRS UFL
A33: Difference in Closing net PP&E, CGAAP vs. MIFRS | D33: =D25-D31 -> 0 | E33: =E25-E31 -> 0
A36: Effect on Deferral and Variance Account Rate Riders
A37: Closing balance in deferral account | F37: =IF(ISERROR(E33), 0, E33) -> 0 | H37: WACC
A38: Return on Rate Base Associated with deferred PP&E balance at WACC - Note 2 | F38: =E33*I37*I38 -> 0 | G38: # of years of rate rider disposition period
A39: Amount included in Deferral and Variance Account Rate Rider Calculation | F39: =F37+F38 -> 0
A41: Notes:
A42: 1 For an applicant that adopts IFRS on January 1, 2013, the PP&E values as of January 1, 2012 under both CGAAP and MIFRS should be the same.
A43: 2 Return on rate base associated with deferred balance is calculated as:
A44: the deferral account opening balance as of 2014 rebasing year x WACC X # of years of rate rider disposition period
A45: * Please note that the calculation should be adjusted once WACC is updated and finalized in the rate application.
A46: 3 The PP&E deferral account is cleared by including the total balance in the deferral and variance account rate rider calculation.
A47: 4 Net additions are additions net of disposals; Net depreciation is additions to depreciation net of disposals.

Sheet App.2-EC_PP&E Deferral Account
H1: File Number: | I1: =EBNUMBER -> EB-2014-0113
H2: Exhibit: | I2: 2
H3: Tab: | I3: 2
H4: Schedule: | I4: 2
H5: Page:
H7: Date: | I7: 2015-04-25
A9: Appendix 2-EC N/A
A10: Account 1575 - IFRS-CGAAP Transitional PP&E Amounts
A11: 2014 Adopters of IFRS for Financial Reporting Purposes
A13: For applicants that adopt IFRS on January 1, 2014 for financial reporting purposes
A15: Note: this sheet should be filled out if the applicant adopts IFRS for its financial reporting purpose as of January 1, 2014.
B17: =RebaseYear &" Rebasing Year" -> 2011 Rebasing Year | C17: 2011 | D17: 2012 | E17: 2013 | F17: 2014 Rebasing Year | G17: 2015 | H17: 2016 | I17: 2016 | J17: 2017
A18: Reporting Basis | B18: CGAAP | C18: IRM | D18: IRM | E18: IRM | F18: MIFRS | G18: IRM | H18: IRM | I18: IRM | J18: IRM
A19: Forecast vs. Actual Used in Rebasing Year | B19: Forecast | C19: Actual | D19: Actual | E19: Forecast | F19: Forecast
E20: $ | F20: $ | G20: $ | H20: $ | I20: $ | J20: $
A21: PP&E Values under CGAAP
A22: Opening net PP&E - Note 1
A23: Net Additions - Note 4
A24: Net Depreciation (amounts should be negative) - Note 4
A25: Closing net PP&E (1) | E25: =SUM(E22:E24) -> 0
A27: PP&E Values under MIFRS (Starts from 2013, the transition year)
A28: Opening net PP&E - Note 1
A29: Net Additions - Note 4
A30: Net Depreciation (amounts should be negative) - Note 4
A31: Closing net PP&E (2) | E31: =SUM(E28:E30) -> 0
A33: Difference in Closing net PP&E, CGAAP vs. MIFRS | E33: =E25-E31 -> 0
A36: Effect on Deferral and Variance Account Rate Riders
A37: Closing balance in deferral account | F37: =IF(ISERROR(E33), 0, E33) -> 0 | H37: WACC
A38: Return on Rate Base Associated with deferred PP&E balance at WACC - Note 2 | F38: =E33*I37*I38 -> 0 | G38: # of years of rate rider disposition period
A39: Amount included in Deferral and Variance Account Rate Rider Calculation | F39: =F37+F38 -> 0
A41: Notes:
A42: 1 For an applicant that adopts IFRS on January 1, 2014, the PP&E values as of January 1, 2013 under both CGAAP and MIFRS should be the same.
A43: 2 Return on rate base associated with deferred balance is calculated as:
A44: the deferral account opening balance as of 2014 rebasing year x WACC X # of years of rate rider disposition period
A45: * Please note that the calculation should be adjusted once WACC is updated and finalized in the rate application.
A46: 3 The PP&E deferral account is cleared by including the total balance in the deferral and variance account rate rider calculation.
A47: 4 Net additions are additions net of disposals; Net depreciation is additions to depreciation net of disposals.

Sheet App.2-ED_Account 1576 (2012)
I1: File Number: | J1: =EBNUMBER -> EB-2014-0113
I2: Exhibit: | J2: 2
I3: Tab: | J3: 2
I4: Schedule: | J4: 2
I5: Page:
I7: Date: | J7: 2015-04-25
B9: Appendix 2-ED
B10: Account 1576 - Accounting Changes under CGAAP
B11: 2012 Changes in Accounting Policies under CGAAP
B13: Assumes the applicant made capitalization and depreciation expense accounting policy changes under CGAAP effective January 1, 2012
C17: =RebaseYear &" Rebasing Year" -> 2011 Rebasing Year | D17: 2011 | E17: 2012 | F17: 2013 | G17: 2014 | H17: 2015 Rebasing Year | I17: 2016 | J17: 2017 | K17: 2018
B18: Reporting Basis | C18: CGAAP | D18: IRM | E18: IRM | F18: IRM | G18: IRM | H18: IRM | I18: IRM | J18: IRM | K18: IRM
B19: Forecast vs. Actual Used in Rebasing Year | C19: Forecast | D19: Actual | E19: Actual | F19: Actual | G19: Forecast | H19: Forecast
E20: $ | F20: $ | G20: $ | H20: $ | I20: $ | J20: $ | K20: $
B21: PP&E Values under former CGAAP | S21: Additions + Capitalized Admin
B22: Opening net PP&E - Note 1 | E22: 18970924.04 | F22: =+E25 -> 24537285.71 | G22: =+F25 -> 24907840.72 | O22: 25 yr
B23: Net Additions - Note 4 | E23: =7069688.668+862045 -> 7931733.668 | F23: =1561521.01-38000+789978 -> 2313499.01 | G23: =2516792+865760 -> 3382552 | O23: reconcile 2-cb and 2-ca
B24: Net Depreciation (amounts should be negative) - Note 4 | E24: =-2365372 -> -2365372 | F24: =-1950544+7600 -> -1942944 | G24: =-2036666 -> -2036666 | O24: 2-ba
B25: Closing net PP&E (1) | E25: =E22+E23+E24 -> 24537285.71 | F25: =F22+F23+F24 -> 24907840.72 | G25: =G22+G23+G24 -> 26253726.72 | O25: do 2-YA
B27: PP&E Values under revised CGAAP (Starts from 2012)
B28: Opening net PP&E - Note 1 | E28: =+E22 -> 18970924.04 | F28: =+E31 -> 24491365.04 | G28: =+F31 -> 24878777.59
B29: Net Additions - Note 4 | E29: 7069689 | F29: =1561521.01-38000 -> 1523521.01 | G29: =1800000+816792.06-100000 -> 2516792.06
B30: Net Depreciation (amounts should be negative) - Note 4 | E30: -1549248 | F30: =-1143708.46+7600 -> -1136108.46 | G30: -1226862
B31: Closing net PP&E (2) | E31: =SUM(E28:E30) -> 24491365.04 | F31: =SUM(F28:F30) -> 24878777.59 | G31: =SUM(G28:G30) -> 26168707.65 | O31: Forecast vs Actual used in rebasing year, exluded amortization associated with Asset Transfer in rows 24
B33: Difference in Closing net PP&E, former CGAAP vs. revised CGAAP | E33: =E25-E31 -> 45920.668 | F33: =F25-F31 -> 29063.128 | G33: =G25-G31 -> 85019.068
B36: Effect on Deferral and Variance Account Rate Riders
B37: Closing balance in Account 1576 | G37: =+G33 -> 85019.068 | I37: WACC | J37: 0.0707
B38: Return on Rate Base Associated with Account 1576 balance at WACC - Note 2 | G38: =G33*J37*J38 -> 30054.24054 | H38: # of years of rate rider disposition period | J38: 5
B39: Amount included in Deferral and Variance Account Rate Rider Calculation | G39: =G37+G38 -> 115073.3085
B41: Notes:
B42: 1 For an applicant that made the capitalization and depreciation expense accounting policy changes on January 1, 2012, the PP&E values as of January 1, 2012 under both former CGAAP and revised CGAAP should be the same.
B43: 2 Return on rate base associated with Account 1576 balance is calculated as:
B44: the variance account opening balance as of 2014 rebasing year x WACC X # of years of rate rider disposition period
B45: * Please note that the calculation should be adjusted once WACC is updated and finalized in the rate application.
B46: 3 Account 1576 is cleared by including the total balance in the deferral and variance account rate rider calculation.
B47: 4 Net additions are additions net of disposals; Net depreciation is additions to depreciation net of disposals.

Sheet App.2-EE_Account 1576 (2013)
H1: File Number: | I1: =EBNUMBER -> EB-2014-0113
H2: Exhibit: | I2: 2
H3: Tab: | I3: 2
H4: Schedule: | I4: 2
H5: Page:
H7: Date: | I7: 2015-04-25
A9: Appendix 2-EE N/A
A10: Account 1576 - Accounting Changes under CGAAP
A11: 2013 Changes in Accounting Policies under CGAAP
A13: Assumes the applicant made capitalization and depreciation expense accounting policy changes under CGAAP effective January 1, 2013
B17: =RebaseYear &" Rebasing Year" -> 2011 Rebasing Year | C17: 2011 | D17: 2012 | E17: 2013 | F17: 2014 Rebasing Year | G17: 2015 | H17: 2016 | I17: 2016 | J17: 2017
A18: Reporting Basis | B18: CGAAP | C18: IRM | D18: IRM | E18: IRM | F18: CGAAP - ASPE | G18: IRM | H18: IRM | I18: IRM | J18: IRM
A19: Forecast vs. Actual Used in Rebasing Year | B19: Forecast | C19: Actual | D19: Actual | E19: Forecast | F19: Forecast
E20: $ | F20: $ | G20: $ | H20: $ | I20: $ | J20: $
A21: PP&E Values under former CGAAP
A22: Opening net PP&E - Note 1
A23: Net Additions - Note 4
A24: Net Depreciation (amounts should be negative) - Note 4
A25: Closing net PP&E (1) | E25: =SUM(E22:E24) -> 0
A27: PP&E Values under revised CGAAP (Starts from 2013)
A28: Opening net PP&E - Note 1
A29: Net Additions - Note 4
A30: Net Depreciation (amounts should be negative) - Note 4
A31: Closing net PP&E (2) | E31: =SUM(E28:E30) -> 0
A33: Difference in Closing net PP&E, former CGAAP vs. revised CGAAP | E33: =E25-E31 -> 0
A36: Effect on Deferral and Variance Account Rate Riders
A37: Closing balance in Account 1576 | F37: =IF(ISERROR(E33), 0, E33) -> 0 | H37: WACC
A38: Return on Rate Base Associated with Account 1576 balance at WACC - Note 2 | F38: =E33*I37*I38 -> 0 | G38: # of years of rate rider disposition period
A39: Amount included in Deferral and Variance Account Rate Rider Calculation | F39: =F37+F38 -> 0
A41: Notes:
A42: 1 For an applicant that made the capitalization and depreciation expense accounting policy changes on January 1, 2013, the PP&E values as of January 1, 2013 under both former CGAAP and revised CGAAP should be the same.
A43: 2 Return on rate base associated with Account 1576 balance is calculated as:
A44: the variance account opening balance as of 2014 rebasing year x WACC X # of years of rate rider disposition period
A45: * Please note that the calculation should be adjusted once WACC is updated and finalized in the rate application.
A46: 3 Account 1576 is cleared by including the total balance in the deferral and variance account rate rider calculation.
A47: 4 Net additions are additions net of disposals; Net depreciation is additions to depreciation net of disposals.

Sheet App.2-FA Proposed REG Invest. (hidden)
F1: File Number: | G1: =EBNUMBER -> EB-2014-0113
F2: Exhibit:
F3: Tab:
F4: Schedule:
F5: Page:
F7: Date:
A9: Appendix 2-FA
A10: Renewable Generation Connection Investment Summary (over the rate setting period)
A12: Enter the details of the Renewable Generation Connection projects as described in Section 2.5.2.5 of the Filing Requirements.
A13: All costs entered on this page will be transferred to the appropriate cells in the appendices that follow.
A14: For Part A, Renewable Enabling Improvements (REI), these amounts will be transferred to Appendix 2 - FB
A15: For Part B, Expansions, these amounts will be transferred to Appendix 2 - FC
A17: If there are more than five projects proposed to be in-service in a certain year, please amend the tables below and ensure that the formulae for the Total Amounts in any given rate year are updated.
A18: Based on the current methodology and allocation, amounts allocated represent 6% for REI Connection Investments and 17% for Expansion Investments. (pg 15, EB-2009-0349)
A21: Part A
A22: REI Investments (Direct Benefit at 6%) | C22: 2014 | D22: 2015 | E22: 2016 | F22: 2017 | G22: 2018
A23: Project 1
A24: Name: REI Connection Project
A25: Capital Costs | C25: 0 | D25: 0 | E25: 0 | F25: 0 | G25: 0
A26: OM&A (Start-Up) | C26: 0 | D26: 0 | E26: 0 | F26: 0 | G26: 0
A27: OM&A (Ongoing) | C27: 0 | D27: 0 | E27: 0 | F27: 0 | G27: 0
A29: Project 2
A30: Name: REI Connection Project
A31: Capital Costs | C31: 0 | D31: 0 | E31: 0 | F31: 0 | G31: 0
A32: OM&A (Start-Up) | C32: 0 | D32: 0 | E32: 0 | F32: 0 | G32: 0
A33: OM&A (Ongoing) | C33: 0 | D33: 0 | E33: 0 | F33: 0 | G33: 0
A35: Project 3
A36: Name: REI Connection Project
A37: Capital Costs | C37: 0 | D37: 0 | E37: 0 | F37: 0 | G37: 0
A38: OM&A (Start-Up) | C38: 0 | D38: 0 | E38: 0 | F38: 0 | G38: 0
A39: OM&A (Ongoing) | C39: 0 | D39: 0 | E39: 0 | F39: 0 | G39: 0
A41: Project 4
A42: Name: REI Connection Project
A43: Capital Costs | C43: 0 | D43: 0 | E43: 0 | F43: 0 | G43: 0
A44: OM&A (Start-Up) | C44: 0 | D44: 0 | E44: 0 | F44: 0 | G44: 0
A45: OM&A (Ongoing) | C45: 0 | D45: 0 | E45: 0 | F45: 0 | G45: 0
A47: Project 5
A48: Name: REI Connection Project
A49: Capital Costs | C49: 0 | D49: 0 | E49: 0 | F49: 0 | G49: 0
A50: OM&A (Start-Up) | C50: 0 | D50: 0 | E50: 0 | F50: 0 | G50: 0
A51: OM&A (Ongoing) | C51: 0 | D51: 0 | E51: 0 | F51: 0 | G51: 0
A53: Total Capital Costs | C53: =SUM(C49,C43,C37,C31,C25) -> 0 | D53: =SUM(D49,D43,D37,D31,D25) -> 0 | E53: 0 | F53: 0 | G53: 0
A54: Total OM&A (Start-Up) | C54: =SUM(C50,C44,C38,C32,C26) -> 0 | D54: 0 | E54: 0 | F54: 0 | G54: 0
A55: Total OM&A (Ongoing) | C55: =SUM(C51,C45,C39,C33,C27) -> 0 | D55: 0 | E55: 0 | F55: 0 | G55: 0
A58: Part B
A59: Expansion Investments (Direct Benefit at 17%) | C59: 2014 | D59: 2015 | E59: 2016 | F59: 2017 | G59: 2018
A60: Project 1
A61: Name: Expansion Connection Project
A62: Capital Costs | C62: 0 | D62: 0 | E62: 0 | F62: 0 | G62: 0
A63: OM&A (Start-Up) | C63: 0 | D63: 0 | E63: 0 | F63: 0 | G63: 0
A64: OM&A (Ongoing) | C64: 0 | D64: 0 | E64: 0 | F64: 0 | G64: 0
A66: Project 2
A67: Name: Expansion Connection Project
A68: Capital Costs | C68: 0 | D68: 0 | E68: 0 | F68: 0 | G68: 0
A69: OM&A (Start-Up) | C69: 0 | D69: 0 | E69: 0 | F69: 0 | G69: 0
A70: OM&A (Ongoing) | C70: 0 | D70: 0 | E70: 0 | F70: 0 | G70: 0
A72: Project 3
A73: Name: Expansion Connection Project
A74: Capital Costs | C74: 0 | D74: 0 | E74: 0 | F74: 0 | G74: 0
A75: OM&A (Start-Up) | C75: 0 | D75: 0 | E75: 0 | F75: 0 | G75: 0
A76: OM&A (Ongoing) | C76: 0 | D76: 0 | E76: 0 | F76: 0 | G76: 0
A78: Project 4
A79: Name: Expansion Connection Project
A80: Capital Costs | C80: 0 | D80: 0 | E80: 0 | F80: 0 | G80: 0
A81: OM&A (Start-Up) | C81: 0 | D81: 0 | E81: 0 | F81: 0 | G81: 0
A82: OM&A (Ongoing) | C82: 0 | D82: 0 | E82: 0 | F82: 0 | G82: 0
A84: Project 5
A85: Name: Expansion Connection Project
A86: Capital Costs | C86: 0 | D86: 0 | E86: 0 | F86: 0 | G86: 0
A87: OM&A (Start-Up) | C87: 0 | D87: 0 | E87: 0 | F87: 0 | G87: 0
A88: OM&A (Ongoing) | C88: 0 | D88: 0 | E88: 0 | F88: 0 | G88: 0
A90: Total Capital Costs | C90: =SUM(C86,C80,C74,C68,C62) -> 0 | D90: =SUM(D86,D80,D74,D68,D62) -> 0 | E90: 0 | F90: 0 | G90: 0
A91: Total OM&A (Start-Up) | C91: =SUM(C87,C81,C75,C69,C63) -> 0 | D91: 0 | E91: 0 | F91: 0 | G91: 0
A92: Total OM&A (Ongoing) | C92: =SUM(C88,C82,C76,C70,C64) -> 0 | D92: 0 | E92: 0 | F92: 0 | G92: 0

Sheet App.2-FB Calc of REG Improvemnt (hidden)
F1: File Number: | G1: =EBNUMBER -> EB-2014-0113
F2: Exhibit:
F3: Tab:
F4: Schedule:
F5: Page:
F7: Date:
A9: Appendix 2-FB
A10: Calculation of Renewable Generation Connection Direct Benefits/Provincial Amount: Renewable Enabling Improvement Investments
A12: This table will calculate the distributor/provincial shares of the investments entered in Part A of Appendix 2-FA.
A13: Enter values in green shaded cells: WCA percentage, debt percentages, interest rates, kWh, tax rates, amortization period, CCA Class and percentage.
A14: Rate Riders are not calculated for Test Year as these assets and costs are already in the distributor's rate base/revenue requirement.
D17: 2014 Test Year | G17: 2015 | J17: 2016 | K17: 2016 | M17: 2017 | P17: 2018
E18: Direct Benefit | F18: Provincial | H18: Direct Benefit | I18: Provincial | K18: Direct Benefit | L18: Provincial | N18: Direct Benefit | O18: Provincial | Q18: Direct Benefit | R18: Provincial
D19: Total | E19: 0.06 | F19: 0.94 | G19: Total | H19: 0.06 | I19: 0.94 | J19: Total | K19: 0.06 | L19: 0.94 | M19: Total | N19: 0.06 | O19: 0.94 | P19: Total | Q19: 0.06 | R19: 0.94
A20: Net Fixed Assets (average) | D20: =D82 -> 0 | E20: =D20*E19 -> 0 | F20: =D20*F19 -> 0 | G20: =E82 -> 0 | H20: =G20*H19 -> 0 | I20: =G20*I19 -> 0 | J20: =F82 -> 0 | K20: =J20*K19 -> 0 | L20: =J20*L19 -> 0 | M20: =G82 -> 0 | N20: =M20*N19 -> 0 | O20: =M20*O19 -> 0 | P20: =H82 -> 0 | Q20: =P20*Q19 -> 0 | R20: =P20*R19 -> 0
A21: Incremental OM&A (on-going, N/A for Provincial Recovery) | D21: ='App.2-FA Proposed REG Invest.'!C55 -> 0 | E21: =D21 -> 0 | G21: ='App.2-FA Proposed REG Invest.'!D55 -> 0 | H21: =G21 -> 0 | J21: ='App.2-FA Proposed REG Invest.'!E55 -> 0 | K21: =J21 -> 0 | M21: ='App.2-FA Proposed REG Invest.'!F55 -> 0 | N21: =M21 -> 0 | P21: ='App.2-FA Proposed REG Invest.'!G55 -> 0 | Q21: =P21 -> 0
A22: Incremental OM&A (start-up, applicable for Provincial Recovery) | D22: ='App.2-FA Proposed REG Invest.'!C54 -> 0 | E22: =D22*E19 -> 0 | F22: =D22*F19 -> 0 | G22: ='App.2-FA Proposed REG Invest.'!D54 -> 0 | H22: =G22*H19 -> 0 | I22: =G22*I19 -> 0 | J22: ='App.2-FA Proposed REG Invest.'!E54 -> 0 | K22: =J22*K19 -> 0 | L22: =J22*L19 -> 0 | M22: ='App.2-FA Proposed REG Invest.'!F54 -> 0 | N22: =M22*N19 -> 0 | O22: =M22*O19 -> 0 | P22: ='App.2-FA Proposed REG Invest.'!G54 -> 0 | Q22: =P22*Q19 -> 0 | R22: =P22*R19 -> 0
A23: WCA | E23: =(E21+E22)*$B$23 -> 0 | F23: =F22*$B$23 -> 0 | H23: =(H21+H22)*$B$23 -> 0 | I23: =I22*$B$23 -> 0 | K23: =(K21+K22)*$B$23 -> 0 | L23: =L22*$B$23 -> 0 | N23: =(N21+N22)*$B$23 -> 0 | O23: =O22*$B$23 -> 0 | Q23: =(Q21+Q22)*$B$23 -> 0 | R23: =R22*$B$23 -> 0
A24: Rate Base | E24: =SUM(E20+E23) -> 0 | F24: =SUM(F20+F23) -> 0 | H24: =SUM(H20+H23) -> 0 | I24: =SUM(I20+I23) -> 0 | K24: =SUM(K20+K23) -> 0 | L24: =SUM(L20+L23) -> 0 | N24: =SUM(N20+N23) -> 0 | O24: =SUM(O20+O23) -> 0 | Q24: =SUM(Q20+Q23) -> 0 | R24: =SUM(R20+R23) -> 0
A27: Deemed ST Debt | E27: =E24*$B$27 -> 0 | F27: =F24*$B$27 -> 0 | H27: =H24*$B$27 -> 0 | I27: =I24*$B$27 -> 0 | K27: =K24*$B$27 -> 0 | L27: =L24*$B$27 -> 0 | N27: =N24*$B$27 -> 0 | O27: =O24*$B$27 -> 0 | Q27: =Q24*$B$27 -> 0 | R27: =R24*$B$27 -> 0
A28: Deemed LT Debt | E28: =E24*$B$28 -> 0 | F28: =F24*$B$28 -> 0 | H28: =H24*$B$28 -> 0 | I28: =I24*$B$28 -> 0 | K28: =K24*$B$28 -> 0 | L28: =L24*$B$28 -> 0 | N28: =N24*$B$28 -> 0 | O28: =O24*$B$28 -> 0 | Q28: =Q24*$B$28 -> 0 | R28: =R24*$B$28 -> 0
A29: Deemed Equity | E29: =E24*$B$29 -> 0 | F29: =F24*$B$29 -> 0 | H29: =H24*$B$29 -> 0 | I29: =I24*$B$29 -> 0 | K29: =K24*$B$29 -> 0 | L29: =L24*$B$29 -> 0 | N29: =N24*$B$29 -> 0 | O29: =O24*$B$29 -> 0 | Q29: =Q24*$B$29 -> 0 | R29: =R24*$B$29 -> 0
A31: ST Interest | E31: =E27*$B31 -> 0 | F31: =F27*$B31 -> 0 | H31: =H27*$B31 -> 0 | I31: =I27*$B31 -> 0 | K31: =K27*$B31 -> 0 | L31: =L27*$B31 -> 0 | N31: =N27*$B31 -> 0 | O31: =O27*$B31 -> 0 | Q31: =Q27*$B31 -> 0 | R31: =R27*$B31 -> 0
A32: LT Interest | E32: =E28*$B32 -> 0 | F32: 0 | H32: =H28*$B32 -> 0 | I32: 0 | K32: =K28*$B32 -> 0 | L32: 0 | N32: =N28*$B32 -> 0 | O32: 0 | Q32: =Q28*$B32 -> 0 | R32: 0
A33: ROE | E33: 0 | F33: 0 | H33: 0 | I33: 0 | K33: 0 | L33: 0 | N33: 0 | O33: 0 | Q33: 0 | R33: 0
A34: Cost of Capital Total | E34: =SUM(E31:E33) -> 0 | F34: =SUM(F31:F33) -> 0 | H34: =SUM(H31:H33) -> 0 | I34: =SUM(I31:I33) -> 0 | K34: =SUM(K31:K33) -> 0 | L34: =SUM(L31:L33) -> 0 | N34: =SUM(N31:N33) -> 0 | O34: =SUM(O31:O33) -> 0 | Q34: =SUM(Q31:Q33) -> 0 | R34: =SUM(R31:R33) -> 0
A36: OM&A | E36: =E21+E22 -> 0 | F36: =F22 -> 0 | H36: =H21+H22 -> 0 | I36: =I22 -> 0 | K36: =K21+K22 -> 0 | L36: =L22 -> 0 | N36: =N21+N22 -> 0 | O36: =O22 -> 0 | Q36: =Q21+Q22 -> 0 | R36: =R22 -> 0
A37: Amortization | D37: =D77 -> 0 | E37: =D37*E$19 -> 0 | F37: =D37*F$19 -> 0 | G37: =E76+E77 -> 0 | H37: =G37*H$19 -> 0 | I37: =G37*I$19 -> 0 | J37: =F76+F77 -> 0 | K37: =J37*K$19 -> 0 | L37: =J37*L$19 -> 0 | M37: =G76+G77 -> 0 | N37: =M37*N$19 -> 0 | O37: =M37*O$19 -> 0 | P37: =H76+H77 -> 0 | Q37: =P37*Q$19 -> 0 | R37: =P37*R$19 -> 0
A38: Grossed-up PILs | E38: =E65 -> 0 | F38: =F65 -> 0 | H38: =H65 -> 0 | I38: =I65 -> 0 | K38: =K65 -> 0 | L38: =L65 -> 0 | N38: =N65 -> 0 | O38: =O65 -> 0 | Q38: =Q65 -> 0 | R38: =R65 -> 0
A40: Revenue Requirement | E40: =SUM(E34:E38) -> 0 | F40: =SUM(F34:F38) -> 0 | H40: =SUM(H34:H38) -> 0 | I40: =SUM(I34:I38) -> 0 | K40: =SUM(K34:K38) -> 0 | L40: =SUM(L34:L38) -> 0 | N40: =SUM(N34:N38) -> 0 | O40: =SUM(O34:O38) -> 0 | Q40: =SUM(Q34:Q38) -> 0 | R40: =SUM(R34:R38) -> 0
A43: Provincial Rate Protection | F43: =F40 -> 0 | I43: =I40 -> 0 | L43: =L40 -> 0 | O43: =O40 -> 0 | R43: =R40 -> 0
A45: Monthly Amount Paid by IESO | F45: =F43/12 -> 0 | I45: =I43/12 -> 0 | L45: =L43/12 -> 0 | O45: =O43/12 -> 0 | R45: =R43/12 -> 0
A47: Note 1: The difference between the actual costs of approved eligible investments and revenue received from the IESO should be recorded in a variance account. The Board may provide
A48: regulatory accounting guidance regarding a variance account either in an individual proceeding or on a generic basis.
A49: Note 2: For the 2014 Test Year, Costs and Revenues of the Direct Benefit are to be included in the test year applicant Rate Base and Revenues.
A51: PILs Calculation
E52: 2014 | H52: 2015 | K52: 2016 | N52: 2017 | Q52: 2018
A53: Income Tax | E53: Direct Benefit | F53: Provincial | H53: Direct Benefit | I53: Provincial | K53: Direct Benefit | L53: Provincial | N53: Direct Benefit | O53: Provincial | Q53: Direct Benefit | R53: Provincial
M54: Total | P54: Total
A55: Net Income - ROE on Rate Base | E55: =E33 -> 0 | F55: =F33 -> 0 | H55: =H33 -> 0 | I55: =I33 -> 0 | K55: =K33 -> 0 | L55: =L33 -> 0 | N55: =N33 -> 0 | O55: =O33 -> 0 | Q55: =Q33 -> 0 | R55: =R33 -> 0
A56: Amortization (6% DB and 94% P) | E56: =E37 -> 0 | F56: =F37 -> 0 | H56: =H37 -> 0 | I56: =I37 -> 0 | K56: =K37 -> 0 | L56: =L37 -> 0 | N56: =N37 -> 0 | O56: =O37 -> 0 | Q56: =Q37 -> 0 | R56: =R37 -> 0
A57: CCA (6% DB and 94% P) | E57: =-D94*E$19 -> 0 | F57: =-D94*F$19 -> 0 | H57: =-E94*H$19 -> 0 | I57: =-E94*I$19 -> 0 | K57: =-F94*K$19 -> 0 | L57: =-F94*L$19 -> 0 | N57: =-G94*N$19 -> 0 | O57: =-G94*O$19 -> 0 | Q57: =-H94*Q$19 -> 0 | R57: =-H94*R$19 -> 0
A58: Taxable income | E58: =SUM(E55:E57) -> 0 | F58: =SUM(F55:F57) -> 0 | H58: =SUM(H55:H57) -> 0 | I58: =SUM(I55:I57) -> 0 | K58: =SUM(K55:K57) -> 0 | L58: =SUM(L55:L57) -> 0 | N58: =SUM(N55:N57) -> 0 | O58: =SUM(O55:O57) -> 0 | Q58: =SUM(Q55:Q57) -> 0 | R58: =SUM(R55:R57) -> 0
A60: Tax Rate (to be entered)
A62: Income Taxes Payable | E62: =E58*E60 -> 0 | F62: =F58*F60 -> 0 | H62: =H58*H60 -> 0 | I62: =I58*I60 -> 0 | K62: =K58*K60 -> 0 | L62: =L58*L60 -> 0 | N62: =N58*N60 -> 0 | O62: =O58*O60 -> 0 | Q62: =Q58*Q60 -> 0 | R62: =R58*R60 -> 0
A63: Gross Up
A64: Income Taxes Payable | E64: =E62/(1-E60) -> 0 | F64: =F62/(1-F60) -> 0 | H64: =H62/(1-H60) -> 0 | I64: =I62/(1-I60) -> 0 | K64: =K62/(1-K60) -> 0 | L64: =L62/(1-L60) -> 0 | N64: =N62/(1-N60) -> 0 | O64: =O62/(1-O60) -> 0 | Q64: =Q62/(1-Q60) -> 0 | R64: =R62/(1-R60) -> 0
A65: Grossed Up PILs | E65: =SUM(E64:E64) -> 0 | F65: =SUM(F64:F64) -> 0 | H65: =SUM(H64:H64) -> 0 | I65: =SUM(I64:I64) -> 0 | K65: =SUM(K64:K64) -> 0 | L65: =SUM(L64:L64) -> 0 | N65: =SUM(N64:N64) -> 0 | O65: =SUM(O64:O64) -> 0 | Q65: =SUM(Q64:Q64) -> 0 | R65: =SUM(R64:R64) -> 0
D68: 2014 | E68: 2015 | F68: 2016 | G68: 2017 | H68: 2018
A69: Net Fixed Assets
B70: Enter applicable amortization in years: | C70: 25
A71: Opening Gross Fixed Assets | E71: =D73 -> 0 | F71: =E73 -> 0 | G71: =F73 -> 0 | H71: =G73 -> 0
A72: Gross Capital Additions | D72: ='App.2-FA Proposed REG Invest.'!C53 -> 0 | E72: ='App.2-FA Proposed REG Invest.'!D53 -> 0 | F72: ='App.2-FA Proposed REG Invest.'!E53 -> 0 | G72: ='App.2-FA Proposed REG Invest.'!F53 -> 0 | H72: ='App.2-FA Proposed REG Invest.'!G53 -> 0
A73: Closing Gross Fixed Assets | D73: =SUM(D71:D72) -> 0 | E73: =SUM(E71:E72) -> 0 | F73: 0 | G73: 0 | H73: 0
A75: Opening Accumulated Amortization | E75: =D78 -> 0 | F75: =E78 -> 0 | G75: =F78 -> 0 | H75: =G78 -> 0
A76: Current Year Amortization (before additions) | E76: =IF(ISERROR(E71/$C$70), 0, E71/$C$70) -> 0 | F76: =IF(ISERROR(F71/$C$70), 0, F71/$C$70) -> 0 | G76: =IF(ISERROR(G71/$C$70), 0, G71/$C$70) -> 0 | H76: =IF(ISERROR(H71/$C$70), 0, H71/$C$70) -> 0
A77: Additions (half year) | D77: =D72/C70/2 -> 0 | E77: =E72/C70/2 -> 0 | F77: =F72/C70/2 -> 0 | G77: =G72/C70/2 -> 0 | H77: =H72/C70/2 -> 0
A78: Closing Accumulated Amortization | D78: =SUM(D75+D77) -> 0 | E78: =SUM(E75:E77) -> 0 | F78: =SUM(F75:F77) -> 0 | G78: =SUM(G75:G77) -> 0 | H78: =SUM(H75:H77) -> 0
A80: Opening Net Fixed Assets | D80: =D71-D75 -> 0 | E80: =D81 -> 0 | F80: =E81 -> 0 | G80: =F81 -> 0 | H80: =G81 -> 0
A81: Closing Net Fixed Assets | D81: =D73-D78 -> 0 | E81: =E73-E78 -> 0 | F81: =F73-F78 -> 0 | G81: =G73-G78 -> 0 | H81: =H73-H78 -> 0
A82: Average Net Fixed Assets | D82: =SUM(D80:D81)/2 -> 0 | E82: =SUM(E80:E81)/2 -> 0 | F82: =SUM(F80:F81)/2 -> 0 | G82: =SUM(G80:G81)/2 -> 0 | H82: =SUM(H80:H81)/2 -> 0
A84: UCC for PILs Calculation
D85: 2014 | E85: 2015 | F85: 2016 | G85: 2017 | H85: 2018
A87: Opening UCC | E87: =D95 -> 0 | F87: =E95 -> 0 | G87: =F95 -> 0 | H87: =G95 -> 0
A88: Capital Additions (from Appendix 2-FA) | D88: =D72 -> 0 | E88: ='App.2-FA Proposed REG Invest.'!D31 -> 0 | F88: ='App.2-FA Proposed REG Invest.'!E31 -> 0 | G88: ='App.2-FA Proposed REG Invest.'!F31 -> 0 | H88: ='App.2-FA Proposed REG Invest.'!G31 -> 0
A89: UCC Before Half Year Rule | D89: =SUM(D87:D88) -> 0 | E89: =SUM(E87:E88) -> 0 | F89: =SUM(F87:F88) -> 0 | G89: =SUM(G87:G88) -> 0 | H89: =SUM(H87:H88) -> 0
A90: Half Year Rule (1/2 Additions - Disposals) | D90: =D88/2 -> 0 | E90: =E88/2 -> 0 | F90: =F88/2 -> 0 | G90: =G88/2 -> 0 | H90: =H88/2 -> 0
A91: Reduced UCC | D91: =D89-D90 -> 0 | E91: =E89-E90 -> 0 | F91: =F89-F90 -> 0 | G91: =G89-G90 -> 0 | H91: =H89-H90 -> 0
A92: CCA Rate Class (to be entered) | C92: 47 | D92: =C92 -> 47 | E92: =C92 -> 47 | F92: =C92 -> 47 | G92: =C92 -> 47 | H92: =C92 -> 47
A93: CCA Rate (to be entered) | C93: 0.08 | D93: =C93 -> 0.08 | E93: =C93 -> 0.08 | F93: =C93 -> 0.08 | G93: =C93 -> 0.08 | H93: =C93 -> 0.08
A94: CCA | D94: =D91*D93 -> 0 | E94: =E91*E93 -> 0 | F94: 0 | G94: 0 | H94: =H91*H93 -> 0
A95: Closing UCC | D95: =D89-D94 -> 0 | E95: =E89-E94 -> 0 | F95: =F89-F94 -> 0 | G95: =G89-G94 -> 0 | H95: =H89-H94 -> 0

Sheet App.2-FC Calc of REG Expansion (hidden)
E1: File Number: | F1: =EBNUMBER -> EB-2014-0113
E2: Exhibit:
E3: Tab:
E4: Schedule:
E5: Page:
E7: Date:
A9: Appendix 2-FC
A10: Calculation of Renewable Generation Connection Direct Benefits/Provincial Amount: Renewable Expansion Investments
A12: This table will calculate the distributor/provincial shares of the investments entered in Part B of Appendix 2-FA.
A13: Enter values in green shaded cells: WCA percentage, debt percentages, interest rates, kWh, tax rates, amortization period, CCA Class and percentage.
